Workbook

Sheet Curves
B1: 1 | G1: 2 | L1: 3 | Q1: 4 | V1: 5 | AA1: 6 | AF1: 7 | AK1: 8 | AP1: 9 | AU1: 10 | AZ1: 11 | BE1: 12 | BJ1: 13 | BO1: 14 | BT1: 15 | BY1: 16 | CD1: 17 | CI1: 18 | CN1: 19 | CS1: 20 | CX1: 21 | DC1: 22
B2: X | C2: Y | D2: Z | E2: BREAK | F2: COLOUR | G2: X | H2: Y | I2: Z | J2: BREAK | K2: COLOUR | L2: X | M2: Y | N2: Z | O2: BREAK | P2: COLOUR | Q2: X | R2: Y | S2: Z | T2: BREAK | U2: COLOUR | V2: X | W2: Y | X2: Z | Y2: BREAK | Z2: COLOUR | AA2: X | AB2: Y | AC2: Z | AD2: BREAK | AE2: COLOUR | AF2: X | AG2: Y | AH2: Z | AI2: BREAK | AJ2: COLOUR | AK2: X | AL2: Y | AM2: Z | AN2: BREAK | AO2: COLOUR | AP2: X | AQ2: Y | AR2: Z | AS2: BREAK | AT2: COLOUR | AU2: X | AV2: Y | AW2: Z | AX2: BREAK | AY2: COLOUR | AZ2: X | BA2: Y | BB2: Z | BC2: BREAK | BD2: COLOUR | BE2: X | BF2: Y | BG2: Z | BH2: BREAK | BI2: COLOUR | BJ2: X | BK2: Y | BL2: Z | BM2: BREAK | BN2: COLOUR | BO2: X | BP2: Y | BQ2: Z | BR2: BREAK | BS2: COLOUR | BT2: X | BU2: Y | BV2: Z | BW2: BREAK | BX2: COLOUR | BY2: X | BZ2: Y | CA2: Z | CB2: BREAK | CC2: COLOUR | CD2: X | CE2: Y | CF2: Z | CG2: BREAK | CH2: COLOUR | CI2: X | CJ2: Y | CK2: Z | CL2: BREAK | CM2: COLOUR | CN2: X | CO2: Y | CP2: Z | CQ2: BREAK | CR2: COLOUR | CS2: X | CT2: Y | CU2: Z | CV2: BREAK | CW2: COLOUR | CX2: X | CY2: Y | CZ2: Z | DA2: BREAK | DB2: COLOUR | DC2: X | DD2: Y | DE2: Z | DF2: BREAK | DG2: COLOUR
A3: Keel | B3: 0 | C3: =-8.20168948E-16*B3^5 + 0.0000000000135889885*B3^4 - 0.0000000840631515*B3^3 + 0.000206462105*B3^2 - 0.0717799351*B3 - 37.5476442 -> -37.5476442 | D3: =-0.0536796537*B3 - 386.148723 -> -386.148723 | E3: FALSE | F3: 5 | G3: 100 | H3: =-8.20168948E-16*G3^5 + 0.0000000000135889885*G3^4 - 0.0000000840631515*G3^3 + 0.000206462105*G3^2 - 0.0717799351*G3 - 37.5476442 -> -42.74372911 | I3: =-0.0536796537*G3 - 386.148723 -> -391.5166884 | J3: FALSE | K3: 5 | L3: 200 | M3: =-8.20168948E-16*L3^5 + 0.0000000000135889885*L3^4 - 0.0000000840631515*L3^3 + 0.000206462105*L3^2 - 0.0717799351*L3 - 37.5476442 -> -44.2961723 | N3: =-0.0536796537*L3 - 386.148723 -> -396.8846537 | O3: FALSE | P3: 5 | Q3: 400 | R3: =-8.20168948E-16*Q3^5 + 0.0000000000135889885*Q3^4 - 0.0000000840631515*Q3^3 + 0.000206462105*Q3^2 - 0.0717799351*Q3 - 37.5476442 -> -38.26624356 | S3: =-0.0536796537*Q3 - 386.148723 -> -407.6205845 | T3: FALSE | U3: 5 | V3: 600 | W3: =-8.20168948E-16*V3^5 + 0.0000000000135889885*V3^4 - 0.0000000840631515*V3^3 + 0.000206462105*V3^2 - 0.0717799351*V3 - 37.5476442 -> -22.74953161 | X3: =-0.0536796537*V3 - 386.148723 -> -418.3565152 | Y3: FALSE | Z3: 5 | AA3: 800 | AB3: =-8.20168948E-16*AA3^5 + 0.0000000000135889885*AA3^4 - 0.0000000840631515*AA3^3 + 0.000206462105*AA3^2 - 0.0717799351*AA3 - 37.5476442 -> -0.5788819193 | AC3: =-0.0536796537*AA3 - 386.148723 -> -429.092446 | AD3: FALSE | AE3: 5 | AF3: 1000 | AG3: =-8.20168948E-16*AF3^5 + 0.0000000000135889885*AF3^4 - 0.0000000840631515*AF3^3 + 0.000206462105*AF3^2 - 0.0717799351*AF3 - 37.5476442 -> 25.84019375 | AH3: =-0.0536796537*AF3 - 386.148723 -> -439.8283767 | AI3: FALSE | AJ3: 5 | AK3: 1500 | AL3: =-8.20168948E-16*AK3^5 + 0.0000000000135889885*AK3^4 - 0.0000000840631515*AK3^3 + 0.000206462105*AK3^2 - 0.0717799351*AK3 - 37.5476442 -> 98.17514942 | AM3: =-0.0536796537*AK3 - 386.148723 -> -466.6682036 | AN3: FALSE | AO3: 5 | AP3: 2000 | AQ3: =-8.20168948E-16*AP3^5 + 0.0000000000135889885*AP3^4 - 0.0000000840631515*AP3^3 + 0.000206462105*AP3^2 - 0.0717799351*AP3 - 37.5476442 -> 163.4141033 | AR3: =-0.0536796537*AP3 - 386.148723 -> -493.5080304 | AS3: FALSE | AT3: 5 | AU3: 2500 | AV3: =-8.20168948E-16*AU3^5 + 0.0000000000135889885*AU3^4 - 0.0000000840631515*AU3^3 + 0.000206462105*AU3^2 - 0.0717799351*AU3 - 37.5476442 -> 210.6291716 | AW3: =-0.0536796537*AU3 - 386.148723 -> -520.3478573 | AX3: FALSE | AY3: 5 | AZ3: 3000 | BA3: =-8.20168948E-16*AZ3^5 + 0.0000000000135889885*AZ3^4 - 0.0000000840631515*AZ3^3 + 0.000206462105*AZ3^2 - 0.0717799351*AZ3 - 37.5476442 -> 236.9734191 | BB3: =-0.0536796537*AZ3 - 386.148723 -> -547.1876841 | BC3: FALSE | BD3: 5 | BE3: 3500 | BF3: =-8.20168948E-16*BE3^5 + 0.0000000000135889885*BE3^4 - 0.0000000840631515*BE3^3 + 0.000206462105*BE3^2 - 0.0717799351*BE3 - 37.5476442 -> 244.6052258 | BG3: =-0.0536796537*BE3 - 386.148723 -> -574.027511 | BH3: FALSE | BI3: 5 | BJ3: 4000 | BK3: =-8.20168948E-16*BJ3^5 + 0.0000000000135889885*BJ3^4 - 0.0000000840631515*BJ3^3 + 0.000206462105*BJ3^2 - 0.0717799351*BJ3 - 37.5476442 -> 237.6126526 | BL3: =-0.0536796537*BJ3 - 386.148723 -> -600.8673378 | BM3: FALSE | BN3: 5 | BO3: 4500 | BP3: =-8.20168948E-16*BO3^5 + 0.0000000000135889885*BO3^4 - 0.0000000840631515*BO3^3 + 0.000206462105*BO3^2 - 0.0717799351*BO3 - 37.5476442 -> 218.9378089 | BQ3: =-0.0536796537*BO3 - 386.148723 -> -627.7071647 | BR3: FALSE | BS3: 5 | BT3: 5000 | BU3: =-8.20168948E-16*BT3^5 + 0.0000000000135889885*BT3^4 - 0.0000000840631515*BT3^3 + 0.000206462105*BT3^2 - 0.0717799351*BT3 - 37.5476442 -> 187.3012178 | BV3: =-0.0536796537*BT3 - 386.148723 -> -654.5469915 | BW3: FALSE | BX3: 5 | BY3: 6000 | BZ3: =-8.20168948E-16*BY3^5 + 0.0000000000135889885*BY3^4 - 0.0000000840631515*BY3^3 + 0.000206462105*BY3^2 - 0.0717799351*BY3 - 37.5476442 -> 40.46315755 | CA3: =-0.0536796537*BY3 - 386.148723 -> -708.2266452 | CB3: FALSE | CC3: 5 | CD3: 6200 | CE3: =-8.20168948E-16*CD3^5 + 0.0000000000135889885*CD3^4 - 0.0000000840631515*CD3^3 + 0.000206462105*CD3^2 - 0.0717799351*CD3 - 37.5476442 -> -15.0737092 | CF3: =-0.0536796537*CD3 - 386.148723 -> -718.9625759 | CG3: FALSE | CH3: 5 | CI3: 6400 | CJ3: =-8.20168948E-16*CI3^5 + 0.0000000000135889885*CI3^4 - 0.0000000840631515*CI3^3 + 0.000206462105*CI3^2 - 0.0717799351*CI3 - 37.5476442 -> -84.85968839 | CK3: =-0.0536796537*CI3 - 386.148723 -> -729.6985067 | CL3: FALSE | CM3: 5 | CN3: 6600 | CO3: =-8.20168948E-16*CN3^5 + 0.0000000000135889885*CN3^4 - 0.0000000840631515*CN3^3 + 0.000206462105*CN3^2 - 0.0717799351*CN3 - 37.5476442 -> -172.1217103 | CP3: =-0.0536796537*CN3 - 386.148723 -> -740.4344374 | CQ3: FALSE | CR3: 5 | CS3: 6800 | CT3: =-8.20168948E-16*CS3^5 + 0.0000000000135889885*CS3^4 - 0.0000000840631515*CS3^3 + 0.000206462105*CS3^2 - 0.0717799351*CS3 - 37.5476442 -> -280.5727116 | CU3: =-0.0536796537*CS3 - 386.148723 -> -751.1703682 | CV3: FALSE | CW3: 5 | CX3: 6900 | CY3: =-8.20168948E-16*CX3^5 + 0.0000000000135889885*CX3^4 - 0.0000000840631515*CX3^3 + 0.000206462105*CX3^2 - 0.0717799351*CX3 - 37.5476442 -> -344.0450152 | CZ3: =-0.0536796537*CX3 - 386.148723 -> -756.5383335 | DA3: FALSE | DB3: 5 | DC3: 7000 | DD3: =-8.20168948E-16*DC3^5 + 0.0000000000135889885*DC3^4 - 0.0000000840631515*DC3^3 + 0.000206462105*DC3^2 - 0.0717799351*DC3 - 37.5476442 -> -414.4431299 | DE3: =-0.0536796537*DC3 - 386.148723 -> -761.9062989 | DF3: TRUE | DG3: 0
A4: Rabbet | B4: 0 | C4: =-8.20168948E-16*B4^5 + 0.0000000000135889885*B4^4 - 0.0000000840631515*B4^3 + 0.000206462105*B4^2 - 0.0717799351*B4 - 37.5476442 -> -37.5476442 | D4: =-0.0536796537*B4- 309.948723 -> -309.948723 | E4: FALSE | F4: 4 | G4: 100 | H4: =-8.20168948E-16*G4^5 + 0.0000000000135889885*G4^4 - 0.0000000840631515*G4^3 + 0.000206462105*G4^2 - 0.0717799351*G4 - 37.5476442 -> -42.74372911 | I4: =-0.0536796537*G4- 309.948723 -> -315.3166884 | J4: FALSE | K4: 4 | L4: 200 | M4: =-8.20168948E-16*L4^5 + 0.0000000000135889885*L4^4 - 0.0000000840631515*L4^3 + 0.000206462105*L4^2 - 0.0717799351*L4 - 37.5476442 -> -44.2961723 | N4: =-0.0536796537*L4- 309.948723 -> -320.6846537 | O4: FALSE | P4: 4 | Q4: 400 | R4: =-8.20168948E-16*Q4^5 + 0.0000000000135889885*Q4^4 - 0.0000000840631515*Q4^3 + 0.000206462105*Q4^2 - 0.0717799351*Q4 - 37.5476442 -> -38.26624356 | S4: =-0.0536796537*Q4- 309.948723 -> -331.4205845 | T4: FALSE | U4: 4 | V4: 600 | W4: =-8.20168948E-16*V4^5 + 0.0000000000135889885*V4^4 - 0.0000000840631515*V4^3 + 0.000206462105*V4^2 - 0.0717799351*V4 - 37.5476442 -> -22.74953161 | X4: =-0.0536796537*V4- 309.948723 -> -342.1565152 | Y4: FALSE | Z4: 4 | AA4: 800 | AB4: =-8.20168948E-16*AA4^5 + 0.0000000000135889885*AA4^4 - 0.0000000840631515*AA4^3 + 0.000206462105*AA4^2 - 0.0717799351*AA4 - 37.5476442 -> -0.5788819193 | AC4: =-0.0536796537*AA4- 309.948723 -> -352.892446 | AD4: FALSE | AE4: 4 | AF4: 1000 | AG4: =-8.20168948E-16*AF4^5 + 0.0000000000135889885*AF4^4 - 0.0000000840631515*AF4^3 + 0.000206462105*AF4^2 - 0.0717799351*AF4 - 37.5476442 -> 25.84019375 | AH4: =-0.0536796537*AF4- 309.948723 -> -363.6283767 | AI4: FALSE | AJ4: 4 | AK4: 1500 | AL4: =-8.20168948E-16*AK4^5 + 0.0000000000135889885*AK4^4 - 0.0000000840631515*AK4^3 + 0.000206462105*AK4^2 - 0.0717799351*AK4 - 37.5476442 -> 98.17514942 | AM4: =-0.0536796537*AK4- 309.948723 -> -390.4682035 | AN4: FALSE | AO4: 4 | AP4: 2000 | AQ4: =-8.20168948E-16*AP4^5 + 0.0000000000135889885*AP4^4 - 0.0000000840631515*AP4^3 + 0.000206462105*AP4^2 - 0.0717799351*AP4 - 37.5476442 -> 163.4141033 | AR4: =-0.0536796537*AP4- 309.948723 -> -417.3080304 | AS4: FALSE | AT4: 4 | AU4: 2500 | AV4: =-8.20168948E-16*AU4^5 + 0.0000000000135889885*AU4^4 - 0.0000000840631515*AU4^3 + 0.000206462105*AU4^2 - 0.0717799351*AU4 - 37.5476442 -> 210.6291716 | AW4: =-0.0536796537*AU4- 309.948723 -> -444.1478573 | AX4: FALSE | AY4: 4 | AZ4: 3000 | BA4: =-8.20168948E-16*AZ4^5 + 0.0000000000135889885*AZ4^4 - 0.0000000840631515*AZ4^3 + 0.000206462105*AZ4^2 - 0.0717799351*AZ4 - 37.5476442 -> 236.9734191 | BB4: =-0.0536796537*AZ4- 309.948723 -> -470.9876841 | BC4: FALSE | BD4: 4 | BE4: 3500 | BF4: =-8.20168948E-16*BE4^5 + 0.0000000000135889885*BE4^4 - 0.0000000840631515*BE4^3 + 0.000206462105*BE4^2 - 0.0717799351*BE4 - 37.5476442 -> 244.6052258 | BG4: =-0.0536796537*BE4- 309.948723 -> -497.8275109 | BH4: FALSE | BI4: 4 | BJ4: 4000 | BK4: =-8.20168948E-16*BJ4^5 + 0.0000000000135889885*BJ4^4 - 0.0000000840631515*BJ4^3 + 0.000206462105*BJ4^2 - 0.0717799351*BJ4 - 37.5476442 -> 237.6126526 | BL4: =-0.0536796537*BJ4- 309.948723 -> -524.6673378 | BM4: FALSE | BN4: 4 | BO4: 4500 | BP4: =-8.20168948E-16*BO4^5 + 0.0000000000135889885*BO4^4 - 0.0000000840631515*BO4^3 + 0.000206462105*BO4^2 - 0.0717799351*BO4 - 37.5476442 -> 218.9378089 | BQ4: =-0.0536796537*BO4- 309.948723 -> -551.5071647 | BR4: FALSE | BS4: 4 | BT4: 5000 | BU4: =-8.20168948E-16*BT4^5 + 0.0000000000135889885*BT4^4 - 0.0000000840631515*BT4^3 + 0.000206462105*BT4^2 - 0.0717799351*BT4 - 37.5476442 -> 187.3012178 | BV4: =-0.0536796537*BT4- 309.948723 -> -578.3469915 | BW4: FALSE | BX4: 4 | BY4: 6000 | BZ4: =-8.20168948E-16*BY4^5 + 0.0000000000135889885*BY4^4 - 0.0000000840631515*BY4^3 + 0.000206462105*BY4^2 - 0.0717799351*BY4 - 37.5476442 -> 40.46315755 | CA4: =-0.0536796537*BY4- 309.948723 -> -632.0266452 | CB4: FALSE | CC4: 4 | CD4: 6200 | CE4: =-8.20168948E-16*CD4^5 + 0.0000000000135889885*CD4^4 - 0.0000000840631515*CD4^3 + 0.000206462105*CD4^2 - 0.0717799351*CD4 - 37.5476442 -> -15.0737092 | CF4: =-0.0536796537*CD4- 309.948723 -> -642.7625759 | CG4: FALSE | CH4: 4 | CI4: 6400 | CJ4: =-8.20168948E-16*CI4^5 + 0.0000000000135889885*CI4^4 - 0.0000000840631515*CI4^3 + 0.000206462105*CI4^2 - 0.0717799351*CI4 - 37.5476442 -> -84.85968839 | CK4: =-0.0536796537*CI4- 309.948723 -> -653.4985067 | CL4: FALSE | CM4: 4 | CN4: 6600 | CO4: =-8.20168948E-16*CN4^5 + 0.0000000000135889885*CN4^4 - 0.0000000840631515*CN4^3 + 0.000206462105*CN4^2 - 0.0717799351*CN4 - 37.5476442 -> -172.1217103 | CP4: =-0.0536796537*CN4- 309.948723 -> -664.2344374 | CQ4: FALSE | CR4: 4 | CS4: 6800 | CT4: =-8.20168948E-16*CS4^5 + 0.0000000000135889885*CS4^4 - 0.0000000840631515*CS4^3 + 0.000206462105*CS4^2 - 0.0717799351*CS4 - 37.5476442 -> -280.5727116 | CU4: =-0.0536796537*CS4- 309.948723 -> -674.9703682 | CV4: FALSE | CW4: 4 | CX4: 6900 | CY4: =-8.20168948E-16*CX4^5 + 0.0000000000135889885*CX4^4 - 0.0000000840631515*CX4^3 + 0.000206462105*CX4^2 - 0.0717799351*CX4 - 37.5476442 -> -344.0450152 | CZ4: =-0.0536796537*CX4- 309.948723 -> -680.3383335 | DA4: FALSE | DB4: 4 | DC4: 7000 | DD4: =-8.20168948E-16*DC4^5 + 0.0000000000135889885*DC4^4 - 0.0000000840631515*DC4^3 + 0.000206462105*DC4^2 - 0.0717799351*DC4 - 37.5476442 -> -414.4431299 | DE4: =-0.0536796537*DC4- 309.948723 -> -685.7062989 | DF4: TRUE | DG4: 0
A5: Chine | B5: 0 | C5: =-1.96836918E-12*B5^4 + 0.0000000223263403*B5^3 - 0.00015881897*B5^2 + 0.678982126*B5 - 98.516196 -> -98.516196 | D5: =0.0000325080672*B5^2 - 0.237650785*B5 + 321.043886 -> 321.043886 | E5: FALSE | F5: 3 | G5: 100 | H5: =-1.96836918E-12*G5^4 + 0.0000000223263403*G5^3 - 0.00015881897*G5^2 + 0.678982126*G5 - 98.516196 -> -32.1840436 | I5: =0.0000325080672*G5^2 - 0.237650785*G5 + 321.043886 -> 297.6038882 | J5: FALSE | K5: 3 | L5: 200 | M5: =-1.96836918E-12*L5^4 + 0.0000000223263403*L5^3 - 0.00015881897*L5^2 + 0.678982126*L5 - 98.516196 -> 31.10293173 | N5: =0.0000325080672*L5^2 - 0.237650785*L5 + 321.043886 -> 274.8140517 | O5: FALSE | P5: 3 | Q5: 400 | R5: =-1.96836918E-12*Q5^4 + 0.0000000223263403*Q5^3 - 0.00015881897*Q5^2 + 0.678982126*Q5 - 98.516196 -> 149.0441147 | S5: =0.0000325080672*Q5^2 - 0.237650785*Q5 + 321.043886 -> 231.1848628 | T5: FALSE | U5: 3 | V5: 600 | W5: =-1.96836918E-12*V5^4 + 0.0000000223263403*V5^3 - 0.00015881897*V5^2 + 0.678982126*V5 - 98.516196 -> 256.2656393 | X5: =0.0000325080672*V5^2 - 0.237650785*V5 + 321.043886 -> 190.1563192 | Y5: FALSE | Z5: 3 | AA5: 800 | AB5: =-1.96836918E-12*AA5^4 + 0.0000000223263403*AA5^3 - 0.00015881897*AA5^2 + 0.678982126*AA5 - 98.516196 -> 353.6502062 | AC5: =0.0000325080672*AA5^2 - 0.237650785*AA5 + 321.043886 -> 151.728421 | AD5: FALSE | AE5: 3 | AF5: 1000 | AG5: =-1.96836918E-12*AF5^4 + 0.0000000223263403*AF5^3 - 0.00015881897*AF5^2 + 0.678982126*AF5 - 98.516196 -> 442.0049311 | AH5: =0.0000325080672*AF5^2 - 0.237650785*AF5 + 321.043886 -> 115.9011682 | AI5: FALSE | AJ5: 3 | AK5: 1500 | AL5: =-1.96836918E-12*AK5^4 + 0.0000000223263403*AK5^3 - 0.00015881897*AK5^2 + 0.678982126*AK5 - 98.516196 -> 628.00084 | AM5: =0.0000325080672*AK5^2 - 0.237650785*AK5 + 321.043886 -> 37.7108597 | AN5: FALSE | AO5: 3 | AP5: 2000 | AQ5: =-1.96836918E-12*AP5^4 + 0.0000000223263403*AP5^3 - 0.00015881897*AP5^2 + 0.678982126*AP5 - 98.516196 -> 771.2889915 | AR5: =0.0000325080672*AP5^2 - 0.237650785*AP5 + 321.043886 -> -24.2254152 | AS5: FALSE | AT5: 3 | AU5: 2500 | AV5: =-1.96836918E-12*AU5^4 + 0.0000000223263403*AU5^3 - 0.00015881897*AU5^2 + 0.678982126*AU5 - 98.516196 -> 878.2802026 | AW5: =0.0000325080672*AU5^2 - 0.237650785*AU5 + 321.043886 -> -69.9076565 | AX5: FALSE | AY5: 3 | AZ5: 3000 | BA5: =-1.96836918E-12*AZ5^4 + 0.0000000223263403*AZ5^3 - 0.00015881897*AZ5^2 + 0.678982126*AZ5 - 98.516196 -> 952.4327365 | BB5: =0.0000325080672*AZ5^2 - 0.237650785*AZ5 + 321.043886 -> -99.3358642 | BC5: FALSE | BD5: 3 | BE5: 3500 | BF5: =-1.96836918E-12*BE5^4 + 0.0000000223263403*BE5^3 - 0.00015881897*BE5^2 + 0.678982126*BE5 - 98.516196 -> 994.2523028 | BG5: =0.0000325080672*BE5^2 - 0.237650785*BE5 + 321.043886 -> -112.5100383 | BH5: FALSE | BI5: 3 | BJ5: 4000 | BK5: =-1.96836918E-12*BJ5^4 + 0.0000000223263403*BJ5^3 - 0.00015881897*BJ5^2 + 0.678982126*BJ5 - 98.516196 -> 1001.292057 | BL5: =0.0000325080672*BJ5^2 - 0.237650785*BJ5 + 321.043886 -> -109.4301788 | BM5: FALSE | BN5: 3 | BO5: 4500 | BP5: =-1.96836918E-12*BO5^4 + 0.0000000223263403*BO5^3 - 0.00015881897*BO5^2 + 0.678982126*BO5 - 98.516196 -> 968.1526015 | BQ5: =0.0000325080672*BO5^2 - 0.237650785*BO5 + 321.043886 -> -90.0962857 | BR5: FALSE | BS5: 3 | BT5: 5000 | BU5: =-1.96836918E-12*BT5^4 + 0.0000000223263403*BT5^3 - 0.00015881897*BT5^2 + 0.678982126*BT5 - 98.516196 -> 886.481984 | BV5: =0.0000325080672*BT5^2 - 0.237650785*BT5 + 321.043886 -> -54.508359 | BW5: FALSE | BX5: 3 | BY5: 6000 | BZ5: =-1.96836918E-12*BY5^4 + 0.0000000223263403*BY5^3 - 0.00015881897*BY5^2 + 0.678982126*BY5 - 98.516196 -> 529.3766875 | CA5: =0.0000325080672*BY5^2 - 0.237650785*BY5 + 321.043886 -> 65.4295952 | CB5: FALSE | CC5: 3 | CD5: 6200 | CE5: =-1.96836918E-12*CD5^4 + 0.0000000223263403*CD5^3 - 0.00015881897*CD5^2 + 0.678982126*CD5 - 98.516196 -> 418.6353718 | CF5: =0.0000325080672*CD5^2 - 0.237650785*CD5 + 321.043886 -> 97.21912217 | CG5: FALSE | CH5: 3 | CI5: 6400 | CJ5: =-1.96836918E-12*CI5^4 + 0.0000000223263403*CI5^3 - 0.00015881897*CI5^2 + 0.678982126*CI5 - 98.516196 -> 292.0850607 | CK5: =0.0000325080672*CI5^2 - 0.237650785*CI5 + 321.043886 -> 131.6092945 | CL5: FALSE | CM5: 3 | CN5: 6600 | CO5: =-1.96836918E-12*CN5^4 + 0.0000000223263403*CN5^3 - 0.00015881897*CN5^2 + 0.678982126*CN5 - 98.516196 -> 148.4164792 | CP5: =0.0000325080672*CN5^2 - 0.237650785*CN5 + 321.043886 -> 168.6001122 | CQ5: FALSE | CR5: 3 | CS5: 6800 | CT5: =-1.96836918E-12*CS5^4 + 0.0000000223263403*CS5^3 - 0.00015881897*CS5^2 + 0.678982126*CS5 - 98.516196 -> -13.75523323 | CU5: =0.0000325080672*CS5^2 - 0.237650785*CS5 + 321.043886 -> 208.1915753 | CV5: FALSE | CW5: 3 | CX5: 6900 | CY5: =-1.96836918E-12*CX5^4 + 0.0000000223263403*CX5^3 - 0.00015881897*CX5^2 + 0.678982126*CX5 - 98.516196 -> -102.2332003 | CZ5: =0.0000325080672*CX5^2 - 0.237650785*CX5 + 321.043886 -> 228.9625489 | DA5: FALSE | DB5: 3 | DC5: 7000 | DD5: =-1.96836918E-12*DC5^4 + 0.0000000223263403*DC5^3 - 0.00015881897*DC5^2 + 0.678982126*DC5 - 98.516196 -> -195.8905223 | DE5: =0.0000325080672*DC5^2 - 0.237650785*DC5 + 321.043886 -> 250.3836838 | DF5: TRUE | DG5: 0
A6: Sheer | B6: 0 | C6: =-0.0000000000067919258*B6^4 + 0.0000000945983196*B6^3 - 0.000504025587*B6^2 + 1.22127801*B6 -> 0 | D6: =0.0000182672053*B6^2 - 0.165450041*B6 + 1022.13715 -> 1022.13715 | E6: FALSE | F6: 2 | G6: 100 | H6: =-0.0000000000067919258*G6^4 + 0.0000000945983196*G6^3 - 0.000504025587*G6^2 + 1.22127801*G6 -> 117.1814643 | I6: =0.0000182672053*G6^2 - 0.165450041*G6 + 1022.13715 -> 1005.774818 | J6: FALSE | K6: 2 | L6: 200 | M6: =-0.0000000000067919258*L6^4 + 0.0000000945983196*L6^3 - 0.000504025587*L6^2 + 1.22127801*L6 -> 224.840498 | N6: =0.0000182672053*L6^2 - 0.165450041*L6 + 1022.13715 -> 989.77783 | O6: FALSE | P6: 2 | Q6: 400 | R6: =-0.0000000000067919258*Q6^4 + 0.0000000945983196*Q6^3 - 0.000504025587*Q6^2 + 1.22127801*Q6 -> 413.7475292 | S6: =0.0000182672053*Q6^2 - 0.165450041*Q6 + 1022.13715 -> 958.8798864 | T6: FALSE | U6: 2 | V6: 600 | W6: =-0.0000000000067919258*V6^4 + 0.0000000945983196*V6^3 - 0.000504025587*V6^2 + 1.22127801*V6 -> 570.8705981 | X6: =0.0000182672053*V6^2 - 0.165450041*V6 + 1022.13715 -> 929.4433193 | Y6: FALSE | Z6: 2 | AA6: 800 | AB6: =-0.0000000000067919258*AA6^4 + 0.0000000945983196*AA6^3 - 0.000504025587*AA6^2 + 1.22127801*AA6 -> 700.0983991 | AC6: =0.0000182672053*AA6^2 - 0.165450041*AA6 + 1022.13715 -> 901.4681286 | AD6: FALSE | AE6: 2 | AF6: 1000 | AG6: =-0.0000000000067919258*AF6^4 + 0.0000000945983196*AF6^3 - 0.000504025587*AF6^2 + 1.22127801*AF6 -> 805.0588168 | AH6: =0.0000182672053*AF6^2 - 0.165450041*AF6 + 1022.13715 -> 874.9543143 | AI6: FALSE | AJ6: 2 | AK6: 1500 | AL6: =-0.0000000000067919258*AK6^4 + 0.0000000945983196*AK6^3 - 0.000504025587*AK6^2 + 1.22127801*AK6 -> 982.7446485 | AM6: =0.0000182672053*AK6^2 - 0.165450041*AK6 + 1022.13715 -> 815.0633004 | AN6: FALSE | AO6: 2 | AP6: 2000 | AQ6: =-0.0000000000067919258*AP6^4 + 0.0000000945983196*AP6^3 - 0.000504025587*AP6^2 + 1.22127801*AP6 -> 1074.569416 | AR6: =0.0000182672053*AP6^2 - 0.165450041*AP6 + 1022.13715 -> 764.3058892 | AS6: FALSE | AT6: 2 | AU6: 2500 | AV6: =-0.0000000000067919258*AU6^4 + 0.0000000945983196*AU6^3 - 0.000504025587*AU6^2 + 1.22127801*AU6 -> 1115.824248 | AW6: =0.0000182672053*AU6^2 - 0.165450041*AU6 + 1022.13715 -> 722.6820806 | AX6: FALSE | AY6: 2 | AZ6: 3000 | BA6: =-0.0000000000067919258*AZ6^4 + 0.0000000945983196*AZ6^3 - 0.000504025587*AZ6^2 + 1.22127801*AZ6 -> 1131.612386 | BB6: =0.0000182672053*AZ6^2 - 0.165450041*AZ6 + 1022.13715 -> 690.1918747 | BC6: FALSE | BD6: 2 | BE6: 3500 | BF6: =-0.0000000000067919258*BE6^4 + 0.0000000945983196*BE6^3 - 0.000504025587*BE6^2 + 1.22127801*BE6 -> 1136.849182 | BG6: =0.0000182672053*BE6^2 - 0.165450041*BE6 + 1022.13715 -> 666.8352714 | BH6: FALSE | BI6: 2 | BJ6: 4000 | BK6: =-0.0000000000067919258*BJ6^4 + 0.0000000945983196*BJ6^3 - 0.000504025587*BJ6^2 + 1.22127801*BJ6 -> 1136.262098 | BL6: =0.0000182672053*BJ6^2 - 0.165450041*BJ6 + 1022.13715 -> 652.6122708 | BM6: FALSE | BN6: 2 | BO6: 4500 | BP6: =-0.0000000000067919258*BO6^4 + 0.0000000945983196*BO6^3 - 0.000504025587*BO6^2 + 1.22127801*BO6 -> 1124.390708 | BQ6: =0.0000182672053*BO6^2 - 0.165450041*BO6 + 1022.13715 -> 647.5228728 | BR6: FALSE | BS6: 2 | BT6: 5000 | BU6: =-0.0000000000067919258*BT6^4 + 0.0000000945983196*BT6^3 - 0.000504025587*BT6^2 + 1.22127801*BT6 -> 1085.5867 | BV6: =0.0000182672053*BT6^2 - 0.165450041*BT6 + 1022.13715 -> 651.5670775 | BW6: FALSE | BX6: 2 | BY6: 6000 | BZ6: =-0.0000000000067919258*BY6^4 + 0.0000000945983196*BY6^3 - 0.000504025587*BY6^2 + 1.22127801*BY6 -> 813.6481248 | CA6: =0.0000182672053*BY6^2 - 0.165450041*BY6 + 1022.13715 -> 687.0562948 | CB6: FALSE | CC6: 2 | CD6: 6200 | CE6: =-0.0000000000067919258*CD6^4 + 0.0000000945983196*CD6^3 - 0.000504025587*CD6^2 + 1.22127801*CD6 -> 706.6306406 | CF6: =0.0000182672053*CD6^2 - 0.165450041*CD6 + 1022.13715 -> 698.5382675 | CG6: FALSE | CH6: 2 | CI6: 6400 | CJ6: =-0.0000000000067919258*CI6^4 + 0.0000000945983196*CI6^3 - 0.000504025587*CI6^2 + 1.22127801*CI6 -> 574.7124934 | CK6: =0.0000182672053*CI6^2 - 0.165450041*CI6 + 1022.13715 -> 711.4816167 | CL6: FALSE | CM6: 2 | CN6: 6600 | CO6: =-0.0000000000067919258*CN6^4 + 0.0000000945983196*CN6^3 - 0.000504025587*CN6^2 + 1.22127801*CN6 -> 414.2188893 | CP6: =0.0000182672053*CN6^2 - 0.165450041*CN6 + 1022.13715 -> 725.8863423 | CQ6: FALSE | CR6: 2 | CS6: 6800 | CT6: =-0.0000000000067919258*CS6^4 + 0.0000000945983196*CS6^3 - 0.000504025587*CS6^2 + 1.22127801*CS6 -> 221.2142242 | CU6: =0.0000182672053*CS6^2 - 0.165450041*CS6 + 1022.13715 -> 741.7524443 | CV6: FALSE | CW6: 2 | CX6: 6900 | CY6: =-0.0000000000067919258*CX6^4 + 0.0000000945983196*CX6^3 - 0.000504025587*CX6^2 + 1.22127801*CX6 -> 111.2190522 | CZ6: =0.0000182672053*CX6^2 - 0.165450041*CX6 + 1022.13715 -> 750.2335114 | DA6: FALSE | DB6: 2 | DC6: 7000 | DD6: =-0.0000000000067919258*DC6^4 + 0.0000000945983196*DC6^3 - 0.000504025587*DC6^2 + 1.22127801*DC6 -> -8.497916 | DE6: =0.0000182672053*DC6^2 - 0.165450041*DC6 + 1022.13715 -> 759.0799227 | DF6: TRUE | DG6: 0
A7: Rail | B7: 0 | C7: =-0.0000000000069067777*B7^4 + 0.0000000964451557*B7^3 - 0.000510827416*B7^2 + 1.21848117*B7 + 51.4486088 -> 51.4486088 | D7: =0.0000185995137*B7^2 - 0.167922431*B7 + 1120.68543 -> 1120.68543 | E7: FALSE | F7: 1 | G7: 100 | H7: =-0.0000000000069067777*G7^4 + 0.0000000964451557*G7^3 - 0.000510827416*G7^2 + 1.21848117*G7 + 51.4486088 -> 168.2842061 | I7: =0.0000185995137*G7^2 - 0.167922431*G7 + 1120.68543 -> 1104.079182 | J7: FALSE | K7: 1 | L7: 200 | M7: =-0.0000000000069067777*L7^4 + 0.0000000964451557*L7^3 - 0.000510827416*L7^2 + 1.21848117*L7 + 51.4486088 -> 275.4722566 | N7: =0.0000185995137*L7^2 - 0.167922431*L7 + 1120.68543 -> 1087.844924 | O7: FALSE | P7: 1 | Q7: 400 | R7: =-0.0000000000069067777*Q7^4 + 0.0000000964451557*Q7^3 - 0.000510827416*Q7^2 + 1.21848117*Q7 + 51.4486088 -> 463.1043667 | S7: =0.0000185995137*Q7^2 - 0.167922431*Q7 + 1120.68543 -> 1056.49238 | T7: FALSE | U7: 1 | V7: 600 | W7: =-0.0000000000069067777*V7^4 + 0.0000000964451557*V7^3 - 0.000510827416*V7^2 + 1.21848117*V7 + 51.4486088 -> 618.5764763 | X7: =0.0000185995137*V7^2 - 0.167922431*V7 + 1120.68543 -> 1026.627796 | Y7: FALSE | Z7: 1 | AA7: 800 | AB7: =-0.0000000000069067777*AA7^4 + 0.0000000964451557*AA7^3 - 0.000510827416*AA7^2 + 1.21848117*AA7 + 51.4486088 -> 745.8549021 | AC7: =0.0000185995137*AA7^2 - 0.167922431*AA7 + 1120.68543 -> 998.251174 | AD7: FALSE | AE7: 1 | AF7: 1000 | AG7: =-0.0000000000069067777*AF7^4 + 0.0000000964451557*AF7^3 - 0.000510827416*AF7^2 + 1.21848117*AF7 + 51.4486088 -> 848.6407408 | AH7: =0.0000185995137*AF7^2 - 0.167922431*AF7 + 1120.68543 -> 971.3625127 | AI7: FALSE | AJ7: 1 | AK7: 1500 | AL7: =-0.0000000000069067777*AK7^4 + 0.0000000964451557*AK7^3 - 0.000510827416*AK7^2 + 1.21848117*AK7 + 51.4486088 -> 1020.345516 | AM7: =0.0000185995137*AK7^2 - 0.167922431*AK7 + 1120.68543 -> 910.6506893 | AN7: FALSE | AO7: 1 | AP7: 2000 | AQ7: =-0.0000000000069067777*AP7^4 + 0.0000000964451557*AP7^3 - 0.000510827416*AP7^2 + 1.21848117*AP7 + 51.4486088 -> 1106.154087 | AR7: =0.0000185995137*AP7^2 - 0.167922431*AP7 + 1120.68543 -> 859.2386228 | AS7: FALSE | AT7: 1 | AU7: 2500 | AV7: =-0.0000000000069067777*AU7^4 + 0.0000000964451557*AU7^3 - 0.000510827416*AU7^2 + 1.21848117*AU7 + 51.4486088 -> 1142.139738 | AW7: =0.0000185995137*AU7^2 - 0.167922431*AU7 + 1120.68543 -> 817.1263131 | AX7: FALSE | AY7: 1 | AZ7: 3000 | BA7: =-0.0000000000069067777*AZ7^4 + 0.0000000964451557*AZ7^3 - 0.000510827416*AZ7^2 + 1.21848117*AZ7 + 51.4486088 -> 1154.015585 | BB7: =0.0000185995137*AZ7^2 - 0.167922431*AZ7 + 1120.68543 -> 784.3137603 | BC7: FALSE | BD7: 1 | BE7: 3500 | BF7: =-0.0000000000069067777*BE7^4 + 0.0000000964451557*BE7^3 - 0.000510827416*BE7^2 + 1.21848117*BE7 + 51.4486088 -> 1157.13458 | BG7: =0.0000185995137*BE7^2 - 0.167922431*BE7 + 1120.68543 -> 760.8009643 | BH7: FALSE | BI7: 1 | BJ7: 4000 | BK7: =-0.0000000000069067777*BJ7^4 + 0.0000000964451557*BJ7^3 - 0.000510827416*BJ7^2 + 1.21848117*BJ7 + 51.4486088 -> 1156.489506 | BL7: =0.0000185995137*BJ7^2 - 0.167922431*BJ7 + 1120.68543 -> 746.5879252 | BM7: FALSE | BN7: 1 | BO7: 4500 | BP7: =-0.0000000000069067777*BO7^4 + 0.0000000964451557*BO7^3 - 0.000510827416*BO7^2 + 1.21848117*BO7 + 51.4486088 -> 1146.712982 | BQ7: =0.0000185995137*BO7^2 - 0.167922431*BO7 + 1120.68543 -> 741.6746429 | BR7: FALSE | BS7: 1 | BT7: 5000 | BU7: =-0.0000000000069067777*BT7^4 + 0.0000000964451557*BT7^3 - 0.000510827416*BT7^2 + 1.21848117*BT7 + 51.4486088 -> 1112.077459 | BV7: =0.0000185995137*BT7^2 - 0.167922431*BT7 + 1120.68543 -> 746.0611175 | BW7: FALSE | BX7: 1 | BY7: 6000 | BZ7: =-0.0000000000069067777*BY7^4 + 0.0000000964451557*BY7^3 - 0.000510827416*BY7^2 + 1.21848117*BY7 + 51.4486088 -> 853.5183848 | CA7: =0.0000185995137*BY7^2 - 0.167922431*BY7 + 1120.68543 -> 782.7333372 | CB7: FALSE | CC7: 1 | CD7: 6200 | CE7: =-0.0000000000069067777*CD7^4 + 0.0000000964451557*CD7^3 - 0.000510827416*CD7^2 + 1.21848117*CD7 + 51.4486088 -> 749.7202622 | CF7: =0.0000185995137*CD7^2 - 0.167922431*CD7 + 1120.68543 -> 794.5316644 | CG7: FALSE | CH7: 1 | CI7: 6400 | CJ7: =-0.0000000000069067777*CI7^4 + 0.0000000964451557*CI7^3 - 0.000510827416*CI7^2 + 1.21848117*CI7 + 51.4486088 -> 621.1058996 | CK7: =0.0000185995137*CI7^2 - 0.167922431*CI7 + 1120.68543 -> 807.8179528 | CL7: FALSE | CM7: 1 | CN7: 6600 | CO7: =-0.0000000000069067777*CN7^4 + 0.0000000964451557*CN7^3 - 0.000510827416*CN7^2 + 1.21848117*CN7 + 51.4486088 -> 463.9502261 | CP7: =0.0000185995137*CN7^2 - 0.167922431*CN7 + 1120.68543 -> 822.5922022 | CQ7: FALSE | CR7: 1 | CS7: 6800 | CT7: =-0.0000000000069067777*CS7^4 + 0.0000000964451557*CS7^3 - 0.000510827416*CS7^2 + 1.21848117*CS7 + 51.4486088 -> 274.2629508 | CU7: =0.0000185995137*CS7^2 - 0.167922431*CS7 + 1120.68543 -> 838.8544127 | CV7: FALSE | CW7: 1 | CX7: 6900 | CY7: =-0.0000000000069067777*CX7^4 + 0.0000000964451557*CX7^3 - 0.000510827416*CX7^2 + 1.21848117*CX7 + 51.4486088 -> 165.9004753 | CZ7: =0.0000185995137*CX7^2 - 0.167922431*CX7 + 1120.68543 -> 847.5435034 | DA7: FALSE | DB7: 1 | DC7: 7000 | DD7: =-0.0000000000069067777*DC7^4 + 0.0000000964451557*DC7^3 - 0.000510827416*DC7^2 + 1.21848117*DC7 + 51.4486088 -> 47.7885622 | DE7: =0.0000185995137*DC7^2 - 0.167922431*DC7 + 1120.68543 -> 856.6045843 | DF7: TRUE | DG7: 0

Sheet BasicCalcs
B2: Canoe Basic Metrics
B3: Length Overall (LOA) | C3: ='Hearts Desire II'!M2 -> 7.038181674 | D3: m
B4: Beam Overall (BOA) | C4: ='Hearts Desire II'!M3 -> 2.273698363 | D4: m
B5: Length Water Line (LWL) | C5: ='Hearts Desire II'!M4 -> 5.706970558 | D5: m
B6: Beam Water Line (BWL) | C6: ='Hearts Desire II'!M5 -> 2.426288134 | D6: m | E6: Actually the bottom width
B7: Depth Water Line (DWL) | C7: ='Hearts Desire II'!M6 -> 0.7162843067 | D7: m
B8: Rocker | C8: ='Hearts Desire II'!M7 -> 0 | D8: m
B9: Amidships Deadrise | C9: ='Hearts Desire II'!M8 -> 0 | D9: Degrees
B10: Amidships Freeboard | C10: ='Hearts Desire II'!M9 -> 0.6668352714 | D10: m
B11: Forward Freeboard | C11: ='Hearts Desire II'!M10 -> 1.02213715 | D11: m
B12: Rear Freeboard | C12: ='Hearts Desire II'!M11 -> 0.7584640571 | D12: m
B14: Basic Calculations
B15: Mid-Section Area | C15: =C6*C7 -> 1.737912114 | D15: m^2
B16: Plan Water Line Area | C16: =C6*C5*2/3 -> 9.231169964 | D16: m^2
B17: Displacement Volume | C17: =C5*C6*(C7-C8/3)*2/3 -> 6.612142177 | D17: m^3
B18: Displacement Weight | C18: =C17*1025 -> 6777.445732 | D18: kg
B19: Prismatic Coefficient (cp) | C19: =C17/(C5*C6*C7) -> 0.6666666667
B20: Displacement Length Ratio (DLR) | C20: =C18/(C3/3.048)^3 -> 550.4647559
B21: Hull Speed | C21: =1.34*(C5*3.28)^0.5 -> 5.797550446 | D21: kt
B22: Design G Force | C22: 2.1 | D22: g | E22: Normal
B23: Design Pressure | C23: =C22*C18*9.81/1000/C16 -> 15.12507733 | D23: KN | E23: =MAX(6.5,10*(1.3*C7+0.1*C5)) -> 15.01866655
B25: Bottom Plank Design
B26: Design Pressure (P) | C26: =C23 -> 15.12507733 | D26: kPa
B27: Span (L) | C27: 500 | D27: mm | E27: Needs frames
B28: Allowable Stress (S) | C28: 14000 | D28: kPa | E28: F14 Plywood
B29: Plank Thickness (t) | C29: =(C26*C27*C27/C28/2)^0.5 -> 11.62090071 | D29: mm | E29: t^2=P*L^2/2/S, ~fixed sides
B30: Design Plank Thickness (t) | C30: 12 | D30: mm
B31: Modulus of Elasticity (E) | C31: =10500000*80% -> 8400000 | D31: kPa | E31: Factored 80% for wet condition
B32: Moment of Inertia (I) | C32: =1000*C30^3/12 -> 144000 | D32: mm^4
B33: Deflection (d) | C33: =C26*C27^4/384/C31/C32*1000 -> 2.035188399 | D33: mm | E33: d=P*L^4/384EI (2% max)
B34: Deflection Ratio | C34: =C27/C33 -> 245.677501
B35: Maximum Concentrated Load | C35: =C28*C30*C30/1000000 -> 2.016 | D35: kN | E35: =S*t*t
B39: Side Plank Design
B40: Design Pressure (P) | C40: =C23 -> 15.12507733 | D40: kPa
B41: Span (L) | C41: =C27 -> 500 | D41: mm
B42: Allowable Stress (S) | C42: =C28 -> 14000 | D42: kPa | E42: F14 Plywood
B43: Plank Thickness (t) | C43: =(C40*C41*C41/C42/2)^0.5 -> 11.62090071 | D43: mm | E43: t^2=P*L^2/2/S, ~fixed sides
B44: Design Plank Thickness (t) | C44: =C30 -> 12 | D44: mm | E44: Okay
B46: Hull Section Modulus | E46: Triangular Load & Free Ends
B47: Design Pressure | C47: =C23 -> 15.12507733 | D47: kPa
B48: Width | C48: =C6*1000 -> 2426.288134 | D48: mm | E48: BWL
B49: Length | C49: =C5*1000 -> 5706.970558 | D49: mm | E49: LWL
B50: Allowable Stress | C50: =C28 -> 14000 | D50: kPa | E50: F14 Plywood
B51: Required Section Modulus | C51: =C47*C48*C49^2/12/C50 -> 7114460.301 | D51: mm^3 | E51: SM=PsL^2/12/S
B53: Channel Model
B54: Chine Width (web) | C54: =C27 -> 500 | D54: mm | E54: BWL
B55: Side Height (flange) | C55: =(C10+C7)*1000 -> 1383.119578 | D55: mm
B56: Deck Width (lip) | C56: 0 | D56: mm
B57: Thickness (t) | C57: =C30 -> 12 | D57: mm
B58: cy (from bottom) | C58: =C55*(C55+2*C56)/(C54+2*C55+2*C56) -> 585.6949463 | D58: mm
B59: I | C59: =1/12*C54*C57^3+2/3*C57*C55^3+1/6*C56*C57^3+2*C56*C57*C55^2-(C54*C57+2*C55*C57+2*C56*C57)*C55^2*(C55+2*C56)^2/(C54+2*C55+2*C56)^2 -> 7722200628 | D59: mm^4
B60: Rg | C60: =(C59/(C54+2*C55+2*C56)/C57)^0.5 -> 443.8701366 | D60: mm | E60: Radius of gyration
B61: Slenderness Ratio | C61: =C49/C60 -> 12.85729786
B62: Z | C62: =MIN(C59/C58,C59/(C55-C58)) -> 9683925.378 | D62: mm^3
B63: Safety Factor | C63: =C62/C51 -> 1.361160927 | E63: Assumes no significant keel or stringers
B65: Plywood Fibre Glass Joins
B66: Spw | C66: =C28 -> 14000 | D66: Pa
B67: b | C67: 1 | D67: m
B68: h | C68: =C30 -> 12 | D68: mm
B69: M | C69: =C66*C67*C68^2/6 -> 336000 | D69: Nm | E69: M=Spw*b*h^2/6
B70: Sfg | C70: 120000000 | D70: Pa
B71: t | C71: =1000*((C69*6*C68/C70/C67+C68*C68*C68)^(1/3)-C68)/2 -> 0.2333242598 | D71: mm | E71: t~((6*M*h/Sfg/b+h^3)^(1/3)-h)/2
B72: F/G Weight | C72: =C71*16 -> 3.733188158 | D72: oz/sq_yd | E72: Each side of plywood
B73: F/G Overlap (each side of join) | C73: =C68*3 -> 36 | D73: mm | E73: =3*h [JS = 15%*(1+L/h)]

Sheet Hearts Desire II
A1: Heart's Desire II | I1: Basic Metrics
A2: Find Offet Table at row | B2: 19 | I2: Length Overall (LOA) | M2: =(DD21-C21)/1000 -> 7.038181674 | N2: m
A3: Stations | B3: 22 | I3: Beam Overall (BOA) | M3: =BG22/500 -> 2.273698363 | N3: m
A4: Chines | B4: 6 | I4: Length Water Line (LWL) | M4: =(CE24-TREND(W24:W25,Y24:Y25,0))/1000 -> 5.706970558 | N4: m
A5: Forward-Aft Slice | B5: 500 | C5: mm | I5: Beam Water Line (BWL) | M5: =TREND(BG23:BG24,BH23:BH24,0)/500 -> 2.426288134 | N5: m
A6: First slice | B6: 500 | C6: mm | I6: Depth Water Line (DWL) | M6: =-CG26/1000 -> 0.7162843067 | N6: m
A7: Last slice | B7: 6500 | C7: mm | I7: Rocker | N7: m
A8: Water Line Slice | B8: 100 | C8: mm | I8: Amidships Deadrise | N8: Degrees
A9: Draft | B9: -716.2843067 | C9: mm | I9: Amidships Freeboard | M9: =BH22/1000 -> 0.6668352714 | N9: m
A10: Displacement | B10: 2921.602624 | C10: dm3 | I10: Forward Freeboard | M10: =J22/1000 -> 1.02213715 | N10: m
A11: Find Unfold Offsets at row | B11: 29 | I11: Rear Freeboard | M11: =DA22/1000 -> 0.7584640571 | N11: m
A13: Export Plan Slice at | B13: 0 | C13: mm
A14: Export Cross Section at | B14: 3500 | C14: mm
A19: Table Row | B19: Station | C19: 1 | H19: 2 | M19: 3 | R19: 4 | W19: 5 | AB19: 6 | AG19: 7 | AL19: 8 | AQ19: 9 | AV19: 10 | BA19: 11 | BF19: 12 | BK19: 13 | BP19: 14 | BU19: 15 | BZ19: 16 | CE19: 17 | CJ19: 18 | CO19: 19 | CT19: 20 | CY19: 21 | DD19: 22
B20: Chine | C20: X | D20: Y | E20: Z | F20: BREAK | G20: COLOUR | H20: X | I20: Y | J20: Z | K20: BREAK | L20: COLOUR | M20: X | N20: Y | O20: Z | P20: BREAK | Q20: COLOUR | R20: X | S20: Y | T20: Z | U20: BREAK | V20: COLOUR | W20: X | X20: Y | Y20: Z | Z20: BREAK | AA20: COLOUR | AB20: X | AC20: Y | AD20: Z | AE20: BREAK | AF20: COLOUR | AG20: X | AH20: Y | AI20: Z | AJ20: BREAK | AK20: COLOUR | AL20: X | AM20: Y | AN20: Z | AO20: BREAK | AP20: COLOUR | AQ20: X | AR20: Y | AS20: Z | AT20: BREAK | AU20: COLOUR | AV20: X | AW20: Y | AX20: Z | AY20: BREAK | AZ20: COLOUR | BA20: X | BB20: Y | BC20: Z | BD20: BREAK | BE20: COLOUR | BF20: X | BG20: Y | BH20: Z | BI20: BREAK | BJ20: COLOUR | BK20: X | BL20: Y | BM20: Z | BN20: BREAK | BO20: COLOUR | BP20: X | BQ20: Y | BR20: Z | BS20: BREAK | BT20: COLOUR | BU20: X | BV20: Y | BW20: Z | BX20: BREAK | BY20: COLOUR | BZ20: X | CA20: Y | CB20: Z | CC20: BREAK | CD20: COLOUR | CE20: X | CF20: Y | CG20: Z | CH20: BREAK | CI20: COLOUR | CJ20: X | CK20: Y | CL20: Z | CM20: BREAK | CN20: COLOUR | CO20: X | CP20: Y | CQ20: Z | CR20: BREAK | CS20: COLOUR | CT20: X | CU20: Y | CV20: Z | CW20: BREAK | CX20: COLOUR | CY20: X | CZ20: Y | DA20: Z | DB20: BREAK | DC20: COLOUR | DD20: X | DE20: Y | DF20: Z | DG20: BREAK | DH20: COLOUR
A21: Rail | B21: 1 | C21: 0 | D21: =-0.0000000000069067777*C21^4 + 0.0000000964451557*C21^3 - 0.000510827416*C21^2 + 1.21848117*C21 + 51.4486088 -> 51.4486088 | E21: =0.0000185995137*C21^2 - 0.167922431*C21 + 1120.68543 -> 1120.68543 | F21: TRUE | G21: 1 | H21: 100 | I21: =-0.0000000000069067777*H21^4 + 0.0000000964451557*H21^3 - 0.000510827416*H21^2 + 1.21848117*H21 + 51.4486088 -> 168.2842061 | J21: =0.0000185995137*H21^2 - 0.167922431*H21 + 1120.68543 -> 1104.079182 | K21: FALSE | L21: 1 | M21: 200 | N21: =-0.0000000000069067777*M21^4 + 0.0000000964451557*M21^3 - 0.000510827416*M21^2 + 1.21848117*M21 + 51.4486088 -> 275.4722566 | O21: =0.0000185995137*M21^2 - 0.167922431*M21 + 1120.68543 -> 1087.844924 | P21: FALSE | Q21: 1 | R21: 400 | S21: =-0.0000000000069067777*R21^4 + 0.0000000964451557*R21^3 - 0.000510827416*R21^2 + 1.21848117*R21 + 51.4486088 -> 463.1043667 | T21: =0.0000185995137*R21^2 - 0.167922431*R21 + 1120.68543 -> 1056.49238 | U21: FALSE | V21: 1 | W21: 600 | X21: =-0.0000000000069067777*W21^4 + 0.0000000964451557*W21^3 - 0.000510827416*W21^2 + 1.21848117*W21 + 51.4486088 -> 618.5764763 | Y21: =0.0000185995137*W21^2 - 0.167922431*W21 + 1120.68543 -> 1026.627796 | Z21: FALSE | AA21: 1 | AB21: 800 | AC21: =-0.0000000000069067777*AB21^4 + 0.0000000964451557*AB21^3 - 0.000510827416*AB21^2 + 1.21848117*AB21 + 51.4486088 -> 745.8549021 | AD21: =0.0000185995137*AB21^2 - 0.167922431*AB21 + 1120.68543 -> 998.251174 | AE21: FALSE | AF21: 1 | AG21: 1000 | AH21: =-0.0000000000069067777*AG21^4 + 0.0000000964451557*AG21^3 - 0.000510827416*AG21^2 + 1.21848117*AG21 + 51.4486088 -> 848.6407408 | AI21: =0.0000185995137*AG21^2 - 0.167922431*AG21 + 1120.68543 -> 971.3625127 | AJ21: FALSE | AK21: 1 | AL21: 1500 | AM21: =-0.0000000000069067777*AL21^4 + 0.0000000964451557*AL21^3 - 0.000510827416*AL21^2 + 1.21848117*AL21 + 51.4486088 -> 1020.345516 | AN21: =0.0000185995137*AL21^2 - 0.167922431*AL21 + 1120.68543 -> 910.6506893 | AO21: FALSE | AP21: 1 | AQ21: 2000 | AR21: =-0.0000000000069067777*AQ21^4 + 0.0000000964451557*AQ21^3 - 0.000510827416*AQ21^2 + 1.21848117*AQ21 + 51.4486088 -> 1106.154087 | AS21: =0.0000185995137*AQ21^2 - 0.167922431*AQ21 + 1120.68543 -> 859.2386228 | AT21: FALSE | AU21: 1 | AV21: 2500 | AW21: =-0.0000000000069067777*AV21^4 + 0.0000000964451557*AV21^3 - 0.000510827416*AV21^2 + 1.21848117*AV21 + 51.4486088 -> 1142.139738 | AX21: =0.0000185995137*AV21^2 - 0.167922431*AV21 + 1120.68543 -> 817.1263131 | AY21: FALSE | AZ21: 1 | BA21: 3000 | BB21: =-0.0000000000069067777*BA21^4 + 0.0000000964451557*BA21^3 - 0.000510827416*BA21^2 + 1.21848117*BA21 + 51.4486088 -> 1154.015585 | BC21: =0.0000185995137*BA21^2 - 0.167922431*BA21 + 1120.68543 -> 784.3137603 | BD21: FALSE | BE21: 1 | BF21: 3500 | BG21: =-0.0000000000069067777*BF21^4 + 0.0000000964451557*BF21^3 - 0.000510827416*BF21^2 + 1.21848117*BF21 + 51.4486088 -> 1157.13458 | BH21: =0.0000185995137*BF21^2 - 0.167922431*BF21 + 1120.68543 -> 760.8009643 | BI21: FALSE | BJ21: 1 | BK21: 4000 | BL21: =-0.0000000000069067777*BK21^4 + 0.0000000964451557*BK21^3 - 0.000510827416*BK21^2 + 1.21848117*BK21 + 51.4486088 -> 1156.489506 | BM21: =0.0000185995137*BK21^2 - 0.167922431*BK21 + 1120.68543 -> 746.5879252 | BN21: FALSE | BO21: 1 | BP21: 4500 | BQ21: =-0.0000000000069067777*BP21^4 + 0.0000000964451557*BP21^3 - 0.000510827416*BP21^2 + 1.21848117*BP21 + 51.4486088 -> 1146.712982 | BR21: =0.0000185995137*BP21^2 - 0.167922431*BP21 + 1120.68543 -> 741.6746429 | BS21: FALSE | BT21: 1 | BU21: 5000 | BV21: =-0.0000000000069067777*BU21^4 + 0.0000000964451557*BU21^3 - 0.000510827416*BU21^2 + 1.21848117*BU21 + 51.4486088 -> 1112.077459 | BW21: =0.0000185995137*BU21^2 - 0.167922431*BU21 + 1120.68543 -> 746.0611175 | BX21: FALSE | BY21: 1 | BZ21: 6000 | CA21: =-0.0000000000069067777*BZ21^4 + 0.0000000964451557*BZ21^3 - 0.000510827416*BZ21^2 + 1.21848117*BZ21 + 51.4486088 -> 853.5183848 | CB21: =0.0000185995137*BZ21^2 - 0.167922431*BZ21 + 1120.68543 -> 782.7333372 | CC21: FALSE | CD21: 1 | CE21: 6200 | CF21: =-0.0000000000069067777*CE21^4 + 0.0000000964451557*CE21^3 - 0.000510827416*CE21^2 + 1.21848117*CE21 + 51.4486088 -> 749.7202622 | CG21: =0.0000185995137*CE21^2 - 0.167922431*CE21 + 1120.68543 -> 794.5316644 | CH21: FALSE | CI21: 1 | CJ21: 6400 | CK21: =-0.0000000000069067777*CJ21^4 + 0.0000000964451557*CJ21^3 - 0.000510827416*CJ21^2 + 1.21848117*CJ21 + 51.4486088 -> 621.1058996 | CL21: =0.0000185995137*CJ21^2 - 0.167922431*CJ21 + 1120.68543 -> 807.8179528 | CM21: FALSE | CN21: 1 | CO21: 6600 | CP21: =-0.0000000000069067777*CO21^4 + 0.0000000964451557*CO21^3 - 0.000510827416*CO21^2 + 1.21848117*CO21 + 51.4486088 -> 463.9502261 | CQ21: =0.0000185995137*CO21^2 - 0.167922431*CO21 + 1120.68543 -> 822.5922022 | CR21: FALSE | CS21: 1 | CT21: 6800 | CU21: =-0.0000000000069067777*CT21^4 + 0.0000000964451557*CT21^3 - 0.000510827416*CT21^2 + 1.21848117*CT21 + 51.4486088 -> 274.2629508 | CV21: =0.0000185995137*CT21^2 - 0.167922431*CT21 + 1120.68543 -> 838.8544127 | CW21: FALSE | CX21: 1 | CY21: 6900 | CZ21: =-0.0000000000069067777*CY21^4 + 0.0000000964451557*CY21^3 - 0.000510827416*CY21^2 + 1.21848117*CY21 + 51.4486088 -> 165.9004753 | DA21: =0.0000185995137*CY21^2 - 0.167922431*CY21 + 1120.68543 -> 847.5435034 | DB21: FALSE | DC21: 1 | DD21: 7038.181674 | DE21: =-0.0000000000069067777*DD21^4 + 0.0000000964451557*DD21^3 - 0.000510827416*DD21^2 + 1.21848117*DD21 + 51.4486088 -> -1.757328718e-06 | DF21: =0.0000185995137*DD21^2 - 0.167922431*DD21 + 1120.68543 -> 860.1623879 | DG21: TRUE | DH21: 0
A22: Side | B22: 2 | C22: 0 | D22: 0 | E22: =0.0000185995137*C22^2 - 0.167922431*C22 + 1120.68543 -> 1120.68543 | F22: TRUE | G22: 2 | H22: 0 | I22: =-0.0000000000067919258*H22^4 + 0.0000000945983196*H22^3 - 0.000504025587*H22^2 + 1.22127801*H22 -> 0 | J22: =0.0000182672053*H22^2 - 0.165450041*H22 + 1022.13715 -> 1022.13715 | K22: TRUE | L22: 2 | M22: 200 | N22: =-0.0000000000067919258*M22^4 + 0.0000000945983196*M22^3 - 0.000504025587*M22^2 + 1.22127801*M22 -> 224.840498 | O22: =0.0000182672053*M22^2 - 0.165450041*M22 + 1022.13715 -> 989.77783 | P22: FALSE | Q22: 2 | R22: 400 | S22: =-0.0000000000067919258*R22^4 + 0.0000000945983196*R22^3 - 0.000504025587*R22^2 + 1.22127801*R22 -> 413.7475292 | T22: =0.0000182672053*R22^2 - 0.165450041*R22 + 1022.13715 -> 958.8798864 | U22: FALSE | V22: 2 | W22: 600 | X22: =-0.0000000000067919258*W22^4 + 0.0000000945983196*W22^3 - 0.000504025587*W22^2 + 1.22127801*W22 -> 570.8705981 | Y22: =0.0000182672053*W22^2 - 0.165450041*W22 + 1022.13715 -> 929.4433193 | Z22: FALSE | AA22: 2 | AB22: 800 | AC22: =-0.0000000000067919258*AB22^4 + 0.0000000945983196*AB22^3 - 0.000504025587*AB22^2 + 1.22127801*AB22 -> 700.0983991 | AD22: =0.0000182672053*AB22^2 - 0.165450041*AB22 + 1022.13715 -> 901.4681286 | AE22: FALSE | AF22: 2 | AG22: 1000 | AH22: =-0.0000000000067919258*AG22^4 + 0.0000000945983196*AG22^3 - 0.000504025587*AG22^2 + 1.22127801*AG22 -> 805.0588168 | AI22: =0.0000182672053*AG22^2 - 0.165450041*AG22 + 1022.13715 -> 874.9543143 | AJ22: FALSE | AK22: 2 | AL22: 1500 | AM22: =-0.0000000000067919258*AL22^4 + 0.0000000945983196*AL22^3 - 0.000504025587*AL22^2 + 1.22127801*AL22 -> 982.7446485 | AN22: =0.0000182672053*AL22^2 - 0.165450041*AL22 + 1022.13715 -> 815.0633004 | AO22: FALSE | AP22: 2 | AQ22: 2000 | AR22: =-0.0000000000067919258*AQ22^4 + 0.0000000945983196*AQ22^3 - 0.000504025587*AQ22^2 + 1.22127801*AQ22 -> 1074.569416 | AS22: =0.0000182672053*AQ22^2 - 0.165450041*AQ22 + 1022.13715 -> 764.3058892 | AT22: FALSE | AU22: 2 | AV22: 2500 | AW22: =-0.0000000000067919258*AV22^4 + 0.0000000945983196*AV22^3 - 0.000504025587*AV22^2 + 1.22127801*AV22 -> 1115.824248 | AX22: =0.0000182672053*AV22^2 - 0.165450041*AV22 + 1022.13715 -> 722.6820806 | AY22: FALSE | AZ22: 2 | BA22: 3000 | BB22: =-0.0000000000067919258*BA22^4 + 0.0000000945983196*BA22^3 - 0.000504025587*BA22^2 + 1.22127801*BA22 -> 1131.612386 | BC22: =0.0000182672053*BA22^2 - 0.165450041*BA22 + 1022.13715 -> 690.1918747 | BD22: FALSE | BE22: 2 | BF22: 3500 | BG22: =-0.0000000000067919258*BF22^4 + 0.0000000945983196*BF22^3 - 0.000504025587*BF22^2 + 1.22127801*BF22 -> 1136.849182 | BH22: =0.0000182672053*BF22^2 - 0.165450041*BF22 + 1022.13715 -> 666.8352714 | BI22: FALSE | BJ22: 2 | BK22: 4000 | BL22: =-0.0000000000067919258*BK22^4 + 0.0000000945983196*BK22^3 - 0.000504025587*BK22^2 + 1.22127801*BK22 -> 1136.262098 | BM22: =0.0000182672053*BK22^2 - 0.165450041*BK22 + 1022.13715 -> 652.6122708 | BN22: FALSE | BO22: 2 | BP22: 4500 | BQ22: =-0.0000000000067919258*BP22^4 + 0.0000000945983196*BP22^3 - 0.000504025587*BP22^2 + 1.22127801*BP22 -> 1124.390708 | BR22: =0.0000182672053*BP22^2 - 0.165450041*BP22 + 1022.13715 -> 647.5228728 | BS22: FALSE | BT22: 2 | BU22: 5000 | BV22: =-0.0000000000067919258*BU22^4 + 0.0000000945983196*BU22^3 - 0.000504025587*BU22^2 + 1.22127801*BU22 -> 1085.5867 | BW22: =0.0000182672053*BU22^2 - 0.165450041*BU22 + 1022.13715 -> 651.5670775 | BX22: FALSE | BY22: 2 | BZ22: 6000 | CA22: =-0.0000000000067919258*BZ22^4 + 0.0000000945983196*BZ22^3 - 0.000504025587*BZ22^2 + 1.22127801*BZ22 -> 813.6481248 | CB22: =0.0000182672053*BZ22^2 - 0.165450041*BZ22 + 1022.13715 -> 687.0562948 | CC22: FALSE | CD22: 2 | CE22: 6200 | CF22: =-0.0000000000067919258*CE22^4 + 0.0000000945983196*CE22^3 - 0.000504025587*CE22^2 + 1.22127801*CE22 -> 706.6306406 | CG22: =0.0000182672053*CE22^2 - 0.165450041*CE22 + 1022.13715 -> 698.5382675 | CH22: FALSE | CI22: 2 | CJ22: 6400 | CK22: =-0.0000000000067919258*CJ22^4 + 0.0000000945983196*CJ22^3 - 0.000504025587*CJ22^2 + 1.22127801*CJ22 -> 574.7124934 | CL22: =0.0000182672053*CJ22^2 - 0.165450041*CJ22 + 1022.13715 -> 711.4816167 | CM22: FALSE | CN22: 2 | CO22: 6600 | CP22: =-0.0000000000067919258*CO22^4 + 0.0000000945983196*CO22^3 - 0.000504025587*CO22^2 + 1.22127801*CO22 -> 414.2188893 | CQ22: =0.0000182672053*CO22^2 - 0.165450041*CO22 + 1022.13715 -> 725.8863423 | CR22: FALSE | CS22: 2 | CT22: 6800 | CU22: =-0.0000000000067919258*CT22^4 + 0.0000000945983196*CT22^3 - 0.000504025587*CT22^2 + 1.22127801*CT22 -> 221.2142242 | CV22: =0.0000182672053*CT22^2 - 0.165450041*CT22 + 1022.13715 -> 741.7524443 | CW22: FALSE | CX22: 2 | CY22: 6993.169652 | CZ22: =-0.0000000000067919258*CY22^4 + 0.0000000945983196*CY22^3 - 0.000504025587*CY22^2 + 1.22127801*CY22 -> 4.415978765e-07 | DA22: =0.0000182672053*CY22^2 - 0.165450041*CY22 + 1022.13715 -> 758.4640571 | DB22: TRUE | DC22: 2 | DD22: 7038.181674 | DE22: =-0.0000000000069067777*DD22^4 + 0.0000000964451557*DD22^3 - 0.000510827416*DD22^2 + 1.21848117*DD22 + 51.4486088 -> -1.757328718e-06 | DF22: =0.0000185995137*DD22^2 - 0.167922431*DD22 + 1120.68543 -> 860.1623879 | DG22: TRUE | DH22: 0
A23: Sole | B23: 3 | C23: 0 | D23: =-0.0000000000067919258*C23^4 + 0.0000000945983196*C23^3 - 0.000504025587*C23^2 + 1.22127801*C23 -> 0 | E23: =0.0000182672053*C23^2 - 0.165450041*C23 + 1022.13715 -> 1022.13715 | F23: TRUE | G23: 3 | H23: 150.2646132 | I23: =-1.96836918E-12*H23^4 + 0.0000000223263403*H23^3 - 0.00015881897*H23^2 + 0.678982126*H23 - 98.516196 -> -0.0005077732953 | J23: =0.0000325080672*H23^2 - 0.237650785*H23 + 321.043886 -> 286.0673971 | K23: TRUE | L23: 3 | M23: 200 | N23: =-1.96836918E-12*M23^4 + 0.0000000223263403*M23^3 - 0.00015881897*M23^2 + 0.678982126*M23 - 98.516196 -> 31.10293173 | O23: =0.0000325080672*M23^2 - 0.237650785*M23 + 321.043886 -> 274.8140517 | P23: FALSE | Q23: 3 | R23: 400 | S23: =-1.96836918E-12*R23^4 + 0.0000000223263403*R23^3 - 0.00015881897*R23^2 + 0.678982126*R23 - 98.516196 -> 149.0441147 | T23: =0.0000325080672*R23^2 - 0.237650785*R23 + 321.043886 -> 231.1848628 | U23: FALSE | V23: 3 | W23: 600 | X23: =-1.96836918E-12*W23^4 + 0.0000000223263403*W23^3 - 0.00015881897*W23^2 + 0.678982126*W23 - 98.516196 -> 256.2656393 | Y23: =0.0000325080672*W23^2 - 0.237650785*W23 + 321.043886 -> 190.1563192 | Z23: FALSE | AA23: 3 | AB23: 800 | AC23: =-1.96836918E-12*AB23^4 + 0.0000000223263403*AB23^3 - 0.00015881897*AB23^2 + 0.678982126*AB23 - 98.516196 -> 353.6502062 | AD23: =0.0000325080672*AB23^2 - 0.237650785*AB23 + 321.043886 -> 151.728421 | AE23: FALSE | AF23: 3 | AG23: 1000 | AH23: =-1.96836918E-12*AG23^4 + 0.0000000223263403*AG23^3 - 0.00015881897*AG23^2 + 0.678982126*AG23 - 98.516196 -> 442.0049311 | AI23: =0.0000325080672*AG23^2 - 0.237650785*AG23 + 321.043886 -> 115.9011682 | AJ23: FALSE | AK23: 3 | AL23: 1500 | AM23: =-1.96836918E-12*AL23^4 + 0.0000000223263403*AL23^3 - 0.00015881897*AL23^2 + 0.678982126*AL23 - 98.516196 -> 628.00084 | AN23: =0.0000325080672*AL23^2 - 0.237650785*AL23 + 321.043886 -> 37.7108597 | AO23: FALSE | AP23: 3 | AQ23: 2000 | AR23: =-1.96836918E-12*AQ23^4 + 0.0000000223263403*AQ23^3 - 0.00015881897*AQ23^2 + 0.678982126*AQ23 - 98.516196 -> 771.2889915 | AS23: =0.0000325080672*AQ23^2 - 0.237650785*AQ23 + 321.043886 -> -24.2254152 | AT23: FALSE | AU23: 3 | AV23: 2500 | AW23: =-1.96836918E-12*AV23^4 + 0.0000000223263403*AV23^3 - 0.00015881897*AV23^2 + 0.678982126*AV23 - 98.516196 -> 878.2802026 | AX23: =0.0000325080672*AV23^2 - 0.237650785*AV23 + 321.043886 -> -69.9076565 | AY23: FALSE | AZ23: 3 | BA23: 3000 | BB23: =-1.96836918E-12*BA23^4 + 0.0000000223263403*BA23^3 - 0.00015881897*BA23^2 + 0.678982126*BA23 - 98.516196 -> 952.4327365 | BC23: =0.0000325080672*BA23^2 - 0.237650785*BA23 + 321.043886 -> -99.3358642 | BD23: FALSE | BE23: 3 | BF23: 3500 | BG23: =-1.96836918E-12*BF23^4 + 0.0000000223263403*BF23^3 - 0.00015881897*BF23^2 + 0.678982126*BF23 - 98.516196 -> 994.2523028 | BH23: =0.0000325080672*BF23^2 - 0.237650785*BF23 + 321.043886 -> -112.5100383 | BI23: FALSE | BJ23: 3 | BK23: 4000 | BL23: =-1.96836918E-12*BK23^4 + 0.0000000223263403*BK23^3 - 0.00015881897*BK23^2 + 0.678982126*BK23 - 98.516196 -> 1001.292057 | BM23: =0.0000325080672*BK23^2 - 0.237650785*BK23 + 321.043886 -> -109.4301788 | BN23: FALSE | BO23: 3 | BP23: 4500 | BQ23: =-1.96836918E-12*BP23^4 + 0.0000000223263403*BP23^3 - 0.00015881897*BP23^2 + 0.678982126*BP23 - 98.516196 -> 968.1526015 | BR23: =0.0000325080672*BP23^2 - 0.237650785*BP23 + 321.043886 -> -90.0962857 | BS23: FALSE | BT23: 3 | BU23: 5000 | BV23: =-1.96836918E-12*BU23^4 + 0.0000000223263403*BU23^3 - 0.00015881897*BU23^2 + 0.678982126*BU23 - 98.516196 -> 886.481984 | BW23: =0.0000325080672*BU23^2 - 0.237650785*BU23 + 321.043886 -> -54.508359 | BX23: FALSE | BY23: 3 | BZ23: 6000 | CA23: =-1.96836918E-12*BZ23^4 + 0.0000000223263403*BZ23^3 - 0.00015881897*BZ23^2 + 0.678982126*BZ23 - 98.516196 -> 529.3766875 | CB23: =0.0000325080672*BZ23^2 - 0.237650785*BZ23 + 321.043886 -> 65.4295952 | CC23: FALSE | CD23: 3 | CE23: 6200 | CF23: =-1.96836918E-12*CE23^4 + 0.0000000223263403*CE23^3 - 0.00015881897*CE23^2 + 0.678982126*CE23 - 98.516196 -> 418.6353718 | CG23: =0.0000325080672*CE23^2 - 0.237650785*CE23 + 321.043886 -> 97.21912217 | CH23: FALSE | CI23: 3 | CJ23: 6400 | CK23: =-1.96836918E-12*CJ23^4 + 0.0000000223263403*CJ23^3 - 0.00015881897*CJ23^2 + 0.678982126*CJ23 - 98.516196 -> 292.0850607 | CL23: =0.0000325080672*CJ23^2 - 0.237650785*CJ23 + 321.043886 -> 131.6092945 | CM23: FALSE | CN23: 3 | CO23: 6600 | CP23: =-1.96836918E-12*CO23^4 + 0.0000000223263403*CO23^3 - 0.00015881897*CO23^2 + 0.678982126*CO23 - 98.516196 -> 148.4164792 | CQ23: =0.0000325080672*CO23^2 - 0.237650785*CO23 + 321.043886 -> 168.6001122 | CR23: FALSE | CS23: 3 | CT23: 6783.921712 | CU23: =-1.96836918E-12*CT23^4 + 0.0000000223263403*CT23^3 - 0.00015881897*CT23^2 + 0.678982126*CT23 - 98.516196 -> 2.261636354e-07 | CV23: =0.0000325080672*CT23^2 - 0.237650785*CT23 + 321.043886 -> 204.9126295 | CW23: TRUE | CX23: 3 | CY23: 6993.169652 | CZ23: =-0.0000000000067919258*CY23^4 + 0.0000000945983196*CY23^3 - 0.000504025587*CY23^2 + 1.22127801*CY23 -> 4.415978765e-07 | DA23: =0.0000182672053*CY23^2 - 0.165450041*CY23 + 1022.13715 -> 758.4640571 | DB23: TRUE | DC23: 3
A24: Keel Side | B24: 4 | H24: 150.2646132 | I24: 0 | J24: 286 | K24: TRUE | L24: 5 | M24: 200 | N24: 0 | O24: 237 | P24: FALSE | Q24: 5 | R24: 400 | S24: 0 | T24: 42 | U24: FALSE | V24: 5 | W24: 150.2646132 | X24: =-1.96836918E-12*W24^4 + 0.0000000223263403*W24^3 - 0.00015881897*W24^2 + 0.678982126*W24 - 98.516196 -> -0.0005077732953 | Y24: =0.0000325080672*W24^2 - 0.237650785*W24 + 321.043886 -> 286.0673971 | Z24: TRUE | AA24: 5 | AB24: 804.6786904 | AC24: =-8.20168948E-16*AB24^5 + 0.0000000000135889885*AB24^4 - 0.0000000840631515*AB24^3 + 0.000206462105*AB24^2 - 0.0717799351*AB24 - 37.5476442 -> -0.0008098072547 | AD24: =-0.0536796537*AB24- 309.948723 -> -353.1435964 | AE24: TRUE | AF24: 5 | AG24: 1000 | AH24: =-8.20168948E-16*AG24^5 + 0.0000000000135889885*AG24^4 - 0.0000000840631515*AG24^3 + 0.000206462105*AG24^2 - 0.0717799351*AG24 - 37.5476442 -> 25.84019375 | AI24: =-0.0536796537*AG24- 309.948723 -> -363.6283767 | AJ24: FALSE | AK24: 5 | AL24: 1500 | AM24: =-8.20168948E-16*AL24^5 + 0.0000000000135889885*AL24^4 - 0.0000000840631515*AL24^3 + 0.000206462105*AL24^2 - 0.0717799351*AL24 - 37.5476442 -> 98.17514942 | AN24: =-0.0536796537*AL24- 309.948723 -> -390.4682035 | AO24: FALSE | AP24: 5 | AQ24: 2000 | AR24: =-8.20168948E-16*AQ24^5 + 0.0000000000135889885*AQ24^4 - 0.0000000840631515*AQ24^3 + 0.000206462105*AQ24^2 - 0.0717799351*AQ24 - 37.5476442 -> 163.4141033 | AS24: =-0.0536796537*AQ24- 309.948723 -> -417.3080304 | AT24: FALSE | AU24: 5 | AV24: 2500 | AW24: =-8.20168948E-16*AV24^5 + 0.0000000000135889885*AV24^4 - 0.0000000840631515*AV24^3 + 0.000206462105*AV24^2 - 0.0717799351*AV24 - 37.5476442 -> 210.6291716 | AX24: =-0.0536796537*AV24- 309.948723 -> -444.1478573 | AY24: FALSE | AZ24: 5 | BA24: 3000 | BB24: =-8.20168948E-16*BA24^5 + 0.0000000000135889885*BA24^4 - 0.0000000840631515*BA24^3 + 0.000206462105*BA24^2 - 0.0717799351*BA24 - 37.5476442 -> 236.9734191 | BC24: =-0.0536796537*BA24- 309.948723 -> -470.9876841 | BD24: FALSE | BE24: 5 | BF24: 3500 | BG24: =-8.20168948E-16*BF24^5 + 0.0000000000135889885*BF24^4 - 0.0000000840631515*BF24^3 + 0.000206462105*BF24^2 - 0.0717799351*BF24 - 37.5476442 -> 244.6052258 | BH24: =-0.0536796537*BF24- 309.948723 -> -497.8275109 | BI24: FALSE | BJ24: 5 | BK24: 4000 | BL24: =-8.20168948E-16*BK24^5 + 0.0000000000135889885*BK24^4 - 0.0000000840631515*BK24^3 + 0.000206462105*BK24^2 - 0.0717799351*BK24 - 37.5476442 -> 237.6126526 | BM24: =-0.0536796537*BK24- 309.948723 -> -524.6673378 | BN24: FALSE | BO24: 5 | BP24: 4500 | BQ24: =-8.20168948E-16*BP24^5 + 0.0000000000135889885*BP24^4 - 0.0000000840631515*BP24^3 + 0.000206462105*BP24^2 - 0.0717799351*BP24 - 37.5476442 -> 218.9378089 | BR24: =-0.0536796537*BP24- 309.948723 -> -551.5071647 | BS24: FALSE | BT24: 5 | BU24: 5000 | BV24: =-8.20168948E-16*BU24^5 + 0.0000000000135889885*BU24^4 - 0.0000000840631515*BU24^3 + 0.000206462105*BU24^2 - 0.0717799351*BU24 - 37.5476442 -> 187.3012178 | BW24: =-0.0536796537*BU24- 309.948723 -> -578.3469915 | BX24: FALSE | BY24: 5 | BZ24: 6000 | CA24: =-8.20168948E-16*BZ24^5 + 0.0000000000135889885*BZ24^4 - 0.0000000840631515*BZ24^3 + 0.000206462105*BZ24^2 - 0.0717799351*BZ24 - 37.5476442 -> 40.46315755 | CB24: =-0.0536796537*BZ24- 309.948723 -> -632.0266452 | CC24: FALSE | CD24: 5 | CE24: 6150.106436 | CF24: =-8.20168948E-16*CE24^5 + 0.0000000000135889885*CE24^4 - 0.0000000840631515*CE24^3 + 0.000206462105*CE24^2 - 0.0717799351*CE24 - 37.5476442 -> -0.0007029494428 | CG24: =-0.0536796537*CE24- 309.948723 -> -640.0843067 | CH24: TRUE | CI24: 5 | CJ24: 6783.921712 | CK24: =-1.96836918E-12*CJ24^4 + 0.0000000223263403*CJ24^3 - 0.00015881897*CJ24^2 + 0.678982126*CJ24 - 98.516196 -> 2.261636354e-07 | CL24: =0.0000325080672*CJ24^2 - 0.237650785*CJ24 + 321.043886 -> 204.9126295 | CM24: TRUE | CN24: 5
A25: Keel Floor | B25: 5 | H25: 150.2646132 | I25: 0 | J25: 286 | K25: TRUE | L25: 6 | M25: 200 | N25: 0 | O25: 237 | P25: FALSE | Q25: 6 | R25: 400 | S25: 0 | T25: 42 | U25: FALSE | V25: 6 | W25: 804.6786904 | X25: =-8.20168948E-16*W25^5 + 0.0000000000135889885*W25^4 - 0.0000000840631515*W25^3 + 0.000206462105*W25^2 - 0.0717799351*W25 - 37.5476442 -> -0.0008098072547 | Y25: =-0.0536796537*W25- 309.948723 -> -353.1435964 | Z25: TRUE | AA25: 6 | AB25: 804.6786904 | AC25: =-8.20168948E-16*AB25^5 + 0.0000000000135889885*AB25^4 - 0.0000000840631515*AB25^3 + 0.000206462105*AB25^2 - 0.0717799351*AB25 - 37.5476442 -> -0.0008098072547 | AD25: =-0.0536796537*AB25 - 386.148723 -> -429.3435964 | AE25: TRUE | AF25: 6 | AG25: 1000 | AH25: =-8.20168948E-16*AG25^5 + 0.0000000000135889885*AG25^4 - 0.0000000840631515*AG25^3 + 0.000206462105*AG25^2 - 0.0717799351*AG25 - 37.5476442 -> 25.84019375 | AI25: =-0.0536796537*AG25 - 386.148723 -> -439.8283767 | AJ25: FALSE | AK25: 6 | AL25: 1500 | AM25: =-8.20168948E-16*AL25^5 + 0.0000000000135889885*AL25^4 - 0.0000000840631515*AL25^3 + 0.000206462105*AL25^2 - 0.0717799351*AL25 - 37.5476442 -> 98.17514942 | AN25: =-0.0536796537*AL25 - 386.148723 -> -466.6682036 | AO25: FALSE | AP25: 6 | AQ25: 2000 | AR25: =-8.20168948E-16*AQ25^5 + 0.0000000000135889885*AQ25^4 - 0.0000000840631515*AQ25^3 + 0.000206462105*AQ25^2 - 0.0717799351*AQ25 - 37.5476442 -> 163.4141033 | AS25: =-0.0536796537*AQ25 - 386.148723 -> -493.5080304 | AT25: FALSE | AU25: 6 | AV25: 2500 | AW25: =-8.20168948E-16*AV25^5 + 0.0000000000135889885*AV25^4 - 0.0000000840631515*AV25^3 + 0.000206462105*AV25^2 - 0.0717799351*AV25 - 37.5476442 -> 210.6291716 | AX25: =-0.0536796537*AV25 - 386.148723 -> -520.3478573 | AY25: FALSE | AZ25: 6 | BA25: 3000 | BB25: =-8.20168948E-16*BA25^5 + 0.0000000000135889885*BA25^4 - 0.0000000840631515*BA25^3 + 0.000206462105*BA25^2 - 0.0717799351*BA25 - 37.5476442 -> 236.9734191 | BC25: =-0.0536796537*BA25 - 386.148723 -> -547.1876841 | BD25: FALSE | BE25: 6 | BF25: 3500 | BG25: =-8.20168948E-16*BF25^5 + 0.0000000000135889885*BF25^4 - 0.0000000840631515*BF25^3 + 0.000206462105*BF25^2 - 0.0717799351*BF25 - 37.5476442 -> 244.6052258 | BH25: =-0.0536796537*BF25 - 386.148723 -> -574.027511 | BI25: FALSE | BJ25: 6 | BK25: 4000 | BL25: =-8.20168948E-16*BK25^5 + 0.0000000000135889885*BK25^4 - 0.0000000840631515*BK25^3 + 0.000206462105*BK25^2 - 0.0717799351*BK25 - 37.5476442 -> 237.6126526 | BM25: =-0.0536796537*BK25 - 386.148723 -> -600.8673378 | BN25: FALSE | BO25: 6 | BP25: 4500 | BQ25: =-8.20168948E-16*BP25^5 + 0.0000000000135889885*BP25^4 - 0.0000000840631515*BP25^3 + 0.000206462105*BP25^2 - 0.0717799351*BP25 - 37.5476442 -> 218.9378089 | BR25: =-0.0536796537*BP25 - 386.148723 -> -627.7071647 | BS25: FALSE | BT25: 6 | BU25: 5000 | BV25: =-8.20168948E-16*BU25^5 + 0.0000000000135889885*BU25^4 - 0.0000000840631515*BU25^3 + 0.000206462105*BU25^2 - 0.0717799351*BU25 - 37.5476442 -> 187.3012178 | BW25: =-0.0536796537*BU25 - 386.148723 -> -654.5469915 | BX25: FALSE | BY25: 6 | BZ25: 6000 | CA25: =-8.20168948E-16*BZ25^5 + 0.0000000000135889885*BZ25^4 - 0.0000000840631515*BZ25^3 + 0.000206462105*BZ25^2 - 0.0717799351*BZ25 - 37.5476442 -> 40.46315755 | CB25: =-0.0536796537*BZ25 - 386.148723 -> -708.2266452 | CC25: FALSE | CD25: 6 | CE25: 6150.106436 | CF25: =-8.20168948E-16*CE25^5 + 0.0000000000135889885*CE25^4 - 0.0000000840631515*CE25^3 + 0.000206462105*CE25^2 - 0.0717799351*CE25 - 37.5476442 -> -0.0007029494428 | CG25: =-0.0536796537*CE25 - 386.148723 -> -716.2843067 | CH25: TRUE | CI25: 6 | CJ25: 6150.106436 | CK25: =-8.20168948E-16*CJ25^5 + 0.0000000000135889885*CJ25^4 - 0.0000000840631515*CJ25^3 + 0.000206462105*CJ25^2 - 0.0717799351*CJ25 - 37.5476442 -> -0.0007029494428 | CL25: =-0.0536796537*CJ25- 309.948723 -> -640.0843067 | CM25: TRUE | CN25: 6 | CO25: 6783.921712 | CP25: 0 | CQ25: 204.9126295 | CR25: TRUE | CS25: 6
A26: Centreline | B26: 6 | H26: 150.2646132 | I26: 0 | J26: 286 | K26: TRUE | L26: 7 | M26: 200 | N26: 0 | O26: 181 | P26: FALSE | Q26: 7 | R26: 400 | S26: 0 | T26: -158 | U26: FALSE | V26: 7 | W26: 600 | X26: 0 | Y26: -362 | Z26: FALSE | AA26: 7 | AB26: 804.6786904 | AC26: 0 | AD26: =-0.0536796537*AB26 - 386.148723 -> -429.3435964 | AE26: TRUE | AF26: 7 | AG26: 1000 | AH26: 0 | AI26: =-0.0536796537*AG26 - 386.148723 -> -439.8283767 | AJ26: FALSE | AK26: 7 | AL26: 1500 | AM26: 0 | AN26: =-0.0536796537*AL26 - 386.148723 -> -466.6682036 | AO26: FALSE | AP26: 7 | AQ26: 2000 | AR26: 0 | AS26: =-0.0536796537*AQ26 - 386.148723 -> -493.5080304 | AT26: FALSE | AU26: 7 | AV26: 2500 | AW26: 0 | AX26: =-0.0536796537*AV26 - 386.148723 -> -520.3478573 | AY26: FALSE | AZ26: 7 | BA26: 3000 | BB26: 0 | BC26: =-0.0536796537*BA26 - 386.148723 -> -547.1876841 | BD26: FALSE | BE26: 7 | BF26: 3500 | BG26: 0 | BH26: =-0.0536796537*BF26 - 386.148723 -> -574.027511 | BI26: FALSE | BJ26: 7 | BK26: 4000 | BL26: 0 | BM26: =-0.0536796537*BK26 - 386.148723 -> -600.8673378 | BN26: FALSE | BO26: 7 | BP26: 4500 | BQ26: 0 | BR26: =-0.0536796537*BP26 - 386.148723 -> -627.7071647 | BS26: FALSE | BT26: 7 | BU26: 5000 | BV26: 0 | BW26: =-0.0536796537*BU26 - 386.148723 -> -654.5469915 | BX26: FALSE | BY26: 7 | BZ26: 6000 | CA26: 0 | CB26: =-0.0536796537*BZ26 - 386.148723 -> -708.2266452 | CC26: FALSE | CD26: 7 | CE26: 6150.106436 | CF26: 0 | CG26: =-0.0536796537*CE26 - 386.148723 -> -716.2843067 | CH26: TRUE | CI26: 7 | CJ26: 6400 | CK26: 0 | CL26: -716.2843067 | CM26: TRUE | CN26: 7 | CO26: 6500 | CP26: 0 | CQ26: -546.1832651 | CR26: TRUE | CS26: 7 | CT26: 6600 | CU26: 0 | CV26: -281.6399551 | CW26: TRUE | CX26: 7 | CY26: 6783.921712 | CZ26: 0 | DA26: 204.9126295 | DB26: TRUE | DC26: 7
A29: Offset Row | B29: =A25 -> Keel Floor | G29: =A24 -> Keel Side | L29: =A23 -> Sole | Q29: =A22 -> Side | V29: Rail
B30: X Lower | C30: Y Lower | D30: X Upper | E30: Y Upper | G30: X Lower | H30: Y Lower | I30: X Upper | J30: Y Upper | L30: X Lower | M30: Y Lower | N30: X Upper | O30: Y Upper | Q30: X Lower | R30: Y Lower | S30: X Upper | T30: Y Upper | V30: X Lower | W30: Y Lower | X30: X Upper | Y30: Y Upper
V31: 0 | W31: 0 | X31: 0 | Y31: 0
Q32: 0.01890444101 | R32: -0.04628328911 | S32: 0.009826695143 | T32: 0.001853134415 | V32: 42.88356465 | W32: -88.72859446 | X32: 46.3375143 | Y32: 22.3916826
Q33: 189.0453338 | R33: -462.8325138 | S33: 153.0999305 | T33: 23.60996626 | V33: 193.7631272 | W33: -53.66749781 | X33: 197.062199 | Y33: 57.08305135
Q34: 284.0665463 | R34: -695.474178 | S34: 227.4490681 | T34: 34.55063729 | V34: 267.1573239 | W34: -37.51867647 | X34: 270.3437354 | Y34: 73.02373027
B35: 180.7149036 | C35: -346.0638111 | D35: 180.714259 | E35: -346.0517745 | L35: 302.0307467 | M35: 114.8670671 | N35: 302.0351996 | O35: 114.8721066 | Q35: 284.0785955 | R35: -695.4739703 | S35: 227.4636938 | T35: 34.5527546 | V35: 267.1717695 | W35: -37.51555905 | X35: 270.3581566 | Y35: 73.02680497
B36: 235.9827602 | C36: -448.2326534 | D36: 232.9882065 | E36: -392.3127764 | L36: 363.8859471 | M36: 82.39927173 | N36: 359.4877001 | O36: 131.1635034 | Q36: 343.7877371 | R36: -694.465099 | S36: 299.3751751 | T36: 44.95019245 | V36: 338.257011 | W36: -22.47374076 | X36: 341.3133792 | Y36: 87.85027558
B37: 453.8243516 | C37: -776.0527887 | D37: 443.1295169 | E37: -576.3389421 | L37: 611.7171828 | M37: -46.45987078 | N37: 587.4577821 | O37: 193.15762 | Q37: 580.0189584 | R37: -691.5601256 | S37: 573.6217689 | T37: 82.75700652 | V37: 610.2276094 | W37: 29.22290313 | X37: 612.635155 | Y37: 138.5778298
B38: 560.0433168 | C38: -889.5092519 | D38: 548.1716636 | E38: -667.819661 | L38: 735.3847922 | M38: -110.4289829 | N38: 699.7183545 | O38: 222.2327638 | Q38: 695.9835244 | R38: -691.4203974 | S38: 703.0653722 | T38: 98.19335213 | V38: 738.8844044 | W38: 50.23138491 | X38: 740.9048026 | Y38: 159.0483026
B39: 664.4469296 | C39: -969.0660775 | D39: 653.2230951 | E39: -759.4737639 | L39: 859.1208843 | M39: -174.5561764 | N39: 810.918648 | O39: 250.163136 | Q39: 810.6370311 | R39: -691.8497733 | S39: 828.1115063 | T39: 111.4037306 | V39: 863.3193601 | W39: 68.3142929 | X39: 864.9261898 | Y39: 176.5644268
B40: 867.7657013 | C40: -1025.689112 | D40: 863.4386843 | E40: -944.8870012 | L40: 1107.506159 | M40: -304.6730695 | N40: 1030.379004 | O40: 303.0555679 | Q40: 1036.37115 | R40: -693.9862882 | S40: 1067.034509 | T40: 131.3595411 | V40: 1101.39807 | W40: 96.61559268 | X40: 1102.140155 | Y40: 203.6672846
B41: 872.4339155 | C41: -1025.368297 | D41: 868.3591835 | E41: -949.2773216 | G41: 68.25728331 | H41: -1303.343041 | I41: 68.25728331 | J41: -1303.343041 | L41: 1113.338397 | M41: -307.7667071 | N41: 1035.469886 | O41: 304.2486808 | Q41: 1041.599467 | R41: -694.0591025 | S41: 1072.471697 | T41: 131.7207089 | V41: 1106.819504 | W41: 97.16469773 | X41: 1107.541322 | Y41: 204.1875776
B42: 872.4439299 | C42: -1025.368298 | D42: 872.4439012 | E42: -1025.367762 | G42: 72.35125571 | H42: -1379.432985 | I42: 68.26737565 | J42: -1303.343037 | L42: 1113.348369 | M42: -307.7651526 | N42: 1035.480765 | O42: 304.2512288 | Q42: 1041.610639 | R42: -694.0592591 | S42: 1072.483312 | T42: 131.7214759 | V42: 1106.831084 | W42: 97.1658661 | X42: 1107.552859 | Y42: 204.1886844
B43: 1068.036432 | C43: -1025.367762 | D43: 1068.036432 | E43: -999.5275687 | G43: 269.6432877 | H43: -1379.343423 | I43: 265.5592149 | J43: -1303.252948 | L43: 1308.161612 | M43: -276.5901904 | N43: 1245.703573 | O43: 355.2647506 | Q43: 1257.904203 | R43: -697.6790375 | S43: 1294.163136 | T43: 142.948759 | V43: 1327.999668 | W43: 115.9396265 | X43: 1327.890809 | Y43: 221.7409165
B44: 1568.756291 | C44: -1025.367762 | D44: 1568.756291 | E44: -927.192613 | G44: 775.5609152 | H44: -1379.06731 | I44: 771.4768424 | J44: -1302.976835 | L44: 1808.230752 | M44: -199.8857091 | N44: 1770.187214 | O44: 480.265202 | Q44: 1796.908222 | R44: -711.2019937 | S44: 1828.166062 | T44: 142.6966737 | V44: 1861.658525 | W44: 135.1076268 | X44: 1859.783957 | Y44: 237.8074815
B45: 2069.476149 | C45: -1025.367762 | D45: 2069.476149 | E45: -861.9536591 | G45: 1280.512841 | H45: -1378.843029 | I45: 1276.428768 | J45: -1302.752554 | L45: 2309.367663 | M45: -137.9317485 | N45: 2283.309237 | O45: 585.4953595 | Q45: 2320.464236 | R45: -727.2237544 | S45: 2338.430341 | T45: 117.4287499 | V45: 2372.529966 | W45: 130.8095284 | X45: 2369.644177 | Y45: 230.8169661
B46: 2570.196007 | C46: -1025.367762 | D46: 2570.196007 | E46: -814.7385908 | G46: 1783.453817 | H46: -1378.726684 | I46: 1779.369744 | J46: -1302.636209 | L46: 2810.455121 | M46: -94.79245337 | N46: 2789.61029 | O46: 670.3082721 | Q46: 2833.596388 | R46: -742.3690642 | S46: 2840.808898 | T46: 85.02059296 | V46: 2875.810667 | W46: 118.8496206 | X46: 2872.508915 | Y46: 216.8359281
B47: 3070.915865 | C47: -1025.367762 | D47: 3070.915865 | E47: -788.3943433 | G47: 2284.866217 | H47: -1378.692384 | I47: 2280.782144 | J47: -1302.601909 | L47: 3311.316235 | M47: -71.28628429 | N47: 3291.822663 | O47: 734.7082012 | Q47: 3339.794585 | R47: -753.6829134 | S47: 3341.266735 | T47: 55.92021786 | V47: 3377.010328 | W47: 108.6624506 | X47: 3373.593592 | Y47: 205.3534976
B48: 3571.635723 | C48: -1025.367762 | D48: 3571.635723 | E48: -780.7625367 | G48: 2785.644232 | H48: -1378.692133 | I48: 2781.560159 | J48: -1302.601658 | L48: 3812.051946 | M48: -64.77717692 | N48: 3791.883216 | O48: 777.8576889 | Q48: 3841.693123 | R48: -758.1876275 | S48: 3841.363371 | T48: 34.09570124 | V48: 3877.568267 | W48: 104.8278437 | X48: 3874.136016 | Y48: 200.8969255
B49: 4072.355581 | C49: -1025.367762 | D49: 4072.355581 | E49: -787.7551098 | G49: 3286.412913 | H49: -1378.692384 | I49: 3282.328841 | J49: -1302.601909 | L49: 4312.778323 | M49: -71.28628429 | N49: 4291.54751 | O49: 797.7231424 | Q49: 4341.731873 | R49: -753.6829134 | S49: 4341.37347 | T49: 20.21984426 | V49: 4377.756166 | W49: 108.6624506 | X49: 4374.323722 | Y49: 204.7290421
B50: 4573.075439 | C50: -1025.367762 | D50: 4573.075439 | E50: -806.4299535 | G50: 3787.480899 | H50: -1378.676569 | I50: 3783.396826 | J50: -1302.586095 | L50: 4813.557787 | M50: -88.28786308 | N50: 4792.977136 | O50: 791.3707306 | Q50: 4843.020251 | R50: -740.1927473 | S50: 4841.498944 | T50: 13.79004739 | V50: 4877.815067 | W50: 119.0512561 | X50: 4874.321982 | Y50: 215.7499536
B51: 5073.795297 | C51: -1025.367762 | D51: 5073.795297 | E51: -838.0665446 | G51: 4289.199194 | H51: -1378.62585 | I51: 4285.115121 | J51: -1302.535376 | L51: 5314.41949 | M51: -117.593244 | N51: 5299.613581 | O51: 755.9291895 | Q51: 5350.542442 | R51: -721.2767041 | S51: 5343.016515 | T51: 12.29576706 | V51: 5379.163994 | W51: 132.1417072 | X51: 5375.330909 | Y51: 230.2038883
B52: 5574.515155 | C52: -1025.367762 | D52: 5574.51513 | E52: -889.8291251 | G52: 4792.58741 | H52: -1378.485029 | I52: 4788.503625 | J52: -1302.39501 | L52: 5815.413842 | M52: -166.6306195 | N52: 5817.636489 | O52: 690.6106183 | Q52: 5872.392352 | R52: -704.3380165 | S52: 5851.272904 | T52: 8.005264852 | V52: 5887.3732 | W52: 140.2884391 | X52: 5882.478424 | Y52: 240.5772899
B53: 6075.235014 | C53: -1025.367762 | D53: 6075.235014 | E53: -984.9046049 | G53: 5302.253496 | H53: -1378.006761 | I53: 5298.16921 | J53: -1301.916297 | L53: 6317.460952 | M53: -254.425479 | N53: 6358.360515 | O53: 596.3440978 | Q53: 6421.254779 | R53: -700.0153041 | S53: 6383.069095 | T53: -17.54050068 | V53: 6419.653513 | W53: 128.5648322 | X53: 6412.379089 | Y53: 231.9612385
B54: 6225.547545 | C54: -1025.367762 | D54: 6225.547711 | E54: -1025.367252 | G54: 5457.916758 | H54: -1377.720528 | I54: 5453.831687 | J54: -1301.62957 | L54: 6468.632063 | M54: -291.5493819 | N54: 6527.41709 | O54: 562.0346911 | Q54: 6593.733987 | R54: -702.8760294 | S54: 6551.790331 | T54: -32.85663559 | V54: 6588.750561 | W54: 118.1904533 | X54: 6580.453937 | Y54: 222.6777789
B55: 6225.55722 | C55: -1025.370348 | D55: 6249.146622 | E55: -952.9136012 | G55: 5453.842115 | H55: -1301.629547 | I55: 5453.842115 | J55: -1301.629547 | L55: 6468.642141 | M55: -291.5520603 | N55: 6527.428477 | O55: 562.0322886 | Q55: 6593.745622 | R55: -702.8762932 | S55: 6551.801768 | T55: -32.85780693 | V55: 6588.762028 | W55: 118.189625 | X55: 6580.465331 | Y55: 222.6770253
B56: 6272.99981 | C56: -1040.816009 | D56: 6317.181231 | E56: -905.1092196 | L56: 6533.227122 | M56: -239.1808166 | N56: 6584.459652 | O56: 549.8593281 | Q56: 6652.043761 | R56: -704.3125274 | S56: 6609.218256 | T56: -38.96151819 | V56: 6646.336498 | W56: 113.8205536 | X56: 6637.667938 | Y56: 218.683816
B57: 6463.174998 | C57: -1102.73045 | D57: 6589.900205 | E57: -713.4837779 | L57: 6792.173644 | M57: -29.31741516 | N57: 6817.698346 | O57: 496.9690953 | Q57: 6891.059607 | R57: -712.6246022 | S57: 6847.263893 | T57: -69.03147674 | V57: 6885.205967 | W57: 91.20850998 | X57: 6874.891753 | Y57: 197.6352677
B58: 6610.921146 | C58: -971.9426827 | D58: 6726.259693 | E58: -617.6710571 | L58: 6921.7485 | M58: 75.48880631 | N58: 6937.360327 | O58: 467.7039035 | Q58: 7014.110553 | R58: -718.4474884 | S58: 6971.919048 | T58: -87.78632371 | V58: 7010.388642 | W58: 76.37779856 | X58: 6999.16743 | Y58: 183.6143366
B59: 6787.903996 | C59: -751.3520352 | D59: 6862.61918 | E59: -521.8583363 | L59: 7051.356495 | M59: 180.2540426 | N59: 7059.253534 | O59: 436.3794806 | Q59: 7139.768942 | R59: -725.4576645 | S59: 7100.995968 | T59: -109.2470512 | V59: 7140.067346 | W59: 58.91790543 | X59: 7127.889986 | Y59: 166.9778014
B60: 7113.413883 | C60: -345.6379399 | D60: 7113.413883 | E60: -345.6379399 | L60: 7289.778331 | M60: 372.88488 | N60: 7289.778331 | O60: 372.88488 | Q60: 7378.330935 | R60: -741.6262176 | S60: 7351.746895 | T60: -156.2004142 | V60: 7392.072016 | W60: 19.24055932 | X60: 7378.030809 | Y60: 128.8368948
Q61: 7400.143974 | R61: -701.7282621 | S61: 7374.596 | T61: -160.7834984 | V61: 7415.033863 | W61: 15.26062954 | X61: 7400.824285 | Y61: 124.9923367
Q62: 7535.821161 | R62: -453.5854327 | S62: 7520.379285 | T62: -191.1181065 | V62: 7561.525306 | W62: -11.44539295 | X62: 7546.251571 | Y62: 99.13057063
Q63: 7662.281176 | R63: -222.4189951 | S63: 7662.281176 | T63: -222.4189951 | V63: 7704.102036 | W63: -39.5126048 | X63: 7687.836827 | Y63: 71.83958416
V64: 7758.500878 | W64: 57.48944968 | X64: 7758.500878 | Y64: 57.48944968

Sheet Offset Table
A1: Offset Tables
A2: Height WL | B2: 0 | C2: 0.01 | D2: 100 | E2: 150.2646132 | F2: 150.2746132 | G2: 200 | H2: 400 | I2: 500 | J2: 600 | K2: 800 | L2: 804.6786904 | M2: 804.6886904 | N2: 1000 | O2: 1500 | P2: 2000 | Q2: 2500 | R2: 3000 | S2: 3500 | T2: 4000 | U2: 4500 | V2: 5000 | W2: 5500 | X2: 6000 | Y2: 6150.096436 | Z2: 6150.106436 | AA2: 6200 | AB2: 6400 | AC2: 6500 | AD2: 6600 | AE2: 6783.921712 | AF2: 6800 | AG2: 6900 | AH2: 6993.169652 | AI2: 7038.181674
A3: 6 | B3: 1120.68543 | C3: 1120.683751 | D3: 1104.079182 | E3: 1095.872598 | F3: 1095.870974 | G3: 1087.844924 | H3: 1056.49238 | I3: 1041.374093 | J3: 1026.627796 | K3: 998.251174 | L3: 997.6051582 | M3: 997.6037783 | N3: 971.3625127 | O3: 910.6506893 | P3: 859.2386228 | Q3: 817.1263131 | R3: 784.3137603 | S3: 760.8009643 | T3: 746.5879252 | U3: 741.6746429 | V3: 746.0611175 | W3: 759.7473489 | X3: 782.7333372 | Y3: 791.4484547 | Z3: 791.4490632 | AA3: 794.5316644 | AB3: 807.8179528 | AC3: 815.0190823 | AD3: 822.5922022 | AE3: 837.4920687 | AF3: 838.8544127 | AG3: 847.5435034 | AH3: 855.9738446 | AI3: 860.1623879
A4: 5 | B4: 1120.68543 | C4: 1022.13715 | D4: 1005.775335 | E4: 997.6885197 | F4: 997.68692 | G4: 989.77783 | H4: 958.8798864 | I4: 943.9789308 | J4: 929.4433193 | K4: 901.4681286 | L4: 900.8311855 | M4: 900.829825 | N4: 874.9543143 | O4: 815.0633004 | P4: 764.3058892 | Q4: 722.6820806 | R4: 690.1918747 | S4: 666.8352714 | T4: 652.6122708 | U4: 647.5228728 | V4: 651.5670775 | W4: 664.7448848 | X4: 687.0562948 | Y4: 695.536483 | Z4: 695.5370754 | AA4: 698.5382675 | AB4: 711.4816167 | AC4: 718.5013074 | AD4: 725.8863423 | AE4: 740.4229267 | AF4: 741.7524443 | AG4: 750.2335114 | AH4: 758.4640571 | AI4: 860.1623879
A5: 4 | B5: 1022.13715 | C5: 1022.088165 | D5: 532.2881181 | E5: 286.0673971 | F5: 286.0651183 | G5: 274.8140517 | H5: 231.1848628 | I5: 210.3455103 | J5: 190.1563192 | K5: 151.728421 | L5: 150.8605905 | M5: 150.8587371 | N5: 115.9011682 | O5: 37.7108597 | P5: -24.2254152 | Q5: -69.9076565 | R5: -99.3358642 | S5: -112.5100383 | T5: -109.4301788 | U5: -90.0962857 | V5: -54.508359 | W5: -2.6663987 | X5: 65.4295952 | Y5: 89.04357191 | Z5: 89.04519396 | AA5: 97.21912217 | AB5: 131.6092945 | AC5: 149.7796227 | AD5: 168.6001122 | AE5: 204.9126295 | AF5: 247.446665 | AG5: 511.989975 | AH5: 758.4640571
A6: 3 | E6: 286 | F6: 286.0673971 | G6: 237 | H6: 42 | I6: -54.87995095 | J6: -151.9516639 | K6: -348.4857596 | L6: -353.1435964 | M6: -353.1441332 | N6: -363.6283767 | O6: -390.4682035 | P6: -417.3080304 | Q6: -444.1478573 | R6: -470.9876841 | S6: -497.8275109 | T6: -524.6673378 | U6: -551.5071647 | V6: -578.3469915 | W6: -605.1868184 | X6: -632.0266452 | Y6: -640.0837699 | Z6: -640.0843067 | AA6: -573.5666466 | AB6: -306.9284106 | AC6: -173.6092926 | AD6: -40.29017463 | AE6: 204.9126295
A7: 2 | E7: 286 | F7: 285.9901193 | G7: 237 | H7: 42 | I7: -54.96687328 | J7: -152.1073789 | K7: -348.4964379 | L7: -353.1435964 | M7: -429.3435964 | N7: -439.8283767 | O7: -466.6682036 | P7: -493.5080304 | Q7: -520.3478573 | R7: -547.1876841 | S7: -574.027511 | T7: -600.8673378 | U7: -627.7071647 | V7: -654.5469915 | W7: -681.3863472 | X7: -708.2266452 | Y7: -716.2843067 | Z7: -640.0843067 | AA7: -573.5666466 | AB7: -306.9284106 | AC7: -173.6092926 | AD7: -40.29017463 | AE7: 204.9126295
A8: 1 | E8: 286 | F8: 285.9780654 | G8: 181 | H8: -158 | I8: -276.9741048 | J8: -362 | K8: -429.4143235 | L8: -429.3435964 | M8: -429.3441332 | N8: -439.8283767 | O8: -466.6682036 | P8: -493.5080304 | Q8: -520.3478573 | R8: -547.1876841 | S8: -574.027511 | T8: -600.8673378 | U8: -627.7071647 | V8: -654.5469915 | W8: -681.3868184 | X8: -708.2266452 | Y8: -716.2837699 | Z8: -716.2843067 | AA8: -716.2843067 | AB8: -716.2843067 | AC8: -546.1832651 | AD8: -281.6399551 | AE8: 204.9126295
A10: Half Width | B10: 0 | C10: 0.01 | D10: 100 | E10: 150.2646132 | F10: 150.2746132 | G10: 200 | H10: 400 | I10: 500 | J10: 600 | K10: 800 | L10: 804.6786904 | M10: 804.6886904 | N10: 1000 | O10: 1500 | P10: 2000 | Q10: 2500 | R10: 3000 | S10: 3500 | T10: 4000 | U10: 4500 | V10: 5000 | W10: 5500 | X10: 6000 | Y10: 6150.096436 | Z10: 6150.106436 | AA10: 6200 | AB10: 6400 | AC10: 6500 | AD10: 6600 | AE10: 6783.921712 | AF10: 6800 | AG10: 6900 | AH10: 6993.169652 | AI10: 7038.181674
A11: 6 | B11: 51.4486088 | C11: 51.46079301 | D11: 168.2842061 | E11: 223.3333611 | F11: 223.3440751 | G11: 275.4722566 | H11: 463.1043667 | I11: 544.6125268 | J11: 618.5764763 | K11: 745.8549021 | L11: 748.5261977 | M11: 748.5318929 | N11: 848.6407408 | O11: 1020.345516 | P11: 1106.154087 | Q11: 1142.139738 | R11: 1154.015585 | S11: 1157.13458 | T11: 1156.489506 | U11: 1146.712982 | V11: 1112.077459 | W11: 1027.703906 | X11: 853.5183848 | Y11: 777.8186903 | Z11: 777.8132112 | AA11: 749.7202622 | AB11: 621.1058996 | AC11: 546.3451199 | AD11: 463.9502261 | AE11: 290.8145616 | AF11: 274.2629508 | AG11: 165.9004753 | AH11: 56.17569226 | AI11: 0
A12: 5 | B12: 0 | C12: 0 | D12: 117.1674606 | E12: 172.4446224 | F12: 172.455385 | G12: 224.840498 | H12: 413.7475292 | I12: 496.0390156 | J12: 570.8705981 | K12: 700.0983991 | L12: 702.8182547 | M12: 702.8240538 | N12: 805.0588168 | O12: 982.7446485 | P12: 1074.569416 | Q12: 1115.824248 | R12: 1131.612386 | S12: 1136.849182 | T12: 1136.262098 | U12: 1124.390708 | V12: 1085.5867 | W12: 995.2024564 | X12: 813.6481248 | Y12: 735.5418779 | Z12: 735.5362365 | AA12: 706.6306406 | AB12: 574.7124934 | AC12: 498.2835988 | AD12: 414.2188893 | AE12: 238.0310991 | AF12: 221.2142242 | AG12: 111.2095602 | AH12: 4.415978765e-07 | AI12: 0
A13: 4 | B13: 0 | C13: 0 | D13: 0 | E13: 0 | F13: 0.006327121659 | G13: 31.10293173 | H13: 149.0441147 | I13: 203.9396655 | J13: 256.2656393 | K13: 353.6502062 | L13: 355.8175369 | M13: 355.8221639 | N13: 442.0049311 | O13: 628.00084 | P13: 771.2889915 | Q13: 878.2802026 | R13: 952.4327365 | S13: 994.2523028 | T13: 1001.292057 | U13: 968.1526015 | V13: 886.481984 | W13: 745.3201637 | X13: 529.3766875 | Y13: 447.7023268 | Z13: 447.6965996 | AA13: 418.6353718 | AB13: 292.0850607 | AC13: 222.4770126 | AD13: 148.4164792 | AE13: 2.261636354e-07 | AF13: 2.427172692e-07 | AG13: 3.456737145e-07 | AH13: 4.415978765e-07 | AI13: 0
A14: 3 | B14: 0 | C14: 0 | D14: 0 | E14: 0 | F14: 0 | G14: 0 | H14: 0 | I14: 0 | J14: 0 | K14: 0 | L14: 0 | M14: 0.001251857959 | N14: 25.84019375 | O14: 98.17514942 | P14: 163.4141033 | Q14: 210.6291716 | R14: 236.9734191 | S14: 244.6052258 | T14: 237.6126526 | U14: 218.9378089 | V14: 187.3012178 | W14: 135.536084 | X14: 40.46315755 | Y14: 0.002909146363 | Z14: 0 | AA14: 1.78034679e-08 | AB14: 8.916925657e-08 | AC14: 1.248521509e-07 | AD14: 1.605350452e-07 | AE14: 2.261636354e-07 | AF14: 0 | AG14: 0 | AH14: 0 | AI14: 0
A15: 2 | B15: 0 | C15: 0 | D15: 0 | E15: 0 | F15: 0 | G15: 0 | H15: 0 | I15: 0 | J15: 0 | K15: 0 | L15: 0 | M15: 0 | N15: 25.84019375 | O15: 98.17514942 | P15: 163.4141033 | Q15: 210.6291716 | R15: 236.9734191 | S15: 244.6052258 | T15: 237.6126526 | U15: 218.9378089 | V15: 187.3012178 | W15: 135.5386373 | X15: 40.46315755 | Y15: 0 | Z15: 0 | AA15: 0 | AB15: 0 | AC15: 0 | AD15: 0 | AE15: 0 | AF15: 0 | AG15: 0 | AH15: 0 | AI15: 0
A16: 1 | B16: 0 | C16: 0 | D16: 0 | E16: 0 | F16: 0 | G16: 0 | H16: 0 | I16: 0 | J16: 0 | K16: 0 | L16: 0 | M16: 0 | N16: 0 | O16: 0 | P16: 0 | Q16: 0 | R16: 0 | S16: 0 | T16: 0 | U16: 0 | V16: 0 | W16: 0 | X16: 0 | Y16: 0 | Z16: 0 | AA16: 0 | AB16: 0 | AC16: 0 | AD16: 0 | AE16: 0 | AF16: 0 | AG16: 0 | AH16: 0 | AI16: 0

Sheet Drawing

Sheet Unfold Offset Table
D1: Xofs | E1: 0 | I1: Xofs | J1: 800 | N1: Xofs | O1: -300 | S1: Xofs | T1: 0 | X1: Xofs | Y1: 0
A2: Offset | B2: 600 | C2: 2400 | D2: Yofs | E2: 25 | I2: Yofs | J2: 283 | N2: Yofs | O2: -650 | S2: Yofs | T2: 950 | X2: Yofs | Y2: 1062
A3: Number of Lines | B3: =COUNT(A7:A107) -> 34 | D3: Mirror | E3: 1 | I3: Mirror | J3: 1 | N3: Mirror | O3: 1 | S3: Mirror | T3: 1 | X3: Mirror | Y3: 1
A4: Number of Planks | B4: ='Hearts Desire II'!B4-1 -> 5 | D4: Rotation | E4: 0 | I4: Rotation | J4: -0.01874997323 | N4: Rotation | O4: -0.09201095533 | S4: Rotation | T4: 0 | X4: Rotation | Y4: -2.040648142
B5: ='Hearts Desire II'!B29 -> Keel Floor | G5: ='Hearts Desire II'!G29 -> Keel Side | L5: ='Hearts Desire II'!L29 -> Sole | Q5: ='Hearts Desire II'!Q29 -> Side | V5: ='Hearts Desire II'!V29 -> Rail
B6: X Lower | C6: Y Lower | D6: X Upper | E6: Y Upper | G6: X Lower | H6: Y Lower | I6: X Upper | J6: Y Upper | L6: X Lower | M6: Y Lower | N6: X Upper | O6: Y Upper | Q6: X Lower | R6: Y Lower | S6: X Upper | T6: Y Upper | V6: X Lower | W6: Y Lower | X6: X Upper | Y6: Y Upper
A7: 1 | B7: =IF('Hearts Desire II'!B31<>"",'Hearts Desire II'!B31*COS(RADIANS(E$4))-'Hearts Desire II'!C31*SIN(RADIANS(E$4))+E$1,"") ->  | C7: =IF('Hearts Desire II'!C31<>"",('Hearts Desire II'!B31*SIN(RADIANS(E$4))+'Hearts Desire II'!C31*COS(RADIANS(E$4))*E$3)+E$2,"") ->  | D7: =IF('Hearts Desire II'!D31<>"",'Hearts Desire II'!D31*COS(RADIANS(E$4))-'Hearts Desire II'!E31*SIN(RADIANS(E$4))+E$1,"") ->  | E7: =IF('Hearts Desire II'!E31<>"",('Hearts Desire II'!D31*SIN(RADIANS(E$4))+'Hearts Desire II'!E31*COS(RADIANS(E$4))*E$3)+E$2,"") ->  | G7: =IF('Hearts Desire II'!G31<>"",'Hearts Desire II'!G31*COS(RADIANS(J$4))-'Hearts Desire II'!H31*SIN(RADIANS(J$4))+J$1,"") ->  | H7: =IF('Hearts Desire II'!H31<>"",('Hearts Desire II'!G31*SIN(RADIANS(J$4))+'Hearts Desire II'!H31*COS(RADIANS(J$4))*J$3)+J$2,"") ->  | I7: =IF('Hearts Desire II'!I31<>"",'Hearts Desire II'!I31*COS(RADIANS(J$4))-'Hearts Desire II'!J31*SIN(RADIANS(J$4))+J$1,"") ->  | J7: =IF('Hearts Desire II'!J31<>"",('Hearts Desire II'!I31*SIN(RADIANS(J$4))+'Hearts Desire II'!J31*COS(RADIANS(J$4))*J$3)+J$2,"") ->  | L7: =IF('Hearts Desire II'!L31<>"",'Hearts Desire II'!L31*COS(RADIANS(O$4))-'Hearts Desire II'!M31*SIN(RADIANS(O$4))+O$1,"") ->  | M7: =IF('Hearts Desire II'!M31<>"",('Hearts Desire II'!L31*SIN(RADIANS(O$4))+'Hearts Desire II'!M31*COS(RADIANS(O$4))*O$3)+O$2,"") ->  | N7: =IF('Hearts Desire II'!N31<>"",'Hearts Desire II'!N31*COS(RADIANS(O$4))-'Hearts Desire II'!O31*SIN(RADIANS(O$4))+O$1,"") ->  | O7: =IF('Hearts Desire II'!O31<>"",('Hearts Desire II'!N31*SIN(RADIANS(O$4))+'Hearts Desire II'!O31*COS(RADIANS(O$4))*O$3)+O$2,"") ->  | Q7: =IF('Hearts Desire II'!Q31<>"",'Hearts Desire II'!Q31*COS(RADIANS(T$4))-'Hearts Desire II'!R31*SIN(RADIANS(T$4))+T$1,"") ->  | R7: =IF('Hearts Desire II'!R31<>"",('Hearts Desire II'!Q31*SIN(RADIANS(T$4))+'Hearts Desire II'!R31*COS(RADIANS(T$4))*T$3)+T$2,"") ->  | S7: =IF('Hearts Desire II'!S31<>"",'Hearts Desire II'!S31*COS(RADIANS(T$4))-'Hearts Desire II'!T31*SIN(RADIANS(T$4))+T$1,"") ->  | T7: =IF('Hearts Desire II'!T31<>"",('Hearts Desire II'!S31*SIN(RADIANS(T$4))+'Hearts Desire II'!T31*COS(RADIANS(T$4))*T$3)+T$2,"") ->  | V7: =IF('Hearts Desire II'!V31<>"",'Hearts Desire II'!V31*COS(RADIANS(Y$4))-'Hearts Desire II'!W31*SIN(RADIANS(Y$4))+Y$1,"") -> 0 | W7: =IF('Hearts Desire II'!W31<>"",('Hearts Desire II'!V31*SIN(RADIANS(Y$4))+'Hearts Desire II'!W31*COS(RADIANS(Y$4))*Y$3)+Y$2,"") -> 1062 | X7: =IF('Hearts Desire II'!X31<>"",'Hearts Desire II'!X31*COS(RADIANS(Y$4))-'Hearts Desire II'!Y31*SIN(RADIANS(Y$4))+Y$1,"") -> 0 | Y7: =IF('Hearts Desire II'!Y31<>"",('Hearts Desire II'!X31*SIN(RADIANS(Y$4))+'Hearts Desire II'!Y31*COS(RADIANS(Y$4))*Y$3)+Y$2,"") -> 1062
A8: 2 | B8: =IF('Hearts Desire II'!B32<>"",'Hearts Desire II'!B32*COS(RADIANS(E$4))-'Hearts Desire II'!C32*SIN(RADIANS(E$4))+E$1,"") ->  | C8: =IF('Hearts Desire II'!C32<>"",('Hearts Desire II'!B32*SIN(RADIANS(E$4))+'Hearts Desire II'!C32*COS(RADIANS(E$4))*E$3)+E$2,"") ->  | D8: =IF('Hearts Desire II'!D32<>"",'Hearts Desire II'!D32*COS(RADIANS(E$4))-'Hearts Desire II'!E32*SIN(RADIANS(E$4))+E$1,"") ->  | E8: =IF('Hearts Desire II'!E32<>"",('Hearts Desire II'!D32*SIN(RADIANS(E$4))+'Hearts Desire II'!E32*COS(RADIANS(E$4))*E$3)+E$2,"") ->  | G8: =IF('Hearts Desire II'!G32<>"",'Hearts Desire II'!G32*COS(RADIANS(J$4))-'Hearts Desire II'!H32*SIN(RADIANS(J$4))+J$1,"") ->  | H8: =IF('Hearts Desire II'!H32<>"",('Hearts Desire II'!G32*SIN(RADIANS(J$4))+'Hearts Desire II'!H32*COS(RADIANS(J$4))*J$3)+J$2,"") ->  | I8: =IF('Hearts Desire II'!I32<>"",'Hearts Desire II'!I32*COS(RADIANS(J$4))-'Hearts Desire II'!J32*SIN(RADIANS(J$4))+J$1,"") ->  | J8: =IF('Hearts Desire II'!J32<>"",('Hearts Desire II'!I32*SIN(RADIANS(J$4))+'Hearts Desire II'!J32*COS(RADIANS(J$4))*J$3)+J$2,"") ->  | L8: =IF('Hearts Desire II'!L32<>"",'Hearts Desire II'!L32*COS(RADIANS(O$4))-'Hearts Desire II'!M32*SIN(RADIANS(O$4))+O$1,"") ->  | M8: =IF('Hearts Desire II'!M32<>"",('Hearts Desire II'!L32*SIN(RADIANS(O$4))+'Hearts Desire II'!M32*COS(RADIANS(O$4))*O$3)+O$2,"") ->  | N8: =IF('Hearts Desire II'!N32<>"",'Hearts Desire II'!N32*COS(RADIANS(O$4))-'Hearts Desire II'!O32*SIN(RADIANS(O$4))+O$1,"") ->  | O8: =IF('Hearts Desire II'!O32<>"",('Hearts Desire II'!N32*SIN(RADIANS(O$4))+'Hearts Desire II'!O32*COS(RADIANS(O$4))*O$3)+O$2,"") ->  | Q8: =IF('Hearts Desire II'!Q32<>"",'Hearts Desire II'!Q32*COS(RADIANS(T$4))-'Hearts Desire II'!R32*SIN(RADIANS(T$4))+T$1,"") -> 0.01890444101 | R8: =IF('Hearts Desire II'!R32<>"",('Hearts Desire II'!Q32*SIN(RADIANS(T$4))+'Hearts Desire II'!R32*COS(RADIANS(T$4))*T$3)+T$2,"") -> 949.9537167 | S8: =IF('Hearts Desire II'!S32<>"",'Hearts Desire II'!S32*COS(RADIANS(T$4))-'Hearts Desire II'!T32*SIN(RADIANS(T$4))+T$1,"") -> 0.009826695143 | T8: =IF('Hearts Desire II'!T32<>"",('Hearts Desire II'!S32*SIN(RADIANS(T$4))+'Hearts Desire II'!T32*COS(RADIANS(T$4))*T$3)+T$2,"") -> 950.0018531 | V8: =IF('Hearts Desire II'!V32<>"",'Hearts Desire II'!V32*COS(RADIANS(Y$4))-'Hearts Desire II'!W32*SIN(RADIANS(Y$4))+Y$1,"") -> 39.69687647 | W8: =IF('Hearts Desire II'!W32<>"",('Hearts Desire II'!V32*SIN(RADIANS(Y$4))+'Hearts Desire II'!W32*COS(RADIANS(Y$4))*Y$3)+Y$2,"") -> 971.8006564 | X8: =IF('Hearts Desire II'!X32<>"",'Hearts Desire II'!X32*COS(RADIANS(Y$4))-'Hearts Desire II'!Y32*SIN(RADIANS(Y$4))+Y$1,"") -> 47.10546203 | Y8: =IF('Hearts Desire II'!Y32<>"",('Hearts Desire II'!X32*SIN(RADIANS(Y$4))+'Hearts Desire II'!Y32*COS(RADIANS(Y$4))*Y$3)+Y$2,"") -> 1082.727473
A9: 3 | B9: =IF('Hearts Desire II'!B33<>"",'Hearts Desire II'!B33*COS(RADIANS(E$4))-'Hearts Desire II'!C33*SIN(RADIANS(E$4))+E$1,"") ->  | C9: =IF('Hearts Desire II'!C33<>"",('Hearts Desire II'!B33*SIN(RADIANS(E$4))+'Hearts Desire II'!C33*COS(RADIANS(E$4))*E$3)+E$2,"") ->  | D9: =IF('Hearts Desire II'!D33<>"",'Hearts Desire II'!D33*COS(RADIANS(E$4))-'Hearts Desire II'!E33*SIN(RADIANS(E$4))+E$1,"") ->  | E9: =IF('Hearts Desire II'!E33<>"",('Hearts Desire II'!D33*SIN(RADIANS(E$4))+'Hearts Desire II'!E33*COS(RADIANS(E$4))*E$3)+E$2,"") ->  | G9: =IF('Hearts Desire II'!G33<>"",'Hearts Desire II'!G33*COS(RADIANS(J$4))-'Hearts Desire II'!H33*SIN(RADIANS(J$4))+J$1,"") ->  | H9: =IF('Hearts Desire II'!H33<>"",('Hearts Desire II'!G33*SIN(RADIANS(J$4))+'Hearts Desire II'!H33*COS(RADIANS(J$4))*J$3)+J$2,"") ->  | I9: =IF('Hearts Desire II'!I33<>"",'Hearts Desire II'!I33*COS(RADIANS(J$4))-'Hearts Desire II'!J33*SIN(RADIANS(J$4))+J$1,"") ->  | J9: =IF('Hearts Desire II'!J33<>"",('Hearts Desire II'!I33*SIN(RADIANS(J$4))+'Hearts Desire II'!J33*COS(RADIANS(J$4))*J$3)+J$2,"") ->  | L9: =IF('Hearts Desire II'!L33<>"",'Hearts Desire II'!L33*COS(RADIANS(O$4))-'Hearts Desire II'!M33*SIN(RADIANS(O$4))+O$1,"") ->  | M9: =IF('Hearts Desire II'!M33<>"",('Hearts Desire II'!L33*SIN(RADIANS(O$4))+'Hearts Desire II'!M33*COS(RADIANS(O$4))*O$3)+O$2,"") ->  | N9: =IF('Hearts Desire II'!N33<>"",'Hearts Desire II'!N33*COS(RADIANS(O$4))-'Hearts Desire II'!O33*SIN(RADIANS(O$4))+O$1,"") ->  | O9: =IF('Hearts Desire II'!O33<>"",('Hearts Desire II'!N33*SIN(RADIANS(O$4))+'Hearts Desire II'!O33*COS(RADIANS(O$4))*O$3)+O$2,"") ->  | Q9: =IF('Hearts Desire II'!Q33<>"",'Hearts Desire II'!Q33*COS(RADIANS(T$4))-'Hearts Desire II'!R33*SIN(RADIANS(T$4))+T$1,"") -> 189.0453338 | R9: =IF('Hearts Desire II'!R33<>"",('Hearts Desire II'!Q33*SIN(RADIANS(T$4))+'Hearts Desire II'!R33*COS(RADIANS(T$4))*T$3)+T$2,"") -> 487.1674862 | S9: =IF('Hearts Desire II'!S33<>"",'Hearts Desire II'!S33*COS(RADIANS(T$4))-'Hearts Desire II'!T33*SIN(RADIANS(T$4))+T$1,"") -> 153.0999305 | T9: =IF('Hearts Desire II'!T33<>"",('Hearts Desire II'!S33*SIN(RADIANS(T$4))+'Hearts Desire II'!T33*COS(RADIANS(T$4))*T$3)+T$2,"") -> 973.6099663 | V9: =IF('Hearts Desire II'!V33<>"",'Hearts Desire II'!V33*COS(RADIANS(Y$4))-'Hearts Desire II'!W33*SIN(RADIANS(Y$4))+Y$1,"") -> 191.7292267 | W9: =IF('Hearts Desire II'!W33<>"",('Hearts Desire II'!V33*SIN(RADIANS(Y$4))+'Hearts Desire II'!W33*COS(RADIANS(Y$4))*Y$3)+Y$2,"") -> 1001.466923 | X9: =IF('Hearts Desire II'!X33<>"",'Hearts Desire II'!X33*COS(RADIANS(Y$4))-'Hearts Desire II'!Y33*SIN(RADIANS(Y$4))+Y$1,"") -> 198.9698672 | Y9: =IF('Hearts Desire II'!Y33<>"",('Hearts Desire II'!X33*SIN(RADIANS(Y$4))+'Hearts Desire II'!Y33*COS(RADIANS(Y$4))*Y$3)+Y$2,"") -> 1112.029761
A10: 4 | B10: =IF('Hearts Desire II'!B34<>"",'Hearts Desire II'!B34*COS(RADIANS(E$4))-'Hearts Desire II'!C34*SIN(RADIANS(E$4))+E$1,"") ->  | C10: =IF('Hearts Desire II'!C34<>"",('Hearts Desire II'!B34*SIN(RADIANS(E$4))+'Hearts Desire II'!C34*COS(RADIANS(E$4))*E$3)+E$2,"") ->  | D10: =IF('Hearts Desire II'!D34<>"",'Hearts Desire II'!D34*COS(RADIANS(E$4))-'Hearts Desire II'!E34*SIN(RADIANS(E$4))+E$1,"") ->  | E10: =IF('Hearts Desire II'!E34<>"",('Hearts Desire II'!D34*SIN(RADIANS(E$4))+'Hearts Desire II'!E34*COS(RADIANS(E$4))*E$3)+E$2,"") ->  | G10: =IF('Hearts Desire II'!G34<>"",'Hearts Desire II'!G34*COS(RADIANS(J$4))-'Hearts Desire II'!H34*SIN(RADIANS(J$4))+J$1,"") ->  | H10: =IF('Hearts Desire II'!H34<>"",('Hearts Desire II'!G34*SIN(RADIANS(J$4))+'Hearts Desire II'!H34*COS(RADIANS(J$4))*J$3)+J$2,"") ->  | I10: =IF('Hearts Desire II'!I34<>"",'Hearts Desire II'!I34*COS(RADIANS(J$4))-'Hearts Desire II'!J34*SIN(RADIANS(J$4))+J$1,"") ->  | J10: =IF('Hearts Desire II'!J34<>"",('Hearts Desire II'!I34*SIN(RADIANS(J$4))+'Hearts Desire II'!J34*COS(RADIANS(J$4))*J$3)+J$2,"") ->  | L10: =IF('Hearts Desire II'!L34<>"",'Hearts Desire II'!L34*COS(RADIANS(O$4))-'Hearts Desire II'!M34*SIN(RADIANS(O$4))+O$1,"") ->  | M10: =IF('Hearts Desire II'!M34<>"",('Hearts Desire II'!L34*SIN(RADIANS(O$4))+'Hearts Desire II'!M34*COS(RADIANS(O$4))*O$3)+O$2,"") ->  | N10: =IF('Hearts Desire II'!N34<>"",'Hearts Desire II'!N34*COS(RADIANS(O$4))-'Hearts Desire II'!O34*SIN(RADIANS(O$4))+O$1,"") ->  | O10: =IF('Hearts Desire II'!O34<>"",('Hearts Desire II'!N34*SIN(RADIANS(O$4))+'Hearts Desire II'!O34*COS(RADIANS(O$4))*O$3)+O$2,"") ->  | Q10: =IF('Hearts Desire II'!Q34<>"",'Hearts Desire II'!Q34*COS(RADIANS(T$4))-'Hearts Desire II'!R34*SIN(RADIANS(T$4))+T$1,"") -> 284.0665463 | R10: =IF('Hearts Desire II'!R34<>"",('Hearts Desire II'!Q34*SIN(RADIANS(T$4))+'Hearts Desire II'!R34*COS(RADIANS(T$4))*T$3)+T$2,"") -> 254.525822 | S10: =IF('Hearts Desire II'!S34<>"",'Hearts Desire II'!S34*COS(RADIANS(T$4))-'Hearts Desire II'!T34*SIN(RADIANS(T$4))+T$1,"") -> 227.4490681 | T10: =IF('Hearts Desire II'!T34<>"",('Hearts Desire II'!S34*SIN(RADIANS(T$4))+'Hearts Desire II'!T34*COS(RADIANS(T$4))*T$3)+T$2,"") -> 984.5506373 | V10: =IF('Hearts Desire II'!V34<>"",'Hearts Desire II'!V34*COS(RADIANS(Y$4))-'Hearts Desire II'!W34*SIN(RADIANS(Y$4))+Y$1,"") -> 265.6519133 | W10: =IF('Hearts Desire II'!W34<>"",('Hearts Desire II'!V34*SIN(RADIANS(Y$4))+'Hearts Desire II'!W34*COS(RADIANS(Y$4))*Y$3)+Y$2,"") -> 1014.992046 | X10: =IF('Hearts Desire II'!X34<>"",'Hearts Desire II'!X34*COS(RADIANS(Y$4))-'Hearts Desire II'!Y34*SIN(RADIANS(Y$4))+Y$1,"") -> 272.7725533 | Y10: =IF('Hearts Desire II'!Y34<>"",('Hearts Desire II'!X34*SIN(RADIANS(Y$4))+'Hearts Desire II'!Y34*COS(RADIANS(Y$4))*Y$3)+Y$2,"") -> 1125.350885
A11: 5 | B11: =IF('Hearts Desire II'!B35<>"",'Hearts Desire II'!B35*COS(RADIANS(E$4))-'Hearts Desire II'!C35*SIN(RADIANS(E$4))+E$1,"") -> 180.7149036 | C11: =IF('Hearts Desire II'!C35<>"",('Hearts Desire II'!B35*SIN(RADIANS(E$4))+'Hearts Desire II'!C35*COS(RADIANS(E$4))*E$3)+E$2,"") -> -321.0638111 | D11: =IF('Hearts Desire II'!D35<>"",'Hearts Desire II'!D35*COS(RADIANS(E$4))-'Hearts Desire II'!E35*SIN(RADIANS(E$4))+E$1,"") -> 180.714259 | E11: =IF('Hearts Desire II'!E35<>"",('Hearts Desire II'!D35*SIN(RADIANS(E$4))+'Hearts Desire II'!E35*COS(RADIANS(E$4))*E$3)+E$2,"") -> -321.0517745 | G11: =IF('Hearts Desire II'!G35<>"",'Hearts Desire II'!G35*COS(RADIANS(J$4))-'Hearts Desire II'!H35*SIN(RADIANS(J$4))+J$1,"") ->  | H11: =IF('Hearts Desire II'!H35<>"",('Hearts Desire II'!G35*SIN(RADIANS(J$4))+'Hearts Desire II'!H35*COS(RADIANS(J$4))*J$3)+J$2,"") ->  | I11: =IF('Hearts Desire II'!I35<>"",'Hearts Desire II'!I35*COS(RADIANS(J$4))-'Hearts Desire II'!J35*SIN(RADIANS(J$4))+J$1,"") ->  | J11: =IF('Hearts Desire II'!J35<>"",('Hearts Desire II'!I35*SIN(RADIANS(J$4))+'Hearts Desire II'!J35*COS(RADIANS(J$4))*J$3)+J$2,"") ->  | L11: =IF('Hearts Desire II'!L35<>"",'Hearts Desire II'!L35*COS(RADIANS(O$4))-'Hearts Desire II'!M35*SIN(RADIANS(O$4))+O$1,"") -> 2.214821514 | M11: =IF('Hearts Desire II'!M35<>"",('Hearts Desire II'!L35*SIN(RADIANS(O$4))+'Hearts Desire II'!M35*COS(RADIANS(O$4))*O$3)+O$2,"") -> -535.6181102 | N11: =IF('Hearts Desire II'!N35<>"",'Hearts Desire II'!N35*COS(RADIANS(O$4))-'Hearts Desire II'!O35*SIN(RADIANS(O$4))+O$1,"") -> 2.219282539 | O11: =IF('Hearts Desire II'!O35<>"",('Hearts Desire II'!N35*SIN(RADIANS(O$4))+'Hearts Desire II'!O35*COS(RADIANS(O$4))*O$3)+O$2,"") -> -535.6130778 | Q11: =IF('Hearts Desire II'!Q35<>"",'Hearts Desire II'!Q35*COS(RADIANS(T$4))-'Hearts Desire II'!R35*SIN(RADIANS(T$4))+T$1,"") -> 284.0785955 | R11: =IF('Hearts Desire II'!R35<>"",('Hearts Desire II'!Q35*SIN(RADIANS(T$4))+'Hearts Desire II'!R35*COS(RADIANS(T$4))*T$3)+T$2,"") -> 254.5260297 | S11: =IF('Hearts Desire II'!S35<>"",'Hearts Desire II'!S35*COS(RADIANS(T$4))-'Hearts Desire II'!T35*SIN(RADIANS(T$4))+T$1,"") -> 227.4636938 | T11: =IF('Hearts Desire II'!T35<>"",('Hearts Desire II'!S35*SIN(RADIANS(T$4))+'Hearts Desire II'!T35*COS(RADIANS(T$4))*T$3)+T$2,"") -> 984.5527546 | V11: =IF('Hearts Desire II'!V35<>"",'Hearts Desire II'!V35*COS(RADIANS(Y$4))-'Hearts Desire II'!W35*SIN(RADIANS(Y$4))+Y$1,"") -> 265.6664608 | W11: =IF('Hearts Desire II'!W35<>"",('Hearts Desire II'!V35*SIN(RADIANS(Y$4))+'Hearts Desire II'!W35*COS(RADIANS(Y$4))*Y$3)+Y$2,"") -> 1014.994647 | X11: =IF('Hearts Desire II'!X35<>"",'Hearts Desire II'!X35*COS(RADIANS(Y$4))-'Hearts Desire II'!Y35*SIN(RADIANS(Y$4))+Y$1,"") -> 272.7870749 | Y11: =IF('Hearts Desire II'!Y35<>"",('Hearts Desire II'!X35*SIN(RADIANS(Y$4))+'Hearts Desire II'!Y35*COS(RADIANS(Y$4))*Y$3)+Y$2,"") -> 1125.353444
A12: 6 | B12: =IF('Hearts Desire II'!B36<>"",'Hearts Desire II'!B36*COS(RADIANS(E$4))-'Hearts Desire II'!C36*SIN(RADIANS(E$4))+E$1,"") -> 235.9827602 | C12: =IF('Hearts Desire II'!C36<>"",('Hearts Desire II'!B36*SIN(RADIANS(E$4))+'Hearts Desire II'!C36*COS(RADIANS(E$4))*E$3)+E$2,"") -> -423.2326534 | D12: =IF('Hearts Desire II'!D36<>"",'Hearts Desire II'!D36*COS(RADIANS(E$4))-'Hearts Desire II'!E36*SIN(RADIANS(E$4))+E$1,"") -> 232.9882065 | E12: =IF('Hearts Desire II'!E36<>"",('Hearts Desire II'!D36*SIN(RADIANS(E$4))+'Hearts Desire II'!E36*COS(RADIANS(E$4))*E$3)+E$2,"") -> -367.3127764 | G12: =IF('Hearts Desire II'!G36<>"",'Hearts Desire II'!G36*COS(RADIANS(J$4))-'Hearts Desire II'!H36*SIN(RADIANS(J$4))+J$1,"") ->  | H12: =IF('Hearts Desire II'!H36<>"",('Hearts Desire II'!G36*SIN(RADIANS(J$4))+'Hearts Desire II'!H36*COS(RADIANS(J$4))*J$3)+J$2,"") ->  | I12: =IF('Hearts Desire II'!I36<>"",'Hearts Desire II'!I36*COS(RADIANS(J$4))-'Hearts Desire II'!J36*SIN(RADIANS(J$4))+J$1,"") ->  | J12: =IF('Hearts Desire II'!J36<>"",('Hearts Desire II'!I36*SIN(RADIANS(J$4))+'Hearts Desire II'!J36*COS(RADIANS(J$4))*J$3)+J$2,"") ->  | L12: =IF('Hearts Desire II'!L36<>"",'Hearts Desire II'!L36*COS(RADIANS(O$4))-'Hearts Desire II'!M36*SIN(RADIANS(O$4))+O$1,"") -> 64.01780237 | M12: =IF('Hearts Desire II'!M36<>"",('Hearts Desire II'!L36*SIN(RADIANS(O$4))+'Hearts Desire II'!M36*COS(RADIANS(O$4))*O$3)+O$2,"") -> -568.1851966 | N12: =IF('Hearts Desire II'!N36<>"",'Hearts Desire II'!N36*COS(RADIANS(O$4))-'Hearts Desire II'!O36*SIN(RADIANS(O$4))+O$1,"") -> 59.69787115 | O12: =IF('Hearts Desire II'!O36<>"",('Hearts Desire II'!N36*SIN(RADIANS(O$4))+'Hearts Desire II'!O36*COS(RADIANS(O$4))*O$3)+O$2,"") -> -519.4139647 | Q12: =IF('Hearts Desire II'!Q36<>"",'Hearts Desire II'!Q36*COS(RADIANS(T$4))-'Hearts Desire II'!R36*SIN(RADIANS(T$4))+T$1,"") -> 343.7877371 | R12: =IF('Hearts Desire II'!R36<>"",('Hearts Desire II'!Q36*SIN(RADIANS(T$4))+'Hearts Desire II'!R36*COS(RADIANS(T$4))*T$3)+T$2,"") -> 255.534901 | S12: =IF('Hearts Desire II'!S36<>"",'Hearts Desire II'!S36*COS(RADIANS(T$4))-'Hearts Desire II'!T36*SIN(RADIANS(T$4))+T$1,"") -> 299.3751751 | T12: =IF('Hearts Desire II'!T36<>"",('Hearts Desire II'!S36*SIN(RADIANS(T$4))+'Hearts Desire II'!T36*COS(RADIANS(T$4))*T$3)+T$2,"") -> 994.9501924 | V12: =IF('Hearts Desire II'!V36<>"",'Hearts Desire II'!V36*COS(RADIANS(Y$4))-'Hearts Desire II'!W36*SIN(RADIANS(Y$4))+Y$1,"") -> 337.2422378 | W12: =IF('Hearts Desire II'!W36<>"",('Hearts Desire II'!V36*SIN(RADIANS(Y$4))+'Hearts Desire II'!W36*COS(RADIANS(Y$4))*Y$3)+Y$2,"") -> 1027.495687 | X12: =IF('Hearts Desire II'!X36<>"",'Hearts Desire II'!X36*COS(RADIANS(Y$4))-'Hearts Desire II'!Y36*SIN(RADIANS(Y$4))+Y$1,"") -> 344.2251403 | Y12: =IF('Hearts Desire II'!Y36<>"",('Hearts Desire II'!X36*SIN(RADIANS(Y$4))+'Hearts Desire II'!Y36*COS(RADIANS(Y$4))*Y$3)+Y$2,"") -> 1137.640905
A13: 7 | B13: =IF('Hearts Desire II'!B37<>"",'Hearts Desire II'!B37*COS(RADIANS(E$4))-'Hearts Desire II'!C37*SIN(RADIANS(E$4))+E$1,"") -> 453.8243516 | C13: =IF('Hearts Desire II'!C37<>"",('Hearts Desire II'!B37*SIN(RADIANS(E$4))+'Hearts Desire II'!C37*COS(RADIANS(E$4))*E$3)+E$2,"") -> -751.0527887 | D13: =IF('Hearts Desire II'!D37<>"",'Hearts Desire II'!D37*COS(RADIANS(E$4))-'Hearts Desire II'!E37*SIN(RADIANS(E$4))+E$1,"") -> 443.1295169 | E13: =IF('Hearts Desire II'!E37<>"",('Hearts Desire II'!D37*SIN(RADIANS(E$4))+'Hearts Desire II'!E37*COS(RADIANS(E$4))*E$3)+E$2,"") -> -551.3389421 | G13: =IF('Hearts Desire II'!G37<>"",'Hearts Desire II'!G37*COS(RADIANS(J$4))-'Hearts Desire II'!H37*SIN(RADIANS(J$4))+J$1,"") ->  | H13: =IF('Hearts Desire II'!H37<>"",('Hearts Desire II'!G37*SIN(RADIANS(J$4))+'Hearts Desire II'!H37*COS(RADIANS(J$4))*J$3)+J$2,"") ->  | I13: =IF('Hearts Desire II'!I37<>"",'Hearts Desire II'!I37*COS(RADIANS(J$4))-'Hearts Desire II'!J37*SIN(RADIANS(J$4))+J$1,"") ->  | J13: =IF('Hearts Desire II'!J37<>"",('Hearts Desire II'!I37*SIN(RADIANS(J$4))+'Hearts Desire II'!J37*COS(RADIANS(J$4))*J$3)+J$2,"") ->  | L13: =IF('Hearts Desire II'!L37<>"",'Hearts Desire II'!L37*COS(RADIANS(O$4))-'Hearts Desire II'!M37*SIN(RADIANS(O$4))+O$1,"") -> 311.6417845 | M13: =IF('Hearts Desire II'!M37<>"",('Hearts Desire II'!L37*SIN(RADIANS(O$4))+'Hearts Desire II'!M37*COS(RADIANS(O$4))*O$3)+O$2,"") -> -697.4421635 | N13: =IF('Hearts Desire II'!N37<>"",'Hearts Desire II'!N37*COS(RADIANS(O$4))-'Hearts Desire II'!O37*SIN(RADIANS(O$4))+O$1,"") -> 287.7672151 | O13: =IF('Hearts Desire II'!O37<>"",('Hearts Desire II'!N37*SIN(RADIANS(O$4))+'Hearts Desire II'!O37*COS(RADIANS(O$4))*O$3)+O$2,"") -> -457.7860236 | Q13: =IF('Hearts Desire II'!Q37<>"",'Hearts Desire II'!Q37*COS(RADIANS(T$4))-'Hearts Desire II'!R37*SIN(RADIANS(T$4))+T$1,"") -> 580.0189584 | R13: =IF('Hearts Desire II'!R37<>"",('Hearts Desire II'!Q37*SIN(RADIANS(T$4))+'Hearts Desire II'!R37*COS(RADIANS(T$4))*T$3)+T$2,"") -> 258.4398744 | S13: =IF('Hearts Desire II'!S37<>"",'Hearts Desire II'!S37*COS(RADIANS(T$4))-'Hearts Desire II'!T37*SIN(RADIANS(T$4))+T$1,"") -> 573.6217689 | T13: =IF('Hearts Desire II'!T37<>"",('Hearts Desire II'!S37*SIN(RADIANS(T$4))+'Hearts Desire II'!T37*COS(RADIANS(T$4))*T$3)+T$2,"") -> 1032.757007 | V13: =IF('Hearts Desire II'!V37<>"",'Hearts Desire II'!V37*COS(RADIANS(Y$4))-'Hearts Desire II'!W37*SIN(RADIANS(Y$4))+Y$1,"") -> 610.8811967 | W13: =IF('Hearts Desire II'!W37<>"",('Hearts Desire II'!V37*SIN(RADIANS(Y$4))+'Hearts Desire II'!W37*COS(RADIANS(Y$4))*Y$3)+Y$2,"") -> 1069.475081 | X13: =IF('Hearts Desire II'!X37<>"",'Hearts Desire II'!X37*COS(RADIANS(Y$4))-'Hearts Desire II'!Y37*SIN(RADIANS(Y$4))+Y$1,"") -> 617.1811804 | Y13: =IF('Hearts Desire II'!Y37<>"",('Hearts Desire II'!X37*SIN(RADIANS(Y$4))+'Hearts Desire II'!Y37*COS(RADIANS(Y$4))*Y$3)+Y$2,"") -> 1178.674927
A14: 8 | B14: =IF('Hearts Desire II'!B38<>"",'Hearts Desire II'!B38*COS(RADIANS(E$4))-'Hearts Desire II'!C38*SIN(RADIANS(E$4))+E$1,"") -> 560.0433168 | C14: =IF('Hearts Desire II'!C38<>"",('Hearts Desire II'!B38*SIN(RADIANS(E$4))+'Hearts Desire II'!C38*COS(RADIANS(E$4))*E$3)+E$2,"") -> -864.5092519 | D14: =IF('Hearts Desire II'!D38<>"",'Hearts Desire II'!D38*COS(RADIANS(E$4))-'Hearts Desire II'!E38*SIN(RADIANS(E$4))+E$1,"") -> 548.1716636 | E14: =IF('Hearts Desire II'!E38<>"",('Hearts Desire II'!D38*SIN(RADIANS(E$4))+'Hearts Desire II'!E38*COS(RADIANS(E$4))*E$3)+E$2,"") -> -642.819661 | G14: =IF('Hearts Desire II'!G38<>"",'Hearts Desire II'!G38*COS(RADIANS(J$4))-'Hearts Desire II'!H38*SIN(RADIANS(J$4))+J$1,"") ->  | H14: =IF('Hearts Desire II'!H38<>"",('Hearts Desire II'!G38*SIN(RADIANS(J$4))+'Hearts Desire II'!H38*COS(RADIANS(J$4))*J$3)+J$2,"") ->  | I14: =IF('Hearts Desire II'!I38<>"",'Hearts Desire II'!I38*COS(RADIANS(J$4))-'Hearts Desire II'!J38*SIN(RADIANS(J$4))+J$1,"") ->  | J14: =IF('Hearts Desire II'!J38<>"",('Hearts Desire II'!I38*SIN(RADIANS(J$4))+'Hearts Desire II'!J38*COS(RADIANS(J$4))*J$3)+J$2,"") ->  | L14: =IF('Hearts Desire II'!L38<>"",'Hearts Desire II'!L38*COS(RADIANS(O$4))-'Hearts Desire II'!M38*SIN(RADIANS(O$4))+O$1,"") -> 435.2065067 | M14: =IF('Hearts Desire II'!M38<>"",('Hearts Desire II'!L38*SIN(RADIANS(O$4))+'Hearts Desire II'!M38*COS(RADIANS(O$4))*O$3)+O$2,"") -> -761.6097901 | N14: =IF('Hearts Desire II'!N38<>"",'Hearts Desire II'!N38*COS(RADIANS(O$4))-'Hearts Desire II'!O38*SIN(RADIANS(O$4))+O$1,"") -> 400.0743344 | O14: =IF('Hearts Desire II'!O38<>"",('Hearts Desire II'!N38*SIN(RADIANS(O$4))+'Hearts Desire II'!O38*COS(RADIANS(O$4))*O$3)+O$2,"") -> -428.8911959 | Q14: =IF('Hearts Desire II'!Q38<>"",'Hearts Desire II'!Q38*COS(RADIANS(T$4))-'Hearts Desire II'!R38*SIN(RADIANS(T$4))+T$1,"") -> 695.9835244 | R14: =IF('Hearts Desire II'!R38<>"",('Hearts Desire II'!Q38*SIN(RADIANS(T$4))+'Hearts Desire II'!R38*COS(RADIANS(T$4))*T$3)+T$2,"") -> 258.5796026 | S14: =IF('Hearts Desire II'!S38<>"",'Hearts Desire II'!S38*COS(RADIANS(T$4))-'Hearts Desire II'!T38*SIN(RADIANS(T$4))+T$1,"") -> 703.0653722 | T14: =IF('Hearts Desire II'!T38<>"",('Hearts Desire II'!S38*SIN(RADIANS(T$4))+'Hearts Desire II'!T38*COS(RADIANS(T$4))*T$3)+T$2,"") -> 1048.193352 | V14: =IF('Hearts Desire II'!V38<>"",'Hearts Desire II'!V38*COS(RADIANS(Y$4))-'Hearts Desire II'!W38*SIN(RADIANS(Y$4))+Y$1,"") -> 740.2044802 | W14: =IF('Hearts Desire II'!W38<>"",('Hearts Desire II'!V38*SIN(RADIANS(Y$4))+'Hearts Desire II'!W38*COS(RADIANS(Y$4))*Y$3)+Y$2,"") -> 1085.888964 | X14: =IF('Hearts Desire II'!X38<>"",'Hearts Desire II'!X38*COS(RADIANS(Y$4))-'Hearts Desire II'!Y38*SIN(RADIANS(Y$4))+Y$1,"") -> 746.0984043 | Y14: =IF('Hearts Desire II'!Y38<>"",('Hearts Desire II'!X38*SIN(RADIANS(Y$4))+'Hearts Desire II'!Y38*COS(RADIANS(Y$4))*Y$3)+Y$2,"") -> 1194.564928
A15: 9 | B15: =IF('Hearts Desire II'!B39<>"",'Hearts Desire II'!B39*COS(RADIANS(E$4))-'Hearts Desire II'!C39*SIN(RADIANS(E$4))+E$1,"") -> 664.4469296 | C15: =IF('Hearts Desire II'!C39<>"",('Hearts Desire II'!B39*SIN(RADIANS(E$4))+'Hearts Desire II'!C39*COS(RADIANS(E$4))*E$3)+E$2,"") -> -944.0660775 | D15: =IF('Hearts Desire II'!D39<>"",'Hearts Desire II'!D39*COS(RADIANS(E$4))-'Hearts Desire II'!E39*SIN(RADIANS(E$4))+E$1,"") -> 653.2230951 | E15: =IF('Hearts Desire II'!E39<>"",('Hearts Desire II'!D39*SIN(RADIANS(E$4))+'Hearts Desire II'!E39*COS(RADIANS(E$4))*E$3)+E$2,"") -> -734.4737639 | G15: =IF('Hearts Desire II'!G39<>"",'Hearts Desire II'!G39*COS(RADIANS(J$4))-'Hearts Desire II'!H39*SIN(RADIANS(J$4))+J$1,"") ->  | H15: =IF('Hearts Desire II'!H39<>"",('Hearts Desire II'!G39*SIN(RADIANS(J$4))+'Hearts Desire II'!H39*COS(RADIANS(J$4))*J$3)+J$2,"") ->  | I15: =IF('Hearts Desire II'!I39<>"",'Hearts Desire II'!I39*COS(RADIANS(J$4))-'Hearts Desire II'!J39*SIN(RADIANS(J$4))+J$1,"") ->  | J15: =IF('Hearts Desire II'!J39<>"",('Hearts Desire II'!I39*SIN(RADIANS(J$4))+'Hearts Desire II'!J39*COS(RADIANS(J$4))*J$3)+J$2,"") ->  | L15: =IF('Hearts Desire II'!L39<>"",'Hearts Desire II'!L39*COS(RADIANS(O$4))-'Hearts Desire II'!M39*SIN(RADIANS(O$4))+O$1,"") -> 558.8394579 | M15: =IF('Hearts Desire II'!M39<>"",('Hearts Desire II'!L39*SIN(RADIANS(O$4))+'Hearts Desire II'!M39*COS(RADIANS(O$4))*O$3)+O$2,"") -> -825.9356079 | N15: =IF('Hearts Desire II'!N39<>"",'Hearts Desire II'!N39*COS(RADIANS(O$4))-'Hearts Desire II'!O39*SIN(RADIANS(O$4))+O$1,"") -> 511.3193377 | O15: =IF('Hearts Desire II'!O39<>"",('Hearts Desire II'!N39*SIN(RADIANS(O$4))+'Hearts Desire II'!O39*COS(RADIANS(O$4))*O$3)+O$2,"") -> -401.1394355 | Q15: =IF('Hearts Desire II'!Q39<>"",'Hearts Desire II'!Q39*COS(RADIANS(T$4))-'Hearts Desire II'!R39*SIN(RADIANS(T$4))+T$1,"") -> 810.6370311 | R15: =IF('Hearts Desire II'!R39<>"",('Hearts Desire II'!Q39*SIN(RADIANS(T$4))+'Hearts Desire II'!R39*COS(RADIANS(T$4))*T$3)+T$2,"") -> 258.1502267 | S15: =IF('Hearts Desire II'!S39<>"",'Hearts Desire II'!S39*COS(RADIANS(T$4))-'Hearts Desire II'!T39*SIN(RADIANS(T$4))+T$1,"") -> 828.1115063 | T15: =IF('Hearts Desire II'!T39<>"",('Hearts Desire II'!S39*SIN(RADIANS(T$4))+'Hearts Desire II'!T39*COS(RADIANS(T$4))*T$3)+T$2,"") -> 1061.403731 | V15: =IF('Hearts Desire II'!V39<>"",'Hearts Desire II'!V39*COS(RADIANS(Y$4))-'Hearts Desire II'!W39*SIN(RADIANS(Y$4))+Y$1,"") -> 865.2044264 | W15: =IF('Hearts Desire II'!W39<>"",('Hearts Desire II'!V39*SIN(RADIANS(Y$4))+'Hearts Desire II'!W39*COS(RADIANS(Y$4))*Y$3)+Y$2,"") -> 1099.529462 | X15: =IF('Hearts Desire II'!X39<>"",'Hearts Desire II'!X39*COS(RADIANS(Y$4))-'Hearts Desire II'!Y39*SIN(RADIANS(Y$4))+Y$1,"") -> 870.664862 | Y15: =IF('Hearts Desire II'!Y39<>"",('Hearts Desire II'!X39*SIN(RADIANS(Y$4))+'Hearts Desire II'!Y39*COS(RADIANS(Y$4))*Y$3)+Y$2,"") -> 1207.653729
A16: 10 | B16: =IF('Hearts Desire II'!B40<>"",'Hearts Desire II'!B40*COS(RADIANS(E$4))-'Hearts Desire II'!C40*SIN(RADIANS(E$4))+E$1,"") -> 867.7657013 | C16: =IF('Hearts Desire II'!C40<>"",('Hearts Desire II'!B40*SIN(RADIANS(E$4))+'Hearts Desire II'!C40*COS(RADIANS(E$4))*E$3)+E$2,"") -> -1000.689112 | D16: =IF('Hearts Desire II'!D40<>"",'Hearts Desire II'!D40*COS(RADIANS(E$4))-'Hearts Desire II'!E40*SIN(RADIANS(E$4))+E$1,"") -> 863.4386843 | E16: =IF('Hearts Desire II'!E40<>"",('Hearts Desire II'!D40*SIN(RADIANS(E$4))+'Hearts Desire II'!E40*COS(RADIANS(E$4))*E$3)+E$2,"") -> -919.8870012 | G16: =IF('Hearts Desire II'!G40<>"",'Hearts Desire II'!G40*COS(RADIANS(J$4))-'Hearts Desire II'!H40*SIN(RADIANS(J$4))+J$1,"") ->  | H16: =IF('Hearts Desire II'!H40<>"",('Hearts Desire II'!G40*SIN(RADIANS(J$4))+'Hearts Desire II'!H40*COS(RADIANS(J$4))*J$3)+J$2,"") ->  | I16: =IF('Hearts Desire II'!I40<>"",'Hearts Desire II'!I40*COS(RADIANS(J$4))-'Hearts Desire II'!J40*SIN(RADIANS(J$4))+J$1,"") ->  | J16: =IF('Hearts Desire II'!J40<>"",('Hearts Desire II'!I40*SIN(RADIANS(J$4))+'Hearts Desire II'!J40*COS(RADIANS(J$4))*J$3)+J$2,"") ->  | L16: =IF('Hearts Desire II'!L40<>"",'Hearts Desire II'!L40*COS(RADIANS(O$4))-'Hearts Desire II'!M40*SIN(RADIANS(O$4))+O$1,"") -> 807.0154589 | M16: =IF('Hearts Desire II'!M40<>"",('Hearts Desire II'!L40*SIN(RADIANS(O$4))+'Hearts Desire II'!M40*COS(RADIANS(O$4))*O$3)+O$2,"") -> -956.4512135 | N16: =IF('Hearts Desire II'!N40<>"",'Hearts Desire II'!N40*COS(RADIANS(O$4))-'Hearts Desire II'!O40*SIN(RADIANS(O$4))+O$1,"") -> 730.8643504 | O16: =IF('Hearts Desire II'!O40<>"",('Hearts Desire II'!N40*SIN(RADIANS(O$4))+'Hearts Desire II'!O40*COS(RADIANS(O$4))*O$3)+O$2,"") -> -348.5995017 | Q16: =IF('Hearts Desire II'!Q40<>"",'Hearts Desire II'!Q40*COS(RADIANS(T$4))-'Hearts Desire II'!R40*SIN(RADIANS(T$4))+T$1,"") -> 1036.37115 | R16: =IF('Hearts Desire II'!R40<>"",('Hearts Desire II'!Q40*SIN(RADIANS(T$4))+'Hearts Desire II'!R40*COS(RADIANS(T$4))*T$3)+T$2,"") -> 256.0137118 | S16: =IF('Hearts Desire II'!S40<>"",'Hearts Desire II'!S40*COS(RADIANS(T$4))-'Hearts Desire II'!T40*SIN(RADIANS(T$4))+T$1,"") -> 1067.034509 | T16: =IF('Hearts Desire II'!T40<>"",('Hearts Desire II'!S40*SIN(RADIANS(T$4))+'Hearts Desire II'!T40*COS(RADIANS(T$4))*T$3)+T$2,"") -> 1081.359541 | V16: =IF('Hearts Desire II'!V40<>"",'Hearts Desire II'!V40*COS(RADIANS(Y$4))-'Hearts Desire II'!W40*SIN(RADIANS(Y$4))+Y$1,"") -> 1104.139918 | W16: =IF('Hearts Desire II'!W40<>"",('Hearts Desire II'!V40*SIN(RADIANS(Y$4))+'Hearts Desire II'!W40*COS(RADIANS(Y$4))*Y$3)+Y$2,"") -> 1119.335188 | X16: =IF('Hearts Desire II'!X40<>"",'Hearts Desire II'!X40*COS(RADIANS(Y$4))-'Hearts Desire II'!Y40*SIN(RADIANS(Y$4))+Y$1,"") -> 1108.693483 | Y16: =IF('Hearts Desire II'!Y40<>"",('Hearts Desire II'!X40*SIN(RADIANS(Y$4))+'Hearts Desire II'!Y40*COS(RADIANS(Y$4))*Y$3)+Y$2,"") -> 1226.292565
A17: 11 | B17: =IF('Hearts Desire II'!B41<>"",'Hearts Desire II'!B41*COS(RADIANS(E$4))-'Hearts Desire II'!C41*SIN(RADIANS(E$4))+E$1,"") -> 872.4339155 | C17: =IF('Hearts Desire II'!C41<>"",('Hearts Desire II'!B41*SIN(RADIANS(E$4))+'Hearts Desire II'!C41*COS(RADIANS(E$4))*E$3)+E$2,"") -> -1000.368297 | D17: =IF('Hearts Desire II'!D41<>"",'Hearts Desire II'!D41*COS(RADIANS(E$4))-'Hearts Desire II'!E41*SIN(RADIANS(E$4))+E$1,"") -> 868.3591835 | E17: =IF('Hearts Desire II'!E41<>"",('Hearts Desire II'!D41*SIN(RADIANS(E$4))+'Hearts Desire II'!E41*COS(RADIANS(E$4))*E$3)+E$2,"") -> -924.2773216 | G17: =IF('Hearts Desire II'!G41<>"",'Hearts Desire II'!G41*COS(RADIANS(J$4))-'Hearts Desire II'!H41*SIN(RADIANS(J$4))+J$1,"") -> 867.8307623 | H17: =IF('Hearts Desire II'!H41<>"",('Hearts Desire II'!G41*SIN(RADIANS(J$4))+'Hearts Desire II'!H41*COS(RADIANS(J$4))*J$3)+J$2,"") -> -1020.365308 | I17: =IF('Hearts Desire II'!I41<>"",'Hearts Desire II'!I41*COS(RADIANS(J$4))-'Hearts Desire II'!J41*SIN(RADIANS(J$4))+J$1,"") -> 867.8307623 | J17: =IF('Hearts Desire II'!J41<>"",('Hearts Desire II'!I41*SIN(RADIANS(J$4))+'Hearts Desire II'!J41*COS(RADIANS(J$4))*J$3)+J$2,"") -> -1020.365308 | L17: =IF('Hearts Desire II'!L41<>"",'Hearts Desire II'!L41*COS(RADIANS(O$4))-'Hearts Desire II'!M41*SIN(RADIANS(O$4))+O$1,"") -> 812.8427208 | M17: =IF('Hearts Desire II'!M41<>"",('Hearts Desire II'!L41*SIN(RADIANS(O$4))+'Hearts Desire II'!M41*COS(RADIANS(O$4))*O$3)+O$2,"") -> -959.554213 | N17: =IF('Hearts Desire II'!N41<>"",'Hearts Desire II'!N41*COS(RADIANS(O$4))-'Hearts Desire II'!O41*SIN(RADIANS(O$4))+O$1,"") -> 735.9571416 | O17: =IF('Hearts Desire II'!O41<>"",('Hearts Desire II'!N41*SIN(RADIANS(O$4))+'Hearts Desire II'!O41*COS(RADIANS(O$4))*O$3)+O$2,"") -> -347.4145658 | Q17: =IF('Hearts Desire II'!Q41<>"",'Hearts Desire II'!Q41*COS(RADIANS(T$4))-'Hearts Desire II'!R41*SIN(RADIANS(T$4))+T$1,"") -> 1041.599467 | R17: =IF('Hearts Desire II'!R41<>"",('Hearts Desire II'!Q41*SIN(RADIANS(T$4))+'Hearts Desire II'!R41*COS(RADIANS(T$4))*T$3)+T$2,"") -> 255.9408975 | S17: =IF('Hearts Desire II'!S41<>"",'Hearts Desire II'!S41*COS(RADIANS(T$4))-'Hearts Desire II'!T41*SIN(RADIANS(T$4))+T$1,"") -> 1072.471697 | T17: =IF('Hearts Desire II'!T41<>"",('Hearts Desire II'!S41*SIN(RADIANS(T$4))+'Hearts Desire II'!T41*COS(RADIANS(T$4))*T$3)+T$2,"") -> 1081.720709 | V17: =IF('Hearts Desire II'!V41<>"",'Hearts Desire II'!V41*COS(RADIANS(Y$4))-'Hearts Desire II'!W41*SIN(RADIANS(Y$4))+Y$1,"") -> 1109.577466 | W17: =IF('Hearts Desire II'!W41<>"",('Hearts Desire II'!V41*SIN(RADIANS(Y$4))+'Hearts Desire II'!W41*COS(RADIANS(Y$4))*Y$3)+Y$2,"") -> 1119.690896 | X17: =IF('Hearts Desire II'!X41<>"",'Hearts Desire II'!X41*COS(RADIANS(Y$4))-'Hearts Desire II'!Y41*SIN(RADIANS(Y$4))+Y$1,"") -> 1114.10975 | Y17: =IF('Hearts Desire II'!Y41<>"",('Hearts Desire II'!X41*SIN(RADIANS(Y$4))+'Hearts Desire II'!Y41*COS(RADIANS(Y$4))*Y$3)+Y$2,"") -> 1226.620201
A18: 12 | B18: =IF('Hearts Desire II'!B42<>"",'Hearts Desire II'!B42*COS(RADIANS(E$4))-'Hearts Desire II'!C42*SIN(RADIANS(E$4))+E$1,"") -> 872.4439299 | C18: =IF('Hearts Desire II'!C42<>"",('Hearts Desire II'!B42*SIN(RADIANS(E$4))+'Hearts Desire II'!C42*COS(RADIANS(E$4))*E$3)+E$2,"") -> -1000.368298 | D18: =IF('Hearts Desire II'!D42<>"",'Hearts Desire II'!D42*COS(RADIANS(E$4))-'Hearts Desire II'!E42*SIN(RADIANS(E$4))+E$1,"") -> 872.4439012 | E18: =IF('Hearts Desire II'!E42<>"",('Hearts Desire II'!D42*SIN(RADIANS(E$4))+'Hearts Desire II'!E42*COS(RADIANS(E$4))*E$3)+E$2,"") -> -1000.367762 | G18: =IF('Hearts Desire II'!G42<>"",'Hearts Desire II'!G42*COS(RADIANS(J$4))-'Hearts Desire II'!H42*SIN(RADIANS(J$4))+J$1,"") -> 871.8998341 | H18: =IF('Hearts Desire II'!H42<>"",('Hearts Desire II'!G42*SIN(RADIANS(J$4))+'Hearts Desire II'!H42*COS(RADIANS(J$4))*J$3)+J$2,"") -> -1096.456588 | I18: =IF('Hearts Desire II'!I42<>"",'Hearts Desire II'!I42*COS(RADIANS(J$4))-'Hearts Desire II'!J42*SIN(RADIANS(J$4))+J$1,"") -> 867.8408546 | J18: =IF('Hearts Desire II'!J42<>"",('Hearts Desire II'!I42*SIN(RADIANS(J$4))+'Hearts Desire II'!J42*COS(RADIANS(J$4))*J$3)+J$2,"") -> -1020.365308 | L18: =IF('Hearts Desire II'!L42<>"",'Hearts Desire II'!L42*COS(RADIANS(O$4))-'Hearts Desire II'!M42*SIN(RADIANS(O$4))+O$1,"") -> 812.8526952 | M18: =IF('Hearts Desire II'!M42<>"",('Hearts Desire II'!L42*SIN(RADIANS(O$4))+'Hearts Desire II'!M42*COS(RADIANS(O$4))*O$3)+O$2,"") -> -959.5526745 | N18: =IF('Hearts Desire II'!N42<>"",'Hearts Desire II'!N42*COS(RADIANS(O$4))-'Hearts Desire II'!O42*SIN(RADIANS(O$4))+O$1,"") -> 735.9680247 | O18: =IF('Hearts Desire II'!O42<>"",('Hearts Desire II'!N42*SIN(RADIANS(O$4))+'Hearts Desire II'!O42*COS(RADIANS(O$4))*O$3)+O$2,"") -> -347.4120353 | Q18: =IF('Hearts Desire II'!Q42<>"",'Hearts Desire II'!Q42*COS(RADIANS(T$4))-'Hearts Desire II'!R42*SIN(RADIANS(T$4))+T$1,"") -> 1041.610639 | R18: =IF('Hearts Desire II'!R42<>"",('Hearts Desire II'!Q42*SIN(RADIANS(T$4))+'Hearts Desire II'!R42*COS(RADIANS(T$4))*T$3)+T$2,"") -> 255.9407409 | S18: =IF('Hearts Desire II'!S42<>"",'Hearts Desire II'!S42*COS(RADIANS(T$4))-'Hearts Desire II'!T42*SIN(RADIANS(T$4))+T$1,"") -> 1072.483312 | T18: =IF('Hearts Desire II'!T42<>"",('Hearts Desire II'!S42*SIN(RADIANS(T$4))+'Hearts Desire II'!T42*COS(RADIANS(T$4))*T$3)+T$2,"") -> 1081.721476 | V18: =IF('Hearts Desire II'!V42<>"",'Hearts Desire II'!V42*COS(RADIANS(Y$4))-'Hearts Desire II'!W42*SIN(RADIANS(Y$4))+Y$1,"") -> 1109.589081 | W18: =IF('Hearts Desire II'!W42<>"",('Hearts Desire II'!V42*SIN(RADIANS(Y$4))+'Hearts Desire II'!W42*COS(RADIANS(Y$4))*Y$3)+Y$2,"") -> 1119.691651 | X18: =IF('Hearts Desire II'!X42<>"",'Hearts Desire II'!X42*COS(RADIANS(Y$4))-'Hearts Desire II'!Y42*SIN(RADIANS(Y$4))+Y$1,"") -> 1114.12132 | Y18: =IF('Hearts Desire II'!Y42<>"",('Hearts Desire II'!X42*SIN(RADIANS(Y$4))+'Hearts Desire II'!Y42*COS(RADIANS(Y$4))*Y$3)+Y$2,"") -> 1226.620896
A19: 13 | B19: =IF('Hearts Desire II'!B43<>"",'Hearts Desire II'!B43*COS(RADIANS(E$4))-'Hearts Desire II'!C43*SIN(RADIANS(E$4))+E$1,"") -> 1068.036432 | C19: =IF('Hearts Desire II'!C43<>"",('Hearts Desire II'!B43*SIN(RADIANS(E$4))+'Hearts Desire II'!C43*COS(RADIANS(E$4))*E$3)+E$2,"") -> -1000.367762 | D19: =IF('Hearts Desire II'!D43<>"",'Hearts Desire II'!D43*COS(RADIANS(E$4))-'Hearts Desire II'!E43*SIN(RADIANS(E$4))+E$1,"") -> 1068.036432 | E19: =IF('Hearts Desire II'!E43<>"",('Hearts Desire II'!D43*SIN(RADIANS(E$4))+'Hearts Desire II'!E43*COS(RADIANS(E$4))*E$3)+E$2,"") -> -974.5275687 | G19: =IF('Hearts Desire II'!G43<>"",'Hearts Desire II'!G43*COS(RADIANS(J$4))-'Hearts Desire II'!H43*SIN(RADIANS(J$4))+J$1,"") -> 1069.191885 | H19: =IF('Hearts Desire II'!H43<>"",('Hearts Desire II'!G43*SIN(RADIANS(J$4))+'Hearts Desire II'!H43*COS(RADIANS(J$4))*J$3)+J$2,"") -> -1096.43159 | I19: =IF('Hearts Desire II'!I43<>"",'Hearts Desire II'!I43*COS(RADIANS(J$4))-'Hearts Desire II'!J43*SIN(RADIANS(J$4))+J$1,"") -> 1065.132713 | J19: =IF('Hearts Desire II'!J43<>"",('Hearts Desire II'!I43*SIN(RADIANS(J$4))+'Hearts Desire II'!J43*COS(RADIANS(J$4))*J$3)+J$2,"") -> -1020.339783 | L19: =IF('Hearts Desire II'!L43<>"",'Hearts Desire II'!L43*COS(RADIANS(O$4))-'Hearts Desire II'!M43*SIN(RADIANS(O$4))+O$1,"") -> 1007.715751 | M19: =IF('Hearts Desire II'!M43<>"",('Hearts Desire II'!L43*SIN(RADIANS(O$4))+'Hearts Desire II'!M43*COS(RADIANS(O$4))*O$3)+O$2,"") -> -928.6906019 | N19: =IF('Hearts Desire II'!N43<>"",'Hearts Desire II'!N43*COS(RADIANS(O$4))-'Hearts Desire II'!O43*SIN(RADIANS(O$4))+O$1,"") -> 946.2724844 | O19: =IF('Hearts Desire II'!O43<>"",('Hearts Desire II'!N43*SIN(RADIANS(O$4))+'Hearts Desire II'!O43*COS(RADIANS(O$4))*O$3)+O$2,"") -> -296.7361746 | Q19: =IF('Hearts Desire II'!Q43<>"",'Hearts Desire II'!Q43*COS(RADIANS(T$4))-'Hearts Desire II'!R43*SIN(RADIANS(T$4))+T$1,"") -> 1257.904203 | R19: =IF('Hearts Desire II'!R43<>"",('Hearts Desire II'!Q43*SIN(RADIANS(T$4))+'Hearts Desire II'!R43*COS(RADIANS(T$4))*T$3)+T$2,"") -> 252.3209625 | S19: =IF('Hearts Desire II'!S43<>"",'Hearts Desire II'!S43*COS(RADIANS(T$4))-'Hearts Desire II'!T43*SIN(RADIANS(T$4))+T$1,"") -> 1294.163136 | T19: =IF('Hearts Desire II'!T43<>"",('Hearts Desire II'!S43*SIN(RADIANS(T$4))+'Hearts Desire II'!T43*COS(RADIANS(T$4))*T$3)+T$2,"") -> 1092.948759 | V19: =IF('Hearts Desire II'!V43<>"",'Hearts Desire II'!V43*COS(RADIANS(Y$4))-'Hearts Desire II'!W43*SIN(RADIANS(Y$4))+Y$1,"") -> 1331.285908 | W19: =IF('Hearts Desire II'!W43<>"",('Hearts Desire II'!V43*SIN(RADIANS(Y$4))+'Hearts Desire II'!W43*COS(RADIANS(Y$4))*Y$3)+Y$2,"") -> 1130.578024 | X19: =IF('Hearts Desire II'!X43<>"",'Hearts Desire II'!X43*COS(RADIANS(Y$4))-'Hearts Desire II'!Y43*SIN(RADIANS(Y$4))+Y$1,"") -> 1334.944544 | Y19: =IF('Hearts Desire II'!Y43<>"",('Hearts Desire II'!X43*SIN(RADIANS(Y$4))+'Hearts Desire II'!Y43*COS(RADIANS(Y$4))*Y$3)+Y$2,"") -> 1236.316093
A20: 14 | B20: =IF('Hearts Desire II'!B44<>"",'Hearts Desire II'!B44*COS(RADIANS(E$4))-'Hearts Desire II'!C44*SIN(RADIANS(E$4))+E$1,"") -> 1568.756291 | C20: =IF('Hearts Desire II'!C44<>"",('Hearts Desire II'!B44*SIN(RADIANS(E$4))+'Hearts Desire II'!C44*COS(RADIANS(E$4))*E$3)+E$2,"") -> -1000.367762 | D20: =IF('Hearts Desire II'!D44<>"",'Hearts Desire II'!D44*COS(RADIANS(E$4))-'Hearts Desire II'!E44*SIN(RADIANS(E$4))+E$1,"") -> 1568.756291 | E20: =IF('Hearts Desire II'!E44<>"",('Hearts Desire II'!D44*SIN(RADIANS(E$4))+'Hearts Desire II'!E44*COS(RADIANS(E$4))*E$3)+E$2,"") -> -902.192613 | G20: =IF('Hearts Desire II'!G44<>"",'Hearts Desire II'!G44*COS(RADIANS(J$4))-'Hearts Desire II'!H44*SIN(RADIANS(J$4))+J$1,"") -> 1575.109576 | H20: =IF('Hearts Desire II'!H44<>"",('Hearts Desire II'!G44*SIN(RADIANS(J$4))+'Hearts Desire II'!H44*COS(RADIANS(J$4))*J$3)+J$2,"") -> -1096.321037 | I20: =IF('Hearts Desire II'!I44<>"",'Hearts Desire II'!I44*COS(RADIANS(J$4))-'Hearts Desire II'!J44*SIN(RADIANS(J$4))+J$1,"") -> 1571.050404 | J20: =IF('Hearts Desire II'!J44<>"",('Hearts Desire II'!I44*SIN(RADIANS(J$4))+'Hearts Desire II'!J44*COS(RADIANS(J$4))*J$3)+J$2,"") -> -1020.22923 | L20: =IF('Hearts Desire II'!L44<>"",'Hearts Desire II'!L44*COS(RADIANS(O$4))-'Hearts Desire II'!M44*SIN(RADIANS(O$4))+O$1,"") -> 1507.907425 | M20: =IF('Hearts Desire II'!M44<>"",('Hearts Desire II'!L44*SIN(RADIANS(O$4))+'Hearts Desire II'!M44*COS(RADIANS(O$4))*O$3)+O$2,"") -> -852.7892772 | N20: =IF('Hearts Desire II'!N44<>"",'Hearts Desire II'!N44*COS(RADIANS(O$4))-'Hearts Desire II'!O44*SIN(RADIANS(O$4))+O$1,"") -> 1470.956187 | O20: =IF('Hearts Desire II'!O44<>"",('Hearts Desire II'!N44*SIN(RADIANS(O$4))+'Hearts Desire II'!O44*COS(RADIANS(O$4))*O$3)+O$2,"") -> -172.5781493 | Q20: =IF('Hearts Desire II'!Q44<>"",'Hearts Desire II'!Q44*COS(RADIANS(T$4))-'Hearts Desire II'!R44*SIN(RADIANS(T$4))+T$1,"") -> 1796.908222 | R20: =IF('Hearts Desire II'!R44<>"",('Hearts Desire II'!Q44*SIN(RADIANS(T$4))+'Hearts Desire II'!R44*COS(RADIANS(T$4))*T$3)+T$2,"") -> 238.7980063 | S20: =IF('Hearts Desire II'!S44<>"",'Hearts Desire II'!S44*COS(RADIANS(T$4))-'Hearts Desire II'!T44*SIN(RADIANS(T$4))+T$1,"") -> 1828.166062 | T20: =IF('Hearts Desire II'!T44<>"",('Hearts Desire II'!S44*SIN(RADIANS(T$4))+'Hearts Desire II'!T44*COS(RADIANS(T$4))*T$3)+T$2,"") -> 1092.696674 | V20: =IF('Hearts Desire II'!V44<>"",'Hearts Desire II'!V44*COS(RADIANS(Y$4))-'Hearts Desire II'!W44*SIN(RADIANS(Y$4))+Y$1,"") -> 1865.288872 | W20: =IF('Hearts Desire II'!W44<>"",('Hearts Desire II'!V44*SIN(RADIANS(Y$4))+'Hearts Desire II'!W44*COS(RADIANS(Y$4))*Y$3)+Y$2,"") -> 1130.731077 | X20: =IF('Hearts Desire II'!X44<>"",'Hearts Desire II'!X44*COS(RADIANS(Y$4))-'Hearts Desire II'!Y44*SIN(RADIANS(Y$4))+Y$1,"") -> 1867.07248 | Y20: =IF('Hearts Desire II'!Y44<>"",('Hearts Desire II'!X44*SIN(RADIANS(Y$4))+'Hearts Desire II'!Y44*COS(RADIANS(Y$4))*Y$3)+Y$2,"") -> 1233.432552
A21: 15 | B21: =IF('Hearts Desire II'!B45<>"",'Hearts Desire II'!B45*COS(RADIANS(E$4))-'Hearts Desire II'!C45*SIN(RADIANS(E$4))+E$1,"") -> 2069.476149 | C21: =IF('Hearts Desire II'!C45<>"",('Hearts Desire II'!B45*SIN(RADIANS(E$4))+'Hearts Desire II'!C45*COS(RADIANS(E$4))*E$3)+E$2,"") -> -1000.367762 | D21: =IF('Hearts Desire II'!D45<>"",'Hearts Desire II'!D45*COS(RADIANS(E$4))-'Hearts Desire II'!E45*SIN(RADIANS(E$4))+E$1,"") -> 2069.476149 | E21: =IF('Hearts Desire II'!E45<>"",('Hearts Desire II'!D45*SIN(RADIANS(E$4))+'Hearts Desire II'!E45*COS(RADIANS(E$4))*E$3)+E$2,"") -> -836.9536591 | G21: =IF('Hearts Desire II'!G45<>"",'Hearts Desire II'!G45*COS(RADIANS(J$4))-'Hearts Desire II'!H45*SIN(RADIANS(J$4))+J$1,"") -> 2080.061548 | H21: =IF('Hearts Desire II'!H45<>"",('Hearts Desire II'!G45*SIN(RADIANS(J$4))+'Hearts Desire II'!H45*COS(RADIANS(J$4))*J$3)+J$2,"") -> -1096.262002 | I21: =IF('Hearts Desire II'!I45<>"",'Hearts Desire II'!I45*COS(RADIANS(J$4))-'Hearts Desire II'!J45*SIN(RADIANS(J$4))+J$1,"") -> 2076.002375 | J21: =IF('Hearts Desire II'!J45<>"",('Hearts Desire II'!I45*SIN(RADIANS(J$4))+'Hearts Desire II'!J45*COS(RADIANS(J$4))*J$3)+J$2,"") -> -1020.170194 | L21: =IF('Hearts Desire II'!L45<>"",'Hearts Desire II'!L45*COS(RADIANS(O$4))-'Hearts Desire II'!M45*SIN(RADIANS(O$4))+O$1,"") -> 2009.143182 | M21: =IF('Hearts Desire II'!M45<>"",('Hearts Desire II'!L45*SIN(RADIANS(O$4))+'Hearts Desire II'!M45*COS(RADIANS(O$4))*O$3)+O$2,"") -> -791.640169 | N21: =IF('Hearts Desire II'!N45<>"",'Hearts Desire II'!N45*COS(RADIANS(O$4))-'Hearts Desire II'!O45*SIN(RADIANS(O$4))+O$1,"") -> 1984.246536 | O21: =IF('Hearts Desire II'!O45<>"",('Hearts Desire II'!N45*SIN(RADIANS(O$4))+'Hearts Desire II'!O45*COS(RADIANS(O$4))*O$3)+O$2,"") -> -68.17214678 | Q21: =IF('Hearts Desire II'!Q45<>"",'Hearts Desire II'!Q45*COS(RADIANS(T$4))-'Hearts Desire II'!R45*SIN(RADIANS(T$4))+T$1,"") -> 2320.464236 | R21: =IF('Hearts Desire II'!R45<>"",('Hearts Desire II'!Q45*SIN(RADIANS(T$4))+'Hearts Desire II'!R45*COS(RADIANS(T$4))*T$3)+T$2,"") -> 222.7762456 | S21: =IF('Hearts Desire II'!S45<>"",'Hearts Desire II'!S45*COS(RADIANS(T$4))-'Hearts Desire II'!T45*SIN(RADIANS(T$4))+T$1,"") -> 2338.430341 | T21: =IF('Hearts Desire II'!T45<>"",('Hearts Desire II'!S45*SIN(RADIANS(T$4))+'Hearts Desire II'!T45*COS(RADIANS(T$4))*T$3)+T$2,"") -> 1067.42875 | V21: =IF('Hearts Desire II'!V45<>"",'Hearts Desire II'!V45*COS(RADIANS(Y$4))-'Hearts Desire II'!W45*SIN(RADIANS(Y$4))+Y$1,"") -> 2375.683277 | W21: =IF('Hearts Desire II'!W45<>"",('Hearts Desire II'!V45*SIN(RADIANS(Y$4))+'Hearts Desire II'!W45*COS(RADIANS(Y$4))*Y$3)+Y$2,"") -> 1108.244339 | X21: =IF('Hearts Desire II'!X45<>"",'Hearts Desire II'!X45*COS(RADIANS(Y$4))-'Hearts Desire II'!Y45*SIN(RADIANS(Y$4))+Y$1,"") -> 2376.360433 | Y21: =IF('Hearts Desire II'!Y45<>"",('Hearts Desire II'!X45*SIN(RADIANS(Y$4))+'Hearts Desire II'!Y45*COS(RADIANS(Y$4))*Y$3)+Y$2,"") -> 1208.291112
A22: 16 | B22: =IF('Hearts Desire II'!B46<>"",'Hearts Desire II'!B46*COS(RADIANS(E$4))-'Hearts Desire II'!C46*SIN(RADIANS(E$4))+E$1,"") -> 2570.196007 | C22: =IF('Hearts Desire II'!C46<>"",('Hearts Desire II'!B46*SIN(RADIANS(E$4))+'Hearts Desire II'!C46*COS(RADIANS(E$4))*E$3)+E$2,"") -> -1000.367762 | D22: =IF('Hearts Desire II'!D46<>"",'Hearts Desire II'!D46*COS(RADIANS(E$4))-'Hearts Desire II'!E46*SIN(RADIANS(E$4))+E$1,"") -> 2570.196007 | E22: =IF('Hearts Desire II'!E46<>"",('Hearts Desire II'!D46*SIN(RADIANS(E$4))+'Hearts Desire II'!E46*COS(RADIANS(E$4))*E$3)+E$2,"") -> -789.7385908 | G22: =IF('Hearts Desire II'!G46<>"",'Hearts Desire II'!G46*COS(RADIANS(J$4))-'Hearts Desire II'!H46*SIN(RADIANS(J$4))+J$1,"") -> 2583.002535 | H22: =IF('Hearts Desire II'!H46<>"",('Hearts Desire II'!G46*SIN(RADIANS(J$4))+'Hearts Desire II'!H46*COS(RADIANS(J$4))*J$3)+J$2,"") -> -1096.310243 | I22: =IF('Hearts Desire II'!I46<>"",'Hearts Desire II'!I46*COS(RADIANS(J$4))-'Hearts Desire II'!J46*SIN(RADIANS(J$4))+J$1,"") -> 2578.943363 | J22: =IF('Hearts Desire II'!J46<>"",('Hearts Desire II'!I46*SIN(RADIANS(J$4))+'Hearts Desire II'!J46*COS(RADIANS(J$4))*J$3)+J$2,"") -> -1020.218436 | L22: =IF('Hearts Desire II'!L46<>"",'Hearts Desire II'!L46*COS(RADIANS(O$4))-'Hearts Desire II'!M46*SIN(RADIANS(O$4))+O$1,"") -> 2510.299271 | M22: =IF('Hearts Desire II'!M46<>"",('Hearts Desire II'!L46*SIN(RADIANS(O$4))+'Hearts Desire II'!M46*COS(RADIANS(O$4))*O$3)+O$2,"") -> -749.3056225 | N22: =IF('Hearts Desire II'!N46<>"",'Hearts Desire II'!N46*COS(RADIANS(O$4))-'Hearts Desire II'!O46*SIN(RADIANS(O$4))+O$1,"") -> 2490.683137 | O22: =IF('Hearts Desire II'!O46<>"",('Hearts Desire II'!N46*SIN(RADIANS(O$4))+'Hearts Desire II'!O46*COS(RADIANS(O$4))*O$3)+O$2,"") -> 15.82759095 | Q22: =IF('Hearts Desire II'!Q46<>"",'Hearts Desire II'!Q46*COS(RADIANS(T$4))-'Hearts Desire II'!R46*SIN(RADIANS(T$4))+T$1,"") -> 2833.596388 | R22: =IF('Hearts Desire II'!R46<>"",('Hearts Desire II'!Q46*SIN(RADIANS(T$4))+'Hearts Desire II'!R46*COS(RADIANS(T$4))*T$3)+T$2,"") -> 207.6309358 | S22: =IF('Hearts Desire II'!S46<>"",'Hearts Desire II'!S46*COS(RADIANS(T$4))-'Hearts Desire II'!T46*SIN(RADIANS(T$4))+T$1,"") -> 2840.808898 | T22: =IF('Hearts Desire II'!T46<>"",('Hearts Desire II'!S46*SIN(RADIANS(T$4))+'Hearts Desire II'!T46*COS(RADIANS(T$4))*T$3)+T$2,"") -> 1035.020593 | V22: =IF('Hearts Desire II'!V46<>"",'Hearts Desire II'!V46*COS(RADIANS(Y$4))-'Hearts Desire II'!W46*SIN(RADIANS(Y$4))+Y$1,"") -> 2878.218931 | W22: =IF('Hearts Desire II'!W46<>"",('Hearts Desire II'!V46*SIN(RADIANS(Y$4))+'Hearts Desire II'!W46*COS(RADIANS(Y$4))*Y$3)+Y$2,"") -> 1078.370945 | X22: =IF('Hearts Desire II'!X46<>"",'Hearts Desire II'!X46*COS(RADIANS(Y$4))-'Hearts Desire II'!Y46*SIN(RADIANS(Y$4))+Y$1,"") -> 2878.408419 | Y22: =IF('Hearts Desire II'!Y46<>"",('Hearts Desire II'!X46*SIN(RADIANS(Y$4))+'Hearts Desire II'!Y46*COS(RADIANS(Y$4))*Y$3)+Y$2,"") -> 1176.412682
A23: 17 | B23: =IF('Hearts Desire II'!B47<>"",'Hearts Desire II'!B47*COS(RADIANS(E$4))-'Hearts Desire II'!C47*SIN(RADIANS(E$4))+E$1,"") -> 3070.915865 | C23: =IF('Hearts Desire II'!C47<>"",('Hearts Desire II'!B47*SIN(RADIANS(E$4))+'Hearts Desire II'!C47*COS(RADIANS(E$4))*E$3)+E$2,"") -> -1000.367762 | D23: =IF('Hearts Desire II'!D47<>"",'Hearts Desire II'!D47*COS(RADIANS(E$4))-'Hearts Desire II'!E47*SIN(RADIANS(E$4))+E$1,"") -> 3070.915865 | E23: =IF('Hearts Desire II'!E47<>"",('Hearts Desire II'!D47*SIN(RADIANS(E$4))+'Hearts Desire II'!E47*COS(RADIANS(E$4))*E$3)+E$2,"") -> -763.3943433 | G23: =IF('Hearts Desire II'!G47<>"",'Hearts Desire II'!G47*COS(RADIANS(J$4))-'Hearts Desire II'!H47*SIN(RADIANS(J$4))+J$1,"") -> 3084.414919 | H23: =IF('Hearts Desire II'!H47<>"",('Hearts Desire II'!G47*SIN(RADIANS(J$4))+'Hearts Desire II'!H47*COS(RADIANS(J$4))*J$3)+J$2,"") -> -1096.44003 | I23: =IF('Hearts Desire II'!I47<>"",'Hearts Desire II'!I47*COS(RADIANS(J$4))-'Hearts Desire II'!J47*SIN(RADIANS(J$4))+J$1,"") -> 3080.355747 | J23: =IF('Hearts Desire II'!J47<>"",('Hearts Desire II'!I47*SIN(RADIANS(J$4))+'Hearts Desire II'!J47*COS(RADIANS(J$4))*J$3)+J$2,"") -> -1020.348222 | L23: =IF('Hearts Desire II'!L47<>"",'Hearts Desire II'!L47*COS(RADIANS(O$4))-'Hearts Desire II'!M47*SIN(RADIANS(O$4))+O$1,"") -> 3011.197487 | M23: =IF('Hearts Desire II'!M47<>"",('Hearts Desire II'!L47*SIN(RADIANS(O$4))+'Hearts Desire II'!M47*COS(RADIANS(O$4))*O$3)+O$2,"") -> -726.6038134 | N23: =IF('Hearts Desire II'!N47<>"",'Hearts Desire II'!N47*COS(RADIANS(O$4))-'Hearts Desire II'!O47*SIN(RADIANS(O$4))+O$1,"") -> 2992.998281 | O23: =IF('Hearts Desire II'!O47<>"",('Hearts Desire II'!N47*SIN(RADIANS(O$4))+'Hearts Desire II'!O47*COS(RADIANS(O$4))*O$3)+O$2,"") -> 79.42093748 | Q23: =IF('Hearts Desire II'!Q47<>"",'Hearts Desire II'!Q47*COS(RADIANS(T$4))-'Hearts Desire II'!R47*SIN(RADIANS(T$4))+T$1,"") -> 3339.794585 | R23: =IF('Hearts Desire II'!R47<>"",('Hearts Desire II'!Q47*SIN(RADIANS(T$4))+'Hearts Desire II'!R47*COS(RADIANS(T$4))*T$3)+T$2,"") -> 196.3170866 | S23: =IF('Hearts Desire II'!S47<>"",'Hearts Desire II'!S47*COS(RADIANS(T$4))-'Hearts Desire II'!T47*SIN(RADIANS(T$4))+T$1,"") -> 3341.266735 | T23: =IF('Hearts Desire II'!T47<>"",('Hearts Desire II'!S47*SIN(RADIANS(T$4))+'Hearts Desire II'!T47*COS(RADIANS(T$4))*T$3)+T$2,"") -> 1005.920218 | V23: =IF('Hearts Desire II'!V47<>"",'Hearts Desire II'!V47*COS(RADIANS(Y$4))-'Hearts Desire II'!W47*SIN(RADIANS(Y$4))+Y$1,"") -> 3378.73799 | W23: =IF('Hearts Desire II'!W47<>"",('Hearts Desire II'!V47*SIN(RADIANS(Y$4))+'Hearts Desire II'!W47*COS(RADIANS(Y$4))*Y$3)+Y$2,"") -> 1050.343268 | X23: =IF('Hearts Desire II'!X47<>"",'Hearts Desire II'!X47*COS(RADIANS(Y$4))-'Hearts Desire II'!Y47*SIN(RADIANS(Y$4))+Y$1,"") -> 3378.766443 | Y23: =IF('Hearts Desire II'!Y47<>"",('Hearts Desire II'!X47*SIN(RADIANS(Y$4))+'Hearts Desire II'!Y47*COS(RADIANS(Y$4))*Y$3)+Y$2,"") -> 1147.09466
A24: 18 | B24: =IF('Hearts Desire II'!B48<>"",'Hearts Desire II'!B48*COS(RADIANS(E$4))-'Hearts Desire II'!C48*SIN(RADIANS(E$4))+E$1,"") -> 3571.635723 | C24: =IF('Hearts Desire II'!C48<>"",('Hearts Desire II'!B48*SIN(RADIANS(E$4))+'Hearts Desire II'!C48*COS(RADIANS(E$4))*E$3)+E$2,"") -> -1000.367762 | D24: =IF('Hearts Desire II'!D48<>"",'Hearts Desire II'!D48*COS(RADIANS(E$4))-'Hearts Desire II'!E48*SIN(RADIANS(E$4))+E$1,"") -> 3571.635723 | E24: =IF('Hearts Desire II'!E48<>"",('Hearts Desire II'!D48*SIN(RADIANS(E$4))+'Hearts Desire II'!E48*COS(RADIANS(E$4))*E$3)+E$2,"") -> -755.7625367 | G24: =IF('Hearts Desire II'!G48<>"",'Hearts Desire II'!G48*COS(RADIANS(J$4))-'Hearts Desire II'!H48*SIN(RADIANS(J$4))+J$1,"") -> 3585.192908 | H24: =IF('Hearts Desire II'!H48<>"",('Hearts Desire II'!G48*SIN(RADIANS(J$4))+'Hearts Desire II'!H48*COS(RADIANS(J$4))*J$3)+J$2,"") -> -1096.603658 | I24: =IF('Hearts Desire II'!I48<>"",'Hearts Desire II'!I48*COS(RADIANS(J$4))-'Hearts Desire II'!J48*SIN(RADIANS(J$4))+J$1,"") -> 3581.133735 | J24: =IF('Hearts Desire II'!J48<>"",('Hearts Desire II'!I48*SIN(RADIANS(J$4))+'Hearts Desire II'!J48*COS(RADIANS(J$4))*J$3)+J$2,"") -> -1020.511851 | L24: =IF('Hearts Desire II'!L48<>"",'Hearts Desire II'!L48*COS(RADIANS(O$4))-'Hearts Desire II'!M48*SIN(RADIANS(O$4))+O$1,"") -> 3511.943006 | M24: =IF('Hearts Desire II'!M48<>"",('Hearts Desire II'!L48*SIN(RADIANS(O$4))+'Hearts Desire II'!M48*COS(RADIANS(O$4))*O$3)+O$2,"") -> -720.8988426 | N24: =IF('Hearts Desire II'!N48<>"",'Hearts Desire II'!N48*COS(RADIANS(O$4))-'Hearts Desire II'!O48*SIN(RADIANS(O$4))+O$1,"") -> 3493.127483 | O24: =IF('Hearts Desire II'!O48<>"",('Hearts Desire II'!N48*SIN(RADIANS(O$4))+'Hearts Desire II'!O48*COS(RADIANS(O$4))*O$3)+O$2,"") -> 121.7673256 | Q24: =IF('Hearts Desire II'!Q48<>"",'Hearts Desire II'!Q48*COS(RADIANS(T$4))-'Hearts Desire II'!R48*SIN(RADIANS(T$4))+T$1,"") -> 3841.693123 | R24: =IF('Hearts Desire II'!R48<>"",('Hearts Desire II'!Q48*SIN(RADIANS(T$4))+'Hearts Desire II'!R48*COS(RADIANS(T$4))*T$3)+T$2,"") -> 191.8123725 | S24: =IF('Hearts Desire II'!S48<>"",'Hearts Desire II'!S48*COS(RADIANS(T$4))-'Hearts Desire II'!T48*SIN(RADIANS(T$4))+T$1,"") -> 3841.363371 | T24: =IF('Hearts Desire II'!T48<>"",('Hearts Desire II'!S48*SIN(RADIANS(T$4))+'Hearts Desire II'!T48*COS(RADIANS(T$4))*T$3)+T$2,"") -> 984.0957012 | V24: =IF('Hearts Desire II'!V48<>"",'Hearts Desire II'!V48*COS(RADIANS(Y$4))-'Hearts Desire II'!W48*SIN(RADIANS(Y$4))+Y$1,"") -> 3878.841939 | W24: =IF('Hearts Desire II'!W48<>"",('Hearts Desire II'!V48*SIN(RADIANS(Y$4))+'Hearts Desire II'!W48*COS(RADIANS(Y$4))*Y$3)+Y$2,"") -> 1028.686976 | X24: =IF('Hearts Desire II'!X48<>"",'Hearts Desire II'!X48*COS(RADIANS(Y$4))-'Hearts Desire II'!Y48*SIN(RADIANS(Y$4))+Y$1,"") -> 3878.83274 | Y24: =IF('Hearts Desire II'!Y48<>"",('Hearts Desire II'!X48*SIN(RADIANS(Y$4))+'Hearts Desire II'!Y48*COS(RADIANS(Y$4))*Y$3)+Y$2,"") -> 1124.817349
A25: 19 | B25: =IF('Hearts Desire II'!B49<>"",'Hearts Desire II'!B49*COS(RADIANS(E$4))-'Hearts Desire II'!C49*SIN(RADIANS(E$4))+E$1,"") -> 4072.355581 | C25: =IF('Hearts Desire II'!C49<>"",('Hearts Desire II'!B49*SIN(RADIANS(E$4))+'Hearts Desire II'!C49*COS(RADIANS(E$4))*E$3)+E$2,"") -> -1000.367762 | D25: =IF('Hearts Desire II'!D49<>"",'Hearts Desire II'!D49*COS(RADIANS(E$4))-'Hearts Desire II'!E49*SIN(RADIANS(E$4))+E$1,"") -> 4072.355581 | E25: =IF('Hearts Desire II'!E49<>"",('Hearts Desire II'!D49*SIN(RADIANS(E$4))+'Hearts Desire II'!E49*COS(RADIANS(E$4))*E$3)+E$2,"") -> -762.7551098 | G25: =IF('Hearts Desire II'!G49<>"",'Hearts Desire II'!G49*COS(RADIANS(J$4))-'Hearts Desire II'!H49*SIN(RADIANS(J$4))+J$1,"") -> 4085.961562 | H25: =IF('Hearts Desire II'!H49<>"",('Hearts Desire II'!G49*SIN(RADIANS(J$4))+'Hearts Desire II'!H49*COS(RADIANS(J$4))*J$3)+J$2,"") -> -1096.767784 | I25: =IF('Hearts Desire II'!I49<>"",'Hearts Desire II'!I49*COS(RADIANS(J$4))-'Hearts Desire II'!J49*SIN(RADIANS(J$4))+J$1,"") -> 4081.90239 | J25: =IF('Hearts Desire II'!J49<>"",('Hearts Desire II'!I49*SIN(RADIANS(J$4))+'Hearts Desire II'!J49*COS(RADIANS(J$4))*J$3)+J$2,"") -> -1020.675977 | L25: =IF('Hearts Desire II'!L49<>"",'Hearts Desire II'!L49*COS(RADIANS(O$4))-'Hearts Desire II'!M49*SIN(RADIANS(O$4))+O$1,"") -> 4012.658283 | M25: =IF('Hearts Desire II'!M49<>"",('Hearts Desire II'!L49*SIN(RADIANS(O$4))+'Hearts Desire II'!M49*COS(RADIANS(O$4))*O$3)+O$2,"") -> -728.2120547 | N25: =IF('Hearts Desire II'!N49<>"",'Hearts Desire II'!N49*COS(RADIANS(O$4))-'Hearts Desire II'!O49*SIN(RADIANS(O$4))+O$1,"") -> 3992.823035 | O25: =IF('Hearts Desire II'!O49<>"",('Hearts Desire II'!N49*SIN(RADIANS(O$4))+'Hearts Desire II'!O49*COS(RADIANS(O$4))*O$3)+O$2,"") -> 140.8303458 | Q25: =IF('Hearts Desire II'!Q49<>"",'Hearts Desire II'!Q49*COS(RADIANS(T$4))-'Hearts Desire II'!R49*SIN(RADIANS(T$4))+T$1,"") -> 4341.731873 | R25: =IF('Hearts Desire II'!R49<>"",('Hearts Desire II'!Q49*SIN(RADIANS(T$4))+'Hearts Desire II'!R49*COS(RADIANS(T$4))*T$3)+T$2,"") -> 196.3170866 | S25: =IF('Hearts Desire II'!S49<>"",'Hearts Desire II'!S49*COS(RADIANS(T$4))-'Hearts Desire II'!T49*SIN(RADIANS(T$4))+T$1,"") -> 4341.37347 | T25: =IF('Hearts Desire II'!T49<>"",('Hearts Desire II'!S49*SIN(RADIANS(T$4))+'Hearts Desire II'!T49*COS(RADIANS(T$4))*T$3)+T$2,"") -> 970.2198443 | V25: =IF('Hearts Desire II'!V49<>"",'Hearts Desire II'!V49*COS(RADIANS(Y$4))-'Hearts Desire II'!W49*SIN(RADIANS(Y$4))+Y$1,"") -> 4378.849171 | W25: =IF('Hearts Desire II'!W49<>"",('Hearts Desire II'!V49*SIN(RADIANS(Y$4))+'Hearts Desire II'!W49*COS(RADIANS(Y$4))*Y$3)+Y$2,"") -> 1014.70821 | X25: =IF('Hearts Desire II'!X49<>"",'Hearts Desire II'!X49*COS(RADIANS(Y$4))-'Hearts Desire II'!Y49*SIN(RADIANS(Y$4))+Y$1,"") -> 4378.839691 | Y25: =IF('Hearts Desire II'!Y49<>"",('Hearts Desire II'!X49*SIN(RADIANS(Y$4))+'Hearts Desire II'!Y49*COS(RADIANS(Y$4))*Y$3)+Y$2,"") -> 1110.836102
A26: 20 | B26: =IF('Hearts Desire II'!B50<>"",'Hearts Desire II'!B50*COS(RADIANS(E$4))-'Hearts Desire II'!C50*SIN(RADIANS(E$4))+E$1,"") -> 4573.075439 | C26: =IF('Hearts Desire II'!C50<>"",('Hearts Desire II'!B50*SIN(RADIANS(E$4))+'Hearts Desire II'!C50*COS(RADIANS(E$4))*E$3)+E$2,"") -> -1000.367762 | D26: =IF('Hearts Desire II'!D50<>"",'Hearts Desire II'!D50*COS(RADIANS(E$4))-'Hearts Desire II'!E50*SIN(RADIANS(E$4))+E$1,"") -> 4573.075439 | E26: =IF('Hearts Desire II'!E50<>"",('Hearts Desire II'!D50*SIN(RADIANS(E$4))+'Hearts Desire II'!E50*COS(RADIANS(E$4))*E$3)+E$2,"") -> -781.4299535 | G26: =IF('Hearts Desire II'!G50<>"",'Hearts Desire II'!G50*COS(RADIANS(J$4))-'Hearts Desire II'!H50*SIN(RADIANS(J$4))+J$1,"") -> 4587.029526 | H26: =IF('Hearts Desire II'!H50<>"",('Hearts Desire II'!G50*SIN(RADIANS(J$4))+'Hearts Desire II'!H50*COS(RADIANS(J$4))*J$3)+J$2,"") -> -1096.915944 | I26: =IF('Hearts Desire II'!I50<>"",'Hearts Desire II'!I50*COS(RADIANS(J$4))-'Hearts Desire II'!J50*SIN(RADIANS(J$4))+J$1,"") -> 4582.970354 | J26: =IF('Hearts Desire II'!J50<>"",('Hearts Desire II'!I50*SIN(RADIANS(J$4))+'Hearts Desire II'!J50*COS(RADIANS(J$4))*J$3)+J$2,"") -> -1020.824137 | L26: =IF('Hearts Desire II'!L50<>"",'Hearts Desire II'!L50*COS(RADIANS(O$4))-'Hearts Desire II'!M50*SIN(RADIANS(O$4))+O$1,"") -> 4513.4098 | M26: =IF('Hearts Desire II'!M50<>"",('Hearts Desire II'!L50*SIN(RADIANS(O$4))+'Hearts Desire II'!M50*COS(RADIANS(O$4))*O$3)+O$2,"") -> -746.0178101 | N26: =IF('Hearts Desire II'!N50<>"",'Hearts Desire II'!N50*COS(RADIANS(O$4))-'Hearts Desire II'!O50*SIN(RADIANS(O$4))+O$1,"") -> 4494.241813 | O26: =IF('Hearts Desire II'!O50<>"",('Hearts Desire II'!N50*SIN(RADIANS(O$4))+'Hearts Desire II'!O50*COS(RADIANS(O$4))*O$3)+O$2,"") -> 133.6726997 | Q26: =IF('Hearts Desire II'!Q50<>"",'Hearts Desire II'!Q50*COS(RADIANS(T$4))-'Hearts Desire II'!R50*SIN(RADIANS(T$4))+T$1,"") -> 4843.020251 | R26: =IF('Hearts Desire II'!R50<>"",('Hearts Desire II'!Q50*SIN(RADIANS(T$4))+'Hearts Desire II'!R50*COS(RADIANS(T$4))*T$3)+T$2,"") -> 209.8072527 | S26: =IF('Hearts Desire II'!S50<>"",'Hearts Desire II'!S50*COS(RADIANS(T$4))-'Hearts Desire II'!T50*SIN(RADIANS(T$4))+T$1,"") -> 4841.498944 | T26: =IF('Hearts Desire II'!T50<>"",('Hearts Desire II'!S50*SIN(RADIANS(T$4))+'Hearts Desire II'!T50*COS(RADIANS(T$4))*T$3)+T$2,"") -> 963.7900474 | V26: =IF('Hearts Desire II'!V50<>"",'Hearts Desire II'!V50*COS(RADIANS(Y$4))-'Hearts Desire II'!W50*SIN(RADIANS(Y$4))+Y$1,"") -> 4878.960873 | W26: =IF('Hearts Desire II'!W50<>"",('Hearts Desire II'!V50*SIN(RADIANS(Y$4))+'Hearts Desire II'!W50*COS(RADIANS(Y$4))*Y$3)+Y$2,"") -> 1007.28408 | X26: =IF('Hearts Desire II'!X50<>"",'Hearts Desire II'!X50*COS(RADIANS(Y$4))-'Hearts Desire II'!Y50*SIN(RADIANS(Y$4))+Y$1,"") -> 4878.913299 | Y26: =IF('Hearts Desire II'!Y50<>"",('Hearts Desire II'!X50*SIN(RADIANS(Y$4))+'Hearts Desire II'!Y50*COS(RADIANS(Y$4))*Y$3)+Y$2,"") -> 1104.045836
A27: 21 | B27: =IF('Hearts Desire II'!B51<>"",'Hearts Desire II'!B51*COS(RADIANS(E$4))-'Hearts Desire II'!C51*SIN(RADIANS(E$4))+E$1,"") -> 5073.795297 | C27: =IF('Hearts Desire II'!C51<>"",('Hearts Desire II'!B51*SIN(RADIANS(E$4))+'Hearts Desire II'!C51*COS(RADIANS(E$4))*E$3)+E$2,"") -> -1000.367762 | D27: =IF('Hearts Desire II'!D51<>"",'Hearts Desire II'!D51*COS(RADIANS(E$4))-'Hearts Desire II'!E51*SIN(RADIANS(E$4))+E$1,"") -> 5073.795297 | E27: =IF('Hearts Desire II'!E51<>"",('Hearts Desire II'!D51*SIN(RADIANS(E$4))+'Hearts Desire II'!E51*COS(RADIANS(E$4))*E$3)+E$2,"") -> -813.0665446 | G27: =IF('Hearts Desire II'!G51<>"",'Hearts Desire II'!G51*COS(RADIANS(J$4))-'Hearts Desire II'!H51*SIN(RADIANS(J$4))+J$1,"") -> 5088.747811 | H27: =IF('Hearts Desire II'!H51<>"",('Hearts Desire II'!G51*SIN(RADIANS(J$4))+'Hearts Desire II'!H51*COS(RADIANS(J$4))*J$3)+J$2,"") -> -1097.029412 | I27: =IF('Hearts Desire II'!I51<>"",'Hearts Desire II'!I51*COS(RADIANS(J$4))-'Hearts Desire II'!J51*SIN(RADIANS(J$4))+J$1,"") -> 5084.688639 | J27: =IF('Hearts Desire II'!J51<>"",('Hearts Desire II'!I51*SIN(RADIANS(J$4))+'Hearts Desire II'!J51*COS(RADIANS(J$4))*J$3)+J$2,"") -> -1020.937605 | L27: =IF('Hearts Desire II'!L51<>"",'Hearts Desire II'!L51*COS(RADIANS(O$4))-'Hearts Desire II'!M51*SIN(RADIANS(O$4))+O$1,"") -> 5014.223795 | M27: =IF('Hearts Desire II'!M51<>"",('Hearts Desire II'!L51*SIN(RADIANS(O$4))+'Hearts Desire II'!M51*COS(RADIANS(O$4))*O$3)+O$2,"") -> -776.1274837 | N27: =IF('Hearts Desire II'!N51<>"",'Hearts Desire II'!N51*COS(RADIANS(O$4))-'Hearts Desire II'!O51*SIN(RADIANS(O$4))+O$1,"") -> 5000.820689 | O27: =IF('Hearts Desire II'!O51<>"",('Hearts Desire II'!N51*SIN(RADIANS(O$4))+'Hearts Desire II'!O51*COS(RADIANS(O$4))*O$3)+O$2,"") -> 97.41760013 | Q27: =IF('Hearts Desire II'!Q51<>"",'Hearts Desire II'!Q51*COS(RADIANS(T$4))-'Hearts Desire II'!R51*SIN(RADIANS(T$4))+T$1,"") -> 5350.542442 | R27: =IF('Hearts Desire II'!R51<>"",('Hearts Desire II'!Q51*SIN(RADIANS(T$4))+'Hearts Desire II'!R51*COS(RADIANS(T$4))*T$3)+T$2,"") -> 228.7232959 | S27: =IF('Hearts Desire II'!S51<>"",'Hearts Desire II'!S51*COS(RADIANS(T$4))-'Hearts Desire II'!T51*SIN(RADIANS(T$4))+T$1,"") -> 5343.016515 | T27: =IF('Hearts Desire II'!T51<>"",('Hearts Desire II'!S51*SIN(RADIANS(T$4))+'Hearts Desire II'!T51*COS(RADIANS(T$4))*T$3)+T$2,"") -> 962.2957671 | V27: =IF('Hearts Desire II'!V51<>"",'Hearts Desire II'!V51*COS(RADIANS(Y$4))-'Hearts Desire II'!W51*SIN(RADIANS(Y$4))+Y$1,"") -> 5380.457984 | W27: =IF('Hearts Desire II'!W51<>"",('Hearts Desire II'!V51*SIN(RADIANS(Y$4))+'Hearts Desire II'!W51*COS(RADIANS(Y$4))*Y$3)+Y$2,"") -> 1002.513946 | X27: =IF('Hearts Desire II'!X51<>"",'Hearts Desire II'!X51*COS(RADIANS(Y$4))-'Hearts Desire II'!Y51*SIN(RADIANS(Y$4))+Y$1,"") -> 5380.119177 | Y27: =IF('Hearts Desire II'!Y51<>"",('Hearts Desire II'!X51*SIN(RADIANS(Y$4))+'Hearts Desire II'!Y51*COS(RADIANS(Y$4))*Y$3)+Y$2,"") -> 1100.650428
A28: 22 | B28: =IF('Hearts Desire II'!B52<>"",'Hearts Desire II'!B52*COS(RADIANS(E$4))-'Hearts Desire II'!C52*SIN(RADIANS(E$4))+E$1,"") -> 5574.515155 | C28: =IF('Hearts Desire II'!C52<>"",('Hearts Desire II'!B52*SIN(RADIANS(E$4))+'Hearts Desire II'!C52*COS(RADIANS(E$4))*E$3)+E$2,"") -> -1000.367762 | D28: =IF('Hearts Desire II'!D52<>"",'Hearts Desire II'!D52*COS(RADIANS(E$4))-'Hearts Desire II'!E52*SIN(RADIANS(E$4))+E$1,"") -> 5574.51513 | E28: =IF('Hearts Desire II'!E52<>"",('Hearts Desire II'!D52*SIN(RADIANS(E$4))+'Hearts Desire II'!E52*COS(RADIANS(E$4))*E$3)+E$2,"") -> -864.8291251 | G28: =IF('Hearts Desire II'!G52<>"",'Hearts Desire II'!G52*COS(RADIANS(J$4))-'Hearts Desire II'!H52*SIN(RADIANS(J$4))+J$1,"") -> 5592.136046 | H28: =IF('Hearts Desire II'!H52<>"",('Hearts Desire II'!G52*SIN(RADIANS(J$4))+'Hearts Desire II'!H52*COS(RADIANS(J$4))*J$3)+J$2,"") -> -1097.053323 | I28: =IF('Hearts Desire II'!I52<>"",'Hearts Desire II'!I52*COS(RADIANS(J$4))-'Hearts Desire II'!J52*SIN(RADIANS(J$4))+J$1,"") -> 5588.077161 | J28: =IF('Hearts Desire II'!J52<>"",('Hearts Desire II'!I52*SIN(RADIANS(J$4))+'Hearts Desire II'!J52*COS(RADIANS(J$4))*J$3)+J$2,"") -> -1020.961972 | L28: =IF('Hearts Desire II'!L52<>"",'Hearts Desire II'!L52*COS(RADIANS(O$4))-'Hearts Desire II'!M52*SIN(RADIANS(O$4))+O$1,"") -> 5515.138752 | M28: =IF('Hearts Desire II'!M52<>"",('Hearts Desire II'!L52*SIN(RADIANS(O$4))+'Hearts Desire II'!M52*COS(RADIANS(O$4))*O$3)+O$2,"") -> -825.9693395 | N28: =IF('Hearts Desire II'!N52<>"",'Hearts Desire II'!N52*COS(RADIANS(O$4))-'Hearts Desire II'!O52*SIN(RADIANS(O$4))+O$1,"") -> 5518.738034 | O28: =IF('Hearts Desire II'!O52<>"",('Hearts Desire II'!N52*SIN(RADIANS(O$4))+'Hearts Desire II'!O52*COS(RADIANS(O$4))*O$3)+O$2,"") -> 31.26722357 | Q28: =IF('Hearts Desire II'!Q52<>"",'Hearts Desire II'!Q52*COS(RADIANS(T$4))-'Hearts Desire II'!R52*SIN(RADIANS(T$4))+T$1,"") -> 5872.392352 | R28: =IF('Hearts Desire II'!R52<>"",('Hearts Desire II'!Q52*SIN(RADIANS(T$4))+'Hearts Desire II'!R52*COS(RADIANS(T$4))*T$3)+T$2,"") -> 245.6619835 | S28: =IF('Hearts Desire II'!S52<>"",'Hearts Desire II'!S52*COS(RADIANS(T$4))-'Hearts Desire II'!T52*SIN(RADIANS(T$4))+T$1,"") -> 5851.272904 | T28: =IF('Hearts Desire II'!T52<>"",('Hearts Desire II'!S52*SIN(RADIANS(T$4))+'Hearts Desire II'!T52*COS(RADIANS(T$4))*T$3)+T$2,"") -> 958.0052649 | V28: =IF('Hearts Desire II'!V52<>"",'Hearts Desire II'!V52*COS(RADIANS(Y$4))-'Hearts Desire II'!W52*SIN(RADIANS(Y$4))+Y$1,"") -> 5888.634985 | W28: =IF('Hearts Desire II'!W52<>"",('Hearts Desire II'!V52*SIN(RADIANS(Y$4))+'Hearts Desire II'!W52*COS(RADIANS(Y$4))*Y$3)+Y$2,"") -> 992.5589442 | X28: =IF('Hearts Desire II'!X52<>"",'Hearts Desire II'!X52*COS(RADIANS(Y$4))-'Hearts Desire II'!Y52*SIN(RADIANS(Y$4))+Y$1,"") -> 5887.314448 | Y28: =IF('Hearts Desire II'!Y52<>"",('Hearts Desire II'!X52*SIN(RADIANS(Y$4))+'Hearts Desire II'!Y52*COS(RADIANS(Y$4))*Y$3)+Y$2,"") -> 1092.958489
A29: 23 | B29: =IF('Hearts Desire II'!B53<>"",'Hearts Desire II'!B53*COS(RADIANS(E$4))-'Hearts Desire II'!C53*SIN(RADIANS(E$4))+E$1,"") -> 6075.235014 | C29: =IF('Hearts Desire II'!C53<>"",('Hearts Desire II'!B53*SIN(RADIANS(E$4))+'Hearts Desire II'!C53*COS(RADIANS(E$4))*E$3)+E$2,"") -> -1000.367762 | D29: =IF('Hearts Desire II'!D53<>"",'Hearts Desire II'!D53*COS(RADIANS(E$4))-'Hearts Desire II'!E53*SIN(RADIANS(E$4))+E$1,"") -> 6075.235014 | E29: =IF('Hearts Desire II'!E53<>"",('Hearts Desire II'!D53*SIN(RADIANS(E$4))+'Hearts Desire II'!E53*COS(RADIANS(E$4))*E$3)+E$2,"") -> -959.9046049 | G29: =IF('Hearts Desire II'!G53<>"",'Hearts Desire II'!G53*COS(RADIANS(J$4))-'Hearts Desire II'!H53*SIN(RADIANS(J$4))+J$1,"") -> 6101.802261 | H29: =IF('Hearts Desire II'!H53<>"",('Hearts Desire II'!G53*SIN(RADIANS(J$4))+'Hearts Desire II'!H53*COS(RADIANS(J$4))*J$3)+J$2,"") -> -1096.741843 | I29: =IF('Hearts Desire II'!I53<>"",'Hearts Desire II'!I53*COS(RADIANS(J$4))-'Hearts Desire II'!J53*SIN(RADIANS(J$4))+J$1,"") -> 6097.742876 | J29: =IF('Hearts Desire II'!J53<>"",('Hearts Desire II'!I53*SIN(RADIANS(J$4))+'Hearts Desire II'!J53*COS(RADIANS(J$4))*J$3)+J$2,"") -> -1020.650047 | L29: =IF('Hearts Desire II'!L53<>"",'Hearts Desire II'!L53*COS(RADIANS(O$4))-'Hearts Desire II'!M53*SIN(RADIANS(O$4))+O$1,"") -> 6017.044226 | M29: =IF('Hearts Desire II'!M53<>"",('Hearts Desire II'!L53*SIN(RADIANS(O$4))+'Hearts Desire II'!M53*COS(RADIANS(O$4))*O$3)+O$2,"") -> -914.57032 | N29: =IF('Hearts Desire II'!N53<>"",'Hearts Desire II'!N53*COS(RADIANS(O$4))-'Hearts Desire II'!O53*SIN(RADIANS(O$4))+O$1,"") -> 6059.309981 | O29: =IF('Hearts Desire II'!O53<>"",('Hearts Desire II'!N53*SIN(RADIANS(O$4))+'Hearts Desire II'!O53*COS(RADIANS(O$4))*O$3)+O$2,"") -> -63.86752053 | Q29: =IF('Hearts Desire II'!Q53<>"",'Hearts Desire II'!Q53*COS(RADIANS(T$4))-'Hearts Desire II'!R53*SIN(RADIANS(T$4))+T$1,"") -> 6421.254779 | R29: =IF('Hearts Desire II'!R53<>"",('Hearts Desire II'!Q53*SIN(RADIANS(T$4))+'Hearts Desire II'!R53*COS(RADIANS(T$4))*T$3)+T$2,"") -> 249.9846959 | S29: =IF('Hearts Desire II'!S53<>"",'Hearts Desire II'!S53*COS(RADIANS(T$4))-'Hearts Desire II'!T53*SIN(RADIANS(T$4))+T$1,"") -> 6383.069095 | T29: =IF('Hearts Desire II'!T53<>"",('Hearts Desire II'!S53*SIN(RADIANS(T$4))+'Hearts Desire II'!T53*COS(RADIANS(T$4))*T$3)+T$2,"") -> 932.4594993 | V29: =IF('Hearts Desire II'!V53<>"",'Hearts Desire II'!V53*COS(RADIANS(Y$4))-'Hearts Desire II'!W53*SIN(RADIANS(Y$4))+Y$1,"") -> 6420.160274 | W29: =IF('Hearts Desire II'!W53<>"",('Hearts Desire II'!V53*SIN(RADIANS(Y$4))+'Hearts Desire II'!W53*COS(RADIANS(Y$4))*Y$3)+Y$2,"") -> 961.8890689 | X29: =IF('Hearts Desire II'!X53<>"",'Hearts Desire II'!X53*COS(RADIANS(Y$4))-'Hearts Desire II'!Y53*SIN(RADIANS(Y$4))+Y$1,"") -> 6416.572255 | Y29: =IF('Hearts Desire II'!Y53<>"",('Hearts Desire II'!X53*SIN(RADIANS(Y$4))+'Hearts Desire II'!Y53*COS(RADIANS(Y$4))*Y$3)+Y$2,"") -> 1065.478934
A30: 24 | B30: =IF('Hearts Desire II'!B54<>"",'Hearts Desire II'!B54*COS(RADIANS(E$4))-'Hearts Desire II'!C54*SIN(RADIANS(E$4))+E$1,"") -> 6225.547545 | C30: =IF('Hearts Desire II'!C54<>"",('Hearts Desire II'!B54*SIN(RADIANS(E$4))+'Hearts Desire II'!C54*COS(RADIANS(E$4))*E$3)+E$2,"") -> -1000.367762 | D30: =IF('Hearts Desire II'!D54<>"",'Hearts Desire II'!D54*COS(RADIANS(E$4))-'Hearts Desire II'!E54*SIN(RADIANS(E$4))+E$1,"") -> 6225.547711 | E30: =IF('Hearts Desire II'!E54<>"",('Hearts Desire II'!D54*SIN(RADIANS(E$4))+'Hearts Desire II'!E54*COS(RADIANS(E$4))*E$3)+E$2,"") -> -1000.367252 | G30: =IF('Hearts Desire II'!G54<>"",'Hearts Desire II'!G54*COS(RADIANS(J$4))-'Hearts Desire II'!H54*SIN(RADIANS(J$4))+J$1,"") -> 6257.465608 | H30: =IF('Hearts Desire II'!H54<>"",('Hearts Desire II'!G54*SIN(RADIANS(J$4))+'Hearts Desire II'!H54*COS(RADIANS(J$4))*J$3)+J$2,"") -> -1096.506551 | I30: =IF('Hearts Desire II'!I54<>"",'Hearts Desire II'!I54*COS(RADIANS(J$4))-'Hearts Desire II'!J54*SIN(RADIANS(J$4))+J$1,"") -> 6253.405438 | J30: =IF('Hearts Desire II'!J54<>"",('Hearts Desire II'!I54*SIN(RADIANS(J$4))+'Hearts Desire II'!J54*COS(RADIANS(J$4))*J$3)+J$2,"") -> -1020.41426 | L30: =IF('Hearts Desire II'!L54<>"",'Hearts Desire II'!L54*COS(RADIANS(O$4))-'Hearts Desire II'!M54*SIN(RADIANS(O$4))+O$1,"") -> 6168.155524 | M30: =IF('Hearts Desire II'!M54<>"",('Hearts Desire II'!L54*SIN(RADIANS(O$4))+'Hearts Desire II'!M54*COS(RADIANS(O$4))*O$3)+O$2,"") -> -951.9369397 | N30: =IF('Hearts Desire II'!N54<>"",'Hearts Desire II'!N54*COS(RADIANS(O$4))-'Hearts Desire II'!O54*SIN(RADIANS(O$4))+O$1,"") -> 6228.311241 | O30: =IF('Hearts Desire II'!O54<>"",('Hearts Desire II'!N54*SIN(RADIANS(O$4))+'Hearts Desire II'!O54*COS(RADIANS(O$4))*O$3)+O$2,"") -> -98.44836983 | Q30: =IF('Hearts Desire II'!Q54<>"",'Hearts Desire II'!Q54*COS(RADIANS(T$4))-'Hearts Desire II'!R54*SIN(RADIANS(T$4))+T$1,"") -> 6593.733987 | R30: =IF('Hearts Desire II'!R54<>"",('Hearts Desire II'!Q54*SIN(RADIANS(T$4))+'Hearts Desire II'!R54*COS(RADIANS(T$4))*T$3)+T$2,"") -> 247.1239706 | S30: =IF('Hearts Desire II'!S54<>"",'Hearts Desire II'!S54*COS(RADIANS(T$4))-'Hearts Desire II'!T54*SIN(RADIANS(T$4))+T$1,"") -> 6551.790331 | T30: =IF('Hearts Desire II'!T54<>"",('Hearts Desire II'!S54*SIN(RADIANS(T$4))+'Hearts Desire II'!T54*COS(RADIANS(T$4))*T$3)+T$2,"") -> 917.1433644 | V30: =IF('Hearts Desire II'!V54<>"",'Hearts Desire II'!V54*COS(RADIANS(Y$4))-'Hearts Desire II'!W54*SIN(RADIANS(Y$4))+Y$1,"") -> 6588.780667 | W30: =IF('Hearts Desire II'!W54<>"",('Hearts Desire II'!V54*SIN(RADIANS(Y$4))+'Hearts Desire II'!W54*COS(RADIANS(Y$4))*Y$3)+Y$2,"") -> 945.4999771 | X30: =IF('Hearts Desire II'!X54<>"",'Hearts Desire II'!X54*COS(RADIANS(Y$4))-'Hearts Desire II'!Y54*SIN(RADIANS(Y$4))+Y$1,"") -> 6584.209942 | Y30: =IF('Hearts Desire II'!Y54<>"",('Hearts Desire II'!X54*SIN(RADIANS(Y$4))+'Hearts Desire II'!Y54*COS(RADIANS(Y$4))*Y$3)+Y$2,"") -> 1050.216469
A31: 25 | B31: =IF('Hearts Desire II'!B55<>"",'Hearts Desire II'!B55*COS(RADIANS(E$4))-'Hearts Desire II'!C55*SIN(RADIANS(E$4))+E$1,"") -> 6225.55722 | C31: =IF('Hearts Desire II'!C55<>"",('Hearts Desire II'!B55*SIN(RADIANS(E$4))+'Hearts Desire II'!C55*COS(RADIANS(E$4))*E$3)+E$2,"") -> -1000.370348 | D31: =IF('Hearts Desire II'!D55<>"",'Hearts Desire II'!D55*COS(RADIANS(E$4))-'Hearts Desire II'!E55*SIN(RADIANS(E$4))+E$1,"") -> 6249.146622 | E31: =IF('Hearts Desire II'!E55<>"",('Hearts Desire II'!D55*SIN(RADIANS(E$4))+'Hearts Desire II'!E55*COS(RADIANS(E$4))*E$3)+E$2,"") -> -927.9136012 | G31: =IF('Hearts Desire II'!G55<>"",'Hearts Desire II'!G55*COS(RADIANS(J$4))-'Hearts Desire II'!H55*SIN(RADIANS(J$4))+J$1,"") -> 6253.415866 | H31: =IF('Hearts Desire II'!H55<>"",('Hearts Desire II'!G55*SIN(RADIANS(J$4))+'Hearts Desire II'!H55*COS(RADIANS(J$4))*J$3)+J$2,"") -> -1020.414241 | I31: =IF('Hearts Desire II'!I55<>"",'Hearts Desire II'!I55*COS(RADIANS(J$4))-'Hearts Desire II'!J55*SIN(RADIANS(J$4))+J$1,"") -> 6253.415866 | J31: =IF('Hearts Desire II'!J55<>"",('Hearts Desire II'!I55*SIN(RADIANS(J$4))+'Hearts Desire II'!J55*COS(RADIANS(J$4))*J$3)+J$2,"") -> -1020.414241 | L31: =IF('Hearts Desire II'!L55<>"",'Hearts Desire II'!L55*COS(RADIANS(O$4))-'Hearts Desire II'!M55*SIN(RADIANS(O$4))+O$1,"") -> 6168.165599 | M31: =IF('Hearts Desire II'!M55<>"",('Hearts Desire II'!L55*SIN(RADIANS(O$4))+'Hearts Desire II'!M55*COS(RADIANS(O$4))*O$3)+O$2,"") -> -951.9396343 | N31: =IF('Hearts Desire II'!N55<>"",'Hearts Desire II'!N55*COS(RADIANS(O$4))-'Hearts Desire II'!O55*SIN(RADIANS(O$4))+O$1,"") -> 6228.322624 | O31: =IF('Hearts Desire II'!O55<>"",('Hearts Desire II'!N55*SIN(RADIANS(O$4))+'Hearts Desire II'!O55*COS(RADIANS(O$4))*O$3)+O$2,"") -> -98.45079065 | Q31: =IF('Hearts Desire II'!Q55<>"",'Hearts Desire II'!Q55*COS(RADIANS(T$4))-'Hearts Desire II'!R55*SIN(RADIANS(T$4))+T$1,"") -> 6593.745622 | R31: =IF('Hearts Desire II'!R55<>"",('Hearts Desire II'!Q55*SIN(RADIANS(T$4))+'Hearts Desire II'!R55*COS(RADIANS(T$4))*T$3)+T$2,"") -> 247.1237068 | S31: =IF('Hearts Desire II'!S55<>"",'Hearts Desire II'!S55*COS(RADIANS(T$4))-'Hearts Desire II'!T55*SIN(RADIANS(T$4))+T$1,"") -> 6551.801768 | T31: =IF('Hearts Desire II'!T55<>"",('Hearts Desire II'!S55*SIN(RADIANS(T$4))+'Hearts Desire II'!T55*COS(RADIANS(T$4))*T$3)+T$2,"") -> 917.1421931 | V31: =IF('Hearts Desire II'!V55<>"",'Hearts Desire II'!V55*COS(RADIANS(Y$4))-'Hearts Desire II'!W55*SIN(RADIANS(Y$4))+Y$1,"") -> 6588.792097 | W31: =IF('Hearts Desire II'!W55<>"",('Hearts Desire II'!V55*SIN(RADIANS(Y$4))+'Hearts Desire II'!W55*COS(RADIANS(Y$4))*Y$3)+Y$2,"") -> 945.4987411 | X31: =IF('Hearts Desire II'!X55<>"",'Hearts Desire II'!X55*COS(RADIANS(Y$4))-'Hearts Desire II'!Y55*SIN(RADIANS(Y$4))+Y$1,"") -> 6584.221302 | Y31: =IF('Hearts Desire II'!Y55<>"",('Hearts Desire II'!X55*SIN(RADIANS(Y$4))+'Hearts Desire II'!Y55*COS(RADIANS(Y$4))*Y$3)+Y$2,"") -> 1050.21531
A32: 26 | B32: =IF('Hearts Desire II'!B56<>"",'Hearts Desire II'!B56*COS(RADIANS(E$4))-'Hearts Desire II'!C56*SIN(RADIANS(E$4))+E$1,"") -> 6272.99981 | C32: =IF('Hearts Desire II'!C56<>"",('Hearts Desire II'!B56*SIN(RADIANS(E$4))+'Hearts Desire II'!C56*COS(RADIANS(E$4))*E$3)+E$2,"") -> -1015.816009 | D32: =IF('Hearts Desire II'!D56<>"",'Hearts Desire II'!D56*COS(RADIANS(E$4))-'Hearts Desire II'!E56*SIN(RADIANS(E$4))+E$1,"") -> 6317.181231 | E32: =IF('Hearts Desire II'!E56<>"",('Hearts Desire II'!D56*SIN(RADIANS(E$4))+'Hearts Desire II'!E56*COS(RADIANS(E$4))*E$3)+E$2,"") -> -880.1092196 | G32: =IF('Hearts Desire II'!G56<>"",'Hearts Desire II'!G56*COS(RADIANS(J$4))-'Hearts Desire II'!H56*SIN(RADIANS(J$4))+J$1,"") ->  | H32: =IF('Hearts Desire II'!H56<>"",('Hearts Desire II'!G56*SIN(RADIANS(J$4))+'Hearts Desire II'!H56*COS(RADIANS(J$4))*J$3)+J$2,"") ->  | I32: =IF('Hearts Desire II'!I56<>"",'Hearts Desire II'!I56*COS(RADIANS(J$4))-'Hearts Desire II'!J56*SIN(RADIANS(J$4))+J$1,"") ->  | J32: =IF('Hearts Desire II'!J56<>"",('Hearts Desire II'!I56*SIN(RADIANS(J$4))+'Hearts Desire II'!J56*COS(RADIANS(J$4))*J$3)+J$2,"") ->  | L32: =IF('Hearts Desire II'!L56<>"",'Hearts Desire II'!L56*COS(RADIANS(O$4))-'Hearts Desire II'!M56*SIN(RADIANS(O$4))+O$1,"") -> 6232.834599 | M32: =IF('Hearts Desire II'!M56<>"",('Hearts Desire II'!L56*SIN(RADIANS(O$4))+'Hearts Desire II'!M56*COS(RADIANS(O$4))*O$3)+O$2,"") -> -899.6721747 | N32: =IF('Hearts Desire II'!N56<>"",'Hearts Desire II'!N56*COS(RADIANS(O$4))-'Hearts Desire II'!O56*SIN(RADIANS(O$4))+O$1,"") -> 6285.334177 | O32: =IF('Hearts Desire II'!O56<>"",('Hearts Desire II'!N56*SIN(RADIANS(O$4))+'Hearts Desire II'!O56*COS(RADIANS(O$4))*O$3)+O$2,"") -> -110.7153214 | Q32: =IF('Hearts Desire II'!Q56<>"",'Hearts Desire II'!Q56*COS(RADIANS(T$4))-'Hearts Desire II'!R56*SIN(RADIANS(T$4))+T$1,"") -> 6652.043761 | R32: =IF('Hearts Desire II'!R56<>"",('Hearts Desire II'!Q56*SIN(RADIANS(T$4))+'Hearts Desire II'!R56*COS(RADIANS(T$4))*T$3)+T$2,"") -> 245.6874726 | S32: =IF('Hearts Desire II'!S56<>"",'Hearts Desire II'!S56*COS(RADIANS(T$4))-'Hearts Desire II'!T56*SIN(RADIANS(T$4))+T$1,"") -> 6609.218256 | T32: =IF('Hearts Desire II'!T56<>"",('Hearts Desire II'!S56*SIN(RADIANS(T$4))+'Hearts Desire II'!T56*COS(RADIANS(T$4))*T$3)+T$2,"") -> 911.0384818 | V32: =IF('Hearts Desire II'!V56<>"",'Hearts Desire II'!V56*COS(RADIANS(Y$4))-'Hearts Desire II'!W56*SIN(RADIANS(Y$4))+Y$1,"") -> 6646.174479 | W32: =IF('Hearts Desire II'!W56<>"",('Hearts Desire II'!V56*SIN(RADIANS(Y$4))+'Hearts Desire II'!W56*COS(RADIANS(Y$4))*Y$3)+Y$2,"") -> 939.0823 | X32: =IF('Hearts Desire II'!X56<>"",'Hearts Desire II'!X56*COS(RADIANS(Y$4))-'Hearts Desire II'!Y56*SIN(RADIANS(Y$4))+Y$1,"") -> 6641.24544 | Y32: =IF('Hearts Desire II'!Y56<>"",('Hearts Desire II'!X56*SIN(RADIANS(Y$4))+'Hearts Desire II'!Y56*COS(RADIANS(Y$4))*Y$3)+Y$2,"") -> 1044.187734
A33: 27 | B33: =IF('Hearts Desire II'!B57<>"",'Hearts Desire II'!B57*COS(RADIANS(E$4))-'Hearts Desire II'!C57*SIN(RADIANS(E$4))+E$1,"") -> 6463.174998 | C33: =IF('Hearts Desire II'!C57<>"",('Hearts Desire II'!B57*SIN(RADIANS(E$4))+'Hearts Desire II'!C57*COS(RADIANS(E$4))*E$3)+E$2,"") -> -1077.73045 | D33: =IF('Hearts Desire II'!D57<>"",'Hearts Desire II'!D57*COS(RADIANS(E$4))-'Hearts Desire II'!E57*SIN(RADIANS(E$4))+E$1,"") -> 6589.900205 | E33: =IF('Hearts Desire II'!E57<>"",('Hearts Desire II'!D57*SIN(RADIANS(E$4))+'Hearts Desire II'!E57*COS(RADIANS(E$4))*E$3)+E$2,"") -> -688.4837779 | G33: =IF('Hearts Desire II'!G57<>"",'Hearts Desire II'!G57*COS(RADIANS(J$4))-'Hearts Desire II'!H57*SIN(RADIANS(J$4))+J$1,"") ->  | H33: =IF('Hearts Desire II'!H57<>"",('Hearts Desire II'!G57*SIN(RADIANS(J$4))+'Hearts Desire II'!H57*COS(RADIANS(J$4))*J$3)+J$2,"") ->  | I33: =IF('Hearts Desire II'!I57<>"",'Hearts Desire II'!I57*COS(RADIANS(J$4))-'Hearts Desire II'!J57*SIN(RADIANS(J$4))+J$1,"") ->  | J33: =IF('Hearts Desire II'!J57<>"",('Hearts Desire II'!I57*SIN(RADIANS(J$4))+'Hearts Desire II'!J57*COS(RADIANS(J$4))*J$3)+J$2,"") ->  | L33: =IF('Hearts Desire II'!L57<>"",'Hearts Desire II'!L57*COS(RADIANS(O$4))-'Hearts Desire II'!M57*SIN(RADIANS(O$4))+O$1,"") -> 6492.117806 | M33: =IF('Hearts Desire II'!M57<>"",('Hearts Desire II'!L57*SIN(RADIANS(O$4))+'Hearts Desire II'!M57*COS(RADIANS(O$4))*O$3)+O$2,"") -> -690.2248844 | N33: =IF('Hearts Desire II'!N57<>"",'Hearts Desire II'!N57*COS(RADIANS(O$4))-'Hearts Desire II'!O57*SIN(RADIANS(O$4))+O$1,"") -> 6518.487634 | O33: =IF('Hearts Desire II'!O57<>"",('Hearts Desire II'!N57*SIN(RADIANS(O$4))+'Hearts Desire II'!O57*COS(RADIANS(O$4))*O$3)+O$2,"") -> -163.9800425 | Q33: =IF('Hearts Desire II'!Q57<>"",'Hearts Desire II'!Q57*COS(RADIANS(T$4))-'Hearts Desire II'!R57*SIN(RADIANS(T$4))+T$1,"") -> 6891.059607 | R33: =IF('Hearts Desire II'!R57<>"",('Hearts Desire II'!Q57*SIN(RADIANS(T$4))+'Hearts Desire II'!R57*COS(RADIANS(T$4))*T$3)+T$2,"") -> 237.3753978 | S33: =IF('Hearts Desire II'!S57<>"",'Hearts Desire II'!S57*COS(RADIANS(T$4))-'Hearts Desire II'!T57*SIN(RADIANS(T$4))+T$1,"") -> 6847.263893 | T33: =IF('Hearts Desire II'!T57<>"",('Hearts Desire II'!S57*SIN(RADIANS(T$4))+'Hearts Desire II'!T57*COS(RADIANS(T$4))*T$3)+T$2,"") -> 880.9685233 | V33: =IF('Hearts Desire II'!V57<>"",'Hearts Desire II'!V57*COS(RADIANS(Y$4))-'Hearts Desire II'!W57*SIN(RADIANS(Y$4))+Y$1,"") -> 6884.08728 | W33: =IF('Hearts Desire II'!W57<>"",('Hearts Desire II'!V57*SIN(RADIANS(Y$4))+'Hearts Desire II'!W57*COS(RADIANS(Y$4))*Y$3)+Y$2,"") -> 907.9788131 | X33: =IF('Hearts Desire II'!X57<>"",'Hearts Desire II'!X57*COS(RADIANS(Y$4))-'Hearts Desire II'!Y57*SIN(RADIANS(Y$4))+Y$1,"") -> 6877.569304 | Y33: =IF('Hearts Desire II'!Y57<>"",('Hearts Desire II'!X57*SIN(RADIANS(Y$4))+'Hearts Desire II'!Y57*COS(RADIANS(Y$4))*Y$3)+Y$2,"") -> 1014.70535
A34: 28 | B34: =IF('Hearts Desire II'!B58<>"",'Hearts Desire II'!B58*COS(RADIANS(E$4))-'Hearts Desire II'!C58*SIN(RADIANS(E$4))+E$1,"") -> 6610.921146 | C34: =IF('Hearts Desire II'!C58<>"",('Hearts Desire II'!B58*SIN(RADIANS(E$4))+'Hearts Desire II'!C58*COS(RADIANS(E$4))*E$3)+E$2,"") -> -946.9426827 | D34: =IF('Hearts Desire II'!D58<>"",'Hearts Desire II'!D58*COS(RADIANS(E$4))-'Hearts Desire II'!E58*SIN(RADIANS(E$4))+E$1,"") -> 6726.259693 | E34: =IF('Hearts Desire II'!E58<>"",('Hearts Desire II'!D58*SIN(RADIANS(E$4))+'Hearts Desire II'!E58*COS(RADIANS(E$4))*E$3)+E$2,"") -> -592.6710571 | G34: =IF('Hearts Desire II'!G58<>"",'Hearts Desire II'!G58*COS(RADIANS(J$4))-'Hearts Desire II'!H58*SIN(RADIANS(J$4))+J$1,"") ->  | H34: =IF('Hearts Desire II'!H58<>"",('Hearts Desire II'!G58*SIN(RADIANS(J$4))+'Hearts Desire II'!H58*COS(RADIANS(J$4))*J$3)+J$2,"") ->  | I34: =IF('Hearts Desire II'!I58<>"",'Hearts Desire II'!I58*COS(RADIANS(J$4))-'Hearts Desire II'!J58*SIN(RADIANS(J$4))+J$1,"") ->  | J34: =IF('Hearts Desire II'!J58<>"",('Hearts Desire II'!I58*SIN(RADIANS(J$4))+'Hearts Desire II'!J58*COS(RADIANS(J$4))*J$3)+J$2,"") ->  | L34: =IF('Hearts Desire II'!L58<>"",'Hearts Desire II'!L58*COS(RADIANS(O$4))-'Hearts Desire II'!M58*SIN(RADIANS(O$4))+O$1,"") -> 6621.860802 | M34: =IF('Hearts Desire II'!M58<>"",('Hearts Desire II'!L58*SIN(RADIANS(O$4))+'Hearts Desire II'!M58*COS(RADIANS(O$4))*O$3)+O$2,"") -> -585.6268815 | N34: =IF('Hearts Desire II'!N58<>"",'Hearts Desire II'!N58*COS(RADIANS(O$4))-'Hearts Desire II'!O58*SIN(RADIANS(O$4))+O$1,"") -> 6638.102464 | O34: =IF('Hearts Desire II'!O58<>"",('Hearts Desire II'!N58*SIN(RADIANS(O$4))+'Hearts Desire II'!O58*COS(RADIANS(O$4))*O$3)+O$2,"") -> -193.4373609 | Q34: =IF('Hearts Desire II'!Q58<>"",'Hearts Desire II'!Q58*COS(RADIANS(T$4))-'Hearts Desire II'!R58*SIN(RADIANS(T$4))+T$1,"") -> 7014.110553 | R34: =IF('Hearts Desire II'!R58<>"",('Hearts Desire II'!Q58*SIN(RADIANS(T$4))+'Hearts Desire II'!R58*COS(RADIANS(T$4))*T$3)+T$2,"") -> 231.5525116 | S34: =IF('Hearts Desire II'!S58<>"",'Hearts Desire II'!S58*COS(RADIANS(T$4))-'Hearts Desire II'!T58*SIN(RADIANS(T$4))+T$1,"") -> 6971.919048 | T34: =IF('Hearts Desire II'!T58<>"",('Hearts Desire II'!S58*SIN(RADIANS(T$4))+'Hearts Desire II'!T58*COS(RADIANS(T$4))*T$3)+T$2,"") -> 862.2136763 | V34: =IF('Hearts Desire II'!V58<>"",'Hearts Desire II'!V58*COS(RADIANS(Y$4))-'Hearts Desire II'!W58*SIN(RADIANS(Y$4))+Y$1,"") -> 7008.662466 | W34: =IF('Hearts Desire II'!W58<>"",('Hearts Desire II'!V58*SIN(RADIANS(Y$4))+'Hearts Desire II'!W58*COS(RADIANS(Y$4))*Y$3)+Y$2,"") -> 888.6999399 | X34: =IF('Hearts Desire II'!X58<>"",'Hearts Desire II'!X58*COS(RADIANS(Y$4))-'Hearts Desire II'!Y58*SIN(RADIANS(Y$4))+Y$1,"") -> 7001.266903 | Y34: =IF('Hearts Desire II'!Y58<>"",('Hearts Desire II'!X58*SIN(RADIANS(Y$4))+'Hearts Desire II'!Y58*COS(RADIANS(Y$4))*Y$3)+Y$2,"") -> 996.2680408
A35: 29 | B35: =IF('Hearts Desire II'!B59<>"",'Hearts Desire II'!B59*COS(RADIANS(E$4))-'Hearts Desire II'!C59*SIN(RADIANS(E$4))+E$1,"") -> 6787.903996 | C35: =IF('Hearts Desire II'!C59<>"",('Hearts Desire II'!B59*SIN(RADIANS(E$4))+'Hearts Desire II'!C59*COS(RADIANS(E$4))*E$3)+E$2,"") -> -726.3520352 | D35: =IF('Hearts Desire II'!D59<>"",'Hearts Desire II'!D59*COS(RADIANS(E$4))-'Hearts Desire II'!E59*SIN(RADIANS(E$4))+E$1,"") -> 6862.61918 | E35: =IF('Hearts Desire II'!E59<>"",('Hearts Desire II'!D59*SIN(RADIANS(E$4))+'Hearts Desire II'!E59*COS(RADIANS(E$4))*E$3)+E$2,"") -> -496.8583363 | G35: =IF('Hearts Desire II'!G59<>"",'Hearts Desire II'!G59*COS(RADIANS(J$4))-'Hearts Desire II'!H59*SIN(RADIANS(J$4))+J$1,"") ->  | H35: =IF('Hearts Desire II'!H59<>"",('Hearts Desire II'!G59*SIN(RADIANS(J$4))+'Hearts Desire II'!H59*COS(RADIANS(J$4))*J$3)+J$2,"") ->  | I35: =IF('Hearts Desire II'!I59<>"",'Hearts Desire II'!I59*COS(RADIANS(J$4))-'Hearts Desire II'!J59*SIN(RADIANS(J$4))+J$1,"") ->  | J35: =IF('Hearts Desire II'!J59<>"",('Hearts Desire II'!I59*SIN(RADIANS(J$4))+'Hearts Desire II'!J59*COS(RADIANS(J$4))*J$3)+J$2,"") ->  | L35: =IF('Hearts Desire II'!L59<>"",'Hearts Desire II'!L59*COS(RADIANS(O$4))-'Hearts Desire II'!M59*SIN(RADIANS(O$4))+O$1,"") -> 6751.636872 | M35: =IF('Hearts Desire II'!M59<>"",('Hearts Desire II'!L59*SIN(RADIANS(O$4))+'Hearts Desire II'!M59*COS(RADIANS(O$4))*O$3)+O$2,"") -> -481.0699169 | N35: =IF('Hearts Desire II'!N59<>"",'Hearts Desire II'!N59*COS(RADIANS(O$4))-'Hearts Desire II'!O59*SIN(RADIANS(O$4))+O$1,"") -> 6759.945211 | O35: =IF('Hearts Desire II'!O59<>"",('Hearts Desire II'!N59*SIN(RADIANS(O$4))+'Hearts Desire II'!O59*COS(RADIANS(O$4))*O$3)+O$2,"") -> -224.957491 | Q35: =IF('Hearts Desire II'!Q59<>"",'Hearts Desire II'!Q59*COS(RADIANS(T$4))-'Hearts Desire II'!R59*SIN(RADIANS(T$4))+T$1,"") -> 7139.768942 | R35: =IF('Hearts Desire II'!R59<>"",('Hearts Desire II'!Q59*SIN(RADIANS(T$4))+'Hearts Desire II'!R59*COS(RADIANS(T$4))*T$3)+T$2,"") -> 224.5423355 | S35: =IF('Hearts Desire II'!S59<>"",'Hearts Desire II'!S59*COS(RADIANS(T$4))-'Hearts Desire II'!T59*SIN(RADIANS(T$4))+T$1,"") -> 7100.995968 | T35: =IF('Hearts Desire II'!T59<>"",('Hearts Desire II'!S59*SIN(RADIANS(T$4))+'Hearts Desire II'!T59*COS(RADIANS(T$4))*T$3)+T$2,"") -> 840.7529488 | V35: =IF('Hearts Desire II'!V59<>"",'Hearts Desire II'!V59*COS(RADIANS(Y$4))-'Hearts Desire II'!W59*SIN(RADIANS(Y$4))+Y$1,"") -> 7137.637209 | W35: =IF('Hearts Desire II'!W59<>"",('Hearts Desire II'!V59*SIN(RADIANS(Y$4))+'Hearts Desire II'!W59*COS(RADIANS(Y$4))*Y$3)+Y$2,"") -> 866.6334554 | X35: =IF('Hearts Desire II'!X59<>"",'Hearts Desire II'!X59*COS(RADIANS(Y$4))-'Hearts Desire II'!Y59*SIN(RADIANS(Y$4))+Y$1,"") -> 7129.315423 | Y35: =IF('Hearts Desire II'!Y59<>"",('Hearts Desire II'!X59*SIN(RADIANS(Y$4))+'Hearts Desire II'!Y59*COS(RADIANS(Y$4))*Y$3)+Y$2,"") -> 975.058439
A36: 30 | B36: =IF('Hearts Desire II'!B60<>"",'Hearts Desire II'!B60*COS(RADIANS(E$4))-'Hearts Desire II'!C60*SIN(RADIANS(E$4))+E$1,"") -> 7113.413883 | C36: =IF('Hearts Desire II'!C60<>"",('Hearts Desire II'!B60*SIN(RADIANS(E$4))+'Hearts Desire II'!C60*COS(RADIANS(E$4))*E$3)+E$2,"") -> -320.6379399 | D36: =IF('Hearts Desire II'!D60<>"",'Hearts Desire II'!D60*COS(RADIANS(E$4))-'Hearts Desire II'!E60*SIN(RADIANS(E$4))+E$1,"") -> 7113.413883 | E36: =IF('Hearts Desire II'!E60<>"",('Hearts Desire II'!D60*SIN(RADIANS(E$4))+'Hearts Desire II'!E60*COS(RADIANS(E$4))*E$3)+E$2,"") -> -320.6379399 | G36: =IF('Hearts Desire II'!G60<>"",'Hearts Desire II'!G60*COS(RADIANS(J$4))-'Hearts Desire II'!H60*SIN(RADIANS(J$4))+J$1,"") ->  | H36: =IF('Hearts Desire II'!H60<>"",('Hearts Desire II'!G60*SIN(RADIANS(J$4))+'Hearts Desire II'!H60*COS(RADIANS(J$4))*J$3)+J$2,"") ->  | I36: =IF('Hearts Desire II'!I60<>"",'Hearts Desire II'!I60*COS(RADIANS(J$4))-'Hearts Desire II'!J60*SIN(RADIANS(J$4))+J$1,"") ->  | J36: =IF('Hearts Desire II'!J60<>"",('Hearts Desire II'!I60*SIN(RADIANS(J$4))+'Hearts Desire II'!J60*COS(RADIANS(J$4))*J$3)+J$2,"") ->  | L36: =IF('Hearts Desire II'!L60<>"",'Hearts Desire II'!L60*COS(RADIANS(O$4))-'Hearts Desire II'!M60*SIN(RADIANS(O$4))+O$1,"") -> 6990.367745 | M36: =IF('Hearts Desire II'!M60<>"",('Hearts Desire II'!L60*SIN(RADIANS(O$4))+'Hearts Desire II'!M60*COS(RADIANS(O$4))*O$3)+O$2,"") -> -288.8222079 | N36: =IF('Hearts Desire II'!N60<>"",'Hearts Desire II'!N60*COS(RADIANS(O$4))-'Hearts Desire II'!O60*SIN(RADIANS(O$4))+O$1,"") -> 6990.367745 | O36: =IF('Hearts Desire II'!O60<>"",('Hearts Desire II'!N60*SIN(RADIANS(O$4))+'Hearts Desire II'!O60*COS(RADIANS(O$4))*O$3)+O$2,"") -> -288.8222079 | Q36: =IF('Hearts Desire II'!Q60<>"",'Hearts Desire II'!Q60*COS(RADIANS(T$4))-'Hearts Desire II'!R60*SIN(RADIANS(T$4))+T$1,"") -> 7378.330935 | R36: =IF('Hearts Desire II'!R60<>"",('Hearts Desire II'!Q60*SIN(RADIANS(T$4))+'Hearts Desire II'!R60*COS(RADIANS(T$4))*T$3)+T$2,"") -> 208.3737824 | S36: =IF('Hearts Desire II'!S60<>"",'Hearts Desire II'!S60*COS(RADIANS(T$4))-'Hearts Desire II'!T60*SIN(RADIANS(T$4))+T$1,"") -> 7351.746895 | T36: =IF('Hearts Desire II'!T60<>"",('Hearts Desire II'!S60*SIN(RADIANS(T$4))+'Hearts Desire II'!T60*COS(RADIANS(T$4))*T$3)+T$2,"") -> 793.7995858 | V36: =IF('Hearts Desire II'!V60<>"",'Hearts Desire II'!V60*COS(RADIANS(Y$4))-'Hearts Desire II'!W60*SIN(RADIANS(Y$4))+Y$1,"") -> 7388.069212 | W36: =IF('Hearts Desire II'!W60<>"",('Hearts Desire II'!V60*SIN(RADIANS(Y$4))+'Hearts Desire II'!W60*COS(RADIANS(Y$4))*Y$3)+Y$2,"") -> 818.0077638 | X36: =IF('Hearts Desire II'!X60<>"",'Hearts Desire II'!X60*COS(RADIANS(Y$4))-'Hearts Desire II'!Y60*SIN(RADIANS(Y$4))+Y$1,"") -> 7377.939471 | Y36: =IF('Hearts Desire II'!Y60<>"",('Hearts Desire II'!X60*SIN(RADIANS(Y$4))+'Hearts Desire II'!Y60*COS(RADIANS(Y$4))*Y$3)+Y$2,"") -> 928.0345814
A37: 31 | B37: =IF('Hearts Desire II'!B61<>"",'Hearts Desire II'!B61*COS(RADIANS(E$4))-'Hearts Desire II'!C61*SIN(RADIANS(E$4))+E$1,"") ->  | C37: =IF('Hearts Desire II'!C61<>"",('Hearts Desire II'!B61*SIN(RADIANS(E$4))+'Hearts Desire II'!C61*COS(RADIANS(E$4))*E$3)+E$2,"") ->  | D37: =IF('Hearts Desire II'!D61<>"",'Hearts Desire II'!D61*COS(RADIANS(E$4))-'Hearts Desire II'!E61*SIN(RADIANS(E$4))+E$1,"") ->  | E37: =IF('Hearts Desire II'!E61<>"",('Hearts Desire II'!D61*SIN(RADIANS(E$4))+'Hearts Desire II'!E61*COS(RADIANS(E$4))*E$3)+E$2,"") ->  | G37: =IF('Hearts Desire II'!G61<>"",'Hearts Desire II'!G61*COS(RADIANS(J$4))-'Hearts Desire II'!H61*SIN(RADIANS(J$4))+J$1,"") ->  | H37: =IF('Hearts Desire II'!H61<>"",('Hearts Desire II'!G61*SIN(RADIANS(J$4))+'Hearts Desire II'!H61*COS(RADIANS(J$4))*J$3)+J$2,"") ->  | I37: =IF('Hearts Desire II'!I61<>"",'Hearts Desire II'!I61*COS(RADIANS(J$4))-'Hearts Desire II'!J61*SIN(RADIANS(J$4))+J$1,"") ->  | J37: =IF('Hearts Desire II'!J61<>"",('Hearts Desire II'!I61*SIN(RADIANS(J$4))+'Hearts Desire II'!J61*COS(RADIANS(J$4))*J$3)+J$2,"") ->  | L37: =IF('Hearts Desire II'!L61<>"",'Hearts Desire II'!L61*COS(RADIANS(O$4))-'Hearts Desire II'!M61*SIN(RADIANS(O$4))+O$1,"") ->  | M37: =IF('Hearts Desire II'!M61<>"",('Hearts Desire II'!L61*SIN(RADIANS(O$4))+'Hearts Desire II'!M61*COS(RADIANS(O$4))*O$3)+O$2,"") ->  | N37: =IF('Hearts Desire II'!N61<>"",'Hearts Desire II'!N61*COS(RADIANS(O$4))-'Hearts Desire II'!O61*SIN(RADIANS(O$4))+O$1,"") ->  | O37: =IF('Hearts Desire II'!O61<>"",('Hearts Desire II'!N61*SIN(RADIANS(O$4))+'Hearts Desire II'!O61*COS(RADIANS(O$4))*O$3)+O$2,"") ->  | Q37: =IF('Hearts Desire II'!Q61<>"",'Hearts Desire II'!Q61*COS(RADIANS(T$4))-'Hearts Desire II'!R61*SIN(RADIANS(T$4))+T$1,"") -> 7400.143974 | R37: =IF('Hearts Desire II'!R61<>"",('Hearts Desire II'!Q61*SIN(RADIANS(T$4))+'Hearts Desire II'!R61*COS(RADIANS(T$4))*T$3)+T$2,"") -> 248.2717379 | S37: =IF('Hearts Desire II'!S61<>"",'Hearts Desire II'!S61*COS(RADIANS(T$4))-'Hearts Desire II'!T61*SIN(RADIANS(T$4))+T$1,"") -> 7374.596 | T37: =IF('Hearts Desire II'!T61<>"",('Hearts Desire II'!S61*SIN(RADIANS(T$4))+'Hearts Desire II'!T61*COS(RADIANS(T$4))*T$3)+T$2,"") -> 789.2165016 | V37: =IF('Hearts Desire II'!V61<>"",'Hearts Desire II'!V61*COS(RADIANS(Y$4))-'Hearts Desire II'!W61*SIN(RADIANS(Y$4))+Y$1,"") -> 7410.874777 | W37: =IF('Hearts Desire II'!W61<>"",('Hearts Desire II'!V61*SIN(RADIANS(Y$4))+'Hearts Desire II'!W61*COS(RADIANS(Y$4))*Y$3)+Y$2,"") -> 813.2127212 | X37: =IF('Hearts Desire II'!X61<>"",'Hearts Desire II'!X61*COS(RADIANS(Y$4))-'Hearts Desire II'!Y61*SIN(RADIANS(Y$4))+Y$1,"") -> 7400.581592 | Y37: =IF('Hearts Desire II'!Y61<>"",('Hearts Desire II'!X61*SIN(RADIANS(Y$4))+'Hearts Desire II'!Y61*COS(RADIANS(Y$4))*Y$3)+Y$2,"") -> 923.38082
A38: 32 | B38: =IF('Hearts Desire II'!B62<>"",'Hearts Desire II'!B62*COS(RADIANS(E$4))-'Hearts Desire II'!C62*SIN(RADIANS(E$4))+E$1,"") ->  | C38: =IF('Hearts Desire II'!C62<>"",('Hearts Desire II'!B62*SIN(RADIANS(E$4))+'Hearts Desire II'!C62*COS(RADIANS(E$4))*E$3)+E$2,"") ->  | D38: =IF('Hearts Desire II'!D62<>"",'Hearts Desire II'!D62*COS(RADIANS(E$4))-'Hearts Desire II'!E62*SIN(RADIANS(E$4))+E$1,"") ->  | E38: =IF('Hearts Desire II'!E62<>"",('Hearts Desire II'!D62*SIN(RADIANS(E$4))+'Hearts Desire II'!E62*COS(RADIANS(E$4))*E$3)+E$2,"") ->  | G38: =IF('Hearts Desire II'!G62<>"",'Hearts Desire II'!G62*COS(RADIANS(J$4))-'Hearts Desire II'!H62*SIN(RADIANS(J$4))+J$1,"") ->  | H38: =IF('Hearts Desire II'!H62<>"",('Hearts Desire II'!G62*SIN(RADIANS(J$4))+'Hearts Desire II'!H62*COS(RADIANS(J$4))*J$3)+J$2,"") ->  | I38: =IF('Hearts Desire II'!I62<>"",'Hearts Desire II'!I62*COS(RADIANS(J$4))-'Hearts Desire II'!J62*SIN(RADIANS(J$4))+J$1,"") ->  | J38: =IF('Hearts Desire II'!J62<>"",('Hearts Desire II'!I62*SIN(RADIANS(J$4))+'Hearts Desire II'!J62*COS(RADIANS(J$4))*J$3)+J$2,"") ->  | L38: =IF('Hearts Desire II'!L62<>"",'Hearts Desire II'!L62*COS(RADIANS(O$4))-'Hearts Desire II'!M62*SIN(RADIANS(O$4))+O$1,"") ->  | M38: =IF('Hearts Desire II'!M62<>"",('Hearts Desire II'!L62*SIN(RADIANS(O$4))+'Hearts Desire II'!M62*COS(RADIANS(O$4))*O$3)+O$2,"") ->  | N38: =IF('Hearts Desire II'!N62<>"",'Hearts Desire II'!N62*COS(RADIANS(O$4))-'Hearts Desire II'!O62*SIN(RADIANS(O$4))+O$1,"") ->  | O38: =IF('Hearts Desire II'!O62<>"",('Hearts Desire II'!N62*SIN(RADIANS(O$4))+'Hearts Desire II'!O62*COS(RADIANS(O$4))*O$3)+O$2,"") ->  | Q38: =IF('Hearts Desire II'!Q62<>"",'Hearts Desire II'!Q62*COS(RADIANS(T$4))-'Hearts Desire II'!R62*SIN(RADIANS(T$4))+T$1,"") -> 7535.821161 | R38: =IF('Hearts Desire II'!R62<>"",('Hearts Desire II'!Q62*SIN(RADIANS(T$4))+'Hearts Desire II'!R62*COS(RADIANS(T$4))*T$3)+T$2,"") -> 496.4145673 | S38: =IF('Hearts Desire II'!S62<>"",'Hearts Desire II'!S62*COS(RADIANS(T$4))-'Hearts Desire II'!T62*SIN(RADIANS(T$4))+T$1,"") -> 7520.379285 | T38: =IF('Hearts Desire II'!T62<>"",('Hearts Desire II'!S62*SIN(RADIANS(T$4))+'Hearts Desire II'!T62*COS(RADIANS(T$4))*T$3)+T$2,"") -> 758.8818935 | V38: =IF('Hearts Desire II'!V62<>"",'Hearts Desire II'!V62*COS(RADIANS(Y$4))-'Hearts Desire II'!W62*SIN(RADIANS(Y$4))+Y$1,"") -> 7556.322357 | W38: =IF('Hearts Desire II'!W62<>"",('Hearts Desire II'!V62*SIN(RADIANS(Y$4))+'Hearts Desire II'!W62*COS(RADIANS(Y$4))*Y$3)+Y$2,"") -> 781.3072947 | X38: =IF('Hearts Desire II'!X62<>"",'Hearts Desire II'!X62*COS(RADIANS(Y$4))-'Hearts Desire II'!Y62*SIN(RADIANS(Y$4))+Y$1,"") -> 7544.995752 | Y38: =IF('Hearts Desire II'!Y62<>"",('Hearts Desire II'!X62*SIN(RADIANS(Y$4))+'Hearts Desire II'!Y62*COS(RADIANS(Y$4))*Y$3)+Y$2,"") -> 892.3570076
A39: 33 | B39: =IF('Hearts Desire II'!B63<>"",'Hearts Desire II'!B63*COS(RADIANS(E$4))-'Hearts Desire II'!C63*SIN(RADIANS(E$4))+E$1,"") ->  | C39: =IF('Hearts Desire II'!C63<>"",('Hearts Desire II'!B63*SIN(RADIANS(E$4))+'Hearts Desire II'!C63*COS(RADIANS(E$4))*E$3)+E$2,"") ->  | D39: =IF('Hearts Desire II'!D63<>"",'Hearts Desire II'!D63*COS(RADIANS(E$4))-'Hearts Desire II'!E63*SIN(RADIANS(E$4))+E$1,"") ->  | E39: =IF('Hearts Desire II'!E63<>"",('Hearts Desire II'!D63*SIN(RADIANS(E$4))+'Hearts Desire II'!E63*COS(RADIANS(E$4))*E$3)+E$2,"") ->  | G39: =IF('Hearts Desire II'!G63<>"",'Hearts Desire II'!G63*COS(RADIANS(J$4))-'Hearts Desire II'!H63*SIN(RADIANS(J$4))+J$1,"") ->  | H39: =IF('Hearts Desire II'!H63<>"",('Hearts Desire II'!G63*SIN(RADIANS(J$4))+'Hearts Desire II'!H63*COS(RADIANS(J$4))*J$3)+J$2,"") ->  | I39: =IF('Hearts Desire II'!I63<>"",'Hearts Desire II'!I63*COS(RADIANS(J$4))-'Hearts Desire II'!J63*SIN(RADIANS(J$4))+J$1,"") ->  | J39: =IF('Hearts Desire II'!J63<>"",('Hearts Desire II'!I63*SIN(RADIANS(J$4))+'Hearts Desire II'!J63*COS(RADIANS(J$4))*J$3)+J$2,"") ->  | L39: =IF('Hearts Desire II'!L63<>"",'Hearts Desire II'!L63*COS(RADIANS(O$4))-'Hearts Desire II'!M63*SIN(RADIANS(O$4))+O$1,"") ->  | M39: =IF('Hearts Desire II'!M63<>"",('Hearts Desire II'!L63*SIN(RADIANS(O$4))+'Hearts Desire II'!M63*COS(RADIANS(O$4))*O$3)+O$2,"") ->  | N39: =IF('Hearts Desire II'!N63<>"",'Hearts Desire II'!N63*COS(RADIANS(O$4))-'Hearts Desire II'!O63*SIN(RADIANS(O$4))+O$1,"") ->  | O39: =IF('Hearts Desire II'!O63<>"",('Hearts Desire II'!N63*SIN(RADIANS(O$4))+'Hearts Desire II'!O63*COS(RADIANS(O$4))*O$3)+O$2,"") ->  | Q39: =IF('Hearts Desire II'!Q63<>"",'Hearts Desire II'!Q63*COS(RADIANS(T$4))-'Hearts Desire II'!R63*SIN(RADIANS(T$4))+T$1,"") -> 7662.281176 | R39: =IF('Hearts Desire II'!R63<>"",('Hearts Desire II'!Q63*SIN(RADIANS(T$4))+'Hearts Desire II'!R63*COS(RADIANS(T$4))*T$3)+T$2,"") -> 727.5810049 | S39: =IF('Hearts Desire II'!S63<>"",'Hearts Desire II'!S63*COS(RADIANS(T$4))-'Hearts Desire II'!T63*SIN(RADIANS(T$4))+T$1,"") -> 7662.281176 | T39: =IF('Hearts Desire II'!T63<>"",('Hearts Desire II'!S63*SIN(RADIANS(T$4))+'Hearts Desire II'!T63*COS(RADIANS(T$4))*T$3)+T$2,"") -> 727.5810049 | V39: =IF('Hearts Desire II'!V63<>"",'Hearts Desire II'!V63*COS(RADIANS(Y$4))-'Hearts Desire II'!W63*SIN(RADIANS(Y$4))+Y$1,"") -> 7697.809235 | W39: =IF('Hearts Desire II'!W63<>"",('Hearts Desire II'!V63*SIN(RADIANS(Y$4))+'Hearts Desire II'!W63*COS(RADIANS(Y$4))*Y$3)+Y$2,"") -> 748.1809392 | X39: =IF('Hearts Desire II'!X63<>"",'Hearts Desire II'!X63*COS(RADIANS(Y$4))-'Hearts Desire II'!Y63*SIN(RADIANS(Y$4))+Y$1,"") -> 7685.519426 | Y39: =IF('Hearts Desire II'!Y63<>"",('Hearts Desire II'!X63*SIN(RADIANS(Y$4))+'Hearts Desire II'!Y63*COS(RADIANS(Y$4))*Y$3)+Y$2,"") -> 860.0416901
A40: 34 | B40: =IF('Hearts Desire II'!B64<>"",'Hearts Desire II'!B64*COS(RADIANS(E$4))-'Hearts Desire II'!C64*SIN(RADIANS(E$4))+E$1,"") ->  | C40: =IF('Hearts Desire II'!C64<>"",('Hearts Desire II'!B64*SIN(RADIANS(E$4))+'Hearts Desire II'!C64*COS(RADIANS(E$4))*E$3)+E$2,"") ->  | D40: =IF('Hearts Desire II'!D64<>"",'Hearts Desire II'!D64*COS(RADIANS(E$4))-'Hearts Desire II'!E64*SIN(RADIANS(E$4))+E$1,"") ->  | E40: =IF('Hearts Desire II'!E64<>"",('Hearts Desire II'!D64*SIN(RADIANS(E$4))+'Hearts Desire II'!E64*COS(RADIANS(E$4))*E$3)+E$2,"") ->  | G40: =IF('Hearts Desire II'!G64<>"",'Hearts Desire II'!G64*COS(RADIANS(J$4))-'Hearts Desire II'!H64*SIN(RADIANS(J$4))+J$1,"") ->  | H40: =IF('Hearts Desire II'!H64<>"",('Hearts Desire II'!G64*SIN(RADIANS(J$4))+'Hearts Desire II'!H64*COS(RADIANS(J$4))*J$3)+J$2,"") ->  | I40: =IF('Hearts Desire II'!I64<>"",'Hearts Desire II'!I64*COS(RADIANS(J$4))-'Hearts Desire II'!J64*SIN(RADIANS(J$4))+J$1,"") ->  | J40: =IF('Hearts Desire II'!J64<>"",('Hearts Desire II'!I64*SIN(RADIANS(J$4))+'Hearts Desire II'!J64*COS(RADIANS(J$4))*J$3)+J$2,"") ->  | L40: =IF('Hearts Desire II'!L64<>"",'Hearts Desire II'!L64*COS(RADIANS(O$4))-'Hearts Desire II'!M64*SIN(RADIANS(O$4))+O$1,"") ->  | M40: =IF('Hearts Desire II'!M64<>"",('Hearts Desire II'!L64*SIN(RADIANS(O$4))+'Hearts Desire II'!M64*COS(RADIANS(O$4))*O$3)+O$2,"") ->  | N40: =IF('Hearts Desire II'!N64<>"",'Hearts Desire II'!N64*COS(RADIANS(O$4))-'Hearts Desire II'!O64*SIN(RADIANS(O$4))+O$1,"") ->  | O40: =IF('Hearts Desire II'!O64<>"",('Hearts Desire II'!N64*SIN(RADIANS(O$4))+'Hearts Desire II'!O64*COS(RADIANS(O$4))*O$3)+O$2,"") ->  | Q40: =IF('Hearts Desire II'!Q64<>"",'Hearts Desire II'!Q64*COS(RADIANS(T$4))-'Hearts Desire II'!R64*SIN(RADIANS(T$4))+T$1,"") ->  | R40: =IF('Hearts Desire II'!R64<>"",('Hearts Desire II'!Q64*SIN(RADIANS(T$4))+'Hearts Desire II'!R64*COS(RADIANS(T$4))*T$3)+T$2,"") ->  | S40: =IF('Hearts Desire II'!S64<>"",'Hearts Desire II'!S64*COS(RADIANS(T$4))-'Hearts Desire II'!T64*SIN(RADIANS(T$4))+T$1,"") ->  | T40: =IF('Hearts Desire II'!T64<>"",('Hearts Desire II'!S64*SIN(RADIANS(T$4))+'Hearts Desire II'!T64*COS(RADIANS(T$4))*T$3)+T$2,"") ->  | V40: =IF('Hearts Desire II'!V64<>"",'Hearts Desire II'!V64*COS(RADIANS(Y$4))-'Hearts Desire II'!W64*SIN(RADIANS(Y$4))+Y$1,"") -> 7755.627676 | W40: =IF('Hearts Desire II'!W64<>"",('Hearts Desire II'!V64*SIN(RADIANS(Y$4))+'Hearts Desire II'!W64*COS(RADIANS(Y$4))*Y$3)+Y$2,"") -> 843.1844154 | X40: =IF('Hearts Desire II'!X64<>"",'Hearts Desire II'!X64*COS(RADIANS(Y$4))-'Hearts Desire II'!Y64*SIN(RADIANS(Y$4))+Y$1,"") -> 7755.627676 | Y40: =IF('Hearts Desire II'!Y64<>"",('Hearts Desire II'!X64*SIN(RADIANS(Y$4))+'Hearts Desire II'!Y64*COS(RADIANS(Y$4))*Y$3)+Y$2,"") -> 843.1844154
B41: =IF('Hearts Desire II'!B65<>"",'Hearts Desire II'!B65*COS(RADIANS(E$4))-'Hearts Desire II'!C65*SIN(RADIANS(E$4))+E$1,"") ->  | C41: =IF('Hearts Desire II'!C65<>"",('Hearts Desire II'!B65*SIN(RADIANS(E$4))+'Hearts Desire II'!C65*COS(RADIANS(E$4))*E$3)+E$2,"") ->  | D41: =IF('Hearts Desire II'!D65<>"",'Hearts Desire II'!D65*COS(RADIANS(E$4))-'Hearts Desire II'!E65*SIN(RADIANS(E$4))+E$1,"") ->  | E41: =IF('Hearts Desire II'!E65<>"",('Hearts Desire II'!D65*SIN(RADIANS(E$4))+'Hearts Desire II'!E65*COS(RADIANS(E$4))*E$3)+E$2,"") ->  | G41: =IF('Hearts Desire II'!G65<>"",'Hearts Desire II'!G65*COS(RADIANS(J$4))-'Hearts Desire II'!H65*SIN(RADIANS(J$4))+J$1,"") ->  | H41: =IF('Hearts Desire II'!H65<>"",('Hearts Desire II'!G65*SIN(RADIANS(J$4))+'Hearts Desire II'!H65*COS(RADIANS(J$4))*J$3)+J$2,"") ->  | I41: =IF('Hearts Desire II'!I65<>"",'Hearts Desire II'!I65*COS(RADIANS(J$4))-'Hearts Desire II'!J65*SIN(RADIANS(J$4))+J$1,"") ->  | J41: =IF('Hearts Desire II'!J65<>"",('Hearts Desire II'!I65*SIN(RADIANS(J$4))+'Hearts Desire II'!J65*COS(RADIANS(J$4))*J$3)+J$2,"") ->  | L41: =IF('Hearts Desire II'!L65<>"",'Hearts Desire II'!L65*COS(RADIANS(O$4))-'Hearts Desire II'!M65*SIN(RADIANS(O$4))+O$1,"") ->  | M41: =IF('Hearts Desire II'!M65<>"",('Hearts Desire II'!L65*SIN(RADIANS(O$4))+'Hearts Desire II'!M65*COS(RADIANS(O$4))*O$3)+O$2,"") ->  | N41: =IF('Hearts Desire II'!N65<>"",'Hearts Desire II'!N65*COS(RADIANS(O$4))-'Hearts Desire II'!O65*SIN(RADIANS(O$4))+O$1,"") ->  | O41: =IF('Hearts Desire II'!O65<>"",('Hearts Desire II'!N65*SIN(RADIANS(O$4))+'Hearts Desire II'!O65*COS(RADIANS(O$4))*O$3)+O$2,"") ->  | Q41: =IF('Hearts Desire II'!Q65<>"",'Hearts Desire II'!Q65*COS(RADIANS(T$4))-'Hearts Desire II'!R65*SIN(RADIANS(T$4))+T$1,"") ->  | R41: =IF('Hearts Desire II'!R65<>"",('Hearts Desire II'!Q65*SIN(RADIANS(T$4))+'Hearts Desire II'!R65*COS(RADIANS(T$4))*T$3)+T$2,"") ->  | S41: =IF('Hearts Desire II'!S65<>"",'Hearts Desire II'!S65*COS(RADIANS(T$4))-'Hearts Desire II'!T65*SIN(RADIANS(T$4))+T$1,"") ->  | T41: =IF('Hearts Desire II'!T65<>"",('Hearts Desire II'!S65*SIN(RADIANS(T$4))+'Hearts Desire II'!T65*COS(RADIANS(T$4))*T$3)+T$2,"") ->  | V41: =IF('Hearts Desire II'!V65<>"",'Hearts Desire II'!V65*COS(RADIANS(Y$4))-'Hearts Desire II'!W65*SIN(RADIANS(Y$4))+Y$1,"") ->  | W41: =IF('Hearts Desire II'!W65<>"",('Hearts Desire II'!V65*SIN(RADIANS(Y$4))+'Hearts Desire II'!W65*COS(RADIANS(Y$4))*Y$3)+Y$2,"") ->  | X41: =IF('Hearts Desire II'!X65<>"",'Hearts Desire II'!X65*COS(RADIANS(Y$4))-'Hearts Desire II'!Y65*SIN(RADIANS(Y$4))+Y$1,"") ->  | Y41: =IF('Hearts Desire II'!Y65<>"",('Hearts Desire II'!X65*SIN(RADIANS(Y$4))+'Hearts Desire II'!Y65*COS(RADIANS(Y$4))*Y$3)+Y$2,"") -> 
B42: =IF('Hearts Desire II'!B66<>"",'Hearts Desire II'!B66*COS(RADIANS(E$4))-'Hearts Desire II'!C66*SIN(RADIANS(E$4))+E$1,"") ->  | C42: =IF('Hearts Desire II'!C66<>"",('Hearts Desire II'!B66*SIN(RADIANS(E$4))+'Hearts Desire II'!C66*COS(RADIANS(E$4))*E$3)+E$2,"") ->  | D42: =IF('Hearts Desire II'!D66<>"",'Hearts Desire II'!D66*COS(RADIANS(E$4))-'Hearts Desire II'!E66*SIN(RADIANS(E$4))+E$1,"") ->  | E42: =IF('Hearts Desire II'!E66<>"",('Hearts Desire II'!D66*SIN(RADIANS(E$4))+'Hearts Desire II'!E66*COS(RADIANS(E$4))*E$3)+E$2,"") ->  | G42: =IF('Hearts Desire II'!G66<>"",'Hearts Desire II'!G66*COS(RADIANS(J$4))-'Hearts Desire II'!H66*SIN(RADIANS(J$4))+J$1,"") ->  | H42: =IF('Hearts Desire II'!H66<>"",('Hearts Desire II'!G66*SIN(RADIANS(J$4))+'Hearts Desire II'!H66*COS(RADIANS(J$4))*J$3)+J$2,"") ->  | I42: =IF('Hearts Desire II'!I66<>"",'Hearts Desire II'!I66*COS(RADIANS(J$4))-'Hearts Desire II'!J66*SIN(RADIANS(J$4))+J$1,"") ->  | J42: =IF('Hearts Desire II'!J66<>"",('Hearts Desire II'!I66*SIN(RADIANS(J$4))+'Hearts Desire II'!J66*COS(RADIANS(J$4))*J$3)+J$2,"") ->  | L42: =IF('Hearts Desire II'!L66<>"",'Hearts Desire II'!L66*COS(RADIANS(O$4))-'Hearts Desire II'!M66*SIN(RADIANS(O$4))+O$1,"") ->  | M42: =IF('Hearts Desire II'!M66<>"",('Hearts Desire II'!L66*SIN(RADIANS(O$4))+'Hearts Desire II'!M66*COS(RADIANS(O$4))*O$3)+O$2,"") ->  | N42: =IF('Hearts Desire II'!N66<>"",'Hearts Desire II'!N66*COS(RADIANS(O$4))-'Hearts Desire II'!O66*SIN(RADIANS(O$4))+O$1,"") ->  | O42: =IF('Hearts Desire II'!O66<>"",('Hearts Desire II'!N66*SIN(RADIANS(O$4))+'Hearts Desire II'!O66*COS(RADIANS(O$4))*O$3)+O$2,"") ->  | Q42: =IF('Hearts Desire II'!Q66<>"",'Hearts Desire II'!Q66*COS(RADIANS(T$4))-'Hearts Desire II'!R66*SIN(RADIANS(T$4))+T$1,"") ->  | R42: =IF('Hearts Desire II'!R66<>"",('Hearts Desire II'!Q66*SIN(RADIANS(T$4))+'Hearts Desire II'!R66*COS(RADIANS(T$4))*T$3)+T$2,"") ->  | S42: =IF('Hearts Desire II'!S66<>"",'Hearts Desire II'!S66*COS(RADIANS(T$4))-'Hearts Desire II'!T66*SIN(RADIANS(T$4))+T$1,"") ->  | T42: =IF('Hearts Desire II'!T66<>"",('Hearts Desire II'!S66*SIN(RADIANS(T$4))+'Hearts Desire II'!T66*COS(RADIANS(T$4))*T$3)+T$2,"") ->  | V42: =IF('Hearts Desire II'!V66<>"",'Hearts Desire II'!V66*COS(RADIANS(Y$4))-'Hearts Desire II'!W66*SIN(RADIANS(Y$4))+Y$1,"") ->  | W42: =IF('Hearts Desire II'!W66<>"",('Hearts Desire II'!V66*SIN(RADIANS(Y$4))+'Hearts Desire II'!W66*COS(RADIANS(Y$4))*Y$3)+Y$2,"") ->  | X42: =IF('Hearts Desire II'!X66<>"",'Hearts Desire II'!X66*COS(RADIANS(Y$4))-'Hearts Desire II'!Y66*SIN(RADIANS(Y$4))+Y$1,"") ->  | Y42: =IF('Hearts Desire II'!Y66<>"",('Hearts Desire II'!X66*SIN(RADIANS(Y$4))+'Hearts Desire II'!Y66*COS(RADIANS(Y$4))*Y$3)+Y$2,"") -> 
B43: =IF('Hearts Desire II'!B67<>"",'Hearts Desire II'!B67*COS(RADIANS(E$4))-'Hearts Desire II'!C67*SIN(RADIANS(E$4))+E$1,"") ->  | C43: =IF('Hearts Desire II'!C67<>"",('Hearts Desire II'!B67*SIN(RADIANS(E$4))+'Hearts Desire II'!C67*COS(RADIANS(E$4))*E$3)+E$2,"") ->  | D43: =IF('Hearts Desire II'!D67<>"",'Hearts Desire II'!D67*COS(RADIANS(E$4))-'Hearts Desire II'!E67*SIN(RADIANS(E$4))+E$1,"") ->  | E43: =IF('Hearts Desire II'!E67<>"",('Hearts Desire II'!D67*SIN(RADIANS(E$4))+'Hearts Desire II'!E67*COS(RADIANS(E$4))*E$3)+E$2,"") ->  | G43: =IF('Hearts Desire II'!G67<>"",'Hearts Desire II'!G67*COS(RADIANS(J$4))-'Hearts Desire II'!H67*SIN(RADIANS(J$4))+J$1,"") ->  | H43: =IF('Hearts Desire II'!H67<>"",('Hearts Desire II'!G67*SIN(RADIANS(J$4))+'Hearts Desire II'!H67*COS(RADIANS(J$4))*J$3)+J$2,"") ->  | I43: =IF('Hearts Desire II'!I67<>"",'Hearts Desire II'!I67*COS(RADIANS(J$4))-'Hearts Desire II'!J67*SIN(RADIANS(J$4))+J$1,"") ->  | J43: =IF('Hearts Desire II'!J67<>"",('Hearts Desire II'!I67*SIN(RADIANS(J$4))+'Hearts Desire II'!J67*COS(RADIANS(J$4))*J$3)+J$2,"") ->  | L43: =IF('Hearts Desire II'!L67<>"",'Hearts Desire II'!L67*COS(RADIANS(O$4))-'Hearts Desire II'!M67*SIN(RADIANS(O$4))+O$1,"") ->  | M43: =IF('Hearts Desire II'!M67<>"",('Hearts Desire II'!L67*SIN(RADIANS(O$4))+'Hearts Desire II'!M67*COS(RADIANS(O$4))*O$3)+O$2,"") ->  | N43: =IF('Hearts Desire II'!N67<>"",'Hearts Desire II'!N67*COS(RADIANS(O$4))-'Hearts Desire II'!O67*SIN(RADIANS(O$4))+O$1,"") ->  | O43: =IF('Hearts Desire II'!O67<>"",('Hearts Desire II'!N67*SIN(RADIANS(O$4))+'Hearts Desire II'!O67*COS(RADIANS(O$4))*O$3)+O$2,"") ->  | Q43: =IF('Hearts Desire II'!Q67<>"",'Hearts Desire II'!Q67*COS(RADIANS(T$4))-'Hearts Desire II'!R67*SIN(RADIANS(T$4))+T$1,"") ->  | R43: =IF('Hearts Desire II'!R67<>"",('Hearts Desire II'!Q67*SIN(RADIANS(T$4))+'Hearts Desire II'!R67*COS(RADIANS(T$4))*T$3)+T$2,"") ->  | S43: =IF('Hearts Desire II'!S67<>"",'Hearts Desire II'!S67*COS(RADIANS(T$4))-'Hearts Desire II'!T67*SIN(RADIANS(T$4))+T$1,"") ->  | T43: =IF('Hearts Desire II'!T67<>"",('Hearts Desire II'!S67*SIN(RADIANS(T$4))+'Hearts Desire II'!T67*COS(RADIANS(T$4))*T$3)+T$2,"") ->  | V43: =IF('Hearts Desire II'!V67<>"",'Hearts Desire II'!V67*COS(RADIANS(Y$4))-'Hearts Desire II'!W67*SIN(RADIANS(Y$4))+Y$1,"") ->  | W43: =IF('Hearts Desire II'!W67<>"",('Hearts Desire II'!V67*SIN(RADIANS(Y$4))+'Hearts Desire II'!W67*COS(RADIANS(Y$4))*Y$3)+Y$2,"") ->  | X43: =IF('Hearts Desire II'!X67<>"",'Hearts Desire II'!X67*COS(RADIANS(Y$4))-'Hearts Desire II'!Y67*SIN(RADIANS(Y$4))+Y$1,"") ->  | Y43: =IF('Hearts Desire II'!Y67<>"",('Hearts Desire II'!X67*SIN(RADIANS(Y$4))+'Hearts Desire II'!Y67*COS(RADIANS(Y$4))*Y$3)+Y$2,"") -> 
B44: =IF('Hearts Desire II'!B68<>"",'Hearts Desire II'!B68*COS(RADIANS(E$4))-'Hearts Desire II'!C68*SIN(RADIANS(E$4))+E$1,"") ->  | C44: =IF('Hearts Desire II'!C68<>"",('Hearts Desire II'!B68*SIN(RADIANS(E$4))+'Hearts Desire II'!C68*COS(RADIANS(E$4))*E$3)+E$2,"") ->  | D44: =IF('Hearts Desire II'!D68<>"",'Hearts Desire II'!D68*COS(RADIANS(E$4))-'Hearts Desire II'!E68*SIN(RADIANS(E$4))+E$1,"") ->  | E44: =IF('Hearts Desire II'!E68<>"",('Hearts Desire II'!D68*SIN(RADIANS(E$4))+'Hearts Desire II'!E68*COS(RADIANS(E$4))*E$3)+E$2,"") ->  | G44: =IF('Hearts Desire II'!G68<>"",'Hearts Desire II'!G68*COS(RADIANS(J$4))-'Hearts Desire II'!H68*SIN(RADIANS(J$4))+J$1,"") ->  | H44: =IF('Hearts Desire II'!H68<>"",('Hearts Desire II'!G68*SIN(RADIANS(J$4))+'Hearts Desire II'!H68*COS(RADIANS(J$4))*J$3)+J$2,"") ->  | I44: =IF('Hearts Desire II'!I68<>"",'Hearts Desire II'!I68*COS(RADIANS(J$4))-'Hearts Desire II'!J68*SIN(RADIANS(J$4))+J$1,"") ->  | J44: =IF('Hearts Desire II'!J68<>"",('Hearts Desire II'!I68*SIN(RADIANS(J$4))+'Hearts Desire II'!J68*COS(RADIANS(J$4))*J$3)+J$2,"") ->  | L44: =IF('Hearts Desire II'!L68<>"",'Hearts Desire II'!L68*COS(RADIANS(O$4))-'Hearts Desire II'!M68*SIN(RADIANS(O$4))+O$1,"") ->  | M44: =IF('Hearts Desire II'!M68<>"",('Hearts Desire II'!L68*SIN(RADIANS(O$4))+'Hearts Desire II'!M68*COS(RADIANS(O$4))*O$3)+O$2,"") ->  | N44: =IF('Hearts Desire II'!N68<>"",'Hearts Desire II'!N68*COS(RADIANS(O$4))-'Hearts Desire II'!O68*SIN(RADIANS(O$4))+O$1,"") ->  | O44: =IF('Hearts Desire II'!O68<>"",('Hearts Desire II'!N68*SIN(RADIANS(O$4))+'Hearts Desire II'!O68*COS(RADIANS(O$4))*O$3)+O$2,"") ->  | Q44: =IF('Hearts Desire II'!Q68<>"",'Hearts Desire II'!Q68*COS(RADIANS(T$4))-'Hearts Desire II'!R68*SIN(RADIANS(T$4))+T$1,"") ->  | R44: =IF('Hearts Desire II'!R68<>"",('Hearts Desire II'!Q68*SIN(RADIANS(T$4))+'Hearts Desire II'!R68*COS(RADIANS(T$4))*T$3)+T$2,"") ->  | S44: =IF('Hearts Desire II'!S68<>"",'Hearts Desire II'!S68*COS(RADIANS(T$4))-'Hearts Desire II'!T68*SIN(RADIANS(T$4))+T$1,"") ->  | T44: =IF('Hearts Desire II'!T68<>"",('Hearts Desire II'!S68*SIN(RADIANS(T$4))+'Hearts Desire II'!T68*COS(RADIANS(T$4))*T$3)+T$2,"") ->  | V44: =IF('Hearts Desire II'!V68<>"",'Hearts Desire II'!V68*COS(RADIANS(Y$4))-'Hearts Desire II'!W68*SIN(RADIANS(Y$4))+Y$1,"") ->  | W44: =IF('Hearts Desire II'!W68<>"",('Hearts Desire II'!V68*SIN(RADIANS(Y$4))+'Hearts Desire II'!W68*COS(RADIANS(Y$4))*Y$3)+Y$2,"") ->  | X44: =IF('Hearts Desire II'!X68<>"",'Hearts Desire II'!X68*COS(RADIANS(Y$4))-'Hearts Desire II'!Y68*SIN(RADIANS(Y$4))+Y$1,"") ->  | Y44: =IF('Hearts Desire II'!Y68<>"",('Hearts Desire II'!X68*SIN(RADIANS(Y$4))+'Hearts Desire II'!Y68*COS(RADIANS(Y$4))*Y$3)+Y$2,"") -> 
B45: =IF('Hearts Desire II'!B69<>"",'Hearts Desire II'!B69*COS(RADIANS(E$4))-'Hearts Desire II'!C69*SIN(RADIANS(E$4))+E$1,"") ->  | C45: =IF('Hearts Desire II'!C69<>"",('Hearts Desire II'!B69*SIN(RADIANS(E$4))+'Hearts Desire II'!C69*COS(RADIANS(E$4))*E$3)+E$2,"") ->  | D45: =IF('Hearts Desire II'!D69<>"",'Hearts Desire II'!D69*COS(RADIANS(E$4))-'Hearts Desire II'!E69*SIN(RADIANS(E$4))+E$1,"") ->  | E45: =IF('Hearts Desire II'!E69<>"",('Hearts Desire II'!D69*SIN(RADIANS(E$4))+'Hearts Desire II'!E69*COS(RADIANS(E$4))*E$3)+E$2,"") ->  | G45: =IF('Hearts Desire II'!G69<>"",'Hearts Desire II'!G69*COS(RADIANS(J$4))-'Hearts Desire II'!H69*SIN(RADIANS(J$4))+J$1,"") ->  | H45: =IF('Hearts Desire II'!H69<>"",('Hearts Desire II'!G69*SIN(RADIANS(J$4))+'Hearts Desire II'!H69*COS(RADIANS(J$4))*J$3)+J$2,"") ->  | I45: =IF('Hearts Desire II'!I69<>"",'Hearts Desire II'!I69*COS(RADIANS(J$4))-'Hearts Desire II'!J69*SIN(RADIANS(J$4))+J$1,"") ->  | J45: =IF('Hearts Desire II'!J69<>"",('Hearts Desire II'!I69*SIN(RADIANS(J$4))+'Hearts Desire II'!J69*COS(RADIANS(J$4))*J$3)+J$2,"") ->  | L45: =IF('Hearts Desire II'!L69<>"",'Hearts Desire II'!L69*COS(RADIANS(O$4))-'Hearts Desire II'!M69*SIN(RADIANS(O$4))+O$1,"") ->  | M45: =IF('Hearts Desire II'!M69<>"",('Hearts Desire II'!L69*SIN(RADIANS(O$4))+'Hearts Desire II'!M69*COS(RADIANS(O$4))*O$3)+O$2,"") ->  | N45: =IF('Hearts Desire II'!N69<>"",'Hearts Desire II'!N69*COS(RADIANS(O$4))-'Hearts Desire II'!O69*SIN(RADIANS(O$4))+O$1,"") ->  | O45: =IF('Hearts Desire II'!O69<>"",('Hearts Desire II'!N69*SIN(RADIANS(O$4))+'Hearts Desire II'!O69*COS(RADIANS(O$4))*O$3)+O$2,"") ->  | Q45: =IF('Hearts Desire II'!Q69<>"",'Hearts Desire II'!Q69*COS(RADIANS(T$4))-'Hearts Desire II'!R69*SIN(RADIANS(T$4))+T$1,"") ->  | R45: =IF('Hearts Desire II'!R69<>"",('Hearts Desire II'!Q69*SIN(RADIANS(T$4))+'Hearts Desire II'!R69*COS(RADIANS(T$4))*T$3)+T$2,"") ->  | S45: =IF('Hearts Desire II'!S69<>"",'Hearts Desire II'!S69*COS(RADIANS(T$4))-'Hearts Desire II'!T69*SIN(RADIANS(T$4))+T$1,"") ->  | T45: =IF('Hearts Desire II'!T69<>"",('Hearts Desire II'!S69*SIN(RADIANS(T$4))+'Hearts Desire II'!T69*COS(RADIANS(T$4))*T$3)+T$2,"") ->  | V45: =IF('Hearts Desire II'!V69<>"",'Hearts Desire II'!V69*COS(RADIANS(Y$4))-'Hearts Desire II'!W69*SIN(RADIANS(Y$4))+Y$1,"") ->  | W45: =IF('Hearts Desire II'!W69<>"",('Hearts Desire II'!V69*SIN(RADIANS(Y$4))+'Hearts Desire II'!W69*COS(RADIANS(Y$4))*Y$3)+Y$2,"") ->  | X45: =IF('Hearts Desire II'!X69<>"",'Hearts Desire II'!X69*COS(RADIANS(Y$4))-'Hearts Desire II'!Y69*SIN(RADIANS(Y$4))+Y$1,"") ->  | Y45: =IF('Hearts Desire II'!Y69<>"",('Hearts Desire II'!X69*SIN(RADIANS(Y$4))+'Hearts Desire II'!Y69*COS(RADIANS(Y$4))*Y$3)+Y$2,"") -> 
B46: =IF('Hearts Desire II'!B70<>"",'Hearts Desire II'!B70*COS(RADIANS(E$4))-'Hearts Desire II'!C70*SIN(RADIANS(E$4))+E$1,"") ->  | C46: =IF('Hearts Desire II'!C70<>"",('Hearts Desire II'!B70*SIN(RADIANS(E$4))+'Hearts Desire II'!C70*COS(RADIANS(E$4))*E$3)+E$2,"") ->  | D46: =IF('Hearts Desire II'!D70<>"",'Hearts Desire II'!D70*COS(RADIANS(E$4))-'Hearts Desire II'!E70*SIN(RADIANS(E$4))+E$1,"") ->  | E46: =IF('Hearts Desire II'!E70<>"",('Hearts Desire II'!D70*SIN(RADIANS(E$4))+'Hearts Desire II'!E70*COS(RADIANS(E$4))*E$3)+E$2,"") ->  | G46: =IF('Hearts Desire II'!G70<>"",'Hearts Desire II'!G70*COS(RADIANS(J$4))-'Hearts Desire II'!H70*SIN(RADIANS(J$4))+J$1,"") ->  | H46: =IF('Hearts Desire II'!H70<>"",('Hearts Desire II'!G70*SIN(RADIANS(J$4))+'Hearts Desire II'!H70*COS(RADIANS(J$4))*J$3)+J$2,"") ->  | I46: =IF('Hearts Desire II'!I70<>"",'Hearts Desire II'!I70*COS(RADIANS(J$4))-'Hearts Desire II'!J70*SIN(RADIANS(J$4))+J$1,"") ->  | J46: =IF('Hearts Desire II'!J70<>"",('Hearts Desire II'!I70*SIN(RADIANS(J$4))+'Hearts Desire II'!J70*COS(RADIANS(J$4))*J$3)+J$2,"") ->  | L46: =IF('Hearts Desire II'!L70<>"",'Hearts Desire II'!L70*COS(RADIANS(O$4))-'Hearts Desire II'!M70*SIN(RADIANS(O$4))+O$1,"") ->  | M46: =IF('Hearts Desire II'!M70<>"",('Hearts Desire II'!L70*SIN(RADIANS(O$4))+'Hearts Desire II'!M70*COS(RADIANS(O$4))*O$3)+O$2,"") ->  | N46: =IF('Hearts Desire II'!N70<>"",'Hearts Desire II'!N70*COS(RADIANS(O$4))-'Hearts Desire II'!O70*SIN(RADIANS(O$4))+O$1,"") ->  | O46: =IF('Hearts Desire II'!O70<>"",('Hearts Desire II'!N70*SIN(RADIANS(O$4))+'Hearts Desire II'!O70*COS(RADIANS(O$4))*O$3)+O$2,"") ->  | Q46: =IF('Hearts Desire II'!Q70<>"",'Hearts Desire II'!Q70*COS(RADIANS(T$4))-'Hearts Desire II'!R70*SIN(RADIANS(T$4))+T$1,"") ->  | R46: =IF('Hearts Desire II'!R70<>"",('Hearts Desire II'!Q70*SIN(RADIANS(T$4))+'Hearts Desire II'!R70*COS(RADIANS(T$4))*T$3)+T$2,"") ->  | S46: =IF('Hearts Desire II'!S70<>"",'Hearts Desire II'!S70*COS(RADIANS(T$4))-'Hearts Desire II'!T70*SIN(RADIANS(T$4))+T$1,"") ->  | T46: =IF('Hearts Desire II'!T70<>"",('Hearts Desire II'!S70*SIN(RADIANS(T$4))+'Hearts Desire II'!T70*COS(RADIANS(T$4))*T$3)+T$2,"") ->  | V46: =IF('Hearts Desire II'!V70<>"",'Hearts Desire II'!V70*COS(RADIANS(Y$4))-'Hearts Desire II'!W70*SIN(RADIANS(Y$4))+Y$1,"") ->  | W46: =IF('Hearts Desire II'!W70<>"",('Hearts Desire II'!V70*SIN(RADIANS(Y$4))+'Hearts Desire II'!W70*COS(RADIANS(Y$4))*Y$3)+Y$2,"") ->  | X46: =IF('Hearts Desire II'!X70<>"",'Hearts Desire II'!X70*COS(RADIANS(Y$4))-'Hearts Desire II'!Y70*SIN(RADIANS(Y$4))+Y$1,"") ->  | Y46: =IF('Hearts Desire II'!Y70<>"",('Hearts Desire II'!X70*SIN(RADIANS(Y$4))+'Hearts Desire II'!Y70*COS(RADIANS(Y$4))*Y$3)+Y$2,"") -> 
B47: =IF('Hearts Desire II'!B71<>"",'Hearts Desire II'!B71*COS(RADIANS(E$4))-'Hearts Desire II'!C71*SIN(RADIANS(E$4))+E$1,"") ->  | C47: =IF('Hearts Desire II'!C71<>"",('Hearts Desire II'!B71*SIN(RADIANS(E$4))+'Hearts Desire II'!C71*COS(RADIANS(E$4))*E$3)+E$2,"") ->  | D47: =IF('Hearts Desire II'!D71<>"",'Hearts Desire II'!D71*COS(RADIANS(E$4))-'Hearts Desire II'!E71*SIN(RADIANS(E$4))+E$1,"") ->  | E47: =IF('Hearts Desire II'!E71<>"",('Hearts Desire II'!D71*SIN(RADIANS(E$4))+'Hearts Desire II'!E71*COS(RADIANS(E$4))*E$3)+E$2,"") ->  | G47: =IF('Hearts Desire II'!G71<>"",'Hearts Desire II'!G71*COS(RADIANS(J$4))-'Hearts Desire II'!H71*SIN(RADIANS(J$4))+J$1,"") ->  | H47: =IF('Hearts Desire II'!H71<>"",('Hearts Desire II'!G71*SIN(RADIANS(J$4))+'Hearts Desire II'!H71*COS(RADIANS(J$4))*J$3)+J$2,"") ->  | I47: =IF('Hearts Desire II'!I71<>"",'Hearts Desire II'!I71*COS(RADIANS(J$4))-'Hearts Desire II'!J71*SIN(RADIANS(J$4))+J$1,"") ->  | J47: =IF('Hearts Desire II'!J71<>"",('Hearts Desire II'!I71*SIN(RADIANS(J$4))+'Hearts Desire II'!J71*COS(RADIANS(J$4))*J$3)+J$2,"") ->  | L47: =IF('Hearts Desire II'!L71<>"",'Hearts Desire II'!L71*COS(RADIANS(O$4))-'Hearts Desire II'!M71*SIN(RADIANS(O$4))+O$1,"") ->  | M47: =IF('Hearts Desire II'!M71<>"",('Hearts Desire II'!L71*SIN(RADIANS(O$4))+'Hearts Desire II'!M71*COS(RADIANS(O$4))*O$3)+O$2,"") ->  | N47: =IF('Hearts Desire II'!N71<>"",'Hearts Desire II'!N71*COS(RADIANS(O$4))-'Hearts Desire II'!O71*SIN(RADIANS(O$4))+O$1,"") ->  | O47: =IF('Hearts Desire II'!O71<>"",('Hearts Desire II'!N71*SIN(RADIANS(O$4))+'Hearts Desire II'!O71*COS(RADIANS(O$4))*O$3)+O$2,"") ->  | Q47: =IF('Hearts Desire II'!Q71<>"",'Hearts Desire II'!Q71*COS(RADIANS(T$4))-'Hearts Desire II'!R71*SIN(RADIANS(T$4))+T$1,"") ->  | R47: =IF('Hearts Desire II'!R71<>"",('Hearts Desire II'!Q71*SIN(RADIANS(T$4))+'Hearts Desire II'!R71*COS(RADIANS(T$4))*T$3)+T$2,"") ->  | S47: =IF('Hearts Desire II'!S71<>"",'Hearts Desire II'!S71*COS(RADIANS(T$4))-'Hearts Desire II'!T71*SIN(RADIANS(T$4))+T$1,"") ->  | T47: =IF('Hearts Desire II'!T71<>"",('Hearts Desire II'!S71*SIN(RADIANS(T$4))+'Hearts Desire II'!T71*COS(RADIANS(T$4))*T$3)+T$2,"") ->  | V47: =IF('Hearts Desire II'!V71<>"",'Hearts Desire II'!V71*COS(RADIANS(Y$4))-'Hearts Desire II'!W71*SIN(RADIANS(Y$4))+Y$1,"") ->  | W47: =IF('Hearts Desire II'!W71<>"",('Hearts Desire II'!V71*SIN(RADIANS(Y$4))+'Hearts Desire II'!W71*COS(RADIANS(Y$4))*Y$3)+Y$2,"") ->  | X47: =IF('Hearts Desire II'!X71<>"",'Hearts Desire II'!X71*COS(RADIANS(Y$4))-'Hearts Desire II'!Y71*SIN(RADIANS(Y$4))+Y$1,"") ->  | Y47: =IF('Hearts Desire II'!Y71<>"",('Hearts Desire II'!X71*SIN(RADIANS(Y$4))+'Hearts Desire II'!Y71*COS(RADIANS(Y$4))*Y$3)+Y$2,"") -> 
B48: =IF('Hearts Desire II'!B72<>"",'Hearts Desire II'!B72*COS(RADIANS(E$4))-'Hearts Desire II'!C72*SIN(RADIANS(E$4))+E$1,"") ->  | C48: =IF('Hearts Desire II'!C72<>"",('Hearts Desire II'!B72*SIN(RADIANS(E$4))+'Hearts Desire II'!C72*COS(RADIANS(E$4))*E$3)+E$2,"") ->  | D48: =IF('Hearts Desire II'!D72<>"",'Hearts Desire II'!D72*COS(RADIANS(E$4))-'Hearts Desire II'!E72*SIN(RADIANS(E$4))+E$1,"") ->  | E48: =IF('Hearts Desire II'!E72<>"",('Hearts Desire II'!D72*SIN(RADIANS(E$4))+'Hearts Desire II'!E72*COS(RADIANS(E$4))*E$3)+E$2,"") ->  | G48: =IF('Hearts Desire II'!G72<>"",'Hearts Desire II'!G72*COS(RADIANS(J$4))-'Hearts Desire II'!H72*SIN(RADIANS(J$4))+J$1,"") ->  | H48: =IF('Hearts Desire II'!H72<>"",('Hearts Desire II'!G72*SIN(RADIANS(J$4))+'Hearts Desire II'!H72*COS(RADIANS(J$4))*J$3)+J$2,"") ->  | I48: =IF('Hearts Desire II'!I72<>"",'Hearts Desire II'!I72*COS(RADIANS(J$4))-'Hearts Desire II'!J72*SIN(RADIANS(J$4))+J$1,"") ->  | J48: =IF('Hearts Desire II'!J72<>"",('Hearts Desire II'!I72*SIN(RADIANS(J$4))+'Hearts Desire II'!J72*COS(RADIANS(J$4))*J$3)+J$2,"") ->  | L48: =IF('Hearts Desire II'!L72<>"",'Hearts Desire II'!L72*COS(RADIANS(O$4))-'Hearts Desire II'!M72*SIN(RADIANS(O$4))+O$1,"") ->  | M48: =IF('Hearts Desire II'!M72<>"",('Hearts Desire II'!L72*SIN(RADIANS(O$4))+'Hearts Desire II'!M72*COS(RADIANS(O$4))*O$3)+O$2,"") ->  | N48: =IF('Hearts Desire II'!N72<>"",'Hearts Desire II'!N72*COS(RADIANS(O$4))-'Hearts Desire II'!O72*SIN(RADIANS(O$4))+O$1,"") ->  | O48: =IF('Hearts Desire II'!O72<>"",('Hearts Desire II'!N72*SIN(RADIANS(O$4))+'Hearts Desire II'!O72*COS(RADIANS(O$4))*O$3)+O$2,"") ->  | Q48: =IF('Hearts Desire II'!Q72<>"",'Hearts Desire II'!Q72*COS(RADIANS(T$4))-'Hearts Desire II'!R72*SIN(RADIANS(T$4))+T$1,"") ->  | R48: =IF('Hearts Desire II'!R72<>"",('Hearts Desire II'!Q72*SIN(RADIANS(T$4))+'Hearts Desire II'!R72*COS(RADIANS(T$4))*T$3)+T$2,"") ->  | S48: =IF('Hearts Desire II'!S72<>"",'Hearts Desire II'!S72*COS(RADIANS(T$4))-'Hearts Desire II'!T72*SIN(RADIANS(T$4))+T$1,"") ->  | T48: =IF('Hearts Desire II'!T72<>"",('Hearts Desire II'!S72*SIN(RADIANS(T$4))+'Hearts Desire II'!T72*COS(RADIANS(T$4))*T$3)+T$2,"") ->  | V48: =IF('Hearts Desire II'!V72<>"",'Hearts Desire II'!V72*COS(RADIANS(Y$4))-'Hearts Desire II'!W72*SIN(RADIANS(Y$4))+Y$1,"") ->  | W48: =IF('Hearts Desire II'!W72<>"",('Hearts Desire II'!V72*SIN(RADIANS(Y$4))+'Hearts Desire II'!W72*COS(RADIANS(Y$4))*Y$3)+Y$2,"") ->  | X48: =IF('Hearts Desire II'!X72<>"",'Hearts Desire II'!X72*COS(RADIANS(Y$4))-'Hearts Desire II'!Y72*SIN(RADIANS(Y$4))+Y$1,"") ->  | Y48: =IF('Hearts Desire II'!Y72<>"",('Hearts Desire II'!X72*SIN(RADIANS(Y$4))+'Hearts Desire II'!Y72*COS(RADIANS(Y$4))*Y$3)+Y$2,"") -> 
B49: =IF('Hearts Desire II'!B73<>"",'Hearts Desire II'!B73*COS(RADIANS(E$4))-'Hearts Desire II'!C73*SIN(RADIANS(E$4))+E$1,"") ->  | C49: =IF('Hearts Desire II'!C73<>"",('Hearts Desire II'!B73*SIN(RADIANS(E$4))+'Hearts Desire II'!C73*COS(RADIANS(E$4))*E$3)+E$2,"") ->  | D49: =IF('Hearts Desire II'!D73<>"",'Hearts Desire II'!D73*COS(RADIANS(E$4))-'Hearts Desire II'!E73*SIN(RADIANS(E$4))+E$1,"") ->  | E49: =IF('Hearts Desire II'!E73<>"",('Hearts Desire II'!D73*SIN(RADIANS(E$4))+'Hearts Desire II'!E73*COS(RADIANS(E$4))*E$3)+E$2,"") ->  | G49: =IF('Hearts Desire II'!G73<>"",'Hearts Desire II'!G73*COS(RADIANS(J$4))-'Hearts Desire II'!H73*SIN(RADIANS(J$4))+J$1,"") ->  | H49: =IF('Hearts Desire II'!H73<>"",('Hearts Desire II'!G73*SIN(RADIANS(J$4))+'Hearts Desire II'!H73*COS(RADIANS(J$4))*J$3)+J$2,"") ->  | I49: =IF('Hearts Desire II'!I73<>"",'Hearts Desire II'!I73*COS(RADIANS(J$4))-'Hearts Desire II'!J73*SIN(RADIANS(J$4))+J$1,"") ->  | J49: =IF('Hearts Desire II'!J73<>"",('Hearts Desire II'!I73*SIN(RADIANS(J$4))+'Hearts Desire II'!J73*COS(RADIANS(J$4))*J$3)+J$2,"") ->  | L49: =IF('Hearts Desire II'!L73<>"",'Hearts Desire II'!L73*COS(RADIANS(O$4))-'Hearts Desire II'!M73*SIN(RADIANS(O$4))+O$1,"") ->  | M49: =IF('Hearts Desire II'!M73<>"",('Hearts Desire II'!L73*SIN(RADIANS(O$4))+'Hearts Desire II'!M73*COS(RADIANS(O$4))*O$3)+O$2,"") ->  | N49: =IF('Hearts Desire II'!N73<>"",'Hearts Desire II'!N73*COS(RADIANS(O$4))-'Hearts Desire II'!O73*SIN(RADIANS(O$4))+O$1,"") ->  | O49: =IF('Hearts Desire II'!O73<>"",('Hearts Desire II'!N73*SIN(RADIANS(O$4))+'Hearts Desire II'!O73*COS(RADIANS(O$4))*O$3)+O$2,"") ->  | Q49: =IF('Hearts Desire II'!Q73<>"",'Hearts Desire II'!Q73*COS(RADIANS(T$4))-'Hearts Desire II'!R73*SIN(RADIANS(T$4))+T$1,"") ->  | R49: =IF('Hearts Desire II'!R73<>"",('Hearts Desire II'!Q73*SIN(RADIANS(T$4))+'Hearts Desire II'!R73*COS(RADIANS(T$4))*T$3)+T$2,"") ->  | S49: =IF('Hearts Desire II'!S73<>"",'Hearts Desire II'!S73*COS(RADIANS(T$4))-'Hearts Desire II'!T73*SIN(RADIANS(T$4))+T$1,"") ->  | T49: =IF('Hearts Desire II'!T73<>"",('Hearts Desire II'!S73*SIN(RADIANS(T$4))+'Hearts Desire II'!T73*COS(RADIANS(T$4))*T$3)+T$2,"") ->  | V49: =IF('Hearts Desire II'!V73<>"",'Hearts Desire II'!V73*COS(RADIANS(Y$4))-'Hearts Desire II'!W73*SIN(RADIANS(Y$4))+Y$1,"") ->  | W49: =IF('Hearts Desire II'!W73<>"",('Hearts Desire II'!V73*SIN(RADIANS(Y$4))+'Hearts Desire II'!W73*COS(RADIANS(Y$4))*Y$3)+Y$2,"") ->  | X49: =IF('Hearts Desire II'!X73<>"",'Hearts Desire II'!X73*COS(RADIANS(Y$4))-'Hearts Desire II'!Y73*SIN(RADIANS(Y$4))+Y$1,"") ->  | Y49: =IF('Hearts Desire II'!Y73<>"",('Hearts Desire II'!X73*SIN(RADIANS(Y$4))+'Hearts Desire II'!Y73*COS(RADIANS(Y$4))*Y$3)+Y$2,"") -> 
B50: =IF('Hearts Desire II'!B74<>"",'Hearts Desire II'!B74*COS(RADIANS(E$4))-'Hearts Desire II'!C74*SIN(RADIANS(E$4))+E$1,"") ->  | C50: =IF('Hearts Desire II'!C74<>"",('Hearts Desire II'!B74*SIN(RADIANS(E$4))+'Hearts Desire II'!C74*COS(RADIANS(E$4))*E$3)+E$2,"") ->  | D50: =IF('Hearts Desire II'!D74<>"",'Hearts Desire II'!D74*COS(RADIANS(E$4))-'Hearts Desire II'!E74*SIN(RADIANS(E$4))+E$1,"") ->  | E50: =IF('Hearts Desire II'!E74<>"",('Hearts Desire II'!D74*SIN(RADIANS(E$4))+'Hearts Desire II'!E74*COS(RADIANS(E$4))*E$3)+E$2,"") ->  | G50: =IF('Hearts Desire II'!G74<>"",'Hearts Desire II'!G74*COS(RADIANS(J$4))-'Hearts Desire II'!H74*SIN(RADIANS(J$4))+J$1,"") ->  | H50: =IF('Hearts Desire II'!H74<>"",('Hearts Desire II'!G74*SIN(RADIANS(J$4))+'Hearts Desire II'!H74*COS(RADIANS(J$4))*J$3)+J$2,"") ->  | I50: =IF('Hearts Desire II'!I74<>"",'Hearts Desire II'!I74*COS(RADIANS(J$4))-'Hearts Desire II'!J74*SIN(RADIANS(J$4))+J$1,"") ->  | J50: =IF('Hearts Desire II'!J74<>"",('Hearts Desire II'!I74*SIN(RADIANS(J$4))+'Hearts Desire II'!J74*COS(RADIANS(J$4))*J$3)+J$2,"") ->  | L50: =IF('Hearts Desire II'!L74<>"",'Hearts Desire II'!L74*COS(RADIANS(O$4))-'Hearts Desire II'!M74*SIN(RADIANS(O$4))+O$1,"") ->  | M50: =IF('Hearts Desire II'!M74<>"",('Hearts Desire II'!L74*SIN(RADIANS(O$4))+'Hearts Desire II'!M74*COS(RADIANS(O$4))*O$3)+O$2,"") ->  | N50: =IF('Hearts Desire II'!N74<>"",'Hearts Desire II'!N74*COS(RADIANS(O$4))-'Hearts Desire II'!O74*SIN(RADIANS(O$4))+O$1,"") ->  | O50: =IF('Hearts Desire II'!O74<>"",('Hearts Desire II'!N74*SIN(RADIANS(O$4))+'Hearts Desire II'!O74*COS(RADIANS(O$4))*O$3)+O$2,"") ->  | Q50: =IF('Hearts Desire II'!Q74<>"",'Hearts Desire II'!Q74*COS(RADIANS(T$4))-'Hearts Desire II'!R74*SIN(RADIANS(T$4))+T$1,"") ->  | R50: =IF('Hearts Desire II'!R74<>"",('Hearts Desire II'!Q74*SIN(RADIANS(T$4))+'Hearts Desire II'!R74*COS(RADIANS(T$4))*T$3)+T$2,"") ->  | S50: =IF('Hearts Desire II'!S74<>"",'Hearts Desire II'!S74*COS(RADIANS(T$4))-'Hearts Desire II'!T74*SIN(RADIANS(T$4))+T$1,"") ->  | T50: =IF('Hearts Desire II'!T74<>"",('Hearts Desire II'!S74*SIN(RADIANS(T$4))+'Hearts Desire II'!T74*COS(RADIANS(T$4))*T$3)+T$2,"") ->  | V50: =IF('Hearts Desire II'!V74<>"",'Hearts Desire II'!V74*COS(RADIANS(Y$4))-'Hearts Desire II'!W74*SIN(RADIANS(Y$4))+Y$1,"") ->  | W50: =IF('Hearts Desire II'!W74<>"",('Hearts Desire II'!V74*SIN(RADIANS(Y$4))+'Hearts Desire II'!W74*COS(RADIANS(Y$4))*Y$3)+Y$2,"") ->  | X50: =IF('Hearts Desire II'!X74<>"",'Hearts Desire II'!X74*COS(RADIANS(Y$4))-'Hearts Desire II'!Y74*SIN(RADIANS(Y$4))+Y$1,"") ->  | Y50: =IF('Hearts Desire II'!Y74<>"",('Hearts Desire II'!X74*SIN(RADIANS(Y$4))+'Hearts Desire II'!Y74*COS(RADIANS(Y$4))*Y$3)+Y$2,"") -> 
B51: =IF('Hearts Desire II'!B75<>"",'Hearts Desire II'!B75*COS(RADIANS(E$4))-'Hearts Desire II'!C75*SIN(RADIANS(E$4))+E$1,"") ->  | C51: =IF('Hearts Desire II'!C75<>"",('Hearts Desire II'!B75*SIN(RADIANS(E$4))+'Hearts Desire II'!C75*COS(RADIANS(E$4))*E$3)+E$2,"") ->  | D51: =IF('Hearts Desire II'!D75<>"",'Hearts Desire II'!D75*COS(RADIANS(E$4))-'Hearts Desire II'!E75*SIN(RADIANS(E$4))+E$1,"") ->  | E51: =IF('Hearts Desire II'!E75<>"",('Hearts Desire II'!D75*SIN(RADIANS(E$4))+'Hearts Desire II'!E75*COS(RADIANS(E$4))*E$3)+E$2,"") ->  | G51: =IF('Hearts Desire II'!G75<>"",'Hearts Desire II'!G75*COS(RADIANS(J$4))-'Hearts Desire II'!H75*SIN(RADIANS(J$4))+J$1,"") ->  | H51: =IF('Hearts Desire II'!H75<>"",('Hearts Desire II'!G75*SIN(RADIANS(J$4))+'Hearts Desire II'!H75*COS(RADIANS(J$4))*J$3)+J$2,"") ->  | I51: =IF('Hearts Desire II'!I75<>"",'Hearts Desire II'!I75*COS(RADIANS(J$4))-'Hearts Desire II'!J75*SIN(RADIANS(J$4))+J$1,"") ->  | J51: =IF('Hearts Desire II'!J75<>"",('Hearts Desire II'!I75*SIN(RADIANS(J$4))+'Hearts Desire II'!J75*COS(RADIANS(J$4))*J$3)+J$2,"") ->  | L51: =IF('Hearts Desire II'!L75<>"",'Hearts Desire II'!L75*COS(RADIANS(O$4))-'Hearts Desire II'!M75*SIN(RADIANS(O$4))+O$1,"") ->  | M51: =IF('Hearts Desire II'!M75<>"",('Hearts Desire II'!L75*SIN(RADIANS(O$4))+'Hearts Desire II'!M75*COS(RADIANS(O$4))*O$3)+O$2,"") ->  | N51: =IF('Hearts Desire II'!N75<>"",'Hearts Desire II'!N75*COS(RADIANS(O$4))-'Hearts Desire II'!O75*SIN(RADIANS(O$4))+O$1,"") ->  | O51: =IF('Hearts Desire II'!O75<>"",('Hearts Desire II'!N75*SIN(RADIANS(O$4))+'Hearts Desire II'!O75*COS(RADIANS(O$4))*O$3)+O$2,"") ->  | Q51: =IF('Hearts Desire II'!Q75<>"",'Hearts Desire II'!Q75*COS(RADIANS(T$4))-'Hearts Desire II'!R75*SIN(RADIANS(T$4))+T$1,"") ->  | R51: =IF('Hearts Desire II'!R75<>"",('Hearts Desire II'!Q75*SIN(RADIANS(T$4))+'Hearts Desire II'!R75*COS(RADIANS(T$4))*T$3)+T$2,"") ->  | S51: =IF('Hearts Desire II'!S75<>"",'Hearts Desire II'!S75*COS(RADIANS(T$4))-'Hearts Desire II'!T75*SIN(RADIANS(T$4))+T$1,"") ->  | T51: =IF('Hearts Desire II'!T75<>"",('Hearts Desire II'!S75*SIN(RADIANS(T$4))+'Hearts Desire II'!T75*COS(RADIANS(T$4))*T$3)+T$2,"") ->  | V51: =IF('Hearts Desire II'!V75<>"",'Hearts Desire II'!V75*COS(RADIANS(Y$4))-'Hearts Desire II'!W75*SIN(RADIANS(Y$4))+Y$1,"") ->  | W51: =IF('Hearts Desire II'!W75<>"",('Hearts Desire II'!V75*SIN(RADIANS(Y$4))+'Hearts Desire II'!W75*COS(RADIANS(Y$4))*Y$3)+Y$2,"") ->  | X51: =IF('Hearts Desire II'!X75<>"",'Hearts Desire II'!X75*COS(RADIANS(Y$4))-'Hearts Desire II'!Y75*SIN(RADIANS(Y$4))+Y$1,"") ->  | Y51: =IF('Hearts Desire II'!Y75<>"",('Hearts Desire II'!X75*SIN(RADIANS(Y$4))+'Hearts Desire II'!Y75*COS(RADIANS(Y$4))*Y$3)+Y$2,"") -> 
B52: =IF('Hearts Desire II'!B76<>"",'Hearts Desire II'!B76*COS(RADIANS(E$4))-'Hearts Desire II'!C76*SIN(RADIANS(E$4))+E$1,"") ->  | C52: =IF('Hearts Desire II'!C76<>"",('Hearts Desire II'!B76*SIN(RADIANS(E$4))+'Hearts Desire II'!C76*COS(RADIANS(E$4))*E$3)+E$2,"") ->  | D52: =IF('Hearts Desire II'!D76<>"",'Hearts Desire II'!D76*COS(RADIANS(E$4))-'Hearts Desire II'!E76*SIN(RADIANS(E$4))+E$1,"") ->  | E52: =IF('Hearts Desire II'!E76<>"",('Hearts Desire II'!D76*SIN(RADIANS(E$4))+'Hearts Desire II'!E76*COS(RADIANS(E$4))*E$3)+E$2,"") ->  | G52: =IF('Hearts Desire II'!G76<>"",'Hearts Desire II'!G76*COS(RADIANS(J$4))-'Hearts Desire II'!H76*SIN(RADIANS(J$4))+J$1,"") ->  | H52: =IF('Hearts Desire II'!H76<>"",('Hearts Desire II'!G76*SIN(RADIANS(J$4))+'Hearts Desire II'!H76*COS(RADIANS(J$4))*J$3)+J$2,"") ->  | I52: =IF('Hearts Desire II'!I76<>"",'Hearts Desire II'!I76*COS(RADIANS(J$4))-'Hearts Desire II'!J76*SIN(RADIANS(J$4))+J$1,"") ->  | J52: =IF('Hearts Desire II'!J76<>"",('Hearts Desire II'!I76*SIN(RADIANS(J$4))+'Hearts Desire II'!J76*COS(RADIANS(J$4))*J$3)+J$2,"") ->  | L52: =IF('Hearts Desire II'!L76<>"",'Hearts Desire II'!L76*COS(RADIANS(O$4))-'Hearts Desire II'!M76*SIN(RADIANS(O$4))+O$1,"") ->  | M52: =IF('Hearts Desire II'!M76<>"",('Hearts Desire II'!L76*SIN(RADIANS(O$4))+'Hearts Desire II'!M76*COS(RADIANS(O$4))*O$3)+O$2,"") ->  | N52: =IF('Hearts Desire II'!N76<>"",'Hearts Desire II'!N76*COS(RADIANS(O$4))-'Hearts Desire II'!O76*SIN(RADIANS(O$4))+O$1,"") ->  | O52: =IF('Hearts Desire II'!O76<>"",('Hearts Desire II'!N76*SIN(RADIANS(O$4))+'Hearts Desire II'!O76*COS(RADIANS(O$4))*O$3)+O$2,"") ->  | Q52: =IF('Hearts Desire II'!Q76<>"",'Hearts Desire II'!Q76*COS(RADIANS(T$4))-'Hearts Desire II'!R76*SIN(RADIANS(T$4))+T$1,"") ->  | R52: =IF('Hearts Desire II'!R76<>"",('Hearts Desire II'!Q76*SIN(RADIANS(T$4))+'Hearts Desire II'!R76*COS(RADIANS(T$4))*T$3)+T$2,"") ->  | S52: =IF('Hearts Desire II'!S76<>"",'Hearts Desire II'!S76*COS(RADIANS(T$4))-'Hearts Desire II'!T76*SIN(RADIANS(T$4))+T$1,"") ->  | T52: =IF('Hearts Desire II'!T76<>"",('Hearts Desire II'!S76*SIN(RADIANS(T$4))+'Hearts Desire II'!T76*COS(RADIANS(T$4))*T$3)+T$2,"") ->  | V52: =IF('Hearts Desire II'!V76<>"",'Hearts Desire II'!V76*COS(RADIANS(Y$4))-'Hearts Desire II'!W76*SIN(RADIANS(Y$4))+Y$1,"") ->  | W52: =IF('Hearts Desire II'!W76<>"",('Hearts Desire II'!V76*SIN(RADIANS(Y$4))+'Hearts Desire II'!W76*COS(RADIANS(Y$4))*Y$3)+Y$2,"") ->  | X52: =IF('Hearts Desire II'!X76<>"",'Hearts Desire II'!X76*COS(RADIANS(Y$4))-'Hearts Desire II'!Y76*SIN(RADIANS(Y$4))+Y$1,"") ->  | Y52: =IF('Hearts Desire II'!Y76<>"",('Hearts Desire II'!X76*SIN(RADIANS(Y$4))+'Hearts Desire II'!Y76*COS(RADIANS(Y$4))*Y$3)+Y$2,"") -> 
B53: =IF('Hearts Desire II'!B77<>"",'Hearts Desire II'!B77*COS(RADIANS(E$4))-'Hearts Desire II'!C77*SIN(RADIANS(E$4))+E$1,"") ->  | C53: =IF('Hearts Desire II'!C77<>"",('Hearts Desire II'!B77*SIN(RADIANS(E$4))+'Hearts Desire II'!C77*COS(RADIANS(E$4))*E$3)+E$2,"") ->  | D53: =IF('Hearts Desire II'!D77<>"",'Hearts Desire II'!D77*COS(RADIANS(E$4))-'Hearts Desire II'!E77*SIN(RADIANS(E$4))+E$1,"") ->  | E53: =IF('Hearts Desire II'!E77<>"",('Hearts Desire II'!D77*SIN(RADIANS(E$4))+'Hearts Desire II'!E77*COS(RADIANS(E$4))*E$3)+E$2,"") ->  | G53: =IF('Hearts Desire II'!G77<>"",'Hearts Desire II'!G77*COS(RADIANS(J$4))-'Hearts Desire II'!H77*SIN(RADIANS(J$4))+J$1,"") ->  | H53: =IF('Hearts Desire II'!H77<>"",('Hearts Desire II'!G77*SIN(RADIANS(J$4))+'Hearts Desire II'!H77*COS(RADIANS(J$4))*J$3)+J$2,"") ->  | I53: =IF('Hearts Desire II'!I77<>"",'Hearts Desire II'!I77*COS(RADIANS(J$4))-'Hearts Desire II'!J77*SIN(RADIANS(J$4))+J$1,"") ->  | J53: =IF('Hearts Desire II'!J77<>"",('Hearts Desire II'!I77*SIN(RADIANS(J$4))+'Hearts Desire II'!J77*COS(RADIANS(J$4))*J$3)+J$2,"") ->  | L53: =IF('Hearts Desire II'!L77<>"",'Hearts Desire II'!L77*COS(RADIANS(O$4))-'Hearts Desire II'!M77*SIN(RADIANS(O$4))+O$1,"") ->  | M53: =IF('Hearts Desire II'!M77<>"",('Hearts Desire II'!L77*SIN(RADIANS(O$4))+'Hearts Desire II'!M77*COS(RADIANS(O$4))*O$3)+O$2,"") ->  | N53: =IF('Hearts Desire II'!N77<>"",'Hearts Desire II'!N77*COS(RADIANS(O$4))-'Hearts Desire II'!O77*SIN(RADIANS(O$4))+O$1,"") ->  | O53: =IF('Hearts Desire II'!O77<>"",('Hearts Desire II'!N77*SIN(RADIANS(O$4))+'Hearts Desire II'!O77*COS(RADIANS(O$4))*O$3)+O$2,"") ->  | Q53: =IF('Hearts Desire II'!Q77<>"",'Hearts Desire II'!Q77*COS(RADIANS(T$4))-'Hearts Desire II'!R77*SIN(RADIANS(T$4))+T$1,"") ->  | R53: =IF('Hearts Desire II'!R77<>"",('Hearts Desire II'!Q77*SIN(RADIANS(T$4))+'Hearts Desire II'!R77*COS(RADIANS(T$4))*T$3)+T$2,"") ->  | S53: =IF('Hearts Desire II'!S77<>"",'Hearts Desire II'!S77*COS(RADIANS(T$4))-'Hearts Desire II'!T77*SIN(RADIANS(T$4))+T$1,"") ->  | T53: =IF('Hearts Desire II'!T77<>"",('Hearts Desire II'!S77*SIN(RADIANS(T$4))+'Hearts Desire II'!T77*COS(RADIANS(T$4))*T$3)+T$2,"") ->  | V53: =IF('Hearts Desire II'!V77<>"",'Hearts Desire II'!V77*COS(RADIANS(Y$4))-'Hearts Desire II'!W77*SIN(RADIANS(Y$4))+Y$1,"") ->  | W53: =IF('Hearts Desire II'!W77<>"",('Hearts Desire II'!V77*SIN(RADIANS(Y$4))+'Hearts Desire II'!W77*COS(RADIANS(Y$4))*Y$3)+Y$2,"") ->  | X53: =IF('Hearts Desire II'!X77<>"",'Hearts Desire II'!X77*COS(RADIANS(Y$4))-'Hearts Desire II'!Y77*SIN(RADIANS(Y$4))+Y$1,"") ->  | Y53: =IF('Hearts Desire II'!Y77<>"",('Hearts Desire II'!X77*SIN(RADIANS(Y$4))+'Hearts Desire II'!Y77*COS(RADIANS(Y$4))*Y$3)+Y$2,"") -> 
B54: =IF('Hearts Desire II'!B78<>"",'Hearts Desire II'!B78*COS(RADIANS(E$4))-'Hearts Desire II'!C78*SIN(RADIANS(E$4))+E$1,"") ->  | C54: =IF('Hearts Desire II'!C78<>"",('Hearts Desire II'!B78*SIN(RADIANS(E$4))+'Hearts Desire II'!C78*COS(RADIANS(E$4))*E$3)+E$2,"") ->  | D54: =IF('Hearts Desire II'!D78<>"",'Hearts Desire II'!D78*COS(RADIANS(E$4))-'Hearts Desire II'!E78*SIN(RADIANS(E$4))+E$1,"") ->  | E54: =IF('Hearts Desire II'!E78<>"",('Hearts Desire II'!D78*SIN(RADIANS(E$4))+'Hearts Desire II'!E78*COS(RADIANS(E$4))*E$3)+E$2,"") ->  | G54: =IF('Hearts Desire II'!G78<>"",'Hearts Desire II'!G78*COS(RADIANS(J$4))-'Hearts Desire II'!H78*SIN(RADIANS(J$4))+J$1,"") ->  | H54: =IF('Hearts Desire II'!H78<>"",('Hearts Desire II'!G78*SIN(RADIANS(J$4))+'Hearts Desire II'!H78*COS(RADIANS(J$4))*J$3)+J$2,"") ->  | I54: =IF('Hearts Desire II'!I78<>"",'Hearts Desire II'!I78*COS(RADIANS(J$4))-'Hearts Desire II'!J78*SIN(RADIANS(J$4))+J$1,"") ->  | J54: =IF('Hearts Desire II'!J78<>"",('Hearts Desire II'!I78*SIN(RADIANS(J$4))+'Hearts Desire II'!J78*COS(RADIANS(J$4))*J$3)+J$2,"") ->  | L54: =IF('Hearts Desire II'!L78<>"",'Hearts Desire II'!L78*COS(RADIANS(O$4))-'Hearts Desire II'!M78*SIN(RADIANS(O$4))+O$1,"") ->  | M54: =IF('Hearts Desire II'!M78<>"",('Hearts Desire II'!L78*SIN(RADIANS(O$4))+'Hearts Desire II'!M78*COS(RADIANS(O$4))*O$3)+O$2,"") ->  | N54: =IF('Hearts Desire II'!N78<>"",'Hearts Desire II'!N78*COS(RADIANS(O$4))-'Hearts Desire II'!O78*SIN(RADIANS(O$4))+O$1,"") ->  | O54: =IF('Hearts Desire II'!O78<>"",('Hearts Desire II'!N78*SIN(RADIANS(O$4))+'Hearts Desire II'!O78*COS(RADIANS(O$4))*O$3)+O$2,"") ->  | Q54: =IF('Hearts Desire II'!Q78<>"",'Hearts Desire II'!Q78*COS(RADIANS(T$4))-'Hearts Desire II'!R78*SIN(RADIANS(T$4))+T$1,"") ->  | R54: =IF('Hearts Desire II'!R78<>"",('Hearts Desire II'!Q78*SIN(RADIANS(T$4))+'Hearts Desire II'!R78*COS(RADIANS(T$4))*T$3)+T$2,"") ->  | S54: =IF('Hearts Desire II'!S78<>"",'Hearts Desire II'!S78*COS(RADIANS(T$4))-'Hearts Desire II'!T78*SIN(RADIANS(T$4))+T$1,"") ->  | T54: =IF('Hearts Desire II'!T78<>"",('Hearts Desire II'!S78*SIN(RADIANS(T$4))+'Hearts Desire II'!T78*COS(RADIANS(T$4))*T$3)+T$2,"") ->  | V54: =IF('Hearts Desire II'!V78<>"",'Hearts Desire II'!V78*COS(RADIANS(Y$4))-'Hearts Desire II'!W78*SIN(RADIANS(Y$4))+Y$1,"") ->  | W54: =IF('Hearts Desire II'!W78<>"",('Hearts Desire II'!V78*SIN(RADIANS(Y$4))+'Hearts Desire II'!W78*COS(RADIANS(Y$4))*Y$3)+Y$2,"") ->  | X54: =IF('Hearts Desire II'!X78<>"",'Hearts Desire II'!X78*COS(RADIANS(Y$4))-'Hearts Desire II'!Y78*SIN(RADIANS(Y$4))+Y$1,"") ->  | Y54: =IF('Hearts Desire II'!Y78<>"",('Hearts Desire II'!X78*SIN(RADIANS(Y$4))+'Hearts Desire II'!Y78*COS(RADIANS(Y$4))*Y$3)+Y$2,"") -> 
B55: =IF('Hearts Desire II'!B79<>"",'Hearts Desire II'!B79*COS(RADIANS(E$4))-'Hearts Desire II'!C79*SIN(RADIANS(E$4))+E$1,"") ->  | C55: =IF('Hearts Desire II'!C79<>"",('Hearts Desire II'!B79*SIN(RADIANS(E$4))+'Hearts Desire II'!C79*COS(RADIANS(E$4))*E$3)+E$2,"") ->  | D55: =IF('Hearts Desire II'!D79<>"",'Hearts Desire II'!D79*COS(RADIANS(E$4))-'Hearts Desire II'!E79*SIN(RADIANS(E$4))+E$1,"") ->  | E55: =IF('Hearts Desire II'!E79<>"",('Hearts Desire II'!D79*SIN(RADIANS(E$4))+'Hearts Desire II'!E79*COS(RADIANS(E$4))*E$3)+E$2,"") ->  | G55: =IF('Hearts Desire II'!G79<>"",'Hearts Desire II'!G79*COS(RADIANS(J$4))-'Hearts Desire II'!H79*SIN(RADIANS(J$4))+J$1,"") ->  | H55: =IF('Hearts Desire II'!H79<>"",('Hearts Desire II'!G79*SIN(RADIANS(J$4))+'Hearts Desire II'!H79*COS(RADIANS(J$4))*J$3)+J$2,"") ->  | I55: =IF('Hearts Desire II'!I79<>"",'Hearts Desire II'!I79*COS(RADIANS(J$4))-'Hearts Desire II'!J79*SIN(RADIANS(J$4))+J$1,"") ->  | J55: =IF('Hearts Desire II'!J79<>"",('Hearts Desire II'!I79*SIN(RADIANS(J$4))+'Hearts Desire II'!J79*COS(RADIANS(J$4))*J$3)+J$2,"") ->  | L55: =IF('Hearts Desire II'!L79<>"",'Hearts Desire II'!L79*COS(RADIANS(O$4))-'Hearts Desire II'!M79*SIN(RADIANS(O$4))+O$1,"") ->  | M55: =IF('Hearts Desire II'!M79<>"",('Hearts Desire II'!L79*SIN(RADIANS(O$4))+'Hearts Desire II'!M79*COS(RADIANS(O$4))*O$3)+O$2,"") ->  | N55: =IF('Hearts Desire II'!N79<>"",'Hearts Desire II'!N79*COS(RADIANS(O$4))-'Hearts Desire II'!O79*SIN(RADIANS(O$4))+O$1,"") ->  | O55: =IF('Hearts Desire II'!O79<>"",('Hearts Desire II'!N79*SIN(RADIANS(O$4))+'Hearts Desire II'!O79*COS(RADIANS(O$4))*O$3)+O$2,"") ->  | Q55: =IF('Hearts Desire II'!Q79<>"",'Hearts Desire II'!Q79*COS(RADIANS(T$4))-'Hearts Desire II'!R79*SIN(RADIANS(T$4))+T$1,"") ->  | R55: =IF('Hearts Desire II'!R79<>"",('Hearts Desire II'!Q79*SIN(RADIANS(T$4))+'Hearts Desire II'!R79*COS(RADIANS(T$4))*T$3)+T$2,"") ->  | S55: =IF('Hearts Desire II'!S79<>"",'Hearts Desire II'!S79*COS(RADIANS(T$4))-'Hearts Desire II'!T79*SIN(RADIANS(T$4))+T$1,"") ->  | T55: =IF('Hearts Desire II'!T79<>"",('Hearts Desire II'!S79*SIN(RADIANS(T$4))+'Hearts Desire II'!T79*COS(RADIANS(T$4))*T$3)+T$2,"") ->  | V55: =IF('Hearts Desire II'!V79<>"",'Hearts Desire II'!V79*COS(RADIANS(Y$4))-'Hearts Desire II'!W79*SIN(RADIANS(Y$4))+Y$1,"") ->  | W55: =IF('Hearts Desire II'!W79<>"",('Hearts Desire II'!V79*SIN(RADIANS(Y$4))+'Hearts Desire II'!W79*COS(RADIANS(Y$4))*Y$3)+Y$2,"") ->  | X55: =IF('Hearts Desire II'!X79<>"",'Hearts Desire II'!X79*COS(RADIANS(Y$4))-'Hearts Desire II'!Y79*SIN(RADIANS(Y$4))+Y$1,"") ->  | Y55: =IF('Hearts Desire II'!Y79<>"",('Hearts Desire II'!X79*SIN(RADIANS(Y$4))+'Hearts Desire II'!Y79*COS(RADIANS(Y$4))*Y$3)+Y$2,"") -> 
B56: =IF('Hearts Desire II'!B80<>"",'Hearts Desire II'!B80*COS(RADIANS(E$4))-'Hearts Desire II'!C80*SIN(RADIANS(E$4))+E$1,"") ->  | C56: =IF('Hearts Desire II'!C80<>"",('Hearts Desire II'!B80*SIN(RADIANS(E$4))+'Hearts Desire II'!C80*COS(RADIANS(E$4))*E$3)+E$2,"") ->  | D56: =IF('Hearts Desire II'!D80<>"",'Hearts Desire II'!D80*COS(RADIANS(E$4))-'Hearts Desire II'!E80*SIN(RADIANS(E$4))+E$1,"") ->  | E56: =IF('Hearts Desire II'!E80<>"",('Hearts Desire II'!D80*SIN(RADIANS(E$4))+'Hearts Desire II'!E80*COS(RADIANS(E$4))*E$3)+E$2,"") ->  | G56: =IF('Hearts Desire II'!G80<>"",'Hearts Desire II'!G80*COS(RADIANS(J$4))-'Hearts Desire II'!H80*SIN(RADIANS(J$4))+J$1,"") ->  | H56: =IF('Hearts Desire II'!H80<>"",('Hearts Desire II'!G80*SIN(RADIANS(J$4))+'Hearts Desire II'!H80*COS(RADIANS(J$4))*J$3)+J$2,"") ->  | I56: =IF('Hearts Desire II'!I80<>"",'Hearts Desire II'!I80*COS(RADIANS(J$4))-'Hearts Desire II'!J80*SIN(RADIANS(J$4))+J$1,"") ->  | J56: =IF('Hearts Desire II'!J80<>"",('Hearts Desire II'!I80*SIN(RADIANS(J$4))+'Hearts Desire II'!J80*COS(RADIANS(J$4))*J$3)+J$2,"") ->  | L56: =IF('Hearts Desire II'!L80<>"",'Hearts Desire II'!L80*COS(RADIANS(O$4))-'Hearts Desire II'!M80*SIN(RADIANS(O$4))+O$1,"") ->  | M56: =IF('Hearts Desire II'!M80<>"",('Hearts Desire II'!L80*SIN(RADIANS(O$4))+'Hearts Desire II'!M80*COS(RADIANS(O$4))*O$3)+O$2,"") ->  | N56: =IF('Hearts Desire II'!N80<>"",'Hearts Desire II'!N80*COS(RADIANS(O$4))-'Hearts Desire II'!O80*SIN(RADIANS(O$4))+O$1,"") ->  | O56: =IF('Hearts Desire II'!O80<>"",('Hearts Desire II'!N80*SIN(RADIANS(O$4))+'Hearts Desire II'!O80*COS(RADIANS(O$4))*O$3)+O$2,"") ->  | Q56: =IF('Hearts Desire II'!Q80<>"",'Hearts Desire II'!Q80*COS(RADIANS(T$4))-'Hearts Desire II'!R80*SIN(RADIANS(T$4))+T$1,"") ->  | R56: =IF('Hearts Desire II'!R80<>"",('Hearts Desire II'!Q80*SIN(RADIANS(T$4))+'Hearts Desire II'!R80*COS(RADIANS(T$4))*T$3)+T$2,"") ->  | S56: =IF('Hearts Desire II'!S80<>"",'Hearts Desire II'!S80*COS(RADIANS(T$4))-'Hearts Desire II'!T80*SIN(RADIANS(T$4))+T$1,"") ->  | T56: =IF('Hearts Desire II'!T80<>"",('Hearts Desire II'!S80*SIN(RADIANS(T$4))+'Hearts Desire II'!T80*COS(RADIANS(T$4))*T$3)+T$2,"") ->  | V56: =IF('Hearts Desire II'!V80<>"",'Hearts Desire II'!V80*COS(RADIANS(Y$4))-'Hearts Desire II'!W80*SIN(RADIANS(Y$4))+Y$1,"") ->  | W56: =IF('Hearts Desire II'!W80<>"",('Hearts Desire II'!V80*SIN(RADIANS(Y$4))+'Hearts Desire II'!W80*COS(RADIANS(Y$4))*Y$3)+Y$2,"") ->  | X56: =IF('Hearts Desire II'!X80<>"",'Hearts Desire II'!X80*COS(RADIANS(Y$4))-'Hearts Desire II'!Y80*SIN(RADIANS(Y$4))+Y$1,"") ->  | Y56: =IF('Hearts Desire II'!Y80<>"",('Hearts Desire II'!X80*SIN(RADIANS(Y$4))+'Hearts Desire II'!Y80*COS(RADIANS(Y$4))*Y$3)+Y$2,"") -> 
B57: =IF('Hearts Desire II'!B81<>"",'Hearts Desire II'!B81*COS(RADIANS(E$4))-'Hearts Desire II'!C81*SIN(RADIANS(E$4))+E$1,"") ->  | C57: =IF('Hearts Desire II'!C81<>"",('Hearts Desire II'!B81*SIN(RADIANS(E$4))+'Hearts Desire II'!C81*COS(RADIANS(E$4))*E$3)+E$2,"") ->  | D57: =IF('Hearts Desire II'!D81<>"",'Hearts Desire II'!D81*COS(RADIANS(E$4))-'Hearts Desire II'!E81*SIN(RADIANS(E$4))+E$1,"") ->  | E57: =IF('Hearts Desire II'!E81<>"",('Hearts Desire II'!D81*SIN(RADIANS(E$4))+'Hearts Desire II'!E81*COS(RADIANS(E$4))*E$3)+E$2,"") ->  | G57: =IF('Hearts Desire II'!G81<>"",'Hearts Desire II'!G81*COS(RADIANS(J$4))-'Hearts Desire II'!H81*SIN(RADIANS(J$4))+J$1,"") ->  | H57: =IF('Hearts Desire II'!H81<>"",('Hearts Desire II'!G81*SIN(RADIANS(J$4))+'Hearts Desire II'!H81*COS(RADIANS(J$4))*J$3)+J$2,"") ->  | I57: =IF('Hearts Desire II'!I81<>"",'Hearts Desire II'!I81*COS(RADIANS(J$4))-'Hearts Desire II'!J81*SIN(RADIANS(J$4))+J$1,"") ->  | J57: =IF('Hearts Desire II'!J81<>"",('Hearts Desire II'!I81*SIN(RADIANS(J$4))+'Hearts Desire II'!J81*COS(RADIANS(J$4))*J$3)+J$2,"") ->  | L57: =IF('Hearts Desire II'!L81<>"",'Hearts Desire II'!L81*COS(RADIANS(O$4))-'Hearts Desire II'!M81*SIN(RADIANS(O$4))+O$1,"") ->  | M57: =IF('Hearts Desire II'!M81<>"",('Hearts Desire II'!L81*SIN(RADIANS(O$4))+'Hearts Desire II'!M81*COS(RADIANS(O$4))*O$3)+O$2,"") ->  | N57: =IF('Hearts Desire II'!N81<>"",'Hearts Desire II'!N81*COS(RADIANS(O$4))-'Hearts Desire II'!O81*SIN(RADIANS(O$4))+O$1,"") ->  | O57: =IF('Hearts Desire II'!O81<>"",('Hearts Desire II'!N81*SIN(RADIANS(O$4))+'Hearts Desire II'!O81*COS(RADIANS(O$4))*O$3)+O$2,"") ->  | Q57: =IF('Hearts Desire II'!Q81<>"",'Hearts Desire II'!Q81*COS(RADIANS(T$4))-'Hearts Desire II'!R81*SIN(RADIANS(T$4))+T$1,"") ->  | R57: =IF('Hearts Desire II'!R81<>"",('Hearts Desire II'!Q81*SIN(RADIANS(T$4))+'Hearts Desire II'!R81*COS(RADIANS(T$4))*T$3)+T$2,"") ->  | S57: =IF('Hearts Desire II'!S81<>"",'Hearts Desire II'!S81*COS(RADIANS(T$4))-'Hearts Desire II'!T81*SIN(RADIANS(T$4))+T$1,"") ->  | T57: =IF('Hearts Desire II'!T81<>"",('Hearts Desire II'!S81*SIN(RADIANS(T$4))+'Hearts Desire II'!T81*COS(RADIANS(T$4))*T$3)+T$2,"") ->  | V57: =IF('Hearts Desire II'!V81<>"",'Hearts Desire II'!V81*COS(RADIANS(Y$4))-'Hearts Desire II'!W81*SIN(RADIANS(Y$4))+Y$1,"") ->  | W57: =IF('Hearts Desire II'!W81<>"",('Hearts Desire II'!V81*SIN(RADIANS(Y$4))+'Hearts Desire II'!W81*COS(RADIANS(Y$4))*Y$3)+Y$2,"") ->  | X57: =IF('Hearts Desire II'!X81<>"",'Hearts Desire II'!X81*COS(RADIANS(Y$4))-'Hearts Desire II'!Y81*SIN(RADIANS(Y$4))+Y$1,"") ->  | Y57: =IF('Hearts Desire II'!Y81<>"",('Hearts Desire II'!X81*SIN(RADIANS(Y$4))+'Hearts Desire II'!Y81*COS(RADIANS(Y$4))*Y$3)+Y$2,"") -> 
B58: =IF('Hearts Desire II'!B82<>"",'Hearts Desire II'!B82*COS(RADIANS(E$4))-'Hearts Desire II'!C82*SIN(RADIANS(E$4))+E$1,"") ->  | C58: =IF('Hearts Desire II'!C82<>"",('Hearts Desire II'!B82*SIN(RADIANS(E$4))+'Hearts Desire II'!C82*COS(RADIANS(E$4))*E$3)+E$2,"") ->  | D58: =IF('Hearts Desire II'!D82<>"",'Hearts Desire II'!D82*COS(RADIANS(E$4))-'Hearts Desire II'!E82*SIN(RADIANS(E$4))+E$1,"") ->  | E58: =IF('Hearts Desire II'!E82<>"",('Hearts Desire II'!D82*SIN(RADIANS(E$4))+'Hearts Desire II'!E82*COS(RADIANS(E$4))*E$3)+E$2,"") ->  | G58: =IF('Hearts Desire II'!G82<>"",'Hearts Desire II'!G82*COS(RADIANS(J$4))-'Hearts Desire II'!H82*SIN(RADIANS(J$4))+J$1,"") ->  | H58: =IF('Hearts Desire II'!H82<>"",('Hearts Desire II'!G82*SIN(RADIANS(J$4))+'Hearts Desire II'!H82*COS(RADIANS(J$4))*J$3)+J$2,"") ->  | I58: =IF('Hearts Desire II'!I82<>"",'Hearts Desire II'!I82*COS(RADIANS(J$4))-'Hearts Desire II'!J82*SIN(RADIANS(J$4))+J$1,"") ->  | J58: =IF('Hearts Desire II'!J82<>"",('Hearts Desire II'!I82*SIN(RADIANS(J$4))+'Hearts Desire II'!J82*COS(RADIANS(J$4))*J$3)+J$2,"") ->  | L58: =IF('Hearts Desire II'!L82<>"",'Hearts Desire II'!L82*COS(RADIANS(O$4))-'Hearts Desire II'!M82*SIN(RADIANS(O$4))+O$1,"") ->  | M58: =IF('Hearts Desire II'!M82<>"",('Hearts Desire II'!L82*SIN(RADIANS(O$4))+'Hearts Desire II'!M82*COS(RADIANS(O$4))*O$3)+O$2,"") ->  | N58: =IF('Hearts Desire II'!N82<>"",'Hearts Desire II'!N82*COS(RADIANS(O$4))-'Hearts Desire II'!O82*SIN(RADIANS(O$4))+O$1,"") ->  | O58: =IF('Hearts Desire II'!O82<>"",('Hearts Desire II'!N82*SIN(RADIANS(O$4))+'Hearts Desire II'!O82*COS(RADIANS(O$4))*O$3)+O$2,"") ->  | Q58: =IF('Hearts Desire II'!Q82<>"",'Hearts Desire II'!Q82*COS(RADIANS(T$4))-'Hearts Desire II'!R82*SIN(RADIANS(T$4))+T$1,"") ->  | R58: =IF('Hearts Desire II'!R82<>"",('Hearts Desire II'!Q82*SIN(RADIANS(T$4))+'Hearts Desire II'!R82*COS(RADIANS(T$4))*T$3)+T$2,"") ->  | S58: =IF('Hearts Desire II'!S82<>"",'Hearts Desire II'!S82*COS(RADIANS(T$4))-'Hearts Desire II'!T82*SIN(RADIANS(T$4))+T$1,"") ->  | T58: =IF('Hearts Desire II'!T82<>"",('Hearts Desire II'!S82*SIN(RADIANS(T$4))+'Hearts Desire II'!T82*COS(RADIANS(T$4))*T$3)+T$2,"") ->  | V58: =IF('Hearts Desire II'!V82<>"",'Hearts Desire II'!V82*COS(RADIANS(Y$4))-'Hearts Desire II'!W82*SIN(RADIANS(Y$4))+Y$1,"") ->  | W58: =IF('Hearts Desire II'!W82<>"",('Hearts Desire II'!V82*SIN(RADIANS(Y$4))+'Hearts Desire II'!W82*COS(RADIANS(Y$4))*Y$3)+Y$2,"") ->  | X58: =IF('Hearts Desire II'!X82<>"",'Hearts Desire II'!X82*COS(RADIANS(Y$4))-'Hearts Desire II'!Y82*SIN(RADIANS(Y$4))+Y$1,"") ->  | Y58: =IF('Hearts Desire II'!Y82<>"",('Hearts Desire II'!X82*SIN(RADIANS(Y$4))+'Hearts Desire II'!Y82*COS(RADIANS(Y$4))*Y$3)+Y$2,"") -> 
B59: =IF('Hearts Desire II'!B83<>"",'Hearts Desire II'!B83*COS(RADIANS(E$4))-'Hearts Desire II'!C83*SIN(RADIANS(E$4))+E$1,"") ->  | C59: =IF('Hearts Desire II'!C83<>"",('Hearts Desire II'!B83*SIN(RADIANS(E$4))+'Hearts Desire II'!C83*COS(RADIANS(E$4))*E$3)+E$2,"") ->  | D59: =IF('Hearts Desire II'!D83<>"",'Hearts Desire II'!D83*COS(RADIANS(E$4))-'Hearts Desire II'!E83*SIN(RADIANS(E$4))+E$1,"") ->  | E59: =IF('Hearts Desire II'!E83<>"",('Hearts Desire II'!D83*SIN(RADIANS(E$4))+'Hearts Desire II'!E83*COS(RADIANS(E$4))*E$3)+E$2,"") ->  | G59: =IF('Hearts Desire II'!G83<>"",'Hearts Desire II'!G83*COS(RADIANS(J$4))-'Hearts Desire II'!H83*SIN(RADIANS(J$4))+J$1,"") ->  | H59: =IF('Hearts Desire II'!H83<>"",('Hearts Desire II'!G83*SIN(RADIANS(J$4))+'Hearts Desire II'!H83*COS(RADIANS(J$4))*J$3)+J$2,"") ->  | I59: =IF('Hearts Desire II'!I83<>"",'Hearts Desire II'!I83*COS(RADIANS(J$4))-'Hearts Desire II'!J83*SIN(RADIANS(J$4))+J$1,"") ->  | J59: =IF('Hearts Desire II'!J83<>"",('Hearts Desire II'!I83*SIN(RADIANS(J$4))+'Hearts Desire II'!J83*COS(RADIANS(J$4))*J$3)+J$2,"") ->  | L59: =IF('Hearts Desire II'!L83<>"",'Hearts Desire II'!L83*COS(RADIANS(O$4))-'Hearts Desire II'!M83*SIN(RADIANS(O$4))+O$1,"") ->  | M59: =IF('Hearts Desire II'!M83<>"",('Hearts Desire II'!L83*SIN(RADIANS(O$4))+'Hearts Desire II'!M83*COS(RADIANS(O$4))*O$3)+O$2,"") ->  | N59: =IF('Hearts Desire II'!N83<>"",'Hearts Desire II'!N83*COS(RADIANS(O$4))-'Hearts Desire II'!O83*SIN(RADIANS(O$4))+O$1,"") ->  | O59: =IF('Hearts Desire II'!O83<>"",('Hearts Desire II'!N83*SIN(RADIANS(O$4))+'Hearts Desire II'!O83*COS(RADIANS(O$4))*O$3)+O$2,"") ->  | Q59: =IF('Hearts Desire II'!Q83<>"",'Hearts Desire II'!Q83*COS(RADIANS(T$4))-'Hearts Desire II'!R83*SIN(RADIANS(T$4))+T$1,"") ->  | R59: =IF('Hearts Desire II'!R83<>"",('Hearts Desire II'!Q83*SIN(RADIANS(T$4))+'Hearts Desire II'!R83*COS(RADIANS(T$4))*T$3)+T$2,"") ->  | S59: =IF('Hearts Desire II'!S83<>"",'Hearts Desire II'!S83*COS(RADIANS(T$4))-'Hearts Desire II'!T83*SIN(RADIANS(T$4))+T$1,"") ->  | T59: =IF('Hearts Desire II'!T83<>"",('Hearts Desire II'!S83*SIN(RADIANS(T$4))+'Hearts Desire II'!T83*COS(RADIANS(T$4))*T$3)+T$2,"") ->  | V59: =IF('Hearts Desire II'!V83<>"",'Hearts Desire II'!V83*COS(RADIANS(Y$4))-'Hearts Desire II'!W83*SIN(RADIANS(Y$4))+Y$1,"") ->  | W59: =IF('Hearts Desire II'!W83<>"",('Hearts Desire II'!V83*SIN(RADIANS(Y$4))+'Hearts Desire II'!W83*COS(RADIANS(Y$4))*Y$3)+Y$2,"") ->  | X59: =IF('Hearts Desire II'!X83<>"",'Hearts Desire II'!X83*COS(RADIANS(Y$4))-'Hearts Desire II'!Y83*SIN(RADIANS(Y$4))+Y$1,"") ->  | Y59: =IF('Hearts Desire II'!Y83<>"",('Hearts Desire II'!X83*SIN(RADIANS(Y$4))+'Hearts Desire II'!Y83*COS(RADIANS(Y$4))*Y$3)+Y$2,"") -> 
B60: =IF('Hearts Desire II'!B84<>"",'Hearts Desire II'!B84*COS(RADIANS(E$4))-'Hearts Desire II'!C84*SIN(RADIANS(E$4))+E$1,"") ->  | C60: =IF('Hearts Desire II'!C84<>"",('Hearts Desire II'!B84*SIN(RADIANS(E$4))+'Hearts Desire II'!C84*COS(RADIANS(E$4))*E$3)+E$2,"") ->  | D60: =IF('Hearts Desire II'!D84<>"",'Hearts Desire II'!D84*COS(RADIANS(E$4))-'Hearts Desire II'!E84*SIN(RADIANS(E$4))+E$1,"") ->  | E60: =IF('Hearts Desire II'!E84<>"",('Hearts Desire II'!D84*SIN(RADIANS(E$4))+'Hearts Desire II'!E84*COS(RADIANS(E$4))*E$3)+E$2,"") ->  | G60: =IF('Hearts Desire II'!G84<>"",'Hearts Desire II'!G84*COS(RADIANS(J$4))-'Hearts Desire II'!H84*SIN(RADIANS(J$4))+J$1,"") ->  | H60: =IF('Hearts Desire II'!H84<>"",('Hearts Desire II'!G84*SIN(RADIANS(J$4))+'Hearts Desire II'!H84*COS(RADIANS(J$4))*J$3)+J$2,"") ->  | I60: =IF('Hearts Desire II'!I84<>"",'Hearts Desire II'!I84*COS(RADIANS(J$4))-'Hearts Desire II'!J84*SIN(RADIANS(J$4))+J$1,"") ->  | J60: =IF('Hearts Desire II'!J84<>"",('Hearts Desire II'!I84*SIN(RADIANS(J$4))+'Hearts Desire II'!J84*COS(RADIANS(J$4))*J$3)+J$2,"") ->  | L60: =IF('Hearts Desire II'!L84<>"",'Hearts Desire II'!L84*COS(RADIANS(O$4))-'Hearts Desire II'!M84*SIN(RADIANS(O$4))+O$1,"") ->  | M60: =IF('Hearts Desire II'!M84<>"",('Hearts Desire II'!L84*SIN(RADIANS(O$4))+'Hearts Desire II'!M84*COS(RADIANS(O$4))*O$3)+O$2,"") ->  | N60: =IF('Hearts Desire II'!N84<>"",'Hearts Desire II'!N84*COS(RADIANS(O$4))-'Hearts Desire II'!O84*SIN(RADIANS(O$4))+O$1,"") ->  | O60: =IF('Hearts Desire II'!O84<>"",('Hearts Desire II'!N84*SIN(RADIANS(O$4))+'Hearts Desire II'!O84*COS(RADIANS(O$4))*O$3)+O$2,"") ->  | Q60: =IF('Hearts Desire II'!Q84<>"",'Hearts Desire II'!Q84*COS(RADIANS(T$4))-'Hearts Desire II'!R84*SIN(RADIANS(T$4))+T$1,"") ->  | R60: =IF('Hearts Desire II'!R84<>"",('Hearts Desire II'!Q84*SIN(RADIANS(T$4))+'Hearts Desire II'!R84*COS(RADIANS(T$4))*T$3)+T$2,"") ->  | S60: =IF('Hearts Desire II'!S84<>"",'Hearts Desire II'!S84*COS(RADIANS(T$4))-'Hearts Desire II'!T84*SIN(RADIANS(T$4))+T$1,"") ->  | T60: =IF('Hearts Desire II'!T84<>"",('Hearts Desire II'!S84*SIN(RADIANS(T$4))+'Hearts Desire II'!T84*COS(RADIANS(T$4))*T$3)+T$2,"") ->  | V60: =IF('Hearts Desire II'!V84<>"",'Hearts Desire II'!V84*COS(RADIANS(Y$4))-'Hearts Desire II'!W84*SIN(RADIANS(Y$4))+Y$1,"") ->  | W60: =IF('Hearts Desire II'!W84<>"",('Hearts Desire II'!V84*SIN(RADIANS(Y$4))+'Hearts Desire II'!W84*COS(RADIANS(Y$4))*Y$3)+Y$2,"") ->  | X60: =IF('Hearts Desire II'!X84<>"",'Hearts Desire II'!X84*COS(RADIANS(Y$4))-'Hearts Desire II'!Y84*SIN(RADIANS(Y$4))+Y$1,"") ->  | Y60: =IF('Hearts Desire II'!Y84<>"",('Hearts Desire II'!X84*SIN(RADIANS(Y$4))+'Hearts Desire II'!Y84*COS(RADIANS(Y$4))*Y$3)+Y$2,"") -> 
B61: =IF('Hearts Desire II'!B85<>"",'Hearts Desire II'!B85*COS(RADIANS(E$4))-'Hearts Desire II'!C85*SIN(RADIANS(E$4))+E$1,"") ->  | C61: =IF('Hearts Desire II'!C85<>"",('Hearts Desire II'!B85*SIN(RADIANS(E$4))+'Hearts Desire II'!C85*COS(RADIANS(E$4))*E$3)+E$2,"") ->  | D61: =IF('Hearts Desire II'!D85<>"",'Hearts Desire II'!D85*COS(RADIANS(E$4))-'Hearts Desire II'!E85*SIN(RADIANS(E$4))+E$1,"") ->  | E61: =IF('Hearts Desire II'!E85<>"",('Hearts Desire II'!D85*SIN(RADIANS(E$4))+'Hearts Desire II'!E85*COS(RADIANS(E$4))*E$3)+E$2,"") ->  | G61: =IF('Hearts Desire II'!G85<>"",'Hearts Desire II'!G85*COS(RADIANS(J$4))-'Hearts Desire II'!H85*SIN(RADIANS(J$4))+J$1,"") ->  | H61: =IF('Hearts Desire II'!H85<>"",('Hearts Desire II'!G85*SIN(RADIANS(J$4))+'Hearts Desire II'!H85*COS(RADIANS(J$4))*J$3)+J$2,"") ->  | I61: =IF('Hearts Desire II'!I85<>"",'Hearts Desire II'!I85*COS(RADIANS(J$4))-'Hearts Desire II'!J85*SIN(RADIANS(J$4))+J$1,"") ->  | J61: =IF('Hearts Desire II'!J85<>"",('Hearts Desire II'!I85*SIN(RADIANS(J$4))+'Hearts Desire II'!J85*COS(RADIANS(J$4))*J$3)+J$2,"") ->  | L61: =IF('Hearts Desire II'!L85<>"",'Hearts Desire II'!L85*COS(RADIANS(O$4))-'Hearts Desire II'!M85*SIN(RADIANS(O$4))+O$1,"") ->  | M61: =IF('Hearts Desire II'!M85<>"",('Hearts Desire II'!L85*SIN(RADIANS(O$4))+'Hearts Desire II'!M85*COS(RADIANS(O$4))*O$3)+O$2,"") ->  | N61: =IF('Hearts Desire II'!N85<>"",'Hearts Desire II'!N85*COS(RADIANS(O$4))-'Hearts Desire II'!O85*SIN(RADIANS(O$4))+O$1,"") ->  | O61: =IF('Hearts Desire II'!O85<>"",('Hearts Desire II'!N85*SIN(RADIANS(O$4))+'Hearts Desire II'!O85*COS(RADIANS(O$4))*O$3)+O$2,"") ->  | Q61: =IF('Hearts Desire II'!Q85<>"",'Hearts Desire II'!Q85*COS(RADIANS(T$4))-'Hearts Desire II'!R85*SIN(RADIANS(T$4))+T$1,"") ->  | R61: =IF('Hearts Desire II'!R85<>"",('Hearts Desire II'!Q85*SIN(RADIANS(T$4))+'Hearts Desire II'!R85*COS(RADIANS(T$4))*T$3)+T$2,"") ->  | S61: =IF('Hearts Desire II'!S85<>"",'Hearts Desire II'!S85*COS(RADIANS(T$4))-'Hearts Desire II'!T85*SIN(RADIANS(T$4))+T$1,"") ->  | T61: =IF('Hearts Desire II'!T85<>"",('Hearts Desire II'!S85*SIN(RADIANS(T$4))+'Hearts Desire II'!T85*COS(RADIANS(T$4))*T$3)+T$2,"") ->  | V61: =IF('Hearts Desire II'!V85<>"",'Hearts Desire II'!V85*COS(RADIANS(Y$4))-'Hearts Desire II'!W85*SIN(RADIANS(Y$4))+Y$1,"") ->  | W61: =IF('Hearts Desire II'!W85<>"",('Hearts Desire II'!V85*SIN(RADIANS(Y$4))+'Hearts Desire II'!W85*COS(RADIANS(Y$4))*Y$3)+Y$2,"") ->  | X61: =IF('Hearts Desire II'!X85<>"",'Hearts Desire II'!X85*COS(RADIANS(Y$4))-'Hearts Desire II'!Y85*SIN(RADIANS(Y$4))+Y$1,"") ->  | Y61: =IF('Hearts Desire II'!Y85<>"",('Hearts Desire II'!X85*SIN(RADIANS(Y$4))+'Hearts Desire II'!Y85*COS(RADIANS(Y$4))*Y$3)+Y$2,"") -> 
B62: =IF('Hearts Desire II'!B86<>"",'Hearts Desire II'!B86*COS(RADIANS(E$4))-'Hearts Desire II'!C86*SIN(RADIANS(E$4))+E$1,"") ->  | C62: =IF('Hearts Desire II'!C86<>"",('Hearts Desire II'!B86*SIN(RADIANS(E$4))+'Hearts Desire II'!C86*COS(RADIANS(E$4))*E$3)+E$2,"") ->  | D62: =IF('Hearts Desire II'!D86<>"",'Hearts Desire II'!D86*COS(RADIANS(E$4))-'Hearts Desire II'!E86*SIN(RADIANS(E$4))+E$1,"") ->  | E62: =IF('Hearts Desire II'!E86<>"",('Hearts Desire II'!D86*SIN(RADIANS(E$4))+'Hearts Desire II'!E86*COS(RADIANS(E$4))*E$3)+E$2,"") ->  | G62: =IF('Hearts Desire II'!G86<>"",'Hearts Desire II'!G86*COS(RADIANS(J$4))-'Hearts Desire II'!H86*SIN(RADIANS(J$4))+J$1,"") ->  | H62: =IF('Hearts Desire II'!H86<>"",('Hearts Desire II'!G86*SIN(RADIANS(J$4))+'Hearts Desire II'!H86*COS(RADIANS(J$4))*J$3)+J$2,"") ->  | I62: =IF('Hearts Desire II'!I86<>"",'Hearts Desire II'!I86*COS(RADIANS(J$4))-'Hearts Desire II'!J86*SIN(RADIANS(J$4))+J$1,"") ->  | J62: =IF('Hearts Desire II'!J86<>"",('Hearts Desire II'!I86*SIN(RADIANS(J$4))+'Hearts Desire II'!J86*COS(RADIANS(J$4))*J$3)+J$2,"") ->  | L62: =IF('Hearts Desire II'!L86<>"",'Hearts Desire II'!L86*COS(RADIANS(O$4))-'Hearts Desire II'!M86*SIN(RADIANS(O$4))+O$1,"") ->  | M62: =IF('Hearts Desire II'!M86<>"",('Hearts Desire II'!L86*SIN(RADIANS(O$4))+'Hearts Desire II'!M86*COS(RADIANS(O$4))*O$3)+O$2,"") ->  | N62: =IF('Hearts Desire II'!N86<>"",'Hearts Desire II'!N86*COS(RADIANS(O$4))-'Hearts Desire II'!O86*SIN(RADIANS(O$4))+O$1,"") ->  | O62: =IF('Hearts Desire II'!O86<>"",('Hearts Desire II'!N86*SIN(RADIANS(O$4))+'Hearts Desire II'!O86*COS(RADIANS(O$4))*O$3)+O$2,"") ->  | Q62: =IF('Hearts Desire II'!Q86<>"",'Hearts Desire II'!Q86*COS(RADIANS(T$4))-'Hearts Desire II'!R86*SIN(RADIANS(T$4))+T$1,"") ->  | R62: =IF('Hearts Desire II'!R86<>"",('Hearts Desire II'!Q86*SIN(RADIANS(T$4))+'Hearts Desire II'!R86*COS(RADIANS(T$4))*T$3)+T$2,"") ->  | S62: =IF('Hearts Desire II'!S86<>"",'Hearts Desire II'!S86*COS(RADIANS(T$4))-'Hearts Desire II'!T86*SIN(RADIANS(T$4))+T$1,"") ->  | T62: =IF('Hearts Desire II'!T86<>"",('Hearts Desire II'!S86*SIN(RADIANS(T$4))+'Hearts Desire II'!T86*COS(RADIANS(T$4))*T$3)+T$2,"") ->  | V62: =IF('Hearts Desire II'!V86<>"",'Hearts Desire II'!V86*COS(RADIANS(Y$4))-'Hearts Desire II'!W86*SIN(RADIANS(Y$4))+Y$1,"") ->  | W62: =IF('Hearts Desire II'!W86<>"",('Hearts Desire II'!V86*SIN(RADIANS(Y$4))+'Hearts Desire II'!W86*COS(RADIANS(Y$4))*Y$3)+Y$2,"") ->  | X62: =IF('Hearts Desire II'!X86<>"",'Hearts Desire II'!X86*COS(RADIANS(Y$4))-'Hearts Desire II'!Y86*SIN(RADIANS(Y$4))+Y$1,"") ->  | Y62: =IF('Hearts Desire II'!Y86<>"",('Hearts Desire II'!X86*SIN(RADIANS(Y$4))+'Hearts Desire II'!Y86*COS(RADIANS(Y$4))*Y$3)+Y$2,"") -> 
B63: =IF('Hearts Desire II'!B87<>"",'Hearts Desire II'!B87*COS(RADIANS(E$4))-'Hearts Desire II'!C87*SIN(RADIANS(E$4))+E$1,"") ->  | C63: =IF('Hearts Desire II'!C87<>"",('Hearts Desire II'!B87*SIN(RADIANS(E$4))+'Hearts Desire II'!C87*COS(RADIANS(E$4))*E$3)+E$2,"") ->  | D63: =IF('Hearts Desire II'!D87<>"",'Hearts Desire II'!D87*COS(RADIANS(E$4))-'Hearts Desire II'!E87*SIN(RADIANS(E$4))+E$1,"") ->  | E63: =IF('Hearts Desire II'!E87<>"",('Hearts Desire II'!D87*SIN(RADIANS(E$4))+'Hearts Desire II'!E87*COS(RADIANS(E$4))*E$3)+E$2,"") ->  | G63: =IF('Hearts Desire II'!G87<>"",'Hearts Desire II'!G87*COS(RADIANS(J$4))-'Hearts Desire II'!H87*SIN(RADIANS(J$4))+J$1,"") ->  | H63: =IF('Hearts Desire II'!H87<>"",('Hearts Desire II'!G87*SIN(RADIANS(J$4))+'Hearts Desire II'!H87*COS(RADIANS(J$4))*J$3)+J$2,"") ->  | I63: =IF('Hearts Desire II'!I87<>"",'Hearts Desire II'!I87*COS(RADIANS(J$4))-'Hearts Desire II'!J87*SIN(RADIANS(J$4))+J$1,"") ->  | J63: =IF('Hearts Desire II'!J87<>"",('Hearts Desire II'!I87*SIN(RADIANS(J$4))+'Hearts Desire II'!J87*COS(RADIANS(J$4))*J$3)+J$2,"") ->  | L63: =IF('Hearts Desire II'!L87<>"",'Hearts Desire II'!L87*COS(RADIANS(O$4))-'Hearts Desire II'!M87*SIN(RADIANS(O$4))+O$1,"") ->  | M63: =IF('Hearts Desire II'!M87<>"",('Hearts Desire II'!L87*SIN(RADIANS(O$4))+'Hearts Desire II'!M87*COS(RADIANS(O$4))*O$3)+O$2,"") ->  | N63: =IF('Hearts Desire II'!N87<>"",'Hearts Desire II'!N87*COS(RADIANS(O$4))-'Hearts Desire II'!O87*SIN(RADIANS(O$4))+O$1,"") ->  | O63: =IF('Hearts Desire II'!O87<>"",('Hearts Desire II'!N87*SIN(RADIANS(O$4))+'Hearts Desire II'!O87*COS(RADIANS(O$4))*O$3)+O$2,"") ->  | Q63: =IF('Hearts Desire II'!Q87<>"",'Hearts Desire II'!Q87*COS(RADIANS(T$4))-'Hearts Desire II'!R87*SIN(RADIANS(T$4))+T$1,"") ->  | R63: =IF('Hearts Desire II'!R87<>"",('Hearts Desire II'!Q87*SIN(RADIANS(T$4))+'Hearts Desire II'!R87*COS(RADIANS(T$4))*T$3)+T$2,"") ->  | S63: =IF('Hearts Desire II'!S87<>"",'Hearts Desire II'!S87*COS(RADIANS(T$4))-'Hearts Desire II'!T87*SIN(RADIANS(T$4))+T$1,"") ->  | T63: =IF('Hearts Desire II'!T87<>"",('Hearts Desire II'!S87*SIN(RADIANS(T$4))+'Hearts Desire II'!T87*COS(RADIANS(T$4))*T$3)+T$2,"") ->  | V63: =IF('Hearts Desire II'!V87<>"",'Hearts Desire II'!V87*COS(RADIANS(Y$4))-'Hearts Desire II'!W87*SIN(RADIANS(Y$4))+Y$1,"") ->  | W63: =IF('Hearts Desire II'!W87<>"",('Hearts Desire II'!V87*SIN(RADIANS(Y$4))+'Hearts Desire II'!W87*COS(RADIANS(Y$4))*Y$3)+Y$2,"") ->  | X63: =IF('Hearts Desire II'!X87<>"",'Hearts Desire II'!X87*COS(RADIANS(Y$4))-'Hearts Desire II'!Y87*SIN(RADIANS(Y$4))+Y$1,"") ->  | Y63: =IF('Hearts Desire II'!Y87<>"",('Hearts Desire II'!X87*SIN(RADIANS(Y$4))+'Hearts Desire II'!Y87*COS(RADIANS(Y$4))*Y$3)+Y$2,"") -> 
B64: =IF('Hearts Desire II'!B88<>"",'Hearts Desire II'!B88*COS(RADIANS(E$4))-'Hearts Desire II'!C88*SIN(RADIANS(E$4))+E$1,"") ->  | C64: =IF('Hearts Desire II'!C88<>"",('Hearts Desire II'!B88*SIN(RADIANS(E$4))+'Hearts Desire II'!C88*COS(RADIANS(E$4))*E$3)+E$2,"") ->  | D64: =IF('Hearts Desire II'!D88<>"",'Hearts Desire II'!D88*COS(RADIANS(E$4))-'Hearts Desire II'!E88*SIN(RADIANS(E$4))+E$1,"") ->  | E64: =IF('Hearts Desire II'!E88<>"",('Hearts Desire II'!D88*SIN(RADIANS(E$4))+'Hearts Desire II'!E88*COS(RADIANS(E$4))*E$3)+E$2,"") ->  | G64: =IF('Hearts Desire II'!G88<>"",'Hearts Desire II'!G88*COS(RADIANS(J$4))-'Hearts Desire II'!H88*SIN(RADIANS(J$4))+J$1,"") ->  | H64: =IF('Hearts Desire II'!H88<>"",('Hearts Desire II'!G88*SIN(RADIANS(J$4))+'Hearts Desire II'!H88*COS(RADIANS(J$4))*J$3)+J$2,"") ->  | I64: =IF('Hearts Desire II'!I88<>"",'Hearts Desire II'!I88*COS(RADIANS(J$4))-'Hearts Desire II'!J88*SIN(RADIANS(J$4))+J$1,"") ->  | J64: =IF('Hearts Desire II'!J88<>"",('Hearts Desire II'!I88*SIN(RADIANS(J$4))+'Hearts Desire II'!J88*COS(RADIANS(J$4))*J$3)+J$2,"") ->  | L64: =IF('Hearts Desire II'!L88<>"",'Hearts Desire II'!L88*COS(RADIANS(O$4))-'Hearts Desire II'!M88*SIN(RADIANS(O$4))+O$1,"") ->  | M64: =IF('Hearts Desire II'!M88<>"",('Hearts Desire II'!L88*SIN(RADIANS(O$4))+'Hearts Desire II'!M88*COS(RADIANS(O$4))*O$3)+O$2,"") ->  | N64: =IF('Hearts Desire II'!N88<>"",'Hearts Desire II'!N88*COS(RADIANS(O$4))-'Hearts Desire II'!O88*SIN(RADIANS(O$4))+O$1,"") ->  | O64: =IF('Hearts Desire II'!O88<>"",('Hearts Desire II'!N88*SIN(RADIANS(O$4))+'Hearts Desire II'!O88*COS(RADIANS(O$4))*O$3)+O$2,"") ->  | Q64: =IF('Hearts Desire II'!Q88<>"",'Hearts Desire II'!Q88*COS(RADIANS(T$4))-'Hearts Desire II'!R88*SIN(RADIANS(T$4))+T$1,"") ->  | R64: =IF('Hearts Desire II'!R88<>"",('Hearts Desire II'!Q88*SIN(RADIANS(T$4))+'Hearts Desire II'!R88*COS(RADIANS(T$4))*T$3)+T$2,"") ->  | S64: =IF('Hearts Desire II'!S88<>"",'Hearts Desire II'!S88*COS(RADIANS(T$4))-'Hearts Desire II'!T88*SIN(RADIANS(T$4))+T$1,"") ->  | T64: =IF('Hearts Desire II'!T88<>"",('Hearts Desire II'!S88*SIN(RADIANS(T$4))+'Hearts Desire II'!T88*COS(RADIANS(T$4))*T$3)+T$2,"") ->  | V64: =IF('Hearts Desire II'!V88<>"",'Hearts Desire II'!V88*COS(RADIANS(Y$4))-'Hearts Desire II'!W88*SIN(RADIANS(Y$4))+Y$1,"") ->  | W64: =IF('Hearts Desire II'!W88<>"",('Hearts Desire II'!V88*SIN(RADIANS(Y$4))+'Hearts Desire II'!W88*COS(RADIANS(Y$4))*Y$3)+Y$2,"") ->  | X64: =IF('Hearts Desire II'!X88<>"",'Hearts Desire II'!X88*COS(RADIANS(Y$4))-'Hearts Desire II'!Y88*SIN(RADIANS(Y$4))+Y$1,"") ->  | Y64: =IF('Hearts Desire II'!Y88<>"",('Hearts Desire II'!X88*SIN(RADIANS(Y$4))+'Hearts Desire II'!Y88*COS(RADIANS(Y$4))*Y$3)+Y$2,"") -> 
B65: =IF('Hearts Desire II'!B89<>"",'Hearts Desire II'!B89*COS(RADIANS(E$4))-'Hearts Desire II'!C89*SIN(RADIANS(E$4))+E$1,"") ->  | C65: =IF('Hearts Desire II'!C89<>"",('Hearts Desire II'!B89*SIN(RADIANS(E$4))+'Hearts Desire II'!C89*COS(RADIANS(E$4))*E$3)+E$2,"") ->  | D65: =IF('Hearts Desire II'!D89<>"",'Hearts Desire II'!D89*COS(RADIANS(E$4))-'Hearts Desire II'!E89*SIN(RADIANS(E$4))+E$1,"") ->  | E65: =IF('Hearts Desire II'!E89<>"",('Hearts Desire II'!D89*SIN(RADIANS(E$4))+'Hearts Desire II'!E89*COS(RADIANS(E$4))*E$3)+E$2,"") ->  | G65: =IF('Hearts Desire II'!G89<>"",'Hearts Desire II'!G89*COS(RADIANS(J$4))-'Hearts Desire II'!H89*SIN(RADIANS(J$4))+J$1,"") ->  | H65: =IF('Hearts Desire II'!H89<>"",('Hearts Desire II'!G89*SIN(RADIANS(J$4))+'Hearts Desire II'!H89*COS(RADIANS(J$4))*J$3)+J$2,"") ->  | I65: =IF('Hearts Desire II'!I89<>"",'Hearts Desire II'!I89*COS(RADIANS(J$4))-'Hearts Desire II'!J89*SIN(RADIANS(J$4))+J$1,"") ->  | J65: =IF('Hearts Desire II'!J89<>"",('Hearts Desire II'!I89*SIN(RADIANS(J$4))+'Hearts Desire II'!J89*COS(RADIANS(J$4))*J$3)+J$2,"") ->  | L65: =IF('Hearts Desire II'!L89<>"",'Hearts Desire II'!L89*COS(RADIANS(O$4))-'Hearts Desire II'!M89*SIN(RADIANS(O$4))+O$1,"") ->  | M65: =IF('Hearts Desire II'!M89<>"",('Hearts Desire II'!L89*SIN(RADIANS(O$4))+'Hearts Desire II'!M89*COS(RADIANS(O$4))*O$3)+O$2,"") ->  | N65: =IF('Hearts Desire II'!N89<>"",'Hearts Desire II'!N89*COS(RADIANS(O$4))-'Hearts Desire II'!O89*SIN(RADIANS(O$4))+O$1,"") ->  | O65: =IF('Hearts Desire II'!O89<>"",('Hearts Desire II'!N89*SIN(RADIANS(O$4))+'Hearts Desire II'!O89*COS(RADIANS(O$4))*O$3)+O$2,"") ->  | Q65: =IF('Hearts Desire II'!Q89<>"",'Hearts Desire II'!Q89*COS(RADIANS(T$4))-'Hearts Desire II'!R89*SIN(RADIANS(T$4))+T$1,"") ->  | R65: =IF('Hearts Desire II'!R89<>"",('Hearts Desire II'!Q89*SIN(RADIANS(T$4))+'Hearts Desire II'!R89*COS(RADIANS(T$4))*T$3)+T$2,"") ->  | S65: =IF('Hearts Desire II'!S89<>"",'Hearts Desire II'!S89*COS(RADIANS(T$4))-'Hearts Desire II'!T89*SIN(RADIANS(T$4))+T$1,"") ->  | T65: =IF('Hearts Desire II'!T89<>"",('Hearts Desire II'!S89*SIN(RADIANS(T$4))+'Hearts Desire II'!T89*COS(RADIANS(T$4))*T$3)+T$2,"") ->  | V65: =IF('Hearts Desire II'!V89<>"",'Hearts Desire II'!V89*COS(RADIANS(Y$4))-'Hearts Desire II'!W89*SIN(RADIANS(Y$4))+Y$1,"") ->  | W65: =IF('Hearts Desire II'!W89<>"",('Hearts Desire II'!V89*SIN(RADIANS(Y$4))+'Hearts Desire II'!W89*COS(RADIANS(Y$4))*Y$3)+Y$2,"") ->  | X65: =IF('Hearts Desire II'!X89<>"",'Hearts Desire II'!X89*COS(RADIANS(Y$4))-'Hearts Desire II'!Y89*SIN(RADIANS(Y$4))+Y$1,"") ->  | Y65: =IF('Hearts Desire II'!Y89<>"",('Hearts Desire II'!X89*SIN(RADIANS(Y$4))+'Hearts Desire II'!Y89*COS(RADIANS(Y$4))*Y$3)+Y$2,"") -> 
B66: =IF('Hearts Desire II'!B90<>"",'Hearts Desire II'!B90*COS(RADIANS(E$4))-'Hearts Desire II'!C90*SIN(RADIANS(E$4))+E$1,"") ->  | C66: =IF('Hearts Desire II'!C90<>"",('Hearts Desire II'!B90*SIN(RADIANS(E$4))+'Hearts Desire II'!C90*COS(RADIANS(E$4))*E$3)+E$2,"") ->  | D66: =IF('Hearts Desire II'!D90<>"",'Hearts Desire II'!D90*COS(RADIANS(E$4))-'Hearts Desire II'!E90*SIN(RADIANS(E$4))+E$1,"") ->  | E66: =IF('Hearts Desire II'!E90<>"",('Hearts Desire II'!D90*SIN(RADIANS(E$4))+'Hearts Desire II'!E90*COS(RADIANS(E$4))*E$3)+E$2,"") ->  | G66: =IF('Hearts Desire II'!G90<>"",'Hearts Desire II'!G90*COS(RADIANS(J$4))-'Hearts Desire II'!H90*SIN(RADIANS(J$4))+J$1,"") ->  | H66: =IF('Hearts Desire II'!H90<>"",('Hearts Desire II'!G90*SIN(RADIANS(J$4))+'Hearts Desire II'!H90*COS(RADIANS(J$4))*J$3)+J$2,"") ->  | I66: =IF('Hearts Desire II'!I90<>"",'Hearts Desire II'!I90*COS(RADIANS(J$4))-'Hearts Desire II'!J90*SIN(RADIANS(J$4))+J$1,"") ->  | J66: =IF('Hearts Desire II'!J90<>"",('Hearts Desire II'!I90*SIN(RADIANS(J$4))+'Hearts Desire II'!J90*COS(RADIANS(J$4))*J$3)+J$2,"") ->  | L66: =IF('Hearts Desire II'!L90<>"",'Hearts Desire II'!L90*COS(RADIANS(O$4))-'Hearts Desire II'!M90*SIN(RADIANS(O$4))+O$1,"") ->  | M66: =IF('Hearts Desire II'!M90<>"",('Hearts Desire II'!L90*SIN(RADIANS(O$4))+'Hearts Desire II'!M90*COS(RADIANS(O$4))*O$3)+O$2,"") ->  | N66: =IF('Hearts Desire II'!N90<>"",'Hearts Desire II'!N90*COS(RADIANS(O$4))-'Hearts Desire II'!O90*SIN(RADIANS(O$4))+O$1,"") ->  | O66: =IF('Hearts Desire II'!O90<>"",('Hearts Desire II'!N90*SIN(RADIANS(O$4))+'Hearts Desire II'!O90*COS(RADIANS(O$4))*O$3)+O$2,"") ->  | Q66: =IF('Hearts Desire II'!Q90<>"",'Hearts Desire II'!Q90*COS(RADIANS(T$4))-'Hearts Desire II'!R90*SIN(RADIANS(T$4))+T$1,"") ->  | R66: =IF('Hearts Desire II'!R90<>"",('Hearts Desire II'!Q90*SIN(RADIANS(T$4))+'Hearts Desire II'!R90*COS(RADIANS(T$4))*T$3)+T$2,"") ->  | S66: =IF('Hearts Desire II'!S90<>"",'Hearts Desire II'!S90*COS(RADIANS(T$4))-'Hearts Desire II'!T90*SIN(RADIANS(T$4))+T$1,"") ->  | T66: =IF('Hearts Desire II'!T90<>"",('Hearts Desire II'!S90*SIN(RADIANS(T$4))+'Hearts Desire II'!T90*COS(RADIANS(T$4))*T$3)+T$2,"") ->  | V66: =IF('Hearts Desire II'!V90<>"",'Hearts Desire II'!V90*COS(RADIANS(Y$4))-'Hearts Desire II'!W90*SIN(RADIANS(Y$4))+Y$1,"") ->  | W66: =IF('Hearts Desire II'!W90<>"",('Hearts Desire II'!V90*SIN(RADIANS(Y$4))+'Hearts Desire II'!W90*COS(RADIANS(Y$4))*Y$3)+Y$2,"") ->  | X66: =IF('Hearts Desire II'!X90<>"",'Hearts Desire II'!X90*COS(RADIANS(Y$4))-'Hearts Desire II'!Y90*SIN(RADIANS(Y$4))+Y$1,"") ->  | Y66: =IF('Hearts Desire II'!Y90<>"",('Hearts Desire II'!X90*SIN(RADIANS(Y$4))+'Hearts Desire II'!Y90*COS(RADIANS(Y$4))*Y$3)+Y$2,"") -> 
B67: =IF('Hearts Desire II'!B91<>"",'Hearts Desire II'!B91*COS(RADIANS(E$4))-'Hearts Desire II'!C91*SIN(RADIANS(E$4))+E$1,"") ->  | C67: =IF('Hearts Desire II'!C91<>"",('Hearts Desire II'!B91*SIN(RADIANS(E$4))+'Hearts Desire II'!C91*COS(RADIANS(E$4))*E$3)+E$2,"") ->  | D67: =IF('Hearts Desire II'!D91<>"",'Hearts Desire II'!D91*COS(RADIANS(E$4))-'Hearts Desire II'!E91*SIN(RADIANS(E$4))+E$1,"") ->  | E67: =IF('Hearts Desire II'!E91<>"",('Hearts Desire II'!D91*SIN(RADIANS(E$4))+'Hearts Desire II'!E91*COS(RADIANS(E$4))*E$3)+E$2,"") ->  | G67: =IF('Hearts Desire II'!G91<>"",'Hearts Desire II'!G91*COS(RADIANS(J$4))-'Hearts Desire II'!H91*SIN(RADIANS(J$4))+J$1,"") ->  | H67: =IF('Hearts Desire II'!H91<>"",('Hearts Desire II'!G91*SIN(RADIANS(J$4))+'Hearts Desire II'!H91*COS(RADIANS(J$4))*J$3)+J$2,"") ->  | I67: =IF('Hearts Desire II'!I91<>"",'Hearts Desire II'!I91*COS(RADIANS(J$4))-'Hearts Desire II'!J91*SIN(RADIANS(J$4))+J$1,"") ->  | J67: =IF('Hearts Desire II'!J91<>"",('Hearts Desire II'!I91*SIN(RADIANS(J$4))+'Hearts Desire II'!J91*COS(RADIANS(J$4))*J$3)+J$2,"") ->  | L67: =IF('Hearts Desire II'!L91<>"",'Hearts Desire II'!L91*COS(RADIANS(O$4))-'Hearts Desire II'!M91*SIN(RADIANS(O$4))+O$1,"") ->  | M67: =IF('Hearts Desire II'!M91<>"",('Hearts Desire II'!L91*SIN(RADIANS(O$4))+'Hearts Desire II'!M91*COS(RADIANS(O$4))*O$3)+O$2,"") ->  | N67: =IF('Hearts Desire II'!N91<>"",'Hearts Desire II'!N91*COS(RADIANS(O$4))-'Hearts Desire II'!O91*SIN(RADIANS(O$4))+O$1,"") ->  | O67: =IF('Hearts Desire II'!O91<>"",('Hearts Desire II'!N91*SIN(RADIANS(O$4))+'Hearts Desire II'!O91*COS(RADIANS(O$4))*O$3)+O$2,"") ->  | Q67: =IF('Hearts Desire II'!Q91<>"",'Hearts Desire II'!Q91*COS(RADIANS(T$4))-'Hearts Desire II'!R91*SIN(RADIANS(T$4))+T$1,"") ->  | R67: =IF('Hearts Desire II'!R91<>"",('Hearts Desire II'!Q91*SIN(RADIANS(T$4))+'Hearts Desire II'!R91*COS(RADIANS(T$4))*T$3)+T$2,"") ->  | S67: =IF('Hearts Desire II'!S91<>"",'Hearts Desire II'!S91*COS(RADIANS(T$4))-'Hearts Desire II'!T91*SIN(RADIANS(T$4))+T$1,"") ->  | T67: =IF('Hearts Desire II'!T91<>"",('Hearts Desire II'!S91*SIN(RADIANS(T$4))+'Hearts Desire II'!T91*COS(RADIANS(T$4))*T$3)+T$2,"") ->  | V67: =IF('Hearts Desire II'!V91<>"",'Hearts Desire II'!V91*COS(RADIANS(Y$4))-'Hearts Desire II'!W91*SIN(RADIANS(Y$4))+Y$1,"") ->  | W67: =IF('Hearts Desire II'!W91<>"",('Hearts Desire II'!V91*SIN(RADIANS(Y$4))+'Hearts Desire II'!W91*COS(RADIANS(Y$4))*Y$3)+Y$2,"") ->  | X67: =IF('Hearts Desire II'!X91<>"",'Hearts Desire II'!X91*COS(RADIANS(Y$4))-'Hearts Desire II'!Y91*SIN(RADIANS(Y$4))+Y$1,"") ->  | Y67: =IF('Hearts Desire II'!Y91<>"",('Hearts Desire II'!X91*SIN(RADIANS(Y$4))+'Hearts Desire II'!Y91*COS(RADIANS(Y$4))*Y$3)+Y$2,"") -> 
B68: =IF('Hearts Desire II'!B92<>"",'Hearts Desire II'!B92*COS(RADIANS(E$4))-'Hearts Desire II'!C92*SIN(RADIANS(E$4))+E$1,"") ->  | C68: =IF('Hearts Desire II'!C92<>"",('Hearts Desire II'!B92*SIN(RADIANS(E$4))+'Hearts Desire II'!C92*COS(RADIANS(E$4))*E$3)+E$2,"") ->  | D68: =IF('Hearts Desire II'!D92<>"",'Hearts Desire II'!D92*COS(RADIANS(E$4))-'Hearts Desire II'!E92*SIN(RADIANS(E$4))+E$1,"") ->  | E68: =IF('Hearts Desire II'!E92<>"",('Hearts Desire II'!D92*SIN(RADIANS(E$4))+'Hearts Desire II'!E92*COS(RADIANS(E$4))*E$3)+E$2,"") ->  | G68: =IF('Hearts Desire II'!G92<>"",'Hearts Desire II'!G92*COS(RADIANS(J$4))-'Hearts Desire II'!H92*SIN(RADIANS(J$4))+J$1,"") ->  | H68: =IF('Hearts Desire II'!H92<>"",('Hearts Desire II'!G92*SIN(RADIANS(J$4))+'Hearts Desire II'!H92*COS(RADIANS(J$4))*J$3)+J$2,"") ->  | I68: =IF('Hearts Desire II'!I92<>"",'Hearts Desire II'!I92*COS(RADIANS(J$4))-'Hearts Desire II'!J92*SIN(RADIANS(J$4))+J$1,"") ->  | J68: =IF('Hearts Desire II'!J92<>"",('Hearts Desire II'!I92*SIN(RADIANS(J$4))+'Hearts Desire II'!J92*COS(RADIANS(J$4))*J$3)+J$2,"") ->  | L68: =IF('Hearts Desire II'!L92<>"",'Hearts Desire II'!L92*COS(RADIANS(O$4))-'Hearts Desire II'!M92*SIN(RADIANS(O$4))+O$1,"") ->  | M68: =IF('Hearts Desire II'!M92<>"",('Hearts Desire II'!L92*SIN(RADIANS(O$4))+'Hearts Desire II'!M92*COS(RADIANS(O$4))*O$3)+O$2,"") ->  | N68: =IF('Hearts Desire II'!N92<>"",'Hearts Desire II'!N92*COS(RADIANS(O$4))-'Hearts Desire II'!O92*SIN(RADIANS(O$4))+O$1,"") ->  | O68: =IF('Hearts Desire II'!O92<>"",('Hearts Desire II'!N92*SIN(RADIANS(O$4))+'Hearts Desire II'!O92*COS(RADIANS(O$4))*O$3)+O$2,"") ->  | Q68: =IF('Hearts Desire II'!Q92<>"",'Hearts Desire II'!Q92*COS(RADIANS(T$4))-'Hearts Desire II'!R92*SIN(RADIANS(T$4))+T$1,"") ->  | R68: =IF('Hearts Desire II'!R92<>"",('Hearts Desire II'!Q92*SIN(RADIANS(T$4))+'Hearts Desire II'!R92*COS(RADIANS(T$4))*T$3)+T$2,"") ->  | S68: =IF('Hearts Desire II'!S92<>"",'Hearts Desire II'!S92*COS(RADIANS(T$4))-'Hearts Desire II'!T92*SIN(RADIANS(T$4))+T$1,"") ->  | T68: =IF('Hearts Desire II'!T92<>"",('Hearts Desire II'!S92*SIN(RADIANS(T$4))+'Hearts Desire II'!T92*COS(RADIANS(T$4))*T$3)+T$2,"") ->  | V68: =IF('Hearts Desire II'!V92<>"",'Hearts Desire II'!V92*COS(RADIANS(Y$4))-'Hearts Desire II'!W92*SIN(RADIANS(Y$4))+Y$1,"") ->  | W68: =IF('Hearts Desire II'!W92<>"",('Hearts Desire II'!V92*SIN(RADIANS(Y$4))+'Hearts Desire II'!W92*COS(RADIANS(Y$4))*Y$3)+Y$2,"") ->  | X68: =IF('Hearts Desire II'!X92<>"",'Hearts Desire II'!X92*COS(RADIANS(Y$4))-'Hearts Desire II'!Y92*SIN(RADIANS(Y$4))+Y$1,"") ->  | Y68: =IF('Hearts Desire II'!Y92<>"",('Hearts Desire II'!X92*SIN(RADIANS(Y$4))+'Hearts Desire II'!Y92*COS(RADIANS(Y$4))*Y$3)+Y$2,"") -> 
B69: =IF('Hearts Desire II'!B93<>"",'Hearts Desire II'!B93*COS(RADIANS(E$4))-'Hearts Desire II'!C93*SIN(RADIANS(E$4))+E$1,"") ->  | C69: =IF('Hearts Desire II'!C93<>"",('Hearts Desire II'!B93*SIN(RADIANS(E$4))+'Hearts Desire II'!C93*COS(RADIANS(E$4))*E$3)+E$2,"") ->  | D69: =IF('Hearts Desire II'!D93<>"",'Hearts Desire II'!D93*COS(RADIANS(E$4))-'Hearts Desire II'!E93*SIN(RADIANS(E$4))+E$1,"") ->  | E69: =IF('Hearts Desire II'!E93<>"",('Hearts Desire II'!D93*SIN(RADIANS(E$4))+'Hearts Desire II'!E93*COS(RADIANS(E$4))*E$3)+E$2,"") ->  | G69: =IF('Hearts Desire II'!G93<>"",'Hearts Desire II'!G93*COS(RADIANS(J$4))-'Hearts Desire II'!H93*SIN(RADIANS(J$4))+J$1,"") ->  | H69: =IF('Hearts Desire II'!H93<>"",('Hearts Desire II'!G93*SIN(RADIANS(J$4))+'Hearts Desire II'!H93*COS(RADIANS(J$4))*J$3)+J$2,"") ->  | I69: =IF('Hearts Desire II'!I93<>"",'Hearts Desire II'!I93*COS(RADIANS(J$4))-'Hearts Desire II'!J93*SIN(RADIANS(J$4))+J$1,"") ->  | J69: =IF('Hearts Desire II'!J93<>"",('Hearts Desire II'!I93*SIN(RADIANS(J$4))+'Hearts Desire II'!J93*COS(RADIANS(J$4))*J$3)+J$2,"") ->  | L69: =IF('Hearts Desire II'!L93<>"",'Hearts Desire II'!L93*COS(RADIANS(O$4))-'Hearts Desire II'!M93*SIN(RADIANS(O$4))+O$1,"") ->  | M69: =IF('Hearts Desire II'!M93<>"",('Hearts Desire II'!L93*SIN(RADIANS(O$4))+'Hearts Desire II'!M93*COS(RADIANS(O$4))*O$3)+O$2,"") ->  | N69: =IF('Hearts Desire II'!N93<>"",'Hearts Desire II'!N93*COS(RADIANS(O$4))-'Hearts Desire II'!O93*SIN(RADIANS(O$4))+O$1,"") ->  | O69: =IF('Hearts Desire II'!O93<>"",('Hearts Desire II'!N93*SIN(RADIANS(O$4))+'Hearts Desire II'!O93*COS(RADIANS(O$4))*O$3)+O$2,"") ->  | Q69: =IF('Hearts Desire II'!Q93<>"",'Hearts Desire II'!Q93*COS(RADIANS(T$4))-'Hearts Desire II'!R93*SIN(RADIANS(T$4))+T$1,"") ->  | R69: =IF('Hearts Desire II'!R93<>"",('Hearts Desire II'!Q93*SIN(RADIANS(T$4))+'Hearts Desire II'!R93*COS(RADIANS(T$4))*T$3)+T$2,"") ->  | S69: =IF('Hearts Desire II'!S93<>"",'Hearts Desire II'!S93*COS(RADIANS(T$4))-'Hearts Desire II'!T93*SIN(RADIANS(T$4))+T$1,"") ->  | T69: =IF('Hearts Desire II'!T93<>"",('Hearts Desire II'!S93*SIN(RADIANS(T$4))+'Hearts Desire II'!T93*COS(RADIANS(T$4))*T$3)+T$2,"") ->  | V69: =IF('Hearts Desire II'!V93<>"",'Hearts Desire II'!V93*COS(RADIANS(Y$4))-'Hearts Desire II'!W93*SIN(RADIANS(Y$4))+Y$1,"") ->  | W69: =IF('Hearts Desire II'!W93<>"",('Hearts Desire II'!V93*SIN(RADIANS(Y$4))+'Hearts Desire II'!W93*COS(RADIANS(Y$4))*Y$3)+Y$2,"") ->  | X69: =IF('Hearts Desire II'!X93<>"",'Hearts Desire II'!X93*COS(RADIANS(Y$4))-'Hearts Desire II'!Y93*SIN(RADIANS(Y$4))+Y$1,"") ->  | Y69: =IF('Hearts Desire II'!Y93<>"",('Hearts Desire II'!X93*SIN(RADIANS(Y$4))+'Hearts Desire II'!Y93*COS(RADIANS(Y$4))*Y$3)+Y$2,"") -> 
B70: =IF('Hearts Desire II'!B94<>"",'Hearts Desire II'!B94*COS(RADIANS(E$4))-'Hearts Desire II'!C94*SIN(RADIANS(E$4))+E$1,"") ->  | C70: =IF('Hearts Desire II'!C94<>"",('Hearts Desire II'!B94*SIN(RADIANS(E$4))+'Hearts Desire II'!C94*COS(RADIANS(E$4))*E$3)+E$2,"") ->  | D70: =IF('Hearts Desire II'!D94<>"",'Hearts Desire II'!D94*COS(RADIANS(E$4))-'Hearts Desire II'!E94*SIN(RADIANS(E$4))+E$1,"") ->  | E70: =IF('Hearts Desire II'!E94<>"",('Hearts Desire II'!D94*SIN(RADIANS(E$4))+'Hearts Desire II'!E94*COS(RADIANS(E$4))*E$3)+E$2,"") ->  | G70: =IF('Hearts Desire II'!G94<>"",'Hearts Desire II'!G94*COS(RADIANS(J$4))-'Hearts Desire II'!H94*SIN(RADIANS(J$4))+J$1,"") ->  | H70: =IF('Hearts Desire II'!H94<>"",('Hearts Desire II'!G94*SIN(RADIANS(J$4))+'Hearts Desire II'!H94*COS(RADIANS(J$4))*J$3)+J$2,"") ->  | I70: =IF('Hearts Desire II'!I94<>"",'Hearts Desire II'!I94*COS(RADIANS(J$4))-'Hearts Desire II'!J94*SIN(RADIANS(J$4))+J$1,"") ->  | J70: =IF('Hearts Desire II'!J94<>"",('Hearts Desire II'!I94*SIN(RADIANS(J$4))+'Hearts Desire II'!J94*COS(RADIANS(J$4))*J$3)+J$2,"") ->  | L70: =IF('Hearts Desire II'!L94<>"",'Hearts Desire II'!L94*COS(RADIANS(O$4))-'Hearts Desire II'!M94*SIN(RADIANS(O$4))+O$1,"") ->  | M70: =IF('Hearts Desire II'!M94<>"",('Hearts Desire II'!L94*SIN(RADIANS(O$4))+'Hearts Desire II'!M94*COS(RADIANS(O$4))*O$3)+O$2,"") ->  | N70: =IF('Hearts Desire II'!N94<>"",'Hearts Desire II'!N94*COS(RADIANS(O$4))-'Hearts Desire II'!O94*SIN(RADIANS(O$4))+O$1,"") ->  | O70: =IF('Hearts Desire II'!O94<>"",('Hearts Desire II'!N94*SIN(RADIANS(O$4))+'Hearts Desire II'!O94*COS(RADIANS(O$4))*O$3)+O$2,"") ->  | Q70: =IF('Hearts Desire II'!Q94<>"",'Hearts Desire II'!Q94*COS(RADIANS(T$4))-'Hearts Desire II'!R94*SIN(RADIANS(T$4))+T$1,"") ->  | R70: =IF('Hearts Desire II'!R94<>"",('Hearts Desire II'!Q94*SIN(RADIANS(T$4))+'Hearts Desire II'!R94*COS(RADIANS(T$4))*T$3)+T$2,"") ->  | S70: =IF('Hearts Desire II'!S94<>"",'Hearts Desire II'!S94*COS(RADIANS(T$4))-'Hearts Desire II'!T94*SIN(RADIANS(T$4))+T$1,"") ->  | T70: =IF('Hearts Desire II'!T94<>"",('Hearts Desire II'!S94*SIN(RADIANS(T$4))+'Hearts Desire II'!T94*COS(RADIANS(T$4))*T$3)+T$2,"") ->  | V70: =IF('Hearts Desire II'!V94<>"",'Hearts Desire II'!V94*COS(RADIANS(Y$4))-'Hearts Desire II'!W94*SIN(RADIANS(Y$4))+Y$1,"") ->  | W70: =IF('Hearts Desire II'!W94<>"",('Hearts Desire II'!V94*SIN(RADIANS(Y$4))+'Hearts Desire II'!W94*COS(RADIANS(Y$4))*Y$3)+Y$2,"") ->  | X70: =IF('Hearts Desire II'!X94<>"",'Hearts Desire II'!X94*COS(RADIANS(Y$4))-'Hearts Desire II'!Y94*SIN(RADIANS(Y$4))+Y$1,"") ->  | Y70: =IF('Hearts Desire II'!Y94<>"",('Hearts Desire II'!X94*SIN(RADIANS(Y$4))+'Hearts Desire II'!Y94*COS(RADIANS(Y$4))*Y$3)+Y$2,"") -> 
B71: =IF('Hearts Desire II'!B95<>"",'Hearts Desire II'!B95*COS(RADIANS(E$4))-'Hearts Desire II'!C95*SIN(RADIANS(E$4))+E$1,"") ->  | C71: =IF('Hearts Desire II'!C95<>"",('Hearts Desire II'!B95*SIN(RADIANS(E$4))+'Hearts Desire II'!C95*COS(RADIANS(E$4))*E$3)+E$2,"") ->  | D71: =IF('Hearts Desire II'!D95<>"",'Hearts Desire II'!D95*COS(RADIANS(E$4))-'Hearts Desire II'!E95*SIN(RADIANS(E$4))+E$1,"") ->  | E71: =IF('Hearts Desire II'!E95<>"",('Hearts Desire II'!D95*SIN(RADIANS(E$4))+'Hearts Desire II'!E95*COS(RADIANS(E$4))*E$3)+E$2,"") ->  | G71: =IF('Hearts Desire II'!G95<>"",'Hearts Desire II'!G95*COS(RADIANS(J$4))-'Hearts Desire II'!H95*SIN(RADIANS(J$4))+J$1,"") ->  | H71: =IF('Hearts Desire II'!H95<>"",('Hearts Desire II'!G95*SIN(RADIANS(J$4))+'Hearts Desire II'!H95*COS(RADIANS(J$4))*J$3)+J$2,"") ->  | I71: =IF('Hearts Desire II'!I95<>"",'Hearts Desire II'!I95*COS(RADIANS(J$4))-'Hearts Desire II'!J95*SIN(RADIANS(J$4))+J$1,"") ->  | J71: =IF('Hearts Desire II'!J95<>"",('Hearts Desire II'!I95*SIN(RADIANS(J$4))+'Hearts Desire II'!J95*COS(RADIANS(J$4))*J$3)+J$2,"") ->  | L71: =IF('Hearts Desire II'!L95<>"",'Hearts Desire II'!L95*COS(RADIANS(O$4))-'Hearts Desire II'!M95*SIN(RADIANS(O$4))+O$1,"") ->  | M71: =IF('Hearts Desire II'!M95<>"",('Hearts Desire II'!L95*SIN(RADIANS(O$4))+'Hearts Desire II'!M95*COS(RADIANS(O$4))*O$3)+O$2,"") ->  | N71: =IF('Hearts Desire II'!N95<>"",'Hearts Desire II'!N95*COS(RADIANS(O$4))-'Hearts Desire II'!O95*SIN(RADIANS(O$4))+O$1,"") ->  | O71: =IF('Hearts Desire II'!O95<>"",('Hearts Desire II'!N95*SIN(RADIANS(O$4))+'Hearts Desire II'!O95*COS(RADIANS(O$4))*O$3)+O$2,"") ->  | Q71: =IF('Hearts Desire II'!Q95<>"",'Hearts Desire II'!Q95*COS(RADIANS(T$4))-'Hearts Desire II'!R95*SIN(RADIANS(T$4))+T$1,"") ->  | R71: =IF('Hearts Desire II'!R95<>"",('Hearts Desire II'!Q95*SIN(RADIANS(T$4))+'Hearts Desire II'!R95*COS(RADIANS(T$4))*T$3)+T$2,"") ->  | S71: =IF('Hearts Desire II'!S95<>"",'Hearts Desire II'!S95*COS(RADIANS(T$4))-'Hearts Desire II'!T95*SIN(RADIANS(T$4))+T$1,"") ->  | T71: =IF('Hearts Desire II'!T95<>"",('Hearts Desire II'!S95*SIN(RADIANS(T$4))+'Hearts Desire II'!T95*COS(RADIANS(T$4))*T$3)+T$2,"") ->  | V71: =IF('Hearts Desire II'!V95<>"",'Hearts Desire II'!V95*COS(RADIANS(Y$4))-'Hearts Desire II'!W95*SIN(RADIANS(Y$4))+Y$1,"") ->  | W71: =IF('Hearts Desire II'!W95<>"",('Hearts Desire II'!V95*SIN(RADIANS(Y$4))+'Hearts Desire II'!W95*COS(RADIANS(Y$4))*Y$3)+Y$2,"") ->  | X71: =IF('Hearts Desire II'!X95<>"",'Hearts Desire II'!X95*COS(RADIANS(Y$4))-'Hearts Desire II'!Y95*SIN(RADIANS(Y$4))+Y$1,"") ->  | Y71: =IF('Hearts Desire II'!Y95<>"",('Hearts Desire II'!X95*SIN(RADIANS(Y$4))+'Hearts Desire II'!Y95*COS(RADIANS(Y$4))*Y$3)+Y$2,"") -> 
B72: =IF('Hearts Desire II'!B96<>"",'Hearts Desire II'!B96*COS(RADIANS(E$4))-'Hearts Desire II'!C96*SIN(RADIANS(E$4))+E$1,"") ->  | C72: =IF('Hearts Desire II'!C96<>"",('Hearts Desire II'!B96*SIN(RADIANS(E$4))+'Hearts Desire II'!C96*COS(RADIANS(E$4))*E$3)+E$2,"") ->  | D72: =IF('Hearts Desire II'!D96<>"",'Hearts Desire II'!D96*COS(RADIANS(E$4))-'Hearts Desire II'!E96*SIN(RADIANS(E$4))+E$1,"") ->  | E72: =IF('Hearts Desire II'!E96<>"",('Hearts Desire II'!D96*SIN(RADIANS(E$4))+'Hearts Desire II'!E96*COS(RADIANS(E$4))*E$3)+E$2,"") ->  | G72: =IF('Hearts Desire II'!G96<>"",'Hearts Desire II'!G96*COS(RADIANS(J$4))-'Hearts Desire II'!H96*SIN(RADIANS(J$4))+J$1,"") ->  | H72: =IF('Hearts Desire II'!H96<>"",('Hearts Desire II'!G96*SIN(RADIANS(J$4))+'Hearts Desire II'!H96*COS(RADIANS(J$4))*J$3)+J$2,"") ->  | I72: =IF('Hearts Desire II'!I96<>"",'Hearts Desire II'!I96*COS(RADIANS(J$4))-'Hearts Desire II'!J96*SIN(RADIANS(J$4))+J$1,"") ->  | J72: =IF('Hearts Desire II'!J96<>"",('Hearts Desire II'!I96*SIN(RADIANS(J$4))+'Hearts Desire II'!J96*COS(RADIANS(J$4))*J$3)+J$2,"") ->  | L72: =IF('Hearts Desire II'!L96<>"",'Hearts Desire II'!L96*COS(RADIANS(O$4))-'Hearts Desire II'!M96*SIN(RADIANS(O$4))+O$1,"") ->  | M72: =IF('Hearts Desire II'!M96<>"",('Hearts Desire II'!L96*SIN(RADIANS(O$4))+'Hearts Desire II'!M96*COS(RADIANS(O$4))*O$3)+O$2,"") ->  | N72: =IF('Hearts Desire II'!N96<>"",'Hearts Desire II'!N96*COS(RADIANS(O$4))-'Hearts Desire II'!O96*SIN(RADIANS(O$4))+O$1,"") ->  | O72: =IF('Hearts Desire II'!O96<>"",('Hearts Desire II'!N96*SIN(RADIANS(O$4))+'Hearts Desire II'!O96*COS(RADIANS(O$4))*O$3)+O$2,"") ->  | Q72: =IF('Hearts Desire II'!Q96<>"",'Hearts Desire II'!Q96*COS(RADIANS(T$4))-'Hearts Desire II'!R96*SIN(RADIANS(T$4))+T$1,"") ->  | R72: =IF('Hearts Desire II'!R96<>"",('Hearts Desire II'!Q96*SIN(RADIANS(T$4))+'Hearts Desire II'!R96*COS(RADIANS(T$4))*T$3)+T$2,"") ->  | S72: =IF('Hearts Desire II'!S96<>"",'Hearts Desire II'!S96*COS(RADIANS(T$4))-'Hearts Desire II'!T96*SIN(RADIANS(T$4))+T$1,"") ->  | T72: =IF('Hearts Desire II'!T96<>"",('Hearts Desire II'!S96*SIN(RADIANS(T$4))+'Hearts Desire II'!T96*COS(RADIANS(T$4))*T$3)+T$2,"") ->  | V72: =IF('Hearts Desire II'!V96<>"",'Hearts Desire II'!V96*COS(RADIANS(Y$4))-'Hearts Desire II'!W96*SIN(RADIANS(Y$4))+Y$1,"") ->  | W72: =IF('Hearts Desire II'!W96<>"",('Hearts Desire II'!V96*SIN(RADIANS(Y$4))+'Hearts Desire II'!W96*COS(RADIANS(Y$4))*Y$3)+Y$2,"") ->  | X72: =IF('Hearts Desire II'!X96<>"",'Hearts Desire II'!X96*COS(RADIANS(Y$4))-'Hearts Desire II'!Y96*SIN(RADIANS(Y$4))+Y$1,"") ->  | Y72: =IF('Hearts Desire II'!Y96<>"",('Hearts Desire II'!X96*SIN(RADIANS(Y$4))+'Hearts Desire II'!Y96*COS(RADIANS(Y$4))*Y$3)+Y$2,"") -> 
B73: =IF('Hearts Desire II'!B97<>"",'Hearts Desire II'!B97*COS(RADIANS(E$4))-'Hearts Desire II'!C97*SIN(RADIANS(E$4))+E$1,"") ->  | C73: =IF('Hearts Desire II'!C97<>"",('Hearts Desire II'!B97*SIN(RADIANS(E$4))+'Hearts Desire II'!C97*COS(RADIANS(E$4))*E$3)+E$2,"") ->  | D73: =IF('Hearts Desire II'!D97<>"",'Hearts Desire II'!D97*COS(RADIANS(E$4))-'Hearts Desire II'!E97*SIN(RADIANS(E$4))+E$1,"") ->  | E73: =IF('Hearts Desire II'!E97<>"",('Hearts Desire II'!D97*SIN(RADIANS(E$4))+'Hearts Desire II'!E97*COS(RADIANS(E$4))*E$3)+E$2,"") ->  | G73: =IF('Hearts Desire II'!G97<>"",'Hearts Desire II'!G97*COS(RADIANS(J$4))-'Hearts Desire II'!H97*SIN(RADIANS(J$4))+J$1,"") ->  | H73: =IF('Hearts Desire II'!H97<>"",('Hearts Desire II'!G97*SIN(RADIANS(J$4))+'Hearts Desire II'!H97*COS(RADIANS(J$4))*J$3)+J$2,"") ->  | I73: =IF('Hearts Desire II'!I97<>"",'Hearts Desire II'!I97*COS(RADIANS(J$4))-'Hearts Desire II'!J97*SIN(RADIANS(J$4))+J$1,"") ->  | J73: =IF('Hearts Desire II'!J97<>"",('Hearts Desire II'!I97*SIN(RADIANS(J$4))+'Hearts Desire II'!J97*COS(RADIANS(J$4))*J$3)+J$2,"") ->  | L73: =IF('Hearts Desire II'!L97<>"",'Hearts Desire II'!L97*COS(RADIANS(O$4))-'Hearts Desire II'!M97*SIN(RADIANS(O$4))+O$1,"") ->  | M73: =IF('Hearts Desire II'!M97<>"",('Hearts Desire II'!L97*SIN(RADIANS(O$4))+'Hearts Desire II'!M97*COS(RADIANS(O$4))*O$3)+O$2,"") ->  | N73: =IF('Hearts Desire II'!N97<>"",'Hearts Desire II'!N97*COS(RADIANS(O$4))-'Hearts Desire II'!O97*SIN(RADIANS(O$4))+O$1,"") ->  | O73: =IF('Hearts Desire II'!O97<>"",('Hearts Desire II'!N97*SIN(RADIANS(O$4))+'Hearts Desire II'!O97*COS(RADIANS(O$4))*O$3)+O$2,"") ->  | Q73: =IF('Hearts Desire II'!Q97<>"",'Hearts Desire II'!Q97*COS(RADIANS(T$4))-'Hearts Desire II'!R97*SIN(RADIANS(T$4))+T$1,"") ->  | R73: =IF('Hearts Desire II'!R97<>"",('Hearts Desire II'!Q97*SIN(RADIANS(T$4))+'Hearts Desire II'!R97*COS(RADIANS(T$4))*T$3)+T$2,"") ->  | S73: =IF('Hearts Desire II'!S97<>"",'Hearts Desire II'!S97*COS(RADIANS(T$4))-'Hearts Desire II'!T97*SIN(RADIANS(T$4))+T$1,"") ->  | T73: =IF('Hearts Desire II'!T97<>"",('Hearts Desire II'!S97*SIN(RADIANS(T$4))+'Hearts Desire II'!T97*COS(RADIANS(T$4))*T$3)+T$2,"") ->  | V73: =IF('Hearts Desire II'!V97<>"",'Hearts Desire II'!V97*COS(RADIANS(Y$4))-'Hearts Desire II'!W97*SIN(RADIANS(Y$4))+Y$1,"") ->  | W73: =IF('Hearts Desire II'!W97<>"",('Hearts Desire II'!V97*SIN(RADIANS(Y$4))+'Hearts Desire II'!W97*COS(RADIANS(Y$4))*Y$3)+Y$2,"") ->  | X73: =IF('Hearts Desire II'!X97<>"",'Hearts Desire II'!X97*COS(RADIANS(Y$4))-'Hearts Desire II'!Y97*SIN(RADIANS(Y$4))+Y$1,"") ->  | Y73: =IF('Hearts Desire II'!Y97<>"",('Hearts Desire II'!X97*SIN(RADIANS(Y$4))+'Hearts Desire II'!Y97*COS(RADIANS(Y$4))*Y$3)+Y$2,"") -> 

Sheet Unfold Plot

Sheet Section
A1: Section | B1: Z
A2: Y | B2: Z
A3: 0 | B3: -574.027511
A4: 244.6052258 | B4: -574.027511
A5: 244.6052258 | B5: -497.8275109
A6: 994.2523028 | B6: -112.5100383
A7: 1136.849182 | B7: 666.8352714
A8: 1157.13458 | B8: 760.8009643

Sheet Slice
A1: Slice | B1: 0
A2: Y | B2: Z
A3: 443.3521756 | B3: 0
A4: 483.0659879 | B4: 29.88715804
A5: 526.5637684 | B5: 61.12393555
A6: 562.0820235 | B6: 87.25026958
A7: 500 | B7: 42.19926069
A8: 720.7131053 | B8: 194.1477732
A9: 682.7503149 | B9: 170.3818364
A10: 600 | B10: 113.8237657
A11: 803.2705227 | B11: 248.3992885
A12: 801.4113753 | B12: 247.2948656
A13: 800 | B13: 246.3783044
A14: 804.6856972 | B14: 249.3160106
A15: 804.6816836 | B15: 249.314051
A16: 804.6786904 | B16: 249.312496
A17: 950.4455406 | B17: 322.2043612
A18: 860.6276671 | B18: 269.9537733
A19: 804.6886904 | B19: 249.317143
A20: 1449.806663 | B20: 561.8469132
A21: 1108.920656 | B21: 379.4846257
A22: 1000 | B22: 341.4184402
A23: 1539.900725 | B23: 594.0403648
A24: 1500 | B24: 581.3366743
A25: 1804.427824 | B25: 715.2426405
A26: 1985.66281 | B26: 776.6145112
A27: 2016.261281 | B27: 783.5631186
A28: 2458.20084 | B28: 891.9419255
A29: 2000 | B29: 780.6067939
A30: 2545.893297 | B30: 904.2112357
A31: 2939.464837 | B31: 968.6815019
A32: 2500 | B32: 899.2322064
A33: 3064.398065 | B33: 978.5407208
A34: 3429.470131 | B34: 1011.048102
A35: 3000 | B35: 974.9767189
A36: 3572.702426 | B36: 1015.455706
A37: 3928.720105 | B37: 1020.073412
A38: 3500 | B38: 1014.838404
A39: 4071.136006 | B39: 1017.292625
A40: 4438.331677 | B40: 990.1982289
A41: 4000 | B41: 1020.674038
A42: 4559.474927 | B42: 979.571882
A43: 4960.285278 | B43: 907.0813771
A44: 4500 | B44: 987.2364214
A45: 5036.900993 | B45: 892.6320278
A46: 5497.899367 | B46: 746.8563794
A47: 5000 | B47: 901.8529191
A48: 5954.440996 | B48: 498.9974582
A49: 5519.577947 | B49: 736.8647038
A50: 5501.871546 | B50: 745.5115607
A51: 5500 | B51: 746.3188488
A52: 6131.959467 | B52: 400.9834666
A53: 6014.239577 | B53: 477.2002679
A54: 6000 | B54: 483.5102809
A55: 6150.105214 | B55: 393.0216006
A56: 6150.097657 | B56: 393.0272957
A57: 6150.096436 | B57: 393.0272497
A58: 6193.15008 | B58: 363.1555641
A59: 6156.52863 | B59: 388.1996896
A60: 6150.106436 | B60: 393.0210325
A61: 6355.314686 | B61: 240.9628484
A62: 6237.372309 | B62: 328.5848261
A63: 6200 | B63: 357.9607682
A64: 6462.473754 | B64: 152.0503847
A65: 6436.276493 | B65: 173.5011664
A66: 6400 | B66: 204.4273175
A67: 6543.46095 | B67: 80.59691759
A68: 6569.665396 | B68: 56.25453661
A69: 6500 | B69: 119.4353256
A70: 6621.193831 | B70: 8.551230216
A71: 6600 | B71: 28.62659219
A72: 6621.193831 | B72: 8.551230216
